Workbook

Sheet Def. Prix & Parcours
E2: FINALE FRANCE / ACADEMIQUES COURSE EN COURS
C4: Définition des coefficients pour les parcours et les Prix et Trophées
A6: N° | B6: Critère d'évaluation | C6: Parcours Général | D6: Parcours Technique | E6: Parcours Numérique | F6: Jury | H6: N° | I6: Critère d'évaluation | J6: Avenir | K6: Sciences & techniques | L6: Marketing & communication | M6: Numérique | N6: Jury
A7: 1 | B7: Ingénierie et conception | C7: 6 | D7: 6 | E7: 6 | F7: Soutenance | H7: 1 | I7: Ingénierie et conception | J7: 6 | K7: 6 | L7: 2 | M7: 2 | N7: Soutenance
A8: 2 | B8: Innovation mécanique | C8: 6 | D8: 12 | E8: 4 | F8: Soutenance | H8: 2 | I8: Innovation mécanique | K8: 12 | L8: 2 | M8: 3 | N8: Soutenance
A9: 3 | B9: Design du Véhicule | C9: 3 | D9: 6 | E9: 3 | F9: Spécifique | H9: 3 | I9: Design du Véhicule | K9: 6 | L9: 2 | M9: 2 | N9: Spécifique
A10: 4 | B10: Développement Durable | C10: 4 | D10: 6 | E10: 4 | F10: Spécifique | H10: 4 | I10: Développement Durable | K10: 6 | L10: 6 | M10: 6 | N10: Spécifique
A11: 5 | B11: Ingénierie de fabrication | C11: 3 | D11: 8 | E11: 3 | F11: Soutenance | H11: 5 | I11: Ingénierie de fabrication | K11: 8 | N11: Soutenance
A12: 6 | B12: Gestion de projet et collaborations | C12: 5 | D12: 5 | E12: 5 | F12: Soutenance | H12: 6 | I12: Gestion de projet et collaborations | J12: 5 | K12: 5 | L12: 5 | M12: 5 | N12: Soutenance
A13: 7 | B13: Présentation Orale | C13: 5 | D13: 5 | E13: 5 | F13: Soutenance | H13: 7 | I13: Présentation Orale | J13: 5 | K13: 4 | L13: 5 | M13: 4 | N13: Soutenance
A14: 8 | B14: Innovation numérique | C14: 4 | D14: 4 | E14: 14 | F14: Spécifique | H14: 8 | I14: Innovation numérique | M14: 15 | N14: Spécifique
A15: 9 | B15: Programmation | C15: 4 | D15: 4 | E15: 12 | F15: Spécifique | H15: 9 | I15: Programmation | M15: 15 | N15: Spécifique
A16: 10 | B16: Epreuve CAO | C16: 4 | D16: 4 | E16: 4 | F16: Spécifique | H16: 10 | I16: Epreuve CAO | J16: 4 | N16: Spécifique
A17: 11 | B17: Respect du règlement | C17: 5 | D17: 5 | E17: 5 | F17: Spécifique | H17: 11 | I17: Respect du règlement | J17: 5 | K17: 5 | L17: 5 | M17: 5 | N17: Spécifique
A18: 12 | B18: Identité Equipe | C18: 5 | D18: 5 | E18: 5 | F18: Stand | H18: 12 | I18: Identité Equipe | J18: 5 | K18: 4 | L18: 5 | M18: 4 | N18: Stand
A19: 13 | B19: Design du Stand | C19: 8 | D19: 2 | E19: 2 | F19: Stand | H19: 13 | I19: Design du Stand | L19: 8 | N19: Stand
A20: 14 | B20: Portfolio | C20: 8 | D20: 4 | E20: 4 | F20: Stand | H20: 14 | I20: Portfolio | K20: 4 | L20: 8 | M20: 4 | N20: Stand
A21: 15 | B21: Marketing et Sponsoring | C21: 8 | D21: 2 | E21: 2 | F21: Stand | H21: 15 | I21: Marketing et Sponsoring | L21: 10 | N21: Stand
A22: 16 | B22: Communication : vidéo | C22: 3 | D22: 3 | E22: 3 | F22: Spécifique | H22: 16 | I22: Communication : vidéo | J22: 3 | L22: 10 | N22: Spécifique
A23: 17 | B23: Budget | C23: 2 | D23: 2 | E23: 2 | F23: Stand | H23: 17 | I23: Budget | L23: 2 | N23: Stand
A24: 18 | B24: Temps Course | C24: 10 | D24: 10 | E24: 10 | F24: Piste | H24: 18 | I24: Temps Course | J24: 10 | K24: 10 | M24: 5 | N24: Piste
A25: 19 | B25: Temps Réaction | C25: 3 | D25: 3 | E25: 3 | F25: Piste | H25: 19 | I25: Temps Réaction | J25: 3 | N25: Piste
A26: 20 | B26: Epreuve arrêt au stand | C26: 4 | D26: 4 | E26: 4 | F26: Piste | H26: 20 | I26: Epreuve arrêt au stand | J26: 4 | N26: Piste
A27: 21 | B27: Coup de Cœur | F27: Spécifique | H27: 21 | I27: Coup de Cœur | J27: 20 | N27: Spécifique
A28: 22 | B28: Epreuve KO | F28: Piste | H28: 22 | I28: Epreuve KO | N28: Piste
B29: Total points | C29: 100 | D29: 100 | E29: 100 | I29: Total points | J29: =SUM(J7:J28) -> 70 | K29: =SUM(K7:K28) -> 70 | L29: 70 | M29: 70
B33: Epreuve CAO | C33: G | E33: =VLOOKUP(B33,B6:E28,IF(C33="G",2,IF(C33="T",3,IF(C33="N",4,0))),FALSE) -> 4

Sheet Saisie des Résultats
H2: FINALE FRANCE / ACADEMIQUES COURSE EN COURS
E4: Attention: tous les critères sont notés sur 20 | N4: Feuille de saisie des résultats : | U4: Saisir une valeur | Z4: NE PAS TOUCHER FORMULE
A6: N° équipe | B6: Nom équipe | C6: Etablissement | D6: Type établissement | E6: Académie | F6: Parcours choisi | G6: Points Ingénierie et conception | H6: Points Innovation mécanique | I6: Points Développement Durable | J6: Points Ingénierie de fabrication | K6: Points Gestion de projet et collaborations | L6: Points Présentation Orale | M6: Points Identité Equipe | N6: Points Design du Stand | O6: Points Portfolio | P6: Points Marketing et Sponsoring | Q6: Points Budget | R6: Points Design du Véhicule | S6: Points Innovation numérique | T6: Points Programmation | U6: Points Respect du règlement | V6: Points Communication : vidéo | W6: Class. Epreuve CAO | X6: Points Epreuve CAO | Y6: Temps de Réaction | Z6: Class. Temps de Réaction | AA6: Points Temps Réaction | AB6: Temps Course | AC6: Class. Temps Course | AD6: Points Temps Course | AE6: Points Epreuve arrêt au stand | AF6: Points Coup de cœur
A7: 1 | B7: Star Car | C7: AVEC | D7: C | E7: Nancy-Metz | F7: G | G7: 14 | H7: 16 | I7: 4 | J7: 14 | K7: 17 | L7: 14 | M7: 13 | N7: 11 | O7: 0 | P7: 12 | Q7: 9 | R7: 15 | S7: 0 | T7: 0 | U7: 9 | V7: 13 | W7: 1 | X7: =IF(Table3[[#This Row],[Class. Epreuve CAO]]<>"",IF(Table3[[#This Row],[Class. Epreuve CAO]]=1,20, IF(Table3[[#This Row],[Class. Epreuve CAO]]=2,18, IF(Table3[[#This Row],[Class. Epreuve CAO]]=3,16, IF(Table3[[#This Row],[Class. Epreuve CAO]]=4,14, IF(Table3[[#This Row],[Class. Epreuve CAO]]<9,11, IF(Table3[[#This Row],[Class. Epreuve CAO]]<13,8, IF(Table3[[#This Row],[Class. Epreuve CAO]]<17,6, IF(Table3[[#This Row],[Class. Epreuve CAO]]<21,4,2)))))))),"0") -> 20 | Y7: 0.277 | Z7: =IF(Table3[[#This Row],[Temps de Réaction]]<>"",_xlfn.RANK.EQ(Table3[[#This Row],[Temps de Réaction]],Table3[Temps de Réaction],1),"0") -> 25 | AA7: =IF(Table3[[#This Row],[Temps de Réaction]]<>"",IF(Table3[[#This Row],[Class. Temps de Réaction]]=1,20,IF(Table3[[#This Row],[Class. Temps de Réaction]]=2,18,IF(Table3[[#This Row],[Class. Temps de Réaction]]=3,16,IF(Table3[[#This Row],[Class. Temps de Réaction]]=4,14,IF(Table3[[#This Row],[Class. Temps de Réaction]]<9,11,IF(Table3[[#This Row],[Class. Temps de Réaction]]<13,8,IF(Table3[[#This Row],[Class. Temps de Réaction]]<17,6,IF(Table3[[#This Row],[Class. Temps de Réaction]]<21,4,2)))))))),"0") -> 2 | AB7: 3.722 | AC7: =IF(Table3[[#This Row],[Temps Course]]<>"",_xlfn.RANK.EQ(Table3[[#This Row],[Temps Course]],Table3[Temps Course],1),"") -> 17 | AD7: =IF(Table3[[#This Row],[Temps Course]]<>"",IF(Table3[[#This Row],[Class. Temps Course]]=1,20, IF(Table3[[#This Row],[Class. Temps Course]]=2,19, IF(Table3[[#This Row],[Class. Temps Course]]=3,18, IF(Table3[[#This Row],[Class. Temps Course]]=4,17, IF(Table3[[#This Row],[Class. Temps Course]]=5,16, IF(Table3[[#This Row],[Class. Temps Course]]=6,15, IF(Table3[[#This Row],[Class. Temps Course]]=7,14, IF(Table3[[#This Row],[Class. Temps Course]]=8,13, IF(Table3[[#This Row],[Class. Temps Course]]=9,12, IF(Table3[[#This Row],[Class. Temps Course]]=10,11, IF(Table3[[#This Row],[Class. Temps Course]]<16,10, IF(Table3[[#This Row],[Class. Temps Course]]<21,9, IF(Table3[[#This Row],[Class. Temps Course]]<26,8,7))))))))))))),"0") -> 9 | AE7: 20
A8: 2 | B8: Les industriels | C8: Loritz Nancy | D8: L | E8: Nancy-Metz | F8: T | G8: 0 | H8: 0 | I8: 0 | J8: 0 | K8: 0 | L8: 0 | M8: 0 | N8: 0 | O8: 0 | P8: 0 | Q8: 0 | R8: 0 | S8: 0 | T8: 0 | U8: 0 | V8: 0 | W8: 1 | X8: =IF(Table3[[#This Row],[Class. Epreuve CAO]]<>"",IF(Table3[[#This Row],[Class. Epreuve CAO]]=1,20, IF(Table3[[#This Row],[Class. Epreuve CAO]]=2,18, IF(Table3[[#This Row],[Class. Epreuve CAO]]=3,16, IF(Table3[[#This Row],[Class. Epreuve CAO]]=4,14, IF(Table3[[#This Row],[Class. Epreuve CAO]]<9,11, IF(Table3[[#This Row],[Class. Epreuve CAO]]<13,8, IF(Table3[[#This Row],[Class. Epreuve CAO]]<17,6, IF(Table3[[#This Row],[Class. Epreuve CAO]]<21,4,2)))))))),"0") -> 20 | Y8: 10 | Z8: =IF(Table3[[#This Row],[Temps de Réaction]]<>"",_xlfn.RANK.EQ(Table3[[#This Row],[Temps de Réaction]],Table3[Temps de Réaction],1),"") -> 26 | AA8: =IF(Table3[[#This Row],[Temps de Réaction]]<>"",IF(Table3[[#This Row],[Class. Temps de Réaction]]=1,20,IF(Table3[[#This Row],[Class. Temps de Réaction]]=2,18,IF(Table3[[#This Row],[Class. Temps de Réaction]]=3,16,IF(Table3[[#This Row],[Class. Temps de Réaction]]=4,14,IF(Table3[[#This Row],[Class. Temps de Réaction]]<9,11,IF(Table3[[#This Row],[Class. Temps de Réaction]]<13,8,IF(Table3[[#This Row],[Class. Temps de Réaction]]<17,6,IF(Table3[[#This Row],[Class. Temps de Réaction]]<21,4,2)))))))),"0") -> 2 | AB8: 10 | AC8: =IF(Table3[[#This Row],[Temps Course]]<>"",_xlfn.RANK.EQ(Table3[[#This Row],[Temps Course]],Table3[Temps Course],1),"") -> 22 | AD8: =IF(Table3[[#This Row],[Temps Course]]<>"",IF(Table3[[#This Row],[Class. Temps Course]]=1,20, IF(Table3[[#This Row],[Class. Temps Course]]=2,19, IF(Table3[[#This Row],[Class. Temps Course]]=3,18, IF(Table3[[#This Row],[Class. Temps Course]]=4,17, IF(Table3[[#This Row],[Class. Temps Course]]=5,16, IF(Table3[[#This Row],[Class. Temps Course]]=6,15, IF(Table3[[#This Row],[Class. Temps Course]]=7,14, IF(Table3[[#This Row],[Class. Temps Course]]=8,13, IF(Table3[[#This Row],[Class. Temps Course]]=9,12, IF(Table3[[#This Row],[Class. Temps Course]]=10,11, IF(Table3[[#This Row],[Class. Temps Course]]<16,10, IF(Table3[[#This Row],[Class. Temps Course]]<21,9, IF(Table3[[#This Row],[Class. Temps Course]]<26,8,7))))))))))))),"0") -> 8 | AE8: 20
A9: 3 | B9: S1 motor sport | C9: Lotitz Nancy | D9: L | E9: Nancy-Metz | F9: T | G9: 0 | H9: 0 | I9: 0 | J9: 0 | K9: 0 | L9: 0 | M9: 0 | N9: 0 | O9: 0 | P9: 0 | Q9: 0 | R9: 0 | S9: 0 | T9: 0 | U9: 0 | V9: 0 | W9: 1 | X9: =IF(Table3[[#This Row],[Class. Epreuve CAO]]<>"",IF(Table3[[#This Row],[Class. Epreuve CAO]]=1,20, IF(Table3[[#This Row],[Class. Epreuve CAO]]=2,18, IF(Table3[[#This Row],[Class. Epreuve CAO]]=3,16, IF(Table3[[#This Row],[Class. Epreuve CAO]]=4,14, IF(Table3[[#This Row],[Class. Epreuve CAO]]<9,11, IF(Table3[[#This Row],[Class. Epreuve CAO]]<13,8, IF(Table3[[#This Row],[Class. Epreuve CAO]]<17,6, IF(Table3[[#This Row],[Class. Epreuve CAO]]<21,4,2)))))))),"0") -> 20 | Y9: 10 | Z9: =IF(Table3[[#This Row],[Temps de Réaction]]<>"",_xlfn.RANK.EQ(Table3[[#This Row],[Temps de Réaction]],Table3[Temps de Réaction],1),"") -> 26 | AA9: =IF(Table3[[#This Row],[Temps de Réaction]]<>"",IF(Table3[[#This Row],[Class. Temps de Réaction]]=1,20,IF(Table3[[#This Row],[Class. Temps de Réaction]]=2,18,IF(Table3[[#This Row],[Class. Temps de Réaction]]=3,16,IF(Table3[[#This Row],[Class. Temps de Réaction]]=4,14,IF(Table3[[#This Row],[Class. Temps de Réaction]]<9,11,IF(Table3[[#This Row],[Class. Temps de Réaction]]<13,8,IF(Table3[[#This Row],[Class. Temps de Réaction]]<17,6,IF(Table3[[#This Row],[Class. Temps de Réaction]]<21,4,2)))))))),"0") -> 2 | AB9: 10 | AC9: =IF(Table3[[#This Row],[Temps Course]]<>"",_xlfn.RANK.EQ(Table3[[#This Row],[Temps Course]],Table3[Temps Course],1),"") -> 22 | AD9: =IF(Table3[[#This Row],[Temps Course]]<>"",IF(Table3[[#This Row],[Class. Temps Course]]=1,20, IF(Table3[[#This Row],[Class. Temps Course]]=2,19, IF(Table3[[#This Row],[Class. Temps Course]]=3,18, IF(Table3[[#This Row],[Class. Temps Course]]=4,17, IF(Table3[[#This Row],[Class. Temps Course]]=5,16, IF(Table3[[#This Row],[Class. Temps Course]]=6,15, IF(Table3[[#This Row],[Class. Temps Course]]=7,14, IF(Table3[[#This Row],[Class. Temps Course]]=8,13, IF(Table3[[#This Row],[Class. Temps Course]]=9,12, IF(Table3[[#This Row],[Class. Temps Course]]=10,11, IF(Table3[[#This Row],[Class. Temps Course]]<16,10, IF(Table3[[#This Row],[Class. Temps Course]]<21,9, IF(Table3[[#This Row],[Class. Temps Course]]<26,8,7))))))))))))),"0") -> 8 | AE9: 20
A10: 4 | B10: Back to the past | C10: Loritz Nancy | D10: L | E10: Nancy-Metz | F10: T | G10: 17 | H10: 14 | I10: 15 | J10: 18 | K10: 14 | L10: 14 | M10: 16 | N10: 16 | O10: 15 | P10: 14 | Q10: 14 | R10: 15 | S10: 3 | T10: 2 | U10: 18 | V10: 17 | W10: 1 | X10: =IF(Table3[[#This Row],[Class. Epreuve CAO]]<>"",IF(Table3[[#This Row],[Class. Epreuve CAO]]=1,20, IF(Table3[[#This Row],[Class. Epreuve CAO]]=2,18, IF(Table3[[#This Row],[Class. Epreuve CAO]]=3,16, IF(Table3[[#This Row],[Class. Epreuve CAO]]=4,14, IF(Table3[[#This Row],[Class. Epreuve CAO]]<9,11, IF(Table3[[#This Row],[Class. Epreuve CAO]]<13,8, IF(Table3[[#This Row],[Class. Epreuve CAO]]<17,6, IF(Table3[[#This Row],[Class. Epreuve CAO]]<21,4,2)))))))),"0") -> 20 | Y10: 0.276 | Z10: =IF(Table3[[#This Row],[Temps de Réaction]]<>"",_xlfn.RANK.EQ(Table3[[#This Row],[Temps de Réaction]],Table3[Temps de Réaction],1),"") -> 24 | AA10: =IF(Table3[[#This Row],[Temps de Réaction]]<>"",IF(Table3[[#This Row],[Class. Temps de Réaction]]=1,20,IF(Table3[[#This Row],[Class. Temps de Réaction]]=2,18,IF(Table3[[#This Row],[Class. Temps de Réaction]]=3,16,IF(Table3[[#This Row],[Class. Temps de Réaction]]=4,14,IF(Table3[[#This Row],[Class. Temps de Réaction]]<9,11,IF(Table3[[#This Row],[Class. Temps de Réaction]]<13,8,IF(Table3[[#This Row],[Class. Temps de Réaction]]<17,6,IF(Table3[[#This Row],[Class. Temps de Réaction]]<21,4,2)))))))),"0") -> 2 | AB10: 3.207 | AC10: =IF(Table3[[#This Row],[Temps Course]]<>"",_xlfn.RANK.EQ(Table3[[#This Row],[Temps Course]],Table3[Temps Course],1),"") -> 11 | AD10: =IF(Table3[[#This Row],[Temps Course]]<>"",IF(Table3[[#This Row],[Class. Temps Course]]=1,20, IF(Table3[[#This Row],[Class. Temps Course]]=2,19, IF(Table3[[#This Row],[Class. Temps Course]]=3,18, IF(Table3[[#This Row],[Class. Temps Course]]=4,17, IF(Table3[[#This Row],[Class. Temps Course]]=5,16, IF(Table3[[#This Row],[Class. Temps Course]]=6,15, IF(Table3[[#This Row],[Class. Temps Course]]=7,14, IF(Table3[[#This Row],[Class. Temps Course]]=8,13, IF(Table3[[#This Row],[Class. Temps Course]]=9,12, IF(Table3[[#This Row],[Class. Temps Course]]=10,11, IF(Table3[[#This Row],[Class. Temps Course]]<16,10, IF(Table3[[#This Row],[Class. Temps Course]]<21,9, IF(Table3[[#This Row],[Class. Temps Course]]<26,8,7))))))))))))),"0") -> 10 | AE10: 20
A11: 5 | B11: Ionix | C11: Loritz Nancy | D11: L | E11: Nancy-Metz | F11: T | G11: 14 | H11: 13 | I11: 18 | J11: 16 | K11: 16 | L11: 13 | M11: 11 | N11: 12 | O11: 10 | P11: 14 | Q11: 11 | R11: 14 | S11: 8 | T11: 0 | U11: 20 | V11: 16 | W11: 1 | X11: =IF(Table3[[#This Row],[Class. Epreuve CAO]]<>"",IF(Table3[[#This Row],[Class. Epreuve CAO]]=1,20, IF(Table3[[#This Row],[Class. Epreuve CAO]]=2,18, IF(Table3[[#This Row],[Class. Epreuve CAO]]=3,16, IF(Table3[[#This Row],[Class. Epreuve CAO]]=4,14, IF(Table3[[#This Row],[Class. Epreuve CAO]]<9,11, IF(Table3[[#This Row],[Class. Epreuve CAO]]<13,8, IF(Table3[[#This Row],[Class. Epreuve CAO]]<17,6, IF(Table3[[#This Row],[Class. Epreuve CAO]]<21,4,2)))))))),"0") -> 20 | Y11: 0.221 | Z11: =IF(Table3[[#This Row],[Temps de Réaction]]<>"",_xlfn.RANK.EQ(Table3[[#This Row],[Temps de Réaction]],Table3[Temps de Réaction],1),"") -> 14 | AA11: =IF(Table3[[#This Row],[Temps de Réaction]]<>"",IF(Table3[[#This Row],[Class. Temps de Réaction]]=1,20,IF(Table3[[#This Row],[Class. Temps de Réaction]]=2,18,IF(Table3[[#This Row],[Class. Temps de Réaction]]=3,16,IF(Table3[[#This Row],[Class. Temps de Réaction]]=4,14,IF(Table3[[#This Row],[Class. Temps de Réaction]]<9,11,IF(Table3[[#This Row],[Class. Temps de Réaction]]<13,8,IF(Table3[[#This Row],[Class. Temps de Réaction]]<17,6,IF(Table3[[#This Row],[Class. Temps de Réaction]]<21,4,2)))))))),"0") -> 6 | AB11: 4.042 | AC11: =IF(Table3[[#This Row],[Temps Course]]<>"",_xlfn.RANK.EQ(Table3[[#This Row],[Temps Course]],Table3[Temps Course],1),"") -> 18 | AD11: =IF(Table3[[#This Row],[Temps Course]]<>"",IF(Table3[[#This Row],[Class. Temps Course]]=1,20, IF(Table3[[#This Row],[Class. Temps Course]]=2,19, IF(Table3[[#This Row],[Class. Temps Course]]=3,18, IF(Table3[[#This Row],[Class. Temps Course]]=4,17, IF(Table3[[#This Row],[Class. Temps Course]]=5,16, IF(Table3[[#This Row],[Class. Temps Course]]=6,15, IF(Table3[[#This Row],[Class. Temps Course]]=7,14, IF(Table3[[#This Row],[Class. Temps Course]]=8,13, IF(Table3[[#This Row],[Class. Temps Course]]=9,12, IF(Table3[[#This Row],[Class. Temps Course]]=10,11, IF(Table3[[#This Row],[Class. Temps Course]]<16,10, IF(Table3[[#This Row],[Class. Temps Course]]<21,9, IF(Table3[[#This Row],[Class. Temps Course]]<26,8,7))))))))))))),"0") -> 9 | AE11: 20
A12: 6 | B12: Pavisado | C12: Loritz Nancy | D12: L | E12: Nancy-Metz | F12: T | G12: 0 | H12: 0 | I12: 0 | J12: 0 | K12: 0 | L12: 0 | M12: 0 | N12: 0 | O12: 0 | P12: 0 | Q12: 0 | R12: 0 | S12: 0 | T12: 0 | U12: 0 | V12: 0 | W12: 1 | X12: =IF(Table3[[#This Row],[Class. Epreuve CAO]]<>"",IF(Table3[[#This Row],[Class. Epreuve CAO]]=1,20, IF(Table3[[#This Row],[Class. Epreuve CAO]]=2,18, IF(Table3[[#This Row],[Class. Epreuve CAO]]=3,16, IF(Table3[[#This Row],[Class. Epreuve CAO]]=4,14, IF(Table3[[#This Row],[Class. Epreuve CAO]]<9,11, IF(Table3[[#This Row],[Class. Epreuve CAO]]<13,8, IF(Table3[[#This Row],[Class. Epreuve CAO]]<17,6, IF(Table3[[#This Row],[Class. Epreuve CAO]]<21,4,2)))))))),"0") -> 20 | Y12: 10 | Z12: =IF(Table3[[#This Row],[Temps de Réaction]]<>"",_xlfn.RANK.EQ(Table3[[#This Row],[Temps de Réaction]],Table3[Temps de Réaction],1),"") -> 26 | AA12: =IF(Table3[[#This Row],[Temps de Réaction]]<>"",IF(Table3[[#This Row],[Class. Temps de Réaction]]=1,20,IF(Table3[[#This Row],[Class. Temps de Réaction]]=2,18,IF(Table3[[#This Row],[Class. Temps de Réaction]]=3,16,IF(Table3[[#This Row],[Class. Temps de Réaction]]=4,14,IF(Table3[[#This Row],[Class. Temps de Réaction]]<9,11,IF(Table3[[#This Row],[Class. Temps de Réaction]]<13,8,IF(Table3[[#This Row],[Class. Temps de Réaction]]<17,6,IF(Table3[[#This Row],[Class. Temps de Réaction]]<21,4,2)))))))),"0") -> 2 | AB12: 10 | AC12: =IF(Table3[[#This Row],[Temps Course]]<>"",_xlfn.RANK.EQ(Table3[[#This Row],[Temps Course]],Table3[Temps Course],1),"") -> 22 | AD12: =IF(Table3[[#This Row],[Temps Course]]<>"",IF(Table3[[#This Row],[Class. Temps Course]]=1,20, IF(Table3[[#This Row],[Class. Temps Course]]=2,19, IF(Table3[[#This Row],[Class. Temps Course]]=3,18, IF(Table3[[#This Row],[Class. Temps Course]]=4,17, IF(Table3[[#This Row],[Class. Temps Course]]=5,16, IF(Table3[[#This Row],[Class. Temps Course]]=6,15, IF(Table3[[#This Row],[Class. Temps Course]]=7,14, IF(Table3[[#This Row],[Class. Temps Course]]=8,13, IF(Table3[[#This Row],[Class. Temps Course]]=9,12, IF(Table3[[#This Row],[Class. Temps Course]]=10,11, IF(Table3[[#This Row],[Class. Temps Course]]<16,10, IF(Table3[[#This Row],[Class. Temps Course]]<21,9, IF(Table3[[#This Row],[Class. Temps Course]]<26,8,7))))))))))))),"0") -> 8 | AE12: 20
A13: 7 | B13: Les Toucaninos | C13: Jean Lamour Nancy | D13: C | E13: Nancy-Metz | F13: G | G13: 18 | H13: 17 | I13: 19 | J13: 18 | K13: 19 | L13: 19 | M13: 15 | N13: 15 | O13: 8 | P13: 13 | Q13: 16 | R13: 16 | S13: 7 | T13: 8 | U13: 14 | V13: 14 | W13: 1 | X13: =IF(Table3[[#This Row],[Class. Epreuve CAO]]<>"",IF(Table3[[#This Row],[Class. Epreuve CAO]]=1,20, IF(Table3[[#This Row],[Class. Epreuve CAO]]=2,18, IF(Table3[[#This Row],[Class. Epreuve CAO]]=3,16, IF(Table3[[#This Row],[Class. Epreuve CAO]]=4,14, IF(Table3[[#This Row],[Class. Epreuve CAO]]<9,11, IF(Table3[[#This Row],[Class. Epreuve CAO]]<13,8, IF(Table3[[#This Row],[Class. Epreuve CAO]]<17,6, IF(Table3[[#This Row],[Class. Epreuve CAO]]<21,4,2)))))))),"0") -> 20 | Y13: 0.249 | Z13: =IF(Table3[[#This Row],[Temps de Réaction]]<>"",_xlfn.RANK.EQ(Table3[[#This Row],[Temps de Réaction]],Table3[Temps de Réaction],1),"") -> 23 | AA13: =IF(Table3[[#This Row],[Temps de Réaction]]<>"",IF(Table3[[#This Row],[Class. Temps de Réaction]]=1,20,IF(Table3[[#This Row],[Class. Temps de Réaction]]=2,18,IF(Table3[[#This Row],[Class. Temps de Réaction]]=3,16,IF(Table3[[#This Row],[Class. Temps de Réaction]]=4,14,IF(Table3[[#This Row],[Class. Temps de Réaction]]<9,11,IF(Table3[[#This Row],[Class. Temps de Réaction]]<13,8,IF(Table3[[#This Row],[Class. Temps de Réaction]]<17,6,IF(Table3[[#This Row],[Class. Temps de Réaction]]<21,4,2)))))))),"0") -> 2 | AB13: 3.223 | AC13: =IF(Table3[[#This Row],[Temps Course]]<>"",_xlfn.RANK.EQ(Table3[[#This Row],[Temps Course]],Table3[Temps Course],1),"") -> 12 | AD13: =IF(Table3[[#This Row],[Temps Course]]<>"",IF(Table3[[#This Row],[Class. Temps Course]]=1,20, IF(Table3[[#This Row],[Class. Temps Course]]=2,19, IF(Table3[[#This Row],[Class. Temps Course]]=3,18, IF(Table3[[#This Row],[Class. Temps Course]]=4,17, IF(Table3[[#This Row],[Class. Temps Course]]=5,16, IF(Table3[[#This Row],[Class. Temps Course]]=6,15, IF(Table3[[#This Row],[Class. Temps Course]]=7,14, IF(Table3[[#This Row],[Class. Temps Course]]=8,13, IF(Table3[[#This Row],[Class. Temps Course]]=9,12, IF(Table3[[#This Row],[Class. Temps Course]]=10,11, IF(Table3[[#This Row],[Class. Temps Course]]<16,10, IF(Table3[[#This Row],[Class. Temps Course]]<21,9, IF(Table3[[#This Row],[Class. Temps Course]]<26,8,7))))))))))))),"0") -> 10 | AE13: 20
A14: 8 | B14: Les Daltram | C14: Jean Lamour Nancy | D14: C | E14: Nancy-Metz | F14: G | G14: 15 | H14: 13 | I14: 12 | J14: 14 | K14: 14 | L14: 17 | M14: 18 | N14: 15 | O14: 14 | P14: 13 | Q14: 16 | R14: 17 | S14: 15 | T14: 17 | U14: 20 | V14: 17 | W14: 1 | X14: =IF(Table3[[#This Row],[Class. Epreuve CAO]]<>"",IF(Table3[[#This Row],[Class. Epreuve CAO]]=1,20, IF(Table3[[#This Row],[Class. Epreuve CAO]]=2,18, IF(Table3[[#This Row],[Class. Epreuve CAO]]=3,16, IF(Table3[[#This Row],[Class. Epreuve CAO]]=4,14, IF(Table3[[#This Row],[Class. Epreuve CAO]]<9,11, IF(Table3[[#This Row],[Class. Epreuve CAO]]<13,8, IF(Table3[[#This Row],[Class. Epreuve CAO]]<17,6, IF(Table3[[#This Row],[Class. Epreuve CAO]]<21,4,2)))))))),"0") -> 20 | Y14: 0.221 | Z14: =IF(Table3[[#This Row],[Temps de Réaction]]<>"",_xlfn.RANK.EQ(Table3[[#This Row],[Temps de Réaction]],Table3[Temps de Réaction],1),"") -> 14 | AA14: =IF(Table3[[#This Row],[Temps de Réaction]]<>"",IF(Table3[[#This Row],[Class. Temps de Réaction]]=1,20,IF(Table3[[#This Row],[Class. Temps de Réaction]]=2,18,IF(Table3[[#This Row],[Class. Temps de Réaction]]=3,16,IF(Table3[[#This Row],[Class. Temps de Réaction]]=4,14,IF(Table3[[#This Row],[Class. Temps de Réaction]]<9,11,IF(Table3[[#This Row],[Class. Temps de Réaction]]<13,8,IF(Table3[[#This Row],[Class. Temps de Réaction]]<17,6,IF(Table3[[#This Row],[Class. Temps de Réaction]]<21,4,2)))))))),"0") -> 6 | AB14: 2.658 | AC14: =IF(Table3[[#This Row],[Temps Course]]<>"",_xlfn.RANK.EQ(Table3[[#This Row],[Temps Course]],Table3[Temps Course],1),"") -> 1 | AD14: =IF(Table3[[#This Row],[Temps Course]]<>"",IF(Table3[[#This Row],[Class. Temps Course]]=1,20, IF(Table3[[#This Row],[Class. Temps Course]]=2,19, IF(Table3[[#This Row],[Class. Temps Course]]=3,18, IF(Table3[[#This Row],[Class. Temps Course]]=4,17, IF(Table3[[#This Row],[Class. Temps Course]]=5,16, IF(Table3[[#This Row],[Class. Temps Course]]=6,15, IF(Table3[[#This Row],[Class. Temps Course]]=7,14, IF(Table3[[#This Row],[Class. Temps Course]]=8,13, IF(Table3[[#This Row],[Class. Temps Course]]=9,12, IF(Table3[[#This Row],[Class. Temps Course]]=10,11, IF(Table3[[#This Row],[Class. Temps Course]]<16,10, IF(Table3[[#This Row],[Class. Temps Course]]<21,9, IF(Table3[[#This Row],[Class. Temps Course]]<26,8,7))))))))))))),"0") -> 20 | AE14: 20
A15: 9 | B15: Droit devant | C15: Boutet Lunéville | D15: L | E15: Nancy-Metz | F15: T | G15: 0 | H15: 0 | I15: 0 | J15: 0 | K15: 0 | L15: 0 | M15: 0 | N15: 0 | O15: 0 | P15: 0 | Q15: 0 | R15: 0 | S15: 0 | T15: 0 | U15: 0 | V15: 0 | W15: 1 | X15: =IF(Table3[[#This Row],[Class. Epreuve CAO]]<>"",IF(Table3[[#This Row],[Class. Epreuve CAO]]=1,20, IF(Table3[[#This Row],[Class. Epreuve CAO]]=2,18, IF(Table3[[#This Row],[Class. Epreuve CAO]]=3,16, IF(Table3[[#This Row],[Class. Epreuve CAO]]=4,14, IF(Table3[[#This Row],[Class. Epreuve CAO]]<9,11, IF(Table3[[#This Row],[Class. Epreuve CAO]]<13,8, IF(Table3[[#This Row],[Class. Epreuve CAO]]<17,6, IF(Table3[[#This Row],[Class. Epreuve CAO]]<21,4,2)))))))),"0") -> 20 | Y15: 10 | Z15: =IF(Table3[[#This Row],[Temps de Réaction]]<>"",_xlfn.RANK.EQ(Table3[[#This Row],[Temps de Réaction]],Table3[Temps de Réaction],1),"") -> 26 | AA15: =IF(Table3[[#This Row],[Temps de Réaction]]<>"",IF(Table3[[#This Row],[Class. Temps de Réaction]]=1,20,IF(Table3[[#This Row],[Class. Temps de Réaction]]=2,18,IF(Table3[[#This Row],[Class. Temps de Réaction]]=3,16,IF(Table3[[#This Row],[Class. Temps de Réaction]]=4,14,IF(Table3[[#This Row],[Class. Temps de Réaction]]<9,11,IF(Table3[[#This Row],[Class. Temps de Réaction]]<13,8,IF(Table3[[#This Row],[Class. Temps de Réaction]]<17,6,IF(Table3[[#This Row],[Class. Temps de Réaction]]<21,4,2)))))))),"0") -> 2 | AB15: 10 | AC15: =IF(Table3[[#This Row],[Temps Course]]<>"",_xlfn.RANK.EQ(Table3[[#This Row],[Temps Course]],Table3[Temps Course],1),"") -> 22 | AD15: =IF(Table3[[#This Row],[Temps Course]]<>"",IF(Table3[[#This Row],[Class. Temps Course]]=1,20, IF(Table3[[#This Row],[Class. Temps Course]]=2,19, IF(Table3[[#This Row],[Class. Temps Course]]=3,18, IF(Table3[[#This Row],[Class. Temps Course]]=4,17, IF(Table3[[#This Row],[Class. Temps Course]]=5,16, IF(Table3[[#This Row],[Class. Temps Course]]=6,15, IF(Table3[[#This Row],[Class. Temps Course]]=7,14, IF(Table3[[#This Row],[Class. Temps Course]]=8,13, IF(Table3[[#This Row],[Class. Temps Course]]=9,12, IF(Table3[[#This Row],[Class. Temps Course]]=10,11, IF(Table3[[#This Row],[Class. Temps Course]]<16,10, IF(Table3[[#This Row],[Class. Temps Course]]<21,9, IF(Table3[[#This Row],[Class. Temps Course]]<26,8,7))))))))))))),"0") -> 8 | AE15: 20
A16: 10 | B16: Space-hat | C16: Boutet Lunéville | D16: L | E16: Nancy-Metz | F16: T | G16: 13 | H16: 14 | I16: 16 | J16: 16 | K16: 12 | L16: 12 | M16: 17 | N16: 16 | O16: 13 | P16: 12 | Q16: 12 | R16: 15 | S16: 0 | T16: 0 | U16: 19 | V16: 15 | W16: 1 | X16: =IF(Table3[[#This Row],[Class. Epreuve CAO]]<>"",IF(Table3[[#This Row],[Class. Epreuve CAO]]=1,20, IF(Table3[[#This Row],[Class. Epreuve CAO]]=2,18, IF(Table3[[#This Row],[Class. Epreuve CAO]]=3,16, IF(Table3[[#This Row],[Class. Epreuve CAO]]=4,14, IF(Table3[[#This Row],[Class. Epreuve CAO]]<9,11, IF(Table3[[#This Row],[Class. Epreuve CAO]]<13,8, IF(Table3[[#This Row],[Class. Epreuve CAO]]<17,6, IF(Table3[[#This Row],[Class. Epreuve CAO]]<21,4,2)))))))),"0") -> 20 | Y16: 0.214 | Z16: =IF(Table3[[#This Row],[Temps de Réaction]]<>"",_xlfn.RANK.EQ(Table3[[#This Row],[Temps de Réaction]],Table3[Temps de Réaction],1),"") -> 12 | AA16: =IF(Table3[[#This Row],[Temps de Réaction]]<>"",IF(Table3[[#This Row],[Class. Temps de Réaction]]=1,20,IF(Table3[[#This Row],[Class. Temps de Réaction]]=2,18,IF(Table3[[#This Row],[Class. Temps de Réaction]]=3,16,IF(Table3[[#This Row],[Class. Temps de Réaction]]=4,14,IF(Table3[[#This Row],[Class. Temps de Réaction]]<9,11,IF(Table3[[#This Row],[Class. Temps de Réaction]]<13,8,IF(Table3[[#This Row],[Class. Temps de Réaction]]<17,6,IF(Table3[[#This Row],[Class. Temps de Réaction]]<21,4,2)))))))),"0") -> 8 | AB16: 2.934 | AC16: =IF(Table3[[#This Row],[Temps Course]]<>"",_xlfn.RANK.EQ(Table3[[#This Row],[Temps Course]],Table3[Temps Course],1),"") -> 3 | AD16: =IF(Table3[[#This Row],[Temps Course]]<>"",IF(Table3[[#This Row],[Class. Temps Course]]=1,20, IF(Table3[[#This Row],[Class. Temps Course]]=2,19, IF(Table3[[#This Row],[Class. Temps Course]]=3,18, IF(Table3[[#This Row],[Class. Temps Course]]=4,17, IF(Table3[[#This Row],[Class. Temps Course]]=5,16, IF(Table3[[#This Row],[Class. Temps Course]]=6,15, IF(Table3[[#This Row],[Class. Temps Course]]=7,14, IF(Table3[[#This Row],[Class. Temps Course]]=8,13, IF(Table3[[#This Row],[Class. Temps Course]]=9,12, IF(Table3[[#This Row],[Class. Temps Course]]=10,11, IF(Table3[[#This Row],[Class. Temps Course]]<16,10, IF(Table3[[#This Row],[Class. Temps Course]]<21,9, IF(Table3[[#This Row],[Class. Temps Course]]<26,8,7))))))))))))),"0") -> 18 | AE16: 20
A17: 11 | B17: Molécuisto | C17: Bichat Lunéville | D17: C | E17: Nancy-Metz | F17: G | G17: 13 | H17: 14 | I17: 11 | J17: 15 | K17: 13 | L17: 13 | M17: 16 | N17: 17 | O17: 10 | P17: 16 | Q17: 11 | R17: 11 | S17: 17 | T17: 19 | U17: 20 | V17: 9 | W17: 1 | X17: =IF(Table3[[#This Row],[Class. Epreuve CAO]]<>"",IF(Table3[[#This Row],[Class. Epreuve CAO]]=1,20, IF(Table3[[#This Row],[Class. Epreuve CAO]]=2,18, IF(Table3[[#This Row],[Class. Epreuve CAO]]=3,16, IF(Table3[[#This Row],[Class. Epreuve CAO]]=4,14, IF(Table3[[#This Row],[Class. Epreuve CAO]]<9,11, IF(Table3[[#This Row],[Class. Epreuve CAO]]<13,8, IF(Table3[[#This Row],[Class. Epreuve CAO]]<17,6, IF(Table3[[#This Row],[Class. Epreuve CAO]]<21,4,2)))))))),"0") -> 20 | Y17: 0.23 | Z17: =IF(Table3[[#This Row],[Temps de Réaction]]<>"",_xlfn.RANK.EQ(Table3[[#This Row],[Temps de Réaction]],Table3[Temps de Réaction],1),"") -> 18 | AA17: =IF(Table3[[#This Row],[Temps de Réaction]]<>"",IF(Table3[[#This Row],[Class. Temps de Réaction]]=1,20,IF(Table3[[#This Row],[Class. Temps de Réaction]]=2,18,IF(Table3[[#This Row],[Class. Temps de Réaction]]=3,16,IF(Table3[[#This Row],[Class. Temps de Réaction]]=4,14,IF(Table3[[#This Row],[Class. Temps de Réaction]]<9,11,IF(Table3[[#This Row],[Class. Temps de Réaction]]<13,8,IF(Table3[[#This Row],[Class. Temps de Réaction]]<17,6,IF(Table3[[#This Row],[Class. Temps de Réaction]]<21,4,2)))))))),"0") -> 4 | AB17: 2.965 | AC17: =IF(Table3[[#This Row],[Temps Course]]<>"",_xlfn.RANK.EQ(Table3[[#This Row],[Temps Course]],Table3[Temps Course],1),"") -> 4 | AD17: =IF(Table3[[#This Row],[Temps Course]]<>"",IF(Table3[[#This Row],[Class. Temps Course]]=1,20, IF(Table3[[#This Row],[Class. Temps Course]]=2,19, IF(Table3[[#This Row],[Class. Temps Course]]=3,18, IF(Table3[[#This Row],[Class. Temps Course]]=4,17, IF(Table3[[#This Row],[Class. Temps Course]]=5,16, IF(Table3[[#This Row],[Class. Temps Course]]=6,15, IF(Table3[[#This Row],[Class. Temps Course]]=7,14, IF(Table3[[#This Row],[Class. Temps Course]]=8,13, IF(Table3[[#This Row],[Class. Temps Course]]=9,12, IF(Table3[[#This Row],[Class. Temps Course]]=10,11, IF(Table3[[#This Row],[Class. Temps Course]]<16,10, IF(Table3[[#This Row],[Class. Temps Course]]<21,9, IF(Table3[[#This Row],[Class. Temps Course]]<26,8,7))))))))))))),"0") -> 17 | AE17: 20
A18: 12 | B18: Six divergents | C18: Bichat Lunéville | D18: C | E18: Nancy-Metz | F18: G | G18: 16 | H18: 16 | I18: 12 | J18: 15 | K18: 18 | L18: 14 | M18: 16 | N18: 15 | O18: 17 | P18: 17 | Q18: 17 | R18: 18 | S18: 9 | T18: 15 | U18: 20 | V18: 16 | W18: 1 | X18: =IF(Table3[[#This Row],[Class. Epreuve CAO]]<>"",IF(Table3[[#This Row],[Class. Epreuve CAO]]=1,20, IF(Table3[[#This Row],[Class. Epreuve CAO]]=2,18, IF(Table3[[#This Row],[Class. Epreuve CAO]]=3,16, IF(Table3[[#This Row],[Class. Epreuve CAO]]=4,14, IF(Table3[[#This Row],[Class. Epreuve CAO]]<9,11, IF(Table3[[#This Row],[Class. Epreuve CAO]]<13,8, IF(Table3[[#This Row],[Class. Epreuve CAO]]<17,6, IF(Table3[[#This Row],[Class. Epreuve CAO]]<21,4,2)))))))),"0") -> 20 | Y18: 0.23 | Z18: =IF(Table3[[#This Row],[Temps de Réaction]]<>"",_xlfn.RANK.EQ(Table3[[#This Row],[Temps de Réaction]],Table3[Temps de Réaction],1),"") -> 18 | AA18: =IF(Table3[[#This Row],[Temps de Réaction]]<>"",IF(Table3[[#This Row],[Class. Temps de Réaction]]=1,20,IF(Table3[[#This Row],[Class. Temps de Réaction]]=2,18,IF(Table3[[#This Row],[Class. Temps de Réaction]]=3,16,IF(Table3[[#This Row],[Class. Temps de Réaction]]=4,14,IF(Table3[[#This Row],[Class. Temps de Réaction]]<9,11,IF(Table3[[#This Row],[Class. Temps de Réaction]]<13,8,IF(Table3[[#This Row],[Class. Temps de Réaction]]<17,6,IF(Table3[[#This Row],[Class. Temps de Réaction]]<21,4,2)))))))),"0") -> 4 | AB18: 2.987 | AC18: =IF(Table3[[#This Row],[Temps Course]]<>"",_xlfn.RANK.EQ(Table3[[#This Row],[Temps Course]],Table3[Temps Course],1),"") -> 5 | AD18: =IF(Table3[[#This Row],[Temps Course]]<>"",IF(Table3[[#This Row],[Class. Temps Course]]=1,20, IF(Table3[[#This Row],[Class. Temps Course]]=2,19, IF(Table3[[#This Row],[Class. Temps Course]]=3,18, IF(Table3[[#This Row],[Class. Temps Course]]=4,17, IF(Table3[[#This Row],[Class. Temps Course]]=5,16, IF(Table3[[#This Row],[Class. Temps Course]]=6,15, IF(Table3[[#This Row],[Class. Temps Course]]=7,14, IF(Table3[[#This Row],[Class. Temps Course]]=8,13, IF(Table3[[#This Row],[Class. Temps Course]]=9,12, IF(Table3[[#This Row],[Class. Temps Course]]=10,11, IF(Table3[[#This Row],[Class. Temps Course]]<16,10, IF(Table3[[#This Row],[Class. Temps Course]]<21,9, IF(Table3[[#This Row],[Class. Temps Course]]<26,8,7))))))))))))),"0") -> 16 | AE18: 20
A19: 13 | B19: Andromeda | C19: Duvivier Einville | D19: C | E19: Nancy-Metz | F19: G | G19: 17 | H19: 15 | I19: 15 | J19: 14 | K19: 17 | L19: 17 | M19: 17 | N19: 14 | O19: 18 | P19: 18 | Q19: 19 | R19: 13 | S19: 18 | T19: 15 | U19: 20 | V19: 12 | W19: 1 | X19: =IF(Table3[[#This Row],[Class. Epreuve CAO]]<>"",IF(Table3[[#This Row],[Class. Epreuve CAO]]=1,20, IF(Table3[[#This Row],[Class. Epreuve CAO]]=2,18, IF(Table3[[#This Row],[Class. Epreuve CAO]]=3,16, IF(Table3[[#This Row],[Class. Epreuve CAO]]=4,14, IF(Table3[[#This Row],[Class. Epreuve CAO]]<9,11, IF(Table3[[#This Row],[Class. Epreuve CAO]]<13,8, IF(Table3[[#This Row],[Class. Epreuve CAO]]<17,6, IF(Table3[[#This Row],[Class. Epreuve CAO]]<21,4,2)))))))),"0") -> 20 | Y19: 0.228 | Z19: =IF(Table3[[#This Row],[Temps de Réaction]]<>"",_xlfn.RANK.EQ(Table3[[#This Row],[Temps de Réaction]],Table3[Temps de Réaction],1),"") -> 16 | AA19: =IF(Table3[[#This Row],[Temps de Réaction]]<>"",IF(Table3[[#This Row],[Class. Temps de Réaction]]=1,20,IF(Table3[[#This Row],[Class. Temps de Réaction]]=2,18,IF(Table3[[#This Row],[Class. Temps de Réaction]]=3,16,IF(Table3[[#This Row],[Class. Temps de Réaction]]=4,14,IF(Table3[[#This Row],[Class. Temps de Réaction]]<9,11,IF(Table3[[#This Row],[Class. Temps de Réaction]]<13,8,IF(Table3[[#This Row],[Class. Temps de Réaction]]<17,6,IF(Table3[[#This Row],[Class. Temps de Réaction]]<21,4,2)))))))),"0") -> 6 | AB19: 3.341 | AC19: =IF(Table3[[#This Row],[Temps Course]]<>"",_xlfn.RANK.EQ(Table3[[#This Row],[Temps Course]],Table3[Temps Course],1),"") -> 13 | AD19: =IF(Table3[[#This Row],[Temps Course]]<>"",IF(Table3[[#This Row],[Class. Temps Course]]=1,20, IF(Table3[[#This Row],[Class. Temps Course]]=2,19, IF(Table3[[#This Row],[Class. Temps Course]]=3,18, IF(Table3[[#This Row],[Class. Temps Course]]=4,17, IF(Table3[[#This Row],[Class. Temps Course]]=5,16, IF(Table3[[#This Row],[Class. Temps Course]]=6,15, IF(Table3[[#This Row],[Class. Temps Course]]=7,14, IF(Table3[[#This Row],[Class. Temps Course]]=8,13, IF(Table3[[#This Row],[Class. Temps Course]]=9,12, IF(Table3[[#This Row],[Class. Temps Course]]=10,11, IF(Table3[[#This Row],[Class. Temps Course]]<16,10, IF(Table3[[#This Row],[Class. Temps Course]]<21,9, IF(Table3[[#This Row],[Class. Temps Course]]<26,8,7))))))))))))),"0") -> 10 | AE19: 20
A20: 14 | B20: Fifties | C20: Duvivier Einville | D20: C | E20: Nancy-Metz | F20: G | G20: 16 | H20: 16 | I20: 13 | J20: 16 | K20: 18 | L20: 16 | M20: 20 | N20: 20 | O20: 20 | P20: 20 | Q20: 20 | R20: 19 | S20: 15 | T20: 19 | U20: 20 | V20: 16 | W20: 1 | X20: =IF(Table3[[#This Row],[Class. Epreuve CAO]]<>"",IF(Table3[[#This Row],[Class. Epreuve CAO]]=1,20, IF(Table3[[#This Row],[Class. Epreuve CAO]]=2,18, IF(Table3[[#This Row],[Class. Epreuve CAO]]=3,16, IF(Table3[[#This Row],[Class. Epreuve CAO]]=4,14, IF(Table3[[#This Row],[Class. Epreuve CAO]]<9,11, IF(Table3[[#This Row],[Class. Epreuve CAO]]<13,8, IF(Table3[[#This Row],[Class. Epreuve CAO]]<17,6, IF(Table3[[#This Row],[Class. Epreuve CAO]]<21,4,2)))))))),"0") -> 20 | Y20: 0.213 | Z20: =IF(Table3[[#This Row],[Temps de Réaction]]<>"",_xlfn.RANK.EQ(Table3[[#This Row],[Temps de Réaction]],Table3[Temps de Réaction],1),"") -> 11 | AA20: =IF(Table3[[#This Row],[Temps de Réaction]]<>"",IF(Table3[[#This Row],[Class. Temps de Réaction]]=1,20,IF(Table3[[#This Row],[Class. Temps de Réaction]]=2,18,IF(Table3[[#This Row],[Class. Temps de Réaction]]=3,16,IF(Table3[[#This Row],[Class. Temps de Réaction]]=4,14,IF(Table3[[#This Row],[Class. Temps de Réaction]]<9,11,IF(Table3[[#This Row],[Class. Temps de Réaction]]<13,8,IF(Table3[[#This Row],[Class. Temps de Réaction]]<17,6,IF(Table3[[#This Row],[Class. Temps de Réaction]]<21,4,2)))))))),"0") -> 8 | AB20: 4.268 | AC20: =IF(Table3[[#This Row],[Temps Course]]<>"",_xlfn.RANK.EQ(Table3[[#This Row],[Temps Course]],Table3[Temps Course],1),"") -> 20 | AD20: =IF(Table3[[#This Row],[Temps Course]]<>"",IF(Table3[[#This Row],[Class. Temps Course]]=1,20, IF(Table3[[#This Row],[Class. Temps Course]]=2,19, IF(Table3[[#This Row],[Class. Temps Course]]=3,18, IF(Table3[[#This Row],[Class. Temps Course]]=4,17, IF(Table3[[#This Row],[Class. Temps Course]]=5,16, IF(Table3[[#This Row],[Class. Temps Course]]=6,15, IF(Table3[[#This Row],[Class. Temps Course]]=7,14, IF(Table3[[#This Row],[Class. Temps Course]]=8,13, IF(Table3[[#This Row],[Class. Temps Course]]=9,12, IF(Table3[[#This Row],[Class. Temps Course]]=10,11, IF(Table3[[#This Row],[Class. Temps Course]]<16,10, IF(Table3[[#This Row],[Class. Temps Course]]<21,9, IF(Table3[[#This Row],[Class. Temps Course]]<26,8,7))))))))))))),"0") -> 9 | AE20: 20
A21: 15 | B21: SharkAttack | C21: Vogt Commercy | D21: L | E21: Nancy-Metz | F21: G | G21: 17 | H21: 14 | I21: 7 | J21: 14 | K21: 15 | L21: 13 | M21: 13 | N21: 13 | O21: 12 | P21: 14 | Q21: 12 | R21: 13 | S21: 8 | T21: 17 | U21: 19 | V21: 16 | W21: 1 | X21: =IF(Table3[[#This Row],[Class. Epreuve CAO]]<>"",IF(Table3[[#This Row],[Class. Epreuve CAO]]=1,20, IF(Table3[[#This Row],[Class. Epreuve CAO]]=2,18, IF(Table3[[#This Row],[Class. Epreuve CAO]]=3,16, IF(Table3[[#This Row],[Class. Epreuve CAO]]=4,14, IF(Table3[[#This Row],[Class. Epreuve CAO]]<9,11, IF(Table3[[#This Row],[Class. Epreuve CAO]]<13,8, IF(Table3[[#This Row],[Class. Epreuve CAO]]<17,6, IF(Table3[[#This Row],[Class. Epreuve CAO]]<21,4,2)))))))),"0") -> 20 | Y21: 0.192 | Z21: =IF(Table3[[#This Row],[Temps de Réaction]]<>"",_xlfn.RANK.EQ(Table3[[#This Row],[Temps de Réaction]],Table3[Temps de Réaction],1),"") -> 5 | AA21: =IF(Table3[[#This Row],[Temps de Réaction]]<>"",IF(Table3[[#This Row],[Class. Temps de Réaction]]=1,20,IF(Table3[[#This Row],[Class. Temps de Réaction]]=2,18,IF(Table3[[#This Row],[Class. Temps de Réaction]]=3,16,IF(Table3[[#This Row],[Class. Temps de Réaction]]=4,14,IF(Table3[[#This Row],[Class. Temps de Réaction]]<9,11,IF(Table3[[#This Row],[Class. Temps de Réaction]]<13,8,IF(Table3[[#This Row],[Class. Temps de Réaction]]<17,6,IF(Table3[[#This Row],[Class. Temps de Réaction]]<21,4,2)))))))),"0") -> 11 | AB21: 3.06 | AC21: =IF(Table3[[#This Row],[Temps Course]]<>"",_xlfn.RANK.EQ(Table3[[#This Row],[Temps Course]],Table3[Temps Course],1),"") -> 6 | AD21: =IF(Table3[[#This Row],[Temps Course]]<>"",IF(Table3[[#This Row],[Class. Temps Course]]=1,20, IF(Table3[[#This Row],[Class. Temps Course]]=2,19, IF(Table3[[#This Row],[Class. Temps Course]]=3,18, IF(Table3[[#This Row],[Class. Temps Course]]=4,17, IF(Table3[[#This Row],[Class. Temps Course]]=5,16, IF(Table3[[#This Row],[Class. Temps Course]]=6,15, IF(Table3[[#This Row],[Class. Temps Course]]=7,14, IF(Table3[[#This Row],[Class. Temps Course]]=8,13, IF(Table3[[#This Row],[Class. Temps Course]]=9,12, IF(Table3[[#This Row],[Class. Temps Course]]=10,11, IF(Table3[[#This Row],[Class. Temps Course]]<16,10, IF(Table3[[#This Row],[Class. Temps Course]]<21,9, IF(Table3[[#This Row],[Class. Temps Course]]<26,8,7))))))))))))),"0") -> 15 | AE21: 20
A22: 16 | B22: Green Tiger | C22: Hauts de Blémont Metz | D22: C | E22: Nancy-Metz | F22: G | G22: 11 | H22: 13 | I22: 20 | J22: 14 | K22: 17 | L22: 10 | M22: 12 | N22: 13 | O22: 12 | P22: 11 | Q22: 11 | R22: 12 | S22: 0 | T22: 0 | U22: 18 | V22: 20 | W22: 1 | X22: =IF(Table3[[#This Row],[Class. Epreuve CAO]]<>"",IF(Table3[[#This Row],[Class. Epreuve CAO]]=1,20, IF(Table3[[#This Row],[Class. Epreuve CAO]]=2,18, IF(Table3[[#This Row],[Class. Epreuve CAO]]=3,16, IF(Table3[[#This Row],[Class. Epreuve CAO]]=4,14, IF(Table3[[#This Row],[Class. Epreuve CAO]]<9,11, IF(Table3[[#This Row],[Class. Epreuve CAO]]<13,8, IF(Table3[[#This Row],[Class. Epreuve CAO]]<17,6, IF(Table3[[#This Row],[Class. Epreuve CAO]]<21,4,2)))))))),"0") -> 20 | Y22: 0.194 | Z22: =IF(Table3[[#This Row],[Temps de Réaction]]<>"",_xlfn.RANK.EQ(Table3[[#This Row],[Temps de Réaction]],Table3[Temps de Réaction],1),"") -> 7 | AA22: =IF(Table3[[#This Row],[Temps de Réaction]]<>"",IF(Table3[[#This Row],[Class. Temps de Réaction]]=1,20,IF(Table3[[#This Row],[Class. Temps de Réaction]]=2,18,IF(Table3[[#This Row],[Class. Temps de Réaction]]=3,16,IF(Table3[[#This Row],[Class. Temps de Réaction]]=4,14,IF(Table3[[#This Row],[Class. Temps de Réaction]]<9,11,IF(Table3[[#This Row],[Class. Temps de Réaction]]<13,8,IF(Table3[[#This Row],[Class. Temps de Réaction]]<17,6,IF(Table3[[#This Row],[Class. Temps de Réaction]]<21,4,2)))))))),"0") -> 11 | AB22: 2.834 | AC22: =IF(Table3[[#This Row],[Temps Course]]<>"",_xlfn.RANK.EQ(Table3[[#This Row],[Temps Course]],Table3[Temps Course],1),"") -> 2 | AD22: =IF(Table3[[#This Row],[Temps Course]]<>"",IF(Table3[[#This Row],[Class. Temps Course]]=1,20, IF(Table3[[#This Row],[Class. Temps Course]]=2,19, IF(Table3[[#This Row],[Class. Temps Course]]=3,18, IF(Table3[[#This Row],[Class. Temps Course]]=4,17, IF(Table3[[#This Row],[Class. Temps Course]]=5,16, IF(Table3[[#This Row],[Class. Temps Course]]=6,15, IF(Table3[[#This Row],[Class. Temps Course]]=7,14, IF(Table3[[#This Row],[Class. Temps Course]]=8,13, IF(Table3[[#This Row],[Class. Temps Course]]=9,12, IF(Table3[[#This Row],[Class. Temps Course]]=10,11, IF(Table3[[#This Row],[Class. Temps Course]]<16,10, IF(Table3[[#This Row],[Class. Temps Course]]<21,9, IF(Table3[[#This Row],[Class. Temps Course]]<26,8,7))))))))))))),"0") -> 19 | AE22: 20
A23: 17 | B23: Grey | C23: Hauts de Blémont Metz | D23: C | E23: Nancy-Metz | F23: G | G23: 10 | H23: 8 | I23: 11 | J23: 11 | K23: 15 | L23: 11 | M23: 16 | N23: 16 | O23: 13 | P23: 13 | Q23: 11 | R23: 13 | S23: 0 | T23: 0 | U23: 16 | V23: 14 | W23: 1 | X23: =IF(Table3[[#This Row],[Class. Epreuve CAO]]<>"",IF(Table3[[#This Row],[Class. Epreuve CAO]]=1,20, IF(Table3[[#This Row],[Class. Epreuve CAO]]=2,18, IF(Table3[[#This Row],[Class. Epreuve CAO]]=3,16, IF(Table3[[#This Row],[Class. Epreuve CAO]]=4,14, IF(Table3[[#This Row],[Class. Epreuve CAO]]<9,11, IF(Table3[[#This Row],[Class. Epreuve CAO]]<13,8, IF(Table3[[#This Row],[Class. Epreuve CAO]]<17,6, IF(Table3[[#This Row],[Class. Epreuve CAO]]<21,4,2)))))))),"0") -> 20 | Y23: 0.177 | Z23: =IF(Table3[[#This Row],[Temps de Réaction]]<>"",_xlfn.RANK.EQ(Table3[[#This Row],[Temps de Réaction]],Table3[Temps de Réaction],1),"") -> 3 | AA23: =IF(Table3[[#This Row],[Temps de Réaction]]<>"",IF(Table3[[#This Row],[Class. Temps de Réaction]]=1,20,IF(Table3[[#This Row],[Class. Temps de Réaction]]=2,18,IF(Table3[[#This Row],[Class. Temps de Réaction]]=3,16,IF(Table3[[#This Row],[Class. Temps de Réaction]]=4,14,IF(Table3[[#This Row],[Class. Temps de Réaction]]<9,11,IF(Table3[[#This Row],[Class. Temps de Réaction]]<13,8,IF(Table3[[#This Row],[Class. Temps de Réaction]]<17,6,IF(Table3[[#This Row],[Class. Temps de Réaction]]<21,4,2)))))))),"0") -> 16 | AB23: 3.078 | AC23: =IF(Table3[[#This Row],[Temps Course]]<>"",_xlfn.RANK.EQ(Table3[[#This Row],[Temps Course]],Table3[Temps Course],1),"") -> 8 | AD23: =IF(Table3[[#This Row],[Temps Course]]<>"",IF(Table3[[#This Row],[Class. Temps Course]]=1,20, IF(Table3[[#This Row],[Class. Temps Course]]=2,19, IF(Table3[[#This Row],[Class. Temps Course]]=3,18, IF(Table3[[#This Row],[Class. Temps Course]]=4,17, IF(Table3[[#This Row],[Class. Temps Course]]=5,16, IF(Table3[[#This Row],[Class. Temps Course]]=6,15, IF(Table3[[#This Row],[Class. Temps Course]]=7,14, IF(Table3[[#This Row],[Class. Temps Course]]=8,13, IF(Table3[[#This Row],[Class. Temps Course]]=9,12, IF(Table3[[#This Row],[Class. Temps Course]]=10,11, IF(Table3[[#This Row],[Class. Temps Course]]<16,10, IF(Table3[[#This Row],[Class. Temps Course]]<21,9, IF(Table3[[#This Row],[Class. Temps Course]]<26,8,7))))))))))))),"0") -> 13 | AE23: 20
A24: 18 | B24: Danger | C24: Hauts de Blémont Metz | D24: C | E24: Nancy-Metz | F24: G | G24: 9 | H24: 9 | I24: 14 | J24: 13 | K24: 7 | L24: 14 | M24: 17 | N24: 17 | O24: 14 | P24: 10 | Q24: 13 | R24: 14 | S24: 7 | T24: 4 | U24: 16 | V24: 13 | W24: 1 | X24: =IF(Table3[[#This Row],[Class. Epreuve CAO]]<>"",IF(Table3[[#This Row],[Class. Epreuve CAO]]=1,20, IF(Table3[[#This Row],[Class. Epreuve CAO]]=2,18, IF(Table3[[#This Row],[Class. Epreuve CAO]]=3,16, IF(Table3[[#This Row],[Class. Epreuve CAO]]=4,14, IF(Table3[[#This Row],[Class. Epreuve CAO]]<9,11, IF(Table3[[#This Row],[Class. Epreuve CAO]]<13,8, IF(Table3[[#This Row],[Class. Epreuve CAO]]<17,6, IF(Table3[[#This Row],[Class. Epreuve CAO]]<21,4,2)))))))),"0") -> 20 | Y24: 0.194 | Z24: =IF(Table3[[#This Row],[Temps de Réaction]]<>"",_xlfn.RANK.EQ(Table3[[#This Row],[Temps de Réaction]],Table3[Temps de Réaction],1),"") -> 7 | AA24: =IF(Table3[[#This Row],[Temps de Réaction]]<>"",IF(Table3[[#This Row],[Class. Temps de Réaction]]=1,20,IF(Table3[[#This Row],[Class. Temps de Réaction]]=2,18,IF(Table3[[#This Row],[Class. Temps de Réaction]]=3,16,IF(Table3[[#This Row],[Class. Temps de Réaction]]=4,14,IF(Table3[[#This Row],[Class. Temps de Réaction]]<9,11,IF(Table3[[#This Row],[Class. Temps de Réaction]]<13,8,IF(Table3[[#This Row],[Class. Temps de Réaction]]<17,6,IF(Table3[[#This Row],[Class. Temps de Réaction]]<21,4,2)))))))),"0") -> 11 | AB24: 4.272 | AC24: =IF(Table3[[#This Row],[Temps Course]]<>"",_xlfn.RANK.EQ(Table3[[#This Row],[Temps Course]],Table3[Temps Course],1),"") -> 21 | AD24: =IF(Table3[[#This Row],[Temps Course]]<>"",IF(Table3[[#This Row],[Class. Temps Course]]=1,20, IF(Table3[[#This Row],[Class. Temps Course]]=2,19, IF(Table3[[#This Row],[Class. Temps Course]]=3,18, IF(Table3[[#This Row],[Class. Temps Course]]=4,17, IF(Table3[[#This Row],[Class. Temps Course]]=5,16, IF(Table3[[#This Row],[Class. Temps Course]]=6,15, IF(Table3[[#This Row],[Class. Temps Course]]=7,14, IF(Table3[[#This Row],[Class. Temps Course]]=8,13, IF(Table3[[#This Row],[Class. Temps Course]]=9,12, IF(Table3[[#This Row],[Class. Temps Course]]=10,11, IF(Table3[[#This Row],[Class. Temps Course]]<16,10, IF(Table3[[#This Row],[Class. Temps Course]]<21,9, IF(Table3[[#This Row],[Class. Temps Course]]<26,8,7))))))))))))),"0") -> 8 | AE24: 20
A25: 19 | B25: Scott | C25: Hauts de Blémont Metz | D25: C | E25: Nancy-Metz | F25: G | G25: 11 | H25: 14 | I25: 11 | J25: 12 | K25: 15 | L25: 9 | M25: 18 | N25: 16 | O25: 18 | P25: 18 | Q25: 18 | R25: 18 | S25: 0 | T25: 0 | U25: 16 | V25: 18 | W25: 1 | X25: =IF(Table3[[#This Row],[Class. Epreuve CAO]]<>"",IF(Table3[[#This Row],[Class. Epreuve CAO]]=1,20, IF(Table3[[#This Row],[Class. Epreuve CAO]]=2,18, IF(Table3[[#This Row],[Class. Epreuve CAO]]=3,16, IF(Table3[[#This Row],[Class. Epreuve CAO]]=4,14, IF(Table3[[#This Row],[Class. Epreuve CAO]]<9,11, IF(Table3[[#This Row],[Class. Epreuve CAO]]<13,8, IF(Table3[[#This Row],[Class. Epreuve CAO]]<17,6, IF(Table3[[#This Row],[Class. Epreuve CAO]]<21,4,2)))))))),"0") -> 20 | Y25: 0.229 | Z25: =IF(Table3[[#This Row],[Temps de Réaction]]<>"",_xlfn.RANK.EQ(Table3[[#This Row],[Temps de Réaction]],Table3[Temps de Réaction],1),"") -> 17 | AA25: =IF(Table3[[#This Row],[Temps de Réaction]]<>"",IF(Table3[[#This Row],[Class. Temps de Réaction]]=1,20,IF(Table3[[#This Row],[Class. Temps de Réaction]]=2,18,IF(Table3[[#This Row],[Class. Temps de Réaction]]=3,16,IF(Table3[[#This Row],[Class. Temps de Réaction]]=4,14,IF(Table3[[#This Row],[Class. Temps de Réaction]]<9,11,IF(Table3[[#This Row],[Class. Temps de Réaction]]<13,8,IF(Table3[[#This Row],[Class. Temps de Réaction]]<17,6,IF(Table3[[#This Row],[Class. Temps de Réaction]]<21,4,2)))))))),"0") -> 4 | AB25: 3.701 | AC25: =IF(Table3[[#This Row],[Temps Course]]<>"",_xlfn.RANK.EQ(Table3[[#This Row],[Temps Course]],Table3[Temps Course],1),"") -> 16 | AD25: =IF(Table3[[#This Row],[Temps Course]]<>"",IF(Table3[[#This Row],[Class. Temps Course]]=1,20, IF(Table3[[#This Row],[Class. Temps Course]]=2,19, IF(Table3[[#This Row],[Class. Temps Course]]=3,18, IF(Table3[[#This Row],[Class. Temps Course]]=4,17, IF(Table3[[#This Row],[Class. Temps Course]]=5,16, IF(Table3[[#This Row],[Class. Temps Course]]=6,15, IF(Table3[[#This Row],[Class. Temps Course]]=7,14, IF(Table3[[#This Row],[Class. Temps Course]]=8,13, IF(Table3[[#This Row],[Class. Temps Course]]=9,12, IF(Table3[[#This Row],[Class. Temps Course]]=10,11, IF(Table3[[#This Row],[Class. Temps Course]]<16,10, IF(Table3[[#This Row],[Class. Temps Course]]<21,9, IF(Table3[[#This Row],[Class. Temps Course]]<26,8,7))))))))))))),"0") -> 9 | AE25: 20
A26: 20 | B26: Amercan's 70 | C26: A. Dreux Folschviller | D26: C | E26: Nancy-Metz | F26: G | G26: 13 | H26: 13 | I26: 16 | J26: 16 | K26: 14 | L26: 12 | M26: 12 | N26: 12 | O26: 10 | P26: 7 | Q26: 4 | R26: 12 | S26: 3 | T26: 0 | U26: 14 | V26: 16 | W26: 1 | X26: =IF(Table3[[#This Row],[Class. Epreuve CAO]]<>"",IF(Table3[[#This Row],[Class. Epreuve CAO]]=1,20, IF(Table3[[#This Row],[Class. Epreuve CAO]]=2,18, IF(Table3[[#This Row],[Class. Epreuve CAO]]=3,16, IF(Table3[[#This Row],[Class. Epreuve CAO]]=4,14, IF(Table3[[#This Row],[Class. Epreuve CAO]]<9,11, IF(Table3[[#This Row],[Class. Epreuve CAO]]<13,8, IF(Table3[[#This Row],[Class. Epreuve CAO]]<17,6, IF(Table3[[#This Row],[Class. Epreuve CAO]]<21,4,2)))))))),"0") -> 20 | Y26: 0.214 | Z26: =IF(Table3[[#This Row],[Temps de Réaction]]<>"",_xlfn.RANK.EQ(Table3[[#This Row],[Temps de Réaction]],Table3[Temps de Réaction],1),"") -> 12 | AA26: =IF(Table3[[#This Row],[Temps de Réaction]]<>"",IF(Table3[[#This Row],[Class. Temps de Réaction]]=1,20,IF(Table3[[#This Row],[Class. Temps de Réaction]]=2,18,IF(Table3[[#This Row],[Class. Temps de Réaction]]=3,16,IF(Table3[[#This Row],[Class. Temps de Réaction]]=4,14,IF(Table3[[#This Row],[Class. Temps de Réaction]]<9,11,IF(Table3[[#This Row],[Class. Temps de Réaction]]<13,8,IF(Table3[[#This Row],[Class. Temps de Réaction]]<17,6,IF(Table3[[#This Row],[Class. Temps de Réaction]]<21,4,2)))))))),"0") -> 8 | AB26: 10 | AC26: =IF(Table3[[#This Row],[Temps Course]]<>"",_xlfn.RANK.EQ(Table3[[#This Row],[Temps Course]],Table3[Temps Course],1),"") -> 22 | AD26: =IF(Table3[[#This Row],[Temps Course]]<>"",IF(Table3[[#This Row],[Class. Temps Course]]=1,20, IF(Table3[[#This Row],[Class. Temps Course]]=2,19, IF(Table3[[#This Row],[Class. Temps Course]]=3,18, IF(Table3[[#This Row],[Class. Temps Course]]=4,17, IF(Table3[[#This Row],[Class. Temps Course]]=5,16, IF(Table3[[#This Row],[Class. Temps Course]]=6,15, IF(Table3[[#This Row],[Class. Temps Course]]=7,14, IF(Table3[[#This Row],[Class. Temps Course]]=8,13, IF(Table3[[#This Row],[Class. Temps Course]]=9,12, IF(Table3[[#This Row],[Class. Temps Course]]=10,11, IF(Table3[[#This Row],[Class. Temps Course]]<16,10, IF(Table3[[#This Row],[Class. Temps Course]]<21,9, IF(Table3[[#This Row],[Class. Temps Course]]<26,8,7))))))))))))),"0") -> 8 | AE26: 20
A27: 21 | B27: Les 80's | C27: A. Dreux Folschviller | D27: C | E27: Nancy-Metz | F27: G | G27: 14 | H27: 12 | I27: 9 | J27: 15 | K27: 10 | L27: 14 | M27: 15 | N27: 15 | O27: 14 | P27: 13 | Q27: 9 | R27: 15 | S27: 3 | T27: 3 | U27: 15 | V27: 11 | W27: 1 | X27: =IF(Table3[[#This Row],[Class. Epreuve CAO]]<>"",IF(Table3[[#This Row],[Class. Epreuve CAO]]=1,20, IF(Table3[[#This Row],[Class. Epreuve CAO]]=2,18, IF(Table3[[#This Row],[Class. Epreuve CAO]]=3,16, IF(Table3[[#This Row],[Class. Epreuve CAO]]=4,14, IF(Table3[[#This Row],[Class. Epreuve CAO]]<9,11, IF(Table3[[#This Row],[Class. Epreuve CAO]]<13,8, IF(Table3[[#This Row],[Class. Epreuve CAO]]<17,6, IF(Table3[[#This Row],[Class. Epreuve CAO]]<21,4,2)))))))),"0") -> 20 | Y27: 0.193 | Z27: =IF(Table3[[#This Row],[Temps de Réaction]]<>"",_xlfn.RANK.EQ(Table3[[#This Row],[Temps de Réaction]],Table3[Temps de Réaction],1),"") -> 6 | AA27: =IF(Table3[[#This Row],[Temps de Réaction]]<>"",IF(Table3[[#This Row],[Class. Temps de Réaction]]=1,20,IF(Table3[[#This Row],[Class. Temps de Réaction]]=2,18,IF(Table3[[#This Row],[Class. Temps de Réaction]]=3,16,IF(Table3[[#This Row],[Class. Temps de Réaction]]=4,14,IF(Table3[[#This Row],[Class. Temps de Réaction]]<9,11,IF(Table3[[#This Row],[Class. Temps de Réaction]]<13,8,IF(Table3[[#This Row],[Class. Temps de Réaction]]<17,6,IF(Table3[[#This Row],[Class. Temps de Réaction]]<21,4,2)))))))),"0") -> 11 | AB27: 10 | AC27: =IF(Table3[[#This Row],[Temps Course]]<>"",_xlfn.RANK.EQ(Table3[[#This Row],[Temps Course]],Table3[Temps Course],1),"") -> 22 | AD27: =IF(Table3[[#This Row],[Temps Course]]<>"",IF(Table3[[#This Row],[Class. Temps Course]]=1,20, IF(Table3[[#This Row],[Class. Temps Course]]=2,19, IF(Table3[[#This Row],[Class. Temps Course]]=3,18, IF(Table3[[#This Row],[Class. Temps Course]]=4,17, IF(Table3[[#This Row],[Class. Temps Course]]=5,16, IF(Table3[[#This Row],[Class. Temps Course]]=6,15, IF(Table3[[#This Row],[Class. Temps Course]]=7,14, IF(Table3[[#This Row],[Class. Temps Course]]=8,13, IF(Table3[[#This Row],[Class. Temps Course]]=9,12, IF(Table3[[#This Row],[Class. Temps Course]]=10,11, IF(Table3[[#This Row],[Class. Temps Course]]<16,10, IF(Table3[[#This Row],[Class. Temps Course]]<21,9, IF(Table3[[#This Row],[Class. Temps Course]]<26,8,7))))))))))))),"0") -> 8 | AE27: 20
A28: 22 | B28: E-magie-nation | C28: A. Dreux Folschviller | D28: C | E28: Nancy-Metz | F28: G | G28: 13 | H28: 14 | I28: 12 | J28: 14 | K28: 14 | L28: 13 | M28: 14 | N28: 15 | O28: 18 | P28: 8 | Q28: 8 | R28: 15 | S28: 17 | T28: 0 | U28: 20 | V28: 20 | W28: 1 | X28: =IF(Table3[[#This Row],[Class. Epreuve CAO]]<>"",IF(Table3[[#This Row],[Class. Epreuve CAO]]=1,20, IF(Table3[[#This Row],[Class. Epreuve CAO]]=2,18, IF(Table3[[#This Row],[Class. Epreuve CAO]]=3,16, IF(Table3[[#This Row],[Class. Epreuve CAO]]=4,14, IF(Table3[[#This Row],[Class. Epreuve CAO]]<9,11, IF(Table3[[#This Row],[Class. Epreuve CAO]]<13,8, IF(Table3[[#This Row],[Class. Epreuve CAO]]<17,6, IF(Table3[[#This Row],[Class. Epreuve CAO]]<21,4,2)))))))),"0") -> 20 | Y28: 0.245 | Z28: =IF(Table3[[#This Row],[Temps de Réaction]]<>"",_xlfn.RANK.EQ(Table3[[#This Row],[Temps de Réaction]],Table3[Temps de Réaction],1),"") -> 21 | AA28: =IF(Table3[[#This Row],[Temps de Réaction]]<>"",IF(Table3[[#This Row],[Class. Temps de Réaction]]=1,20,IF(Table3[[#This Row],[Class. Temps de Réaction]]=2,18,IF(Table3[[#This Row],[Class. Temps de Réaction]]=3,16,IF(Table3[[#This Row],[Class. Temps de Réaction]]=4,14,IF(Table3[[#This Row],[Class. Temps de Réaction]]<9,11,IF(Table3[[#This Row],[Class. Temps de Réaction]]<13,8,IF(Table3[[#This Row],[Class. Temps de Réaction]]<17,6,IF(Table3[[#This Row],[Class. Temps de Réaction]]<21,4,2)))))))),"0") -> 2 | AB28: 3.405 | AC28: =IF(Table3[[#This Row],[Temps Course]]<>"",_xlfn.RANK.EQ(Table3[[#This Row],[Temps Course]],Table3[Temps Course],1),"") -> 14 | AD28: =IF(Table3[[#This Row],[Temps Course]]<>"",IF(Table3[[#This Row],[Class. Temps Course]]=1,20, IF(Table3[[#This Row],[Class. Temps Course]]=2,19, IF(Table3[[#This Row],[Class. Temps Course]]=3,18, IF(Table3[[#This Row],[Class. Temps Course]]=4,17, IF(Table3[[#This Row],[Class. Temps Course]]=5,16, IF(Table3[[#This Row],[Class. Temps Course]]=6,15, IF(Table3[[#This Row],[Class. Temps Course]]=7,14, IF(Table3[[#This Row],[Class. Temps Course]]=8,13, IF(Table3[[#This Row],[Class. Temps Course]]=9,12, IF(Table3[[#This Row],[Class. Temps Course]]=10,11, IF(Table3[[#This Row],[Class. Temps Course]]<16,10, IF(Table3[[#This Row],[Class. Temps Course]]<21,9, IF(Table3[[#This Row],[Class. Temps Course]]<26,8,7))))))))))))),"0") -> 10 | AE28: 20
A29: 23 | B29: Gol'o Team | C29: A. Dreux Folschviller | D29: C | E29: Nancy-Metz | F29: G | G29: 15 | H29: 16 | I29: 13 | J29: 16 | K29: 17 | L29: 18 | M29: 16 | N29: 13 | O29: 11 | P29: 11 | Q29: 11 | R29: 15 | S29: 0 | T29: 0 | U29: 15 | V29: 7 | W29: 1 | X29: =IF(Table3[[#This Row],[Class. Epreuve CAO]]<>"",IF(Table3[[#This Row],[Class. Epreuve CAO]]=1,20, IF(Table3[[#This Row],[Class. Epreuve CAO]]=2,18, IF(Table3[[#This Row],[Class. Epreuve CAO]]=3,16, IF(Table3[[#This Row],[Class. Epreuve CAO]]=4,14, IF(Table3[[#This Row],[Class. Epreuve CAO]]<9,11, IF(Table3[[#This Row],[Class. Epreuve CAO]]<13,8, IF(Table3[[#This Row],[Class. Epreuve CAO]]<17,6, IF(Table3[[#This Row],[Class. Epreuve CAO]]<21,4,2)))))))),"0") -> 20 | Y29: 0 | Z29: =IF(Table3[[#This Row],[Temps de Réaction]]<>"",_xlfn.RANK.EQ(Table3[[#This Row],[Temps de Réaction]],Table3[Temps de Réaction],1),"") -> 1 | AA29: =IF(Table3[[#This Row],[Temps de Réaction]]<>"",IF(Table3[[#This Row],[Class. Temps de Réaction]]=1,20,IF(Table3[[#This Row],[Class. Temps de Réaction]]=2,18,IF(Table3[[#This Row],[Class. Temps de Réaction]]=3,16,IF(Table3[[#This Row],[Class. Temps de Réaction]]=4,14,IF(Table3[[#This Row],[Class. Temps de Réaction]]<9,11,IF(Table3[[#This Row],[Class. Temps de Réaction]]<13,8,IF(Table3[[#This Row],[Class. Temps de Réaction]]<17,6,IF(Table3[[#This Row],[Class. Temps de Réaction]]<21,4,2)))))))),"0") -> 20 | AB29: 10 | AC29: =IF(Table3[[#This Row],[Temps Course]]<>"",_xlfn.RANK.EQ(Table3[[#This Row],[Temps Course]],Table3[Temps Course],1),"") -> 22 | AD29: =IF(Table3[[#This Row],[Temps Course]]<>"",IF(Table3[[#This Row],[Class. Temps Course]]=1,20, IF(Table3[[#This Row],[Class. Temps Course]]=2,19, IF(Table3[[#This Row],[Class. Temps Course]]=3,18, IF(Table3[[#This Row],[Class. Temps Course]]=4,17, IF(Table3[[#This Row],[Class. Temps Course]]=5,16, IF(Table3[[#This Row],[Class. Temps Course]]=6,15, IF(Table3[[#This Row],[Class. Temps Course]]=7,14, IF(Table3[[#This Row],[Class. Temps Course]]=8,13, IF(Table3[[#This Row],[Class. Temps Course]]=9,12, IF(Table3[[#This Row],[Class. Temps Course]]=10,11, IF(Table3[[#This Row],[Class. Temps Course]]<16,10, IF(Table3[[#This Row],[Class. Temps Course]]<21,9, IF(Table3[[#This Row],[Class. Temps Course]]<26,8,7))))))))))))),"0") -> 8 | AE29: 20
A30: 24 | B30: Serpent | C30: A. Dreux Folschviller | D30: C | E30: Nancy-Metz | F30: G | G30: 8 | H30: 11 | I30: 8 | J30: 7 | K30: 5 | L30: 4 | M30: 13 | N30: 10 | O30: 13 | P30: 7 | Q30: 8 | R30: 11 | S30: 7 | T30: 0 | U30: 15 | V30: 13 | W30: 1 | X30: =IF(Table3[[#This Row],[Class. Epreuve CAO]]<>"",IF(Table3[[#This Row],[Class. Epreuve CAO]]=1,20, IF(Table3[[#This Row],[Class. Epreuve CAO]]=2,18, IF(Table3[[#This Row],[Class. Epreuve CAO]]=3,16, IF(Table3[[#This Row],[Class. Epreuve CAO]]=4,14, IF(Table3[[#This Row],[Class. Epreuve CAO]]<9,11, IF(Table3[[#This Row],[Class. Epreuve CAO]]<13,8, IF(Table3[[#This Row],[Class. Epreuve CAO]]<17,6, IF(Table3[[#This Row],[Class. Epreuve CAO]]<21,4,2)))))))),"0") -> 20 | Y30: 0.212 | Z30: =IF(Table3[[#This Row],[Temps de Réaction]]<>"",_xlfn.RANK.EQ(Table3[[#This Row],[Temps de Réaction]],Table3[Temps de Réaction],1),"") -> 10 | AA30: =IF(Table3[[#This Row],[Temps de Réaction]]<>"",IF(Table3[[#This Row],[Class. Temps de Réaction]]=1,20,IF(Table3[[#This Row],[Class. Temps de Réaction]]=2,18,IF(Table3[[#This Row],[Class. Temps de Réaction]]=3,16,IF(Table3[[#This Row],[Class. Temps de Réaction]]=4,14,IF(Table3[[#This Row],[Class. Temps de Réaction]]<9,11,IF(Table3[[#This Row],[Class. Temps de Réaction]]<13,8,IF(Table3[[#This Row],[Class. Temps de Réaction]]<17,6,IF(Table3[[#This Row],[Class. Temps de Réaction]]<21,4,2)))))))),"0") -> 8 | AB30: 4.102 | AC30: =IF(Table3[[#This Row],[Temps Course]]<>"",_xlfn.RANK.EQ(Table3[[#This Row],[Temps Course]],Table3[Temps Course],1),"") -> 19 | AD30: =IF(Table3[[#This Row],[Temps Course]]<>"",IF(Table3[[#This Row],[Class. Temps Course]]=1,20, IF(Table3[[#This Row],[Class. Temps Course]]=2,19, IF(Table3[[#This Row],[Class. Temps Course]]=3,18, IF(Table3[[#This Row],[Class. Temps Course]]=4,17, IF(Table3[[#This Row],[Class. Temps Course]]=5,16, IF(Table3[[#This Row],[Class. Temps Course]]=6,15, IF(Table3[[#This Row],[Class. Temps Course]]=7,14, IF(Table3[[#This Row],[Class. Temps Course]]=8,13, IF(Table3[[#This Row],[Class. Temps Course]]=9,12, IF(Table3[[#This Row],[Class. Temps Course]]=10,11, IF(Table3[[#This Row],[Class. Temps Course]]<16,10, IF(Table3[[#This Row],[Class. Temps Course]]<21,9, IF(Table3[[#This Row],[Class. Temps Course]]<26,8,7))))))))))))),"0") -> 9 | AE30: 20
A31: 25 | B31: The Peaky's | C31: La Fontaine St Avold | D31: C | E31: Nancy-Metz | F31: G | G31: 20 | H31: 20 | I31: 16 | J31: 20 | K31: 19 | L31: 17 | M31: 17 | N31: 19 | O31: 18 | P31: 19 | Q31: 18 | R31: 19 | S31: 17 | T31: 19 | U31: 19 | V31: 17 | W31: 1 | X31: =IF(Table3[[#This Row],[Class. Epreuve CAO]]<>"",IF(Table3[[#This Row],[Class. Epreuve CAO]]=1,20, IF(Table3[[#This Row],[Class. Epreuve CAO]]=2,18, IF(Table3[[#This Row],[Class. Epreuve CAO]]=3,16, IF(Table3[[#This Row],[Class. Epreuve CAO]]=4,14, IF(Table3[[#This Row],[Class. Epreuve CAO]]<9,11, IF(Table3[[#This Row],[Class. Epreuve CAO]]<13,8, IF(Table3[[#This Row],[Class. Epreuve CAO]]<17,6, IF(Table3[[#This Row],[Class. Epreuve CAO]]<21,4,2)))))))),"0") -> 20 | Y31: 0.194 | Z31: =IF(Table3[[#This Row],[Temps de Réaction]]<>"",_xlfn.RANK.EQ(Table3[[#This Row],[Temps de Réaction]],Table3[Temps de Réaction],1),"") -> 7 | AA31: =IF(Table3[[#This Row],[Temps de Réaction]]<>"",IF(Table3[[#This Row],[Class. Temps de Réaction]]=1,20,IF(Table3[[#This Row],[Class. Temps de Réaction]]=2,18,IF(Table3[[#This Row],[Class. Temps de Réaction]]=3,16,IF(Table3[[#This Row],[Class. Temps de Réaction]]=4,14,IF(Table3[[#This Row],[Class. Temps de Réaction]]<9,11,IF(Table3[[#This Row],[Class. Temps de Réaction]]<13,8,IF(Table3[[#This Row],[Class. Temps de Réaction]]<17,6,IF(Table3[[#This Row],[Class. Temps de Réaction]]<21,4,2)))))))),"0") -> 11 | AB31: 3.163 | AC31: =IF(Table3[[#This Row],[Temps Course]]<>"",_xlfn.RANK.EQ(Table3[[#This Row],[Temps Course]],Table3[Temps Course],1),"") -> 10 | AD31: =IF(Table3[[#This Row],[Temps Course]]<>"",IF(Table3[[#This Row],[Class. Temps Course]]=1,20, IF(Table3[[#This Row],[Class. Temps Course]]=2,19, IF(Table3[[#This Row],[Class. Temps Course]]=3,18, IF(Table3[[#This Row],[Class. Temps Course]]=4,17, IF(Table3[[#This Row],[Class. Temps Course]]=5,16, IF(Table3[[#This Row],[Class. Temps Course]]=6,15, IF(Table3[[#This Row],[Class. Temps Course]]=7,14, IF(Table3[[#This Row],[Class. Temps Course]]=8,13, IF(Table3[[#This Row],[Class. Temps Course]]=9,12, IF(Table3[[#This Row],[Class. Temps Course]]=10,11, IF(Table3[[#This Row],[Class. Temps Course]]<16,10, IF(Table3[[#This Row],[Class. Temps Course]]<21,9, IF(Table3[[#This Row],[Class. Temps Course]]<26,8,7))))))))))))),"0") -> 11 | AE31: 20
A32: 26 | B32: Cosmos | C32: La Fontaine St Avold | D32: C | E32: Nancy-Metz | F32: G | G32: 15 | H32: 14 | I32: 7 | J32: 13 | K32: 15 | L32: 8 | M32: 18 | N32: 19 | O32: 19 | P32: 16 | Q32: 18 | R32: 18 | S32: 10 | T32: 0 | U32: 20 | V32: 18 | W32: 1 | X32: =IF(Table3[[#This Row],[Class. Epreuve CAO]]<>"",IF(Table3[[#This Row],[Class. Epreuve CAO]]=1,20, IF(Table3[[#This Row],[Class. Epreuve CAO]]=2,18, IF(Table3[[#This Row],[Class. Epreuve CAO]]=3,16, IF(Table3[[#This Row],[Class. Epreuve CAO]]=4,14, IF(Table3[[#This Row],[Class. Epreuve CAO]]<9,11, IF(Table3[[#This Row],[Class. Epreuve CAO]]<13,8, IF(Table3[[#This Row],[Class. Epreuve CAO]]<17,6, IF(Table3[[#This Row],[Class. Epreuve CAO]]<21,4,2)))))))),"0") -> 20 | Y32: 0.17 | Z32: =IF(Table3[[#This Row],[Temps de Réaction]]<>"",_xlfn.RANK.EQ(Table3[[#This Row],[Temps de Réaction]],Table3[Temps de Réaction],1),"") -> 2 | AA32: =IF(Table3[[#This Row],[Temps de Réaction]]<>"",IF(Table3[[#This Row],[Class. Temps de Réaction]]=1,20,IF(Table3[[#This Row],[Class. Temps de Réaction]]=2,18,IF(Table3[[#This Row],[Class. Temps de Réaction]]=3,16,IF(Table3[[#This Row],[Class. Temps de Réaction]]=4,14,IF(Table3[[#This Row],[Class. Temps de Réaction]]<9,11,IF(Table3[[#This Row],[Class. Temps de Réaction]]<13,8,IF(Table3[[#This Row],[Class. Temps de Réaction]]<17,6,IF(Table3[[#This Row],[Class. Temps de Réaction]]<21,4,2)))))))),"0") -> 18 | AB32: 3.063 | AC32: =IF(Table3[[#This Row],[Temps Course]]<>"",_xlfn.RANK.EQ(Table3[[#This Row],[Temps Course]],Table3[Temps Course],1),"") -> 7 | AD32: =IF(Table3[[#This Row],[Temps Course]]<>"",IF(Table3[[#This Row],[Class. Temps Course]]=1,20, IF(Table3[[#This Row],[Class. Temps Course]]=2,19, IF(Table3[[#This Row],[Class. Temps Course]]=3,18, IF(Table3[[#This Row],[Class. Temps Course]]=4,17, IF(Table3[[#This Row],[Class. Temps Course]]=5,16, IF(Table3[[#This Row],[Class. Temps Course]]=6,15, IF(Table3[[#This Row],[Class. Temps Course]]=7,14, IF(Table3[[#This Row],[Class. Temps Course]]=8,13, IF(Table3[[#This Row],[Class. Temps Course]]=9,12, IF(Table3[[#This Row],[Class. Temps Course]]=10,11, IF(Table3[[#This Row],[Class. Temps Course]]<16,10, IF(Table3[[#This Row],[Class. Temps Course]]<21,9, IF(Table3[[#This Row],[Class. Temps Course]]<26,8,7))))))))))))),"0") -> 14 | AE32: 20
A33: 27 | B33: Otaku | C33: La Fontaine St Avold | D33: C | E33: Nancy-Metz | F33: G | G33: 12 | H33: 14 | I33: 11 | J33: 14 | K33: 17 | L33: 14 | M33: 18 | N33: 15 | O33: 18 | P33: 13 | Q33: 10 | R33: 15 | S33: 15 | T33: 10 | U33: 19 | V33: 16 | W33: 1 | X33: =IF(Table3[[#This Row],[Class. Epreuve CAO]]<>"",IF(Table3[[#This Row],[Class. Epreuve CAO]]=1,20, IF(Table3[[#This Row],[Class. Epreuve CAO]]=2,18, IF(Table3[[#This Row],[Class. Epreuve CAO]]=3,16, IF(Table3[[#This Row],[Class. Epreuve CAO]]=4,14, IF(Table3[[#This Row],[Class. Epreuve CAO]]<9,11, IF(Table3[[#This Row],[Class. Epreuve CAO]]<13,8, IF(Table3[[#This Row],[Class. Epreuve CAO]]<17,6, IF(Table3[[#This Row],[Class. Epreuve CAO]]<21,4,2)))))))),"0") -> 20 | Y33: 0.178 | Z33: =IF(Table3[[#This Row],[Temps de Réaction]]<>"",_xlfn.RANK.EQ(Table3[[#This Row],[Temps de Réaction]],Table3[Temps de Réaction],1),"") -> 4 | AA33: =IF(Table3[[#This Row],[Temps de Réaction]]<>"",IF(Table3[[#This Row],[Class. Temps de Réaction]]=1,20,IF(Table3[[#This Row],[Class. Temps de Réaction]]=2,18,IF(Table3[[#This Row],[Class. Temps de Réaction]]=3,16,IF(Table3[[#This Row],[Class. Temps de Réaction]]=4,14,IF(Table3[[#This Row],[Class. Temps de Réaction]]<9,11,IF(Table3[[#This Row],[Class. Temps de Réaction]]<13,8,IF(Table3[[#This Row],[Class. Temps de Réaction]]<17,6,IF(Table3[[#This Row],[Class. Temps de Réaction]]<21,4,2)))))))),"0") -> 14 | AB33: 3.674 | AC33: =IF(Table3[[#This Row],[Temps Course]]<>"",_xlfn.RANK.EQ(Table3[[#This Row],[Temps Course]],Table3[Temps Course],1),"") -> 15 | AD33: =IF(Table3[[#This Row],[Temps Course]]<>"",IF(Table3[[#This Row],[Class. Temps Course]]=1,20, IF(Table3[[#This Row],[Class. Temps Course]]=2,19, IF(Table3[[#This Row],[Class. Temps Course]]=3,18, IF(Table3[[#This Row],[Class. Temps Course]]=4,17, IF(Table3[[#This Row],[Class. Temps Course]]=5,16, IF(Table3[[#This Row],[Class. Temps Course]]=6,15, IF(Table3[[#This Row],[Class. Temps Course]]=7,14, IF(Table3[[#This Row],[Class. Temps Course]]=8,13, IF(Table3[[#This Row],[Class. Temps Course]]=9,12, IF(Table3[[#This Row],[Class. Temps Course]]=10,11, IF(Table3[[#This Row],[Class. Temps Course]]<16,10, IF(Table3[[#This Row],[Class. Temps Course]]<21,9, IF(Table3[[#This Row],[Class. Temps Course]]<26,8,7))))))))))))),"0") -> 10 | AE33: 20
A34: 28 | B34: Bal'eau | C34: La Fontaine St Avold | D34: C | E34: Nancy-Metz | F34: G | G34: 17 | H34: 15 | I34: 20 | J34: 18 | K34: 18 | L34: 13 | M34: 17 | N34: 17 | O34: 18 | P34: 12 | Q34: 18 | R34: 18 | S34: 7 | T34: 0 | U34: 19 | V34: 11 | W34: 1 | X34: =IF(Table3[[#This Row],[Class. Epreuve CAO]]<>"",IF(Table3[[#This Row],[Class. Epreuve CAO]]=1,20, IF(Table3[[#This Row],[Class. Epreuve CAO]]=2,18, IF(Table3[[#This Row],[Class. Epreuve CAO]]=3,16, IF(Table3[[#This Row],[Class. Epreuve CAO]]=4,14, IF(Table3[[#This Row],[Class. Epreuve CAO]]<9,11, IF(Table3[[#This Row],[Class. Epreuve CAO]]<13,8, IF(Table3[[#This Row],[Class. Epreuve CAO]]<17,6, IF(Table3[[#This Row],[Class. Epreuve CAO]]<21,4,2)))))))),"0") -> 20 | Y34: 0.245 | Z34: =IF(Table3[[#This Row],[Temps de Réaction]]<>"",_xlfn.RANK.EQ(Table3[[#This Row],[Temps de Réaction]],Table3[Temps de Réaction],1),"") -> 21 | AA34: =IF(Table3[[#This Row],[Temps de Réaction]]<>"",IF(Table3[[#This Row],[Class. Temps de Réaction]]=1,20,IF(Table3[[#This Row],[Class. Temps de Réaction]]=2,18,IF(Table3[[#This Row],[Class. Temps de Réaction]]=3,16,IF(Table3[[#This Row],[Class. Temps de Réaction]]=4,14,IF(Table3[[#This Row],[Class. Temps de Réaction]]<9,11,IF(Table3[[#This Row],[Class. Temps de Réaction]]<13,8,IF(Table3[[#This Row],[Class. Temps de Réaction]]<17,6,IF(Table3[[#This Row],[Class. Temps de Réaction]]<21,4,2)))))))),"0") -> 2 | AB34: 3.121 | AC34: =IF(Table3[[#This Row],[Temps Course]]<>"",_xlfn.RANK.EQ(Table3[[#This Row],[Temps Course]],Table3[Temps Course],1),"") -> 9 | AD34: =IF(Table3[[#This Row],[Temps Course]]<>"",IF(Table3[[#This Row],[Class. Temps Course]]=1,20, IF(Table3[[#This Row],[Class. Temps Course]]=2,19, IF(Table3[[#This Row],[Class. Temps Course]]=3,18, IF(Table3[[#This Row],[Class. Temps Course]]=4,17, IF(Table3[[#This Row],[Class. Temps Course]]=5,16, IF(Table3[[#This Row],[Class. Temps Course]]=6,15, IF(Table3[[#This Row],[Class. Temps Course]]=7,14, IF(Table3[[#This Row],[Class. Temps Course]]=8,13, IF(Table3[[#This Row],[Class. Temps Course]]=9,12, IF(Table3[[#This Row],[Class. Temps Course]]=10,11, IF(Table3[[#This Row],[Class. Temps Course]]<16,10, IF(Table3[[#This Row],[Class. Temps Course]]<21,9, IF(Table3[[#This Row],[Class. Temps Course]]<26,8,7))))))))))))),"0") -> 12 | AE34: 20
A35: 29 | B35: Team Lambo | C35: La Fontaine St Avold | D35: C | E35: Nancy-Metz | F35: G | G35: 15 | H35: 13 | I35: 14 | J35: 13 | K35: 11 | L35: 12 | M35: 7 | N35: 7 | O35: 10 | P35: 8 | Q35: 6 | R35: 8 | S35: 3 | T35: 3 | U35: 14 | V35: 10 | W35: 1 | X35: =IF(Table3[[#This Row],[Class. Epreuve CAO]]<>"",IF(Table3[[#This Row],[Class. Epreuve CAO]]=1,20, IF(Table3[[#This Row],[Class. Epreuve CAO]]=2,18, IF(Table3[[#This Row],[Class. Epreuve CAO]]=3,16, IF(Table3[[#This Row],[Class. Epreuve CAO]]=4,14, IF(Table3[[#This Row],[Class. Epreuve CAO]]<9,11, IF(Table3[[#This Row],[Class. Epreuve CAO]]<13,8, IF(Table3[[#This Row],[Class. Epreuve CAO]]<17,6, IF(Table3[[#This Row],[Class. Epreuve CAO]]<21,4,2)))))))),"0") -> 20 | Y35: 0.238 | Z35: =IF(Table3[[#This Row],[Temps de Réaction]]<>"",_xlfn.RANK.EQ(Table3[[#This Row],[Temps de Réaction]],Table3[Temps de Réaction],1),"") -> 20 | AA35: =IF(Table3[[#This Row],[Temps de Réaction]]<>"",IF(Table3[[#This Row],[Class. Temps de Réaction]]=1,20,IF(Table3[[#This Row],[Class. Temps de Réaction]]=2,18,IF(Table3[[#This Row],[Class. Temps de Réaction]]=3,16,IF(Table3[[#This Row],[Class. Temps de Réaction]]=4,14,IF(Table3[[#This Row],[Class. Temps de Réaction]]<9,11,IF(Table3[[#This Row],[Class. Temps de Réaction]]<13,8,IF(Table3[[#This Row],[Class. Temps de Réaction]]<17,6,IF(Table3[[#This Row],[Class. Temps de Réaction]]<21,4,2)))))))),"0") -> 4 | AB35: 10 | AC35: =IF(Table3[[#This Row],[Temps Course]]<>"",_xlfn.RANK.EQ(Table3[[#This Row],[Temps Course]],Table3[Temps Course],1),"") -> 22 | AD35: =IF(Table3[[#This Row],[Temps Course]]<>"",IF(Table3[[#This Row],[Class. Temps Course]]=1,20, IF(Table3[[#This Row],[Class. Temps Course]]=2,19, IF(Table3[[#This Row],[Class. Temps Course]]=3,18, IF(Table3[[#This Row],[Class. Temps Course]]=4,17, IF(Table3[[#This Row],[Class. Temps Course]]=5,16, IF(Table3[[#This Row],[Class. Temps Course]]=6,15, IF(Table3[[#This Row],[Class. Temps Course]]=7,14, IF(Table3[[#This Row],[Class. Temps Course]]=8,13, IF(Table3[[#This Row],[Class. Temps Course]]=9,12, IF(Table3[[#This Row],[Class. Temps Course]]=10,11, IF(Table3[[#This Row],[Class. Temps Course]]<16,10, IF(Table3[[#This Row],[Class. Temps Course]]<21,9, IF(Table3[[#This Row],[Class. Temps Course]]<26,8,7))))))))))))),"0") -> 8 | AE35: 20
A36: 30
B38: Nombre d'équipes : | C38: =COUNTA(Table3[Nom équipe]) -> 29

Sheet Classement Général
G2: FINALE FRANCE / ACADEMIQUES COURSE EN COURS
E4: Attention: Ne rien saisir sur cette feuille elle est calculée automatiquement
A6: N° équipe | B6: Nom équipe | C6: établissement | D6: Type établissement | E6: Académie | F6: Parcours | G6: Ingénierie et conception | H6: Innovation mécanique | I6: Développement Durable | J6: Ingénierie de fabrication | K6: Gestion de projet et collaborations | L6: Présentation Orale | M6: Identité Equipe | N6: Design du Stand | O6: Portfolio | P6: Marketing et Sponsoring | Q6: Budget | R6: Design du Véhicule | S6: Innovation numérique | T6: Programmation | U6: Respect du règlement | V6: Communication : vidéo | W6: Epreuve CAO | X6: Temps Réaction | Y6: Temps Course | Z6: Epreuve arrêt au stand | AA6: 1 | AB6: Total Parcours | AC6: Classement Général
A7: 1 | B7: =IF(Table3[[#This Row],[Nom équipe]]<>"",Table3[[#This Row],[Nom équipe]],"") -> Star Car | C7: =IF(Table3[[#This Row],[Etablissement]]<>"",Table3[[#This Row],[Etablissement]],"") -> AVEC | D7: =IF(Table3[[#This Row],[Type établissement]]<>"",Table3[[#This Row],[Type établissement]],"") -> C | E7: =IF(Table3[[#This Row],[Académie]]<>"",Table3[[#This Row],[Académie]],"") -> Nancy-Metz | F7: =IF(Table3[[#This Row],[Parcours choisi]]<>"",Table3[[#This Row],[Parcours choisi]],"") -> G | G7: =IF(Table3[[#This Row],[Parcours choisi]]<>"",(VLOOKUP(Table35[[#Headers],[Ingénierie et conception]],'Def. Prix & Parcours'!$B$6:$E$28,IF($F7="G",2,IF($F7="T",3,IF($F7="N",4,0))),FALSE)*Table3[[#This Row],[Points Ingénierie et conception]]),"") -> 84 | H7: =IF(Table3[[#This Row],[Parcours choisi]]<>"",(VLOOKUP(Table35[[#Headers],[Innovation mécanique]],'Def. Prix & Parcours'!$B$6:$E$28,IF($F7="G",2,IF($F7="T",3,IF($F7="N",4,0))),FALSE)*Table3[[#This Row],[Points Innovation mécanique]]),"") -> 96 | I7: =IF(Table3[[#This Row],[Parcours choisi]]<>"",(VLOOKUP(Table35[[#Headers],[Développement Durable]],'Def. Prix & Parcours'!$B$6:$E$28,IF($F7="G",2,IF($F7="T",3,IF($F7="N",4,0))),FALSE)*Table3[[#This Row],[Points Développement Durable]]),"") -> 16 | J7: =IF(Table3[[#This Row],[Parcours choisi]]<>"",(VLOOKUP(Table35[[#Headers],[Ingénierie de fabrication]],'Def. Prix & Parcours'!$B$6:$E$28,IF($F7="G",2,IF($F7="T",3,IF($F7="N",4,0))),FALSE)*Table3[[#This Row],[Points Ingénierie de fabrication]]),"") -> 42 | K7: =IF(Table3[[#This Row],[Parcours choisi]]<>"",(VLOOKUP(Table35[[#Headers],[Gestion de projet et collaborations]],'Def. Prix & Parcours'!$B$6:$E$28,IF($F7="G",2,IF($F7="T",3,IF($F7="N",4,0))),FALSE)*Table3[[#This Row],[Points Gestion de projet et collaborations]]),"") -> 85 | L7: =IF(Table3[[#This Row],[Parcours choisi]]<>"",(VLOOKUP(Table35[[#Headers],[Présentation Orale]],'Def. Prix & Parcours'!$B$6:$E$28,IF($F7="G",2,IF($F7="T",3,IF($F7="N",4,0))),FALSE)*Table3[[#This Row],[Points Présentation Orale]]),"") -> 70 | M7: =IF(Table3[[#This Row],[Parcours choisi]]<>"",(VLOOKUP(Table35[[#Headers],[Identité Equipe]],'Def. Prix & Parcours'!$B$6:$E$28,IF($F7="G",2,IF($F7="T",3,IF($F7="N",4,0))),FALSE)*Table3[[#This Row],[Points Identité Equipe]]),"") -> 65 | N7: =IF(Table3[[#This Row],[Parcours choisi]]<>"",(VLOOKUP(Table35[[#Headers],[Design du Stand]],'Def. Prix & Parcours'!$B$6:$E$28,IF($F7="G",2,IF($F7="T",3,IF($F7="N",4,0))),FALSE)*Table3[[#This Row],[Points Design du Stand]]),"") -> 88 | O7: =IF(Table3[[#This Row],[Parcours choisi]]<>"",(VLOOKUP(Table35[[#Headers],[Portfolio]],'Def. Prix & Parcours'!$B$6:$E$28,IF($F7="G",2,IF($F7="T",3,IF($F7="N",4,0))),FALSE)*Table3[[#This Row],[Points Portfolio]]),"") -> 0 | P7: =IF(Table3[[#This Row],[Parcours choisi]]<>"",(VLOOKUP(Table35[[#Headers],[Marketing et Sponsoring]],'Def. Prix & Parcours'!$B$6:$E$28,IF($F7="G",2,IF($F7="T",3,IF($F7="N",4,0))),FALSE)*Table3[[#This Row],[Points Marketing et Sponsoring]]),"") -> 96 | Q7: =IF(Table3[[#This Row],[Parcours choisi]]<>"",(VLOOKUP(Table35[[#Headers],[Budget]],'Def. Prix & Parcours'!$B$6:$E$28,IF($F7="G",2,IF($F7="T",3,IF($F7="N",4,0))),FALSE)*Table3[[#This Row],[Points Budget]]),"") -> 18 | R7: =IF(Table3[[#This Row],[Parcours choisi]]<>"",(VLOOKUP(Table35[[#Headers],[Design du Véhicule]],'Def. Prix & Parcours'!$B$6:$E$28,IF($F7="G",2,IF($F7="T",3,IF($F7="N",4,0))),FALSE)*Table3[[#This Row],[Points Design du Véhicule]]),"") -> 45 | S7: =IF(Table3[[#This Row],[Parcours choisi]]<>"",(VLOOKUP(Table35[[#Headers],[Innovation numérique]],'Def. Prix & Parcours'!$B$6:$E$28,IF($F7="G",2,IF($F7="T",3,IF($F7="N",4,0))),FALSE)*Table3[[#This Row],[Points Innovation numérique]]),"") -> 0 | T7: =IF(Table3[[#This Row],[Parcours choisi]]<>"",(VLOOKUP(Table35[[#Headers],[Programmation]],'Def. Prix & Parcours'!$B$6:$E$28,IF($F7="G",2,IF($F7="T",3,IF($F7="N",4,0))),FALSE)*Table3[[#This Row],[Points Programmation]]),"") -> 0 | U7: =IF(Table3[[#This Row],[Parcours choisi]]<>"",(VLOOKUP(Table35[[#Headers],[Respect du règlement]],'Def. Prix & Parcours'!$B$6:$E$28,IF($F7="G",2,IF($F7="T",3,IF($F7="N",4,0))),FALSE)*Table3[[#This Row],[Points Respect du règlement]]),"") -> 45 | V7: =IF(Table3[[#This Row],[Parcours choisi]]<>"",(VLOOKUP(Table35[[#Headers],[Communication : vidéo]],'Def. Prix & Parcours'!$B$6:$E$28,IF($F7="G",2,IF($F7="T",3,IF($F7="N",4,0))),FALSE)*Table3[[#This Row],[Points Communication : vidéo]]),"") -> 39 | W7: =IF(Table3[[#This Row],[Parcours choisi]]<>"",(VLOOKUP(Table35[[#Headers],[Epreuve CAO]],'Def. Prix & Parcours'!$B$6:$E$28,IF($F7="G",2,IF($F7="T",3,IF($F7="N",4,0))),FALSE)*Table3[[#This Row],[Points Epreuve CAO]]),"") -> 80 | X7: =IF(Table3[[#This Row],[Parcours choisi]]<>"",(VLOOKUP(Table35[[#Headers],[Temps Réaction]],'Def. Prix & Parcours'!$B$6:$E$28,IF($F7="G",2,IF($F7="T",3,IF($F7="N",4,0))),FALSE)*Table3[[#This Row],[Points Temps Réaction]]),"") -> 6 | Y7: =IF(Table3[[#This Row],[Parcours choisi]]<>"",(VLOOKUP(Table35[[#Headers],[Temps Course]],'Def. Prix & Parcours'!$B$6:$E$28,IF($F7="G",2,IF($F7="T",3,IF($F7="N",4,0))),FALSE)*Table3[[#This Row],[Points Temps Course]]),"") -> 90 | Z7: =IF(Table3[[#This Row],[Parcours choisi]]<>"",(VLOOKUP(Table35[[#Headers],[Epreuve arrêt au stand]],'Def. Prix & Parcours'!$B$6:$E$28,IF($F7="G",2,IF($F7="T",3,IF($F7="N",4,0))),FALSE)*Table3[[#This Row],[Points Epreuve arrêt au stand]]),"") -> 80 | AB7: =IF(Table3[[#This Row],[Parcours choisi]]<>"",SUM(Table35[[#This Row],[Ingénierie et conception]:[1]]),"") -> 1045 | AC7: =IF(Table3[[#This Row],[Parcours choisi]]<>"",_xlfn.RANK.EQ(Table35[[#This Row],[Total Parcours]],Table35[Total Parcours],0),"") -> 23
A8: 2 | B8: =IF(Table3[[#This Row],[Nom équipe]]<>"",Table3[[#This Row],[Nom équipe]],"") -> Les industriels | C8: =IF(Table3[[#This Row],[Etablissement]]<>"",Table3[[#This Row],[Etablissement]],"") -> Loritz Nancy | D8: =IF(Table3[[#This Row],[Type établissement]]<>"",Table3[[#This Row],[Type établissement]],"") -> L | E8: =IF(Table3[[#This Row],[Académie]]<>"",Table3[[#This Row],[Académie]],"") -> Nancy-Metz | F8: =IF(Table3[[#This Row],[Parcours choisi]]<>"",Table3[[#This Row],[Parcours choisi]],"") -> T | G8: =IF(Table3[[#This Row],[Parcours choisi]]<>"",(VLOOKUP(Table35[[#Headers],[Ingénierie et conception]],'Def. Prix & Parcours'!$B$6:$E$28,IF($F8="G",2,IF($F8="T",3,IF($F8="N",4,0))),FALSE)*Table3[[#This Row],[Points Ingénierie et conception]]),"") -> 0 | H8: =IF(Table3[[#This Row],[Parcours choisi]]<>"",(VLOOKUP(Table35[[#Headers],[Innovation mécanique]],'Def. Prix & Parcours'!$B$6:$E$28,IF($F8="G",2,IF($F8="T",3,IF($F8="N",4,0))),FALSE)*Table3[[#This Row],[Points Innovation mécanique]]),"") -> 0 | I8: =IF(Table3[[#This Row],[Parcours choisi]]<>"",(VLOOKUP(Table35[[#Headers],[Développement Durable]],'Def. Prix & Parcours'!$B$6:$E$28,IF($F8="G",2,IF($F8="T",3,IF($F8="N",4,0))),FALSE)*Table3[[#This Row],[Points Développement Durable]]),"") -> 0 | J8: =IF(Table3[[#This Row],[Parcours choisi]]<>"",(VLOOKUP(Table35[[#Headers],[Ingénierie de fabrication]],'Def. Prix & Parcours'!$B$6:$E$28,IF($F8="G",2,IF($F8="T",3,IF($F8="N",4,0))),FALSE)*Table3[[#This Row],[Points Ingénierie de fabrication]]),"") -> 0 | K8: =IF(Table3[[#This Row],[Parcours choisi]]<>"",(VLOOKUP(Table35[[#Headers],[Gestion de projet et collaborations]],'Def. Prix & Parcours'!$B$6:$E$28,IF($F8="G",2,IF($F8="T",3,IF($F8="N",4,0))),FALSE)*Table3[[#This Row],[Points Gestion de projet et collaborations]]),"") -> 0 | L8: =IF(Table3[[#This Row],[Parcours choisi]]<>"",(VLOOKUP(Table35[[#Headers],[Présentation Orale]],'Def. Prix & Parcours'!$B$6:$E$28,IF($F8="G",2,IF($F8="T",3,IF($F8="N",4,0))),FALSE)*Table3[[#This Row],[Points Présentation Orale]]),"") -> 0 | M8: =IF(Table3[[#This Row],[Parcours choisi]]<>"",(VLOOKUP(Table35[[#Headers],[Identité Equipe]],'Def. Prix & Parcours'!$B$6:$E$28,IF($F8="G",2,IF($F8="T",3,IF($F8="N",4,0))),FALSE)*Table3[[#This Row],[Points Identité Equipe]]),"") -> 0 | N8: =IF(Table3[[#This Row],[Parcours choisi]]<>"",(VLOOKUP(Table35[[#Headers],[Design du Stand]],'Def. Prix & Parcours'!$B$6:$E$28,IF($F8="G",2,IF($F8="T",3,IF($F8="N",4,0))),FALSE)*Table3[[#This Row],[Points Design du Stand]]),"") -> 0 | O8: =IF(Table3[[#This Row],[Parcours choisi]]<>"",(VLOOKUP(Table35[[#Headers],[Portfolio]],'Def. Prix & Parcours'!$B$6:$E$28,IF($F8="G",2,IF($F8="T",3,IF($F8="N",4,0))),FALSE)*Table3[[#This Row],[Points Portfolio]]),"") -> 0 | P8: =IF(Table3[[#This Row],[Parcours choisi]]<>"",(VLOOKUP(Table35[[#Headers],[Marketing et Sponsoring]],'Def. Prix & Parcours'!$B$6:$E$28,IF($F8="G",2,IF($F8="T",3,IF($F8="N",4,0))),FALSE)*Table3[[#This Row],[Points Marketing et Sponsoring]]),"") -> 0 | Q8: =IF(Table3[[#This Row],[Parcours choisi]]<>"",(VLOOKUP(Table35[[#Headers],[Budget]],'Def. Prix & Parcours'!$B$6:$E$28,IF($F8="G",2,IF($F8="T",3,IF($F8="N",4,0))),FALSE)*Table3[[#This Row],[Points Budget]]),"") -> 0 | R8: =IF(Table3[[#This Row],[Parcours choisi]]<>"",(VLOOKUP(Table35[[#Headers],[Design du Véhicule]],'Def. Prix & Parcours'!$B$6:$E$28,IF($F8="G",2,IF($F8="T",3,IF($F8="N",4,0))),FALSE)*Table3[[#This Row],[Points Design du Véhicule]]),"") -> 0 | S8: =IF(Table3[[#This Row],[Parcours choisi]]<>"",(VLOOKUP(Table35[[#Headers],[Innovation numérique]],'Def. Prix & Parcours'!$B$6:$E$28,IF($F8="G",2,IF($F8="T",3,IF($F8="N",4,0))),FALSE)*Table3[[#This Row],[Points Innovation numérique]]),"") -> 0 | T8: =IF(Table3[[#This Row],[Parcours choisi]]<>"",(VLOOKUP(Table35[[#Headers],[Programmation]],'Def. Prix & Parcours'!$B$6:$E$28,IF($F8="G",2,IF($F8="T",3,IF($F8="N",4,0))),FALSE)*Table3[[#This Row],[Points Programmation]]),"") -> 0 | U8: =IF(Table3[[#This Row],[Parcours choisi]]<>"",(VLOOKUP(Table35[[#Headers],[Respect du règlement]],'Def. Prix & Parcours'!$B$6:$E$28,IF($F8="G",2,IF($F8="T",3,IF($F8="N",4,0))),FALSE)*Table3[[#This Row],[Points Respect du règlement]]),"") -> 0 | V8: =IF(Table3[[#This Row],[Parcours choisi]]<>"",(VLOOKUP(Table35[[#Headers],[Communication : vidéo]],'Def. Prix & Parcours'!$B$6:$E$28,IF($F8="G",2,IF($F8="T",3,IF($F8="N",4,0))),FALSE)*Table3[[#This Row],[Points Communication : vidéo]]),"") -> 0 | W8: =IF(Table3[[#This Row],[Parcours choisi]]<>"",(VLOOKUP(Table35[[#Headers],[Epreuve CAO]],'Def. Prix & Parcours'!$B$6:$E$28,IF($F8="G",2,IF($F8="T",3,IF($F8="N",4,0))),FALSE)*Table3[[#This Row],[Points Epreuve CAO]]),"") -> 80 | X8: =IF(Table3[[#This Row],[Parcours choisi]]<>"",(VLOOKUP(Table35[[#Headers],[Temps Réaction]],'Def. Prix & Parcours'!$B$6:$E$28,IF($F8="G",2,IF($F8="T",3,IF($F8="N",4,0))),FALSE)*Table3[[#This Row],[Points Temps Réaction]]),"") -> 6 | Y8: =IF(Table3[[#This Row],[Parcours choisi]]<>"",(VLOOKUP(Table35[[#Headers],[Temps Course]],'Def. Prix & Parcours'!$B$6:$E$28,IF($F8="G",2,IF($F8="T",3,IF($F8="N",4,0))),FALSE)*Table3[[#This Row],[Points Temps Course]]),"") -> 80 | Z8: =IF(Table3[[#This Row],[Parcours choisi]]<>"",(VLOOKUP(Table35[[#Headers],[Epreuve arrêt au stand]],'Def. Prix & Parcours'!$B$6:$E$28,IF($F8="G",2,IF($F8="T",3,IF($F8="N",4,0))),FALSE)*Table3[[#This Row],[Points Epreuve arrêt au stand]]),"") -> 80 | AB8: =IF(Table3[[#This Row],[Parcours choisi]]<>"",SUM(Table35[[#This Row],[Ingénierie et conception]:[1]]),"") -> 246 | AC8: =IF(Table3[[#This Row],[Parcours choisi]]<>"",_xlfn.RANK.EQ(Table35[[#This Row],[Total Parcours]],Table35[Total Parcours],0),"") -> 26
A9: 3 | B9: =IF(Table3[[#This Row],[Nom équipe]]<>"",Table3[[#This Row],[Nom équipe]],"") -> S1 motor sport | C9: =IF(Table3[[#This Row],[Etablissement]]<>"",Table3[[#This Row],[Etablissement]],"") -> Lotitz Nancy | D9: =IF(Table3[[#This Row],[Type établissement]]<>"",Table3[[#This Row],[Type établissement]],"") -> L | E9: =IF(Table3[[#This Row],[Académie]]<>"",Table3[[#This Row],[Académie]],"") -> Nancy-Metz | F9: =IF(Table3[[#This Row],[Parcours choisi]]<>"",Table3[[#This Row],[Parcours choisi]],"") -> T | G9: =IF(Table3[[#This Row],[Parcours choisi]]<>"",(VLOOKUP(Table35[[#Headers],[Ingénierie et conception]],'Def. Prix & Parcours'!$B$6:$E$28,IF($F9="G",2,IF($F9="T",3,IF($F9="N",4,0))),FALSE)*Table3[[#This Row],[Points Ingénierie et conception]]),"") -> 0 | H9: =IF(Table3[[#This Row],[Parcours choisi]]<>"",(VLOOKUP(Table35[[#Headers],[Innovation mécanique]],'Def. Prix & Parcours'!$B$6:$E$28,IF($F9="G",2,IF($F9="T",3,IF($F9="N",4,0))),FALSE)*Table3[[#This Row],[Points Innovation mécanique]]),"") -> 0 | I9: =IF(Table3[[#This Row],[Parcours choisi]]<>"",(VLOOKUP(Table35[[#Headers],[Développement Durable]],'Def. Prix & Parcours'!$B$6:$E$28,IF($F9="G",2,IF($F9="T",3,IF($F9="N",4,0))),FALSE)*Table3[[#This Row],[Points Développement Durable]]),"") -> 0 | J9: =IF(Table3[[#This Row],[Parcours choisi]]<>"",(VLOOKUP(Table35[[#Headers],[Ingénierie de fabrication]],'Def. Prix & Parcours'!$B$6:$E$28,IF($F9="G",2,IF($F9="T",3,IF($F9="N",4,0))),FALSE)*Table3[[#This Row],[Points Ingénierie de fabrication]]),"") -> 0 | K9: =IF(Table3[[#This Row],[Parcours choisi]]<>"",(VLOOKUP(Table35[[#Headers],[Gestion de projet et collaborations]],'Def. Prix & Parcours'!$B$6:$E$28,IF($F9="G",2,IF($F9="T",3,IF($F9="N",4,0))),FALSE)*Table3[[#This Row],[Points Gestion de projet et collaborations]]),"") -> 0 | L9: =IF(Table3[[#This Row],[Parcours choisi]]<>"",(VLOOKUP(Table35[[#Headers],[Présentation Orale]],'Def. Prix & Parcours'!$B$6:$E$28,IF($F9="G",2,IF($F9="T",3,IF($F9="N",4,0))),FALSE)*Table3[[#This Row],[Points Présentation Orale]]),"") -> 0 | M9: =IF(Table3[[#This Row],[Parcours choisi]]<>"",(VLOOKUP(Table35[[#Headers],[Identité Equipe]],'Def. Prix & Parcours'!$B$6:$E$28,IF($F9="G",2,IF($F9="T",3,IF($F9="N",4,0))),FALSE)*Table3[[#This Row],[Points Identité Equipe]]),"") -> 0 | N9: =IF(Table3[[#This Row],[Parcours choisi]]<>"",(VLOOKUP(Table35[[#Headers],[Design du Stand]],'Def. Prix & Parcours'!$B$6:$E$28,IF($F9="G",2,IF($F9="T",3,IF($F9="N",4,0))),FALSE)*Table3[[#This Row],[Points Design du Stand]]),"") -> 0 | O9: =IF(Table3[[#This Row],[Parcours choisi]]<>"",(VLOOKUP(Table35[[#Headers],[Portfolio]],'Def. Prix & Parcours'!$B$6:$E$28,IF($F9="G",2,IF($F9="T",3,IF($F9="N",4,0))),FALSE)*Table3[[#This Row],[Points Portfolio]]),"") -> 0 | P9: =IF(Table3[[#This Row],[Parcours choisi]]<>"",(VLOOKUP(Table35[[#Headers],[Marketing et Sponsoring]],'Def. Prix & Parcours'!$B$6:$E$28,IF($F9="G",2,IF($F9="T",3,IF($F9="N",4,0))),FALSE)*Table3[[#This Row],[Points Marketing et Sponsoring]]),"") -> 0 | Q9: =IF(Table3[[#This Row],[Parcours choisi]]<>"",(VLOOKUP(Table35[[#Headers],[Budget]],'Def. Prix & Parcours'!$B$6:$E$28,IF($F9="G",2,IF($F9="T",3,IF($F9="N",4,0))),FALSE)*Table3[[#This Row],[Points Budget]]),"") -> 0 | R9: =IF(Table3[[#This Row],[Parcours choisi]]<>"",(VLOOKUP(Table35[[#Headers],[Design du Véhicule]],'Def. Prix & Parcours'!$B$6:$E$28,IF($F9="G",2,IF($F9="T",3,IF($F9="N",4,0))),FALSE)*Table3[[#This Row],[Points Design du Véhicule]]),"") -> 0 | S9: =IF(Table3[[#This Row],[Parcours choisi]]<>"",(VLOOKUP(Table35[[#Headers],[Innovation numérique]],'Def. Prix & Parcours'!$B$6:$E$28,IF($F9="G",2,IF($F9="T",3,IF($F9="N",4,0))),FALSE)*Table3[[#This Row],[Points Innovation numérique]]),"") -> 0 | T9: =IF(Table3[[#This Row],[Parcours choisi]]<>"",(VLOOKUP(Table35[[#Headers],[Programmation]],'Def. Prix & Parcours'!$B$6:$E$28,IF($F9="G",2,IF($F9="T",3,IF($F9="N",4,0))),FALSE)*Table3[[#This Row],[Points Programmation]]),"") -> 0 | U9: =IF(Table3[[#This Row],[Parcours choisi]]<>"",(VLOOKUP(Table35[[#Headers],[Respect du règlement]],'Def. Prix & Parcours'!$B$6:$E$28,IF($F9="G",2,IF($F9="T",3,IF($F9="N",4,0))),FALSE)*Table3[[#This Row],[Points Respect du règlement]]),"") -> 0 | V9: =IF(Table3[[#This Row],[Parcours choisi]]<>"",(VLOOKUP(Table35[[#Headers],[Communication : vidéo]],'Def. Prix & Parcours'!$B$6:$E$28,IF($F9="G",2,IF($F9="T",3,IF($F9="N",4,0))),FALSE)*Table3[[#This Row],[Points Communication : vidéo]]),"") -> 0 | W9: =IF(Table3[[#This Row],[Parcours choisi]]<>"",(VLOOKUP(Table35[[#Headers],[Epreuve CAO]],'Def. Prix & Parcours'!$B$6:$E$28,IF($F9="G",2,IF($F9="T",3,IF($F9="N",4,0))),FALSE)*Table3[[#This Row],[Points Epreuve CAO]]),"") -> 80 | X9: =IF(Table3[[#This Row],[Parcours choisi]]<>"",(VLOOKUP(Table35[[#Headers],[Temps Réaction]],'Def. Prix & Parcours'!$B$6:$E$28,IF($F9="G",2,IF($F9="T",3,IF($F9="N",4,0))),FALSE)*Table3[[#This Row],[Points Temps Réaction]]),"") -> 6 | Y9: =IF(Table3[[#This Row],[Parcours choisi]]<>"",(VLOOKUP(Table35[[#Headers],[Temps Course]],'Def. Prix & Parcours'!$B$6:$E$28,IF($F9="G",2,IF($F9="T",3,IF($F9="N",4,0))),FALSE)*Table3[[#This Row],[Points Temps Course]]),"") -> 80 | Z9: =IF(Table3[[#This Row],[Parcours choisi]]<>"",(VLOOKUP(Table35[[#Headers],[Epreuve arrêt au stand]],'Def. Prix & Parcours'!$B$6:$E$28,IF($F9="G",2,IF($F9="T",3,IF($F9="N",4,0))),FALSE)*Table3[[#This Row],[Points Epreuve arrêt au stand]]),"") -> 80 | AB9: =IF(Table3[[#This Row],[Parcours choisi]]<>"",SUM(Table35[[#This Row],[Ingénierie et conception]:[1]]),"") -> 246 | AC9: =IF(Table3[[#This Row],[Parcours choisi]]<>"",_xlfn.RANK.EQ(Table35[[#This Row],[Total Parcours]],Table35[Total Parcours],0),"") -> 26
A10: 4 | B10: =IF(Table3[[#This Row],[Nom équipe]]<>"",Table3[[#This Row],[Nom équipe]],"") -> Back to the past | C10: =IF(Table3[[#This Row],[Etablissement]]<>"",Table3[[#This Row],[Etablissement]],"") -> Loritz Nancy | D10: =IF(Table3[[#This Row],[Type établissement]]<>"",Table3[[#This Row],[Type établissement]],"") -> L | E10: =IF(Table3[[#This Row],[Académie]]<>"",Table3[[#This Row],[Académie]],"") -> Nancy-Metz | F10: =IF(Table3[[#This Row],[Parcours choisi]]<>"",Table3[[#This Row],[Parcours choisi]],"") -> T | G10: =IF(Table3[[#This Row],[Parcours choisi]]<>"",(VLOOKUP(Table35[[#Headers],[Ingénierie et conception]],'Def. Prix & Parcours'!$B$6:$E$28,IF($F10="G",2,IF($F10="T",3,IF($F10="N",4,0))),FALSE)*Table3[[#This Row],[Points Ingénierie et conception]]),"") -> 102 | H10: =IF(Table3[[#This Row],[Parcours choisi]]<>"",(VLOOKUP(Table35[[#Headers],[Innovation mécanique]],'Def. Prix & Parcours'!$B$6:$E$28,IF($F10="G",2,IF($F10="T",3,IF($F10="N",4,0))),FALSE)*Table3[[#This Row],[Points Innovation mécanique]]),"") -> 168 | I10: =IF(Table3[[#This Row],[Parcours choisi]]<>"",(VLOOKUP(Table35[[#Headers],[Développement Durable]],'Def. Prix & Parcours'!$B$6:$E$28,IF($F10="G",2,IF($F10="T",3,IF($F10="N",4,0))),FALSE)*Table3[[#This Row],[Points Développement Durable]]),"") -> 90 | J10: =IF(Table3[[#This Row],[Parcours choisi]]<>"",(VLOOKUP(Table35[[#Headers],[Ingénierie de fabrication]],'Def. Prix & Parcours'!$B$6:$E$28,IF($F10="G",2,IF($F10="T",3,IF($F10="N",4,0))),FALSE)*Table3[[#This Row],[Points Ingénierie de fabrication]]),"") -> 144 | K10: =IF(Table3[[#This Row],[Parcours choisi]]<>"",(VLOOKUP(Table35[[#Headers],[Gestion de projet et collaborations]],'Def. Prix & Parcours'!$B$6:$E$28,IF($F10="G",2,IF($F10="T",3,IF($F10="N",4,0))),FALSE)*Table3[[#This Row],[Points Gestion de projet et collaborations]]),"") -> 70 | L10: =IF(Table3[[#This Row],[Parcours choisi]]<>"",(VLOOKUP(Table35[[#Headers],[Présentation Orale]],'Def. Prix & Parcours'!$B$6:$E$28,IF($F10="G",2,IF($F10="T",3,IF($F10="N",4,0))),FALSE)*Table3[[#This Row],[Points Présentation Orale]]),"") -> 70 | M10: =IF(Table3[[#This Row],[Parcours choisi]]<>"",(VLOOKUP(Table35[[#Headers],[Identité Equipe]],'Def. Prix & Parcours'!$B$6:$E$28,IF($F10="G",2,IF($F10="T",3,IF($F10="N",4,0))),FALSE)*Table3[[#This Row],[Points Identité Equipe]]),"") -> 80 | N10: =IF(Table3[[#This Row],[Parcours choisi]]<>"",(VLOOKUP(Table35[[#Headers],[Design du Stand]],'Def. Prix & Parcours'!$B$6:$E$28,IF($F10="G",2,IF($F10="T",3,IF($F10="N",4,0))),FALSE)*Table3[[#This Row],[Points Design du Stand]]),"") -> 32 | O10: =IF(Table3[[#This Row],[Parcours choisi]]<>"",(VLOOKUP(Table35[[#Headers],[Portfolio]],'Def. Prix & Parcours'!$B$6:$E$28,IF($F10="G",2,IF($F10="T",3,IF($F10="N",4,0))),FALSE)*Table3[[#This Row],[Points Portfolio]]),"") -> 60 | P10: =IF(Table3[[#This Row],[Parcours choisi]]<>"",(VLOOKUP(Table35[[#Headers],[Marketing et Sponsoring]],'Def. Prix & Parcours'!$B$6:$E$28,IF($F10="G",2,IF($F10="T",3,IF($F10="N",4,0))),FALSE)*Table3[[#This Row],[Points Marketing et Sponsoring]]),"") -> 28 | Q10: =IF(Table3[[#This Row],[Parcours choisi]]<>"",(VLOOKUP(Table35[[#Headers],[Budget]],'Def. Prix & Parcours'!$B$6:$E$28,IF($F10="G",2,IF($F10="T",3,IF($F10="N",4,0))),FALSE)*Table3[[#This Row],[Points Budget]]),"") -> 28 | R10: =IF(Table3[[#This Row],[Parcours choisi]]<>"",(VLOOKUP(Table35[[#Headers],[Design du Véhicule]],'Def. Prix & Parcours'!$B$6:$E$28,IF($F10="G",2,IF($F10="T",3,IF($F10="N",4,0))),FALSE)*Table3[[#This Row],[Points Design du Véhicule]]),"") -> 90 | S10: =IF(Table3[[#This Row],[Parcours choisi]]<>"",(VLOOKUP(Table35[[#Headers],[Innovation numérique]],'Def. Prix & Parcours'!$B$6:$E$28,IF($F10="G",2,IF($F10="T",3,IF($F10="N",4,0))),FALSE)*Table3[[#This Row],[Points Innovation numérique]]),"") -> 12 | T10: =IF(Table3[[#This Row],[Parcours choisi]]<>"",(VLOOKUP(Table35[[#Headers],[Programmation]],'Def. Prix & Parcours'!$B$6:$E$28,IF($F10="G",2,IF($F10="T",3,IF($F10="N",4,0))),FALSE)*Table3[[#This Row],[Points Programmation]]),"") -> 8 | U10: =IF(Table3[[#This Row],[Parcours choisi]]<>"",(VLOOKUP(Table35[[#Headers],[Respect du règlement]],'Def. Prix & Parcours'!$B$6:$E$28,IF($F10="G",2,IF($F10="T",3,IF($F10="N",4,0))),FALSE)*Table3[[#This Row],[Points Respect du règlement]]),"") -> 90 | V10: =IF(Table3[[#This Row],[Parcours choisi]]<>"",(VLOOKUP(Table35[[#Headers],[Communication : vidéo]],'Def. Prix & Parcours'!$B$6:$E$28,IF($F10="G",2,IF($F10="T",3,IF($F10="N",4,0))),FALSE)*Table3[[#This Row],[Points Communication : vidéo]]),"") -> 51 | W10: =IF(Table3[[#This Row],[Parcours choisi]]<>"",(VLOOKUP(Table35[[#Headers],[Epreuve CAO]],'Def. Prix & Parcours'!$B$6:$E$28,IF($F10="G",2,IF($F10="T",3,IF($F10="N",4,0))),FALSE)*Table3[[#This Row],[Points Epreuve CAO]]),"") -> 80 | X10: =IF(Table3[[#This Row],[Parcours choisi]]<>"",(VLOOKUP(Table35[[#Headers],[Temps Réaction]],'Def. Prix & Parcours'!$B$6:$E$28,IF($F10="G",2,IF($F10="T",3,IF($F10="N",4,0))),FALSE)*Table3[[#This Row],[Points Temps Réaction]]),"") -> 6 | Y10: =IF(Table3[[#This Row],[Parcours choisi]]<>"",(VLOOKUP(Table35[[#Headers],[Temps Course]],'Def. Prix & Parcours'!$B$6:$E$28,IF($F10="G",2,IF($F10="T",3,IF($F10="N",4,0))),FALSE)*Table3[[#This Row],[Points Temps Course]]),"") -> 100 | Z10: =IF(Table3[[#This Row],[Parcours choisi]]<>"",(VLOOKUP(Table35[[#Headers],[Epreuve arrêt au stand]],'Def. Prix & Parcours'!$B$6:$E$28,IF($F10="G",2,IF($F10="T",3,IF($F10="N",4,0))),FALSE)*Table3[[#This Row],[Points Epreuve arrêt au stand]]),"") -> 80 | AB10: =IF(Table3[[#This Row],[Parcours choisi]]<>"",SUM(Table35[[#This Row],[Ingénierie et conception]:[1]]),"") -> 1389 | AC10: =IF(Table3[[#This Row],[Parcours choisi]]<>"",_xlfn.RANK.EQ(Table35[[#This Row],[Total Parcours]],Table35[Total Parcours],0),"") -> 13
A11: 5 | B11: =IF(Table3[[#This Row],[Nom équipe]]<>"",Table3[[#This Row],[Nom équipe]],"") -> Ionix | C11: =IF(Table3[[#This Row],[Etablissement]]<>"",Table3[[#This Row],[Etablissement]],"") -> Loritz Nancy | D11: =IF(Table3[[#This Row],[Type établissement]]<>"",Table3[[#This Row],[Type établissement]],"") -> L | E11: =IF(Table3[[#This Row],[Académie]]<>"",Table3[[#This Row],[Académie]],"") -> Nancy-Metz | F11: =IF(Table3[[#This Row],[Parcours choisi]]<>"",Table3[[#This Row],[Parcours choisi]],"") -> T | G11: =IF(Table3[[#This Row],[Parcours choisi]]<>"",(VLOOKUP(Table35[[#Headers],[Ingénierie et conception]],'Def. Prix & Parcours'!$B$6:$E$28,IF($F11="G",2,IF($F11="T",3,IF($F11="N",4,0))),FALSE)*Table3[[#This Row],[Points Ingénierie et conception]]),"") -> 84 | H11: =IF(Table3[[#This Row],[Parcours choisi]]<>"",(VLOOKUP(Table35[[#Headers],[Innovation mécanique]],'Def. Prix & Parcours'!$B$6:$E$28,IF($F11="G",2,IF($F11="T",3,IF($F11="N",4,0))),FALSE)*Table3[[#This Row],[Points Innovation mécanique]]),"") -> 156 | I11: =IF(Table3[[#This Row],[Parcours choisi]]<>"",(VLOOKUP(Table35[[#Headers],[Développement Durable]],'Def. Prix & Parcours'!$B$6:$E$28,IF($F11="G",2,IF($F11="T",3,IF($F11="N",4,0))),FALSE)*Table3[[#This Row],[Points Développement Durable]]),"") -> 108 | J11: =IF(Table3[[#This Row],[Parcours choisi]]<>"",(VLOOKUP(Table35[[#Headers],[Ingénierie de fabrication]],'Def. Prix & Parcours'!$B$6:$E$28,IF($F11="G",2,IF($F11="T",3,IF($F11="N",4,0))),FALSE)*Table3[[#This Row],[Points Ingénierie de fabrication]]),"") -> 128 | K11: =IF(Table3[[#This Row],[Parcours choisi]]<>"",(VLOOKUP(Table35[[#Headers],[Gestion de projet et collaborations]],'Def. Prix & Parcours'!$B$6:$E$28,IF($F11="G",2,IF($F11="T",3,IF($F11="N",4,0))),FALSE)*Table3[[#This Row],[Points Gestion de projet et collaborations]]),"") -> 80 | L11: =IF(Table3[[#This Row],[Parcours choisi]]<>"",(VLOOKUP(Table35[[#Headers],[Présentation Orale]],'Def. Prix & Parcours'!$B$6:$E$28,IF($F11="G",2,IF($F11="T",3,IF($F11="N",4,0))),FALSE)*Table3[[#This Row],[Points Présentation Orale]]),"") -> 65 | M11: =IF(Table3[[#This Row],[Parcours choisi]]<>"",(VLOOKUP(Table35[[#Headers],[Identité Equipe]],'Def. Prix & Parcours'!$B$6:$E$28,IF($F11="G",2,IF($F11="T",3,IF($F11="N",4,0))),FALSE)*Table3[[#This Row],[Points Identité Equipe]]),"") -> 55 | N11: =IF(Table3[[#This Row],[Parcours choisi]]<>"",(VLOOKUP(Table35[[#Headers],[Design du Stand]],'Def. Prix & Parcours'!$B$6:$E$28,IF($F11="G",2,IF($F11="T",3,IF($F11="N",4,0))),FALSE)*Table3[[#This Row],[Points Design du Stand]]),"") -> 24 | O11: =IF(Table3[[#This Row],[Parcours choisi]]<>"",(VLOOKUP(Table35[[#Headers],[Portfolio]],'Def. Prix & Parcours'!$B$6:$E$28,IF($F11="G",2,IF($F11="T",3,IF($F11="N",4,0))),FALSE)*Table3[[#This Row],[Points Portfolio]]),"") -> 40 | P11: =IF(Table3[[#This Row],[Parcours choisi]]<>"",(VLOOKUP(Table35[[#Headers],[Marketing et Sponsoring]],'Def. Prix & Parcours'!$B$6:$E$28,IF($F11="G",2,IF($F11="T",3,IF($F11="N",4,0))),FALSE)*Table3[[#This Row],[Points Marketing et Sponsoring]]),"") -> 28 | Q11: =IF(Table3[[#This Row],[Parcours choisi]]<>"",(VLOOKUP(Table35[[#Headers],[Budget]],'Def. Prix & Parcours'!$B$6:$E$28,IF($F11="G",2,IF($F11="T",3,IF($F11="N",4,0))),FALSE)*Table3[[#This Row],[Points Budget]]),"") -> 22 | R11: =IF(Table3[[#This Row],[Parcours choisi]]<>"",(VLOOKUP(Table35[[#Headers],[Design du Véhicule]],'Def. Prix & Parcours'!$B$6:$E$28,IF($F11="G",2,IF($F11="T",3,IF($F11="N",4,0))),FALSE)*Table3[[#This Row],[Points Design du Véhicule]]),"") -> 84 | S11: =IF(Table3[[#This Row],[Parcours choisi]]<>"",(VLOOKUP(Table35[[#Headers],[Innovation numérique]],'Def. Prix & Parcours'!$B$6:$E$28,IF($F11="G",2,IF($F11="T",3,IF($F11="N",4,0))),FALSE)*Table3[[#This Row],[Points Innovation numérique]]),"") -> 32 | T11: =IF(Table3[[#This Row],[Parcours choisi]]<>"",(VLOOKUP(Table35[[#Headers],[Programmation]],'Def. Prix & Parcours'!$B$6:$E$28,IF($F11="G",2,IF($F11="T",3,IF($F11="N",4,0))),FALSE)*Table3[[#This Row],[Points Programmation]]),"") -> 0 | U11: =IF(Table3[[#This Row],[Parcours choisi]]<>"",(VLOOKUP(Table35[[#Headers],[Respect du règlement]],'Def. Prix & Parcours'!$B$6:$E$28,IF($F11="G",2,IF($F11="T",3,IF($F11="N",4,0))),FALSE)*Table3[[#This Row],[Points Respect du règlement]]),"") -> 100 | V11: =IF(Table3[[#This Row],[Parcours choisi]]<>"",(VLOOKUP(Table35[[#Headers],[Communication : vidéo]],'Def. Prix & Parcours'!$B$6:$E$28,IF($F11="G",2,IF($F11="T",3,IF($F11="N",4,0))),FALSE)*Table3[[#This Row],[Points Communication : vidéo]]),"") -> 48 | W11: =IF(Table3[[#This Row],[Parcours choisi]]<>"",(VLOOKUP(Table35[[#Headers],[Epreuve CAO]],'Def. Prix & Parcours'!$B$6:$E$28,IF($F11="G",2,IF($F11="T",3,IF($F11="N",4,0))),FALSE)*Table3[[#This Row],[Points Epreuve CAO]]),"") -> 80 | X11: =IF(Table3[[#This Row],[Parcours choisi]]<>"",(VLOOKUP(Table35[[#Headers],[Temps Réaction]],'Def. Prix & Parcours'!$B$6:$E$28,IF($F11="G",2,IF($F11="T",3,IF($F11="N",4,0))),FALSE)*Table3[[#This Row],[Points Temps Réaction]]),"") -> 18 | Y11: =IF(Table3[[#This Row],[Parcours choisi]]<>"",(VLOOKUP(Table35[[#Headers],[Temps Course]],'Def. Prix & Parcours'!$B$6:$E$28,IF($F11="G",2,IF($F11="T",3,IF($F11="N",4,0))),FALSE)*Table3[[#This Row],[Points Temps Course]]),"") -> 90 | Z11: =IF(Table3[[#This Row],[Parcours choisi]]<>"",(VLOOKUP(Table35[[#Headers],[Epreuve arrêt au stand]],'Def. Prix & Parcours'!$B$6:$E$28,IF($F11="G",2,IF($F11="T",3,IF($F11="N",4,0))),FALSE)*Table3[[#This Row],[Points Epreuve arrêt au stand]]),"") -> 80 | AB11: =IF(Table3[[#This Row],[Parcours choisi]]<>"",SUM(Table35[[#This Row],[Ingénierie et conception]:[1]]),"") -> 1322 | AC11: =IF(Table3[[#This Row],[Parcours choisi]]<>"",_xlfn.RANK.EQ(Table35[[#This Row],[Total Parcours]],Table35[Total Parcours],0),"") -> 17
A12: 6 | B12: =IF(Table3[[#This Row],[Nom équipe]]<>"",Table3[[#This Row],[Nom équipe]],"") -> Pavisado | C12: =IF(Table3[[#This Row],[Etablissement]]<>"",Table3[[#This Row],[Etablissement]],"") -> Loritz Nancy | D12: =IF(Table3[[#This Row],[Type établissement]]<>"",Table3[[#This Row],[Type établissement]],"") -> L | E12: =IF(Table3[[#This Row],[Académie]]<>"",Table3[[#This Row],[Académie]],"") -> Nancy-Metz | F12: =IF(Table3[[#This Row],[Parcours choisi]]<>"",Table3[[#This Row],[Parcours choisi]],"") -> T | G12: =IF(Table3[[#This Row],[Parcours choisi]]<>"",(VLOOKUP(Table35[[#Headers],[Ingénierie et conception]],'Def. Prix & Parcours'!$B$6:$E$28,IF($F12="G",2,IF($F12="T",3,IF($F12="N",4,0))),FALSE)*Table3[[#This Row],[Points Ingénierie et conception]]),"") -> 0 | H12: =IF(Table3[[#This Row],[Parcours choisi]]<>"",(VLOOKUP(Table35[[#Headers],[Innovation mécanique]],'Def. Prix & Parcours'!$B$6:$E$28,IF($F12="G",2,IF($F12="T",3,IF($F12="N",4,0))),FALSE)*Table3[[#This Row],[Points Innovation mécanique]]),"") -> 0 | I12: =IF(Table3[[#This Row],[Parcours choisi]]<>"",(VLOOKUP(Table35[[#Headers],[Développement Durable]],'Def. Prix & Parcours'!$B$6:$E$28,IF($F12="G",2,IF($F12="T",3,IF($F12="N",4,0))),FALSE)*Table3[[#This Row],[Points Développement Durable]]),"") -> 0 | J12: =IF(Table3[[#This Row],[Parcours choisi]]<>"",(VLOOKUP(Table35[[#Headers],[Ingénierie de fabrication]],'Def. Prix & Parcours'!$B$6:$E$28,IF($F12="G",2,IF($F12="T",3,IF($F12="N",4,0))),FALSE)*Table3[[#This Row],[Points Ingénierie de fabrication]]),"") -> 0 | K12: =IF(Table3[[#This Row],[Parcours choisi]]<>"",(VLOOKUP(Table35[[#Headers],[Gestion de projet et collaborations]],'Def. Prix & Parcours'!$B$6:$E$28,IF($F12="G",2,IF($F12="T",3,IF($F12="N",4,0))),FALSE)*Table3[[#This Row],[Points Gestion de projet et collaborations]]),"") -> 0 | L12: =IF(Table3[[#This Row],[Parcours choisi]]<>"",(VLOOKUP(Table35[[#Headers],[Présentation Orale]],'Def. Prix & Parcours'!$B$6:$E$28,IF($F12="G",2,IF($F12="T",3,IF($F12="N",4,0))),FALSE)*Table3[[#This Row],[Points Présentation Orale]]),"") -> 0 | M12: =IF(Table3[[#This Row],[Parcours choisi]]<>"",(VLOOKUP(Table35[[#Headers],[Identité Equipe]],'Def. Prix & Parcours'!$B$6:$E$28,IF($F12="G",2,IF($F12="T",3,IF($F12="N",4,0))),FALSE)*Table3[[#This Row],[Points Identité Equipe]]),"") -> 0 | N12: =IF(Table3[[#This Row],[Parcours choisi]]<>"",(VLOOKUP(Table35[[#Headers],[Design du Stand]],'Def. Prix & Parcours'!$B$6:$E$28,IF($F12="G",2,IF($F12="T",3,IF($F12="N",4,0))),FALSE)*Table3[[#This Row],[Points Design du Stand]]),"") -> 0 | O12: =IF(Table3[[#This Row],[Parcours choisi]]<>"",(VLOOKUP(Table35[[#Headers],[Portfolio]],'Def. Prix & Parcours'!$B$6:$E$28,IF($F12="G",2,IF($F12="T",3,IF($F12="N",4,0))),FALSE)*Table3[[#This Row],[Points Portfolio]]),"") -> 0 | P12: =IF(Table3[[#This Row],[Parcours choisi]]<>"",(VLOOKUP(Table35[[#Headers],[Marketing et Sponsoring]],'Def. Prix & Parcours'!$B$6:$E$28,IF($F12="G",2,IF($F12="T",3,IF($F12="N",4,0))),FALSE)*Table3[[#This Row],[Points Marketing et Sponsoring]]),"") -> 0 | Q12: =IF(Table3[[#This Row],[Parcours choisi]]<>"",(VLOOKUP(Table35[[#Headers],[Budget]],'Def. Prix & Parcours'!$B$6:$E$28,IF($F12="G",2,IF($F12="T",3,IF($F12="N",4,0))),FALSE)*Table3[[#This Row],[Points Budget]]),"") -> 0 | R12: =IF(Table3[[#This Row],[Parcours choisi]]<>"",(VLOOKUP(Table35[[#Headers],[Design du Véhicule]],'Def. Prix & Parcours'!$B$6:$E$28,IF($F12="G",2,IF($F12="T",3,IF($F12="N",4,0))),FALSE)*Table3[[#This Row],[Points Design du Véhicule]]),"") -> 0 | S12: =IF(Table3[[#This Row],[Parcours choisi]]<>"",(VLOOKUP(Table35[[#Headers],[Innovation numérique]],'Def. Prix & Parcours'!$B$6:$E$28,IF($F12="G",2,IF($F12="T",3,IF($F12="N",4,0))),FALSE)*Table3[[#This Row],[Points Innovation numérique]]),"") -> 0 | T12: =IF(Table3[[#This Row],[Parcours choisi]]<>"",(VLOOKUP(Table35[[#Headers],[Programmation]],'Def. Prix & Parcours'!$B$6:$E$28,IF($F12="G",2,IF($F12="T",3,IF($F12="N",4,0))),FALSE)*Table3[[#This Row],[Points Programmation]]),"") -> 0 | U12: =IF(Table3[[#This Row],[Parcours choisi]]<>"",(VLOOKUP(Table35[[#Headers],[Respect du règlement]],'Def. Prix & Parcours'!$B$6:$E$28,IF($F12="G",2,IF($F12="T",3,IF($F12="N",4,0))),FALSE)*Table3[[#This Row],[Points Respect du règlement]]),"") -> 0 | V12: =IF(Table3[[#This Row],[Parcours choisi]]<>"",(VLOOKUP(Table35[[#Headers],[Communication : vidéo]],'Def. Prix & Parcours'!$B$6:$E$28,IF($F12="G",2,IF($F12="T",3,IF($F12="N",4,0))),FALSE)*Table3[[#This Row],[Points Communication : vidéo]]),"") -> 0 | W12: =IF(Table3[[#This Row],[Parcours choisi]]<>"",(VLOOKUP(Table35[[#Headers],[Epreuve CAO]],'Def. Prix & Parcours'!$B$6:$E$28,IF($F12="G",2,IF($F12="T",3,IF($F12="N",4,0))),FALSE)*Table3[[#This Row],[Points Epreuve CAO]]),"") -> 80 | X12: =IF(Table3[[#This Row],[Parcours choisi]]<>"",(VLOOKUP(Table35[[#Headers],[Temps Réaction]],'Def. Prix & Parcours'!$B$6:$E$28,IF($F12="G",2,IF($F12="T",3,IF($F12="N",4,0))),FALSE)*Table3[[#This Row],[Points Temps Réaction]]),"") -> 6 | Y12: =IF(Table3[[#This Row],[Parcours choisi]]<>"",(VLOOKUP(Table35[[#Headers],[Temps Course]],'Def. Prix & Parcours'!$B$6:$E$28,IF($F12="G",2,IF($F12="T",3,IF($F12="N",4,0))),FALSE)*Table3[[#This Row],[Points Temps Course]]),"") -> 80 | Z12: =IF(Table3[[#This Row],[Parcours choisi]]<>"",(VLOOKUP(Table35[[#Headers],[Epreuve arrêt au stand]],'Def. Prix & Parcours'!$B$6:$E$28,IF($F12="G",2,IF($F12="T",3,IF($F12="N",4,0))),FALSE)*Table3[[#This Row],[Points Epreuve arrêt au stand]]),"") -> 80 | AB12: =IF(Table3[[#This Row],[Parcours choisi]]<>"",SUM(Table35[[#This Row],[Ingénierie et conception]:[1]]),"") -> 246 | AC12: =IF(Table3[[#This Row],[Parcours choisi]]<>"",_xlfn.RANK.EQ(Table35[[#This Row],[Total Parcours]],Table35[Total Parcours],0),"") -> 26
A13: 7 | B13: =IF(Table3[[#This Row],[Nom équipe]]<>"",Table3[[#This Row],[Nom équipe]],"") -> Les Toucaninos | C13: =IF(Table3[[#This Row],[Etablissement]]<>"",Table3[[#This Row],[Etablissement]],"") -> Jean Lamour Nancy | D13: =IF(Table3[[#This Row],[Type établissement]]<>"",Table3[[#This Row],[Type établissement]],"") -> C | E13: =IF(Table3[[#This Row],[Académie]]<>"",Table3[[#This Row],[Académie]],"") -> Nancy-Metz | F13: =IF(Table3[[#This Row],[Parcours choisi]]<>"",Table3[[#This Row],[Parcours choisi]],"") -> G | G13: =IF(Table3[[#This Row],[Parcours choisi]]<>"",(VLOOKUP(Table35[[#Headers],[Ingénierie et conception]],'Def. Prix & Parcours'!$B$6:$E$28,IF($F13="G",2,IF($F13="T",3,IF($F13="N",4,0))),FALSE)*Table3[[#This Row],[Points Ingénierie et conception]]),"") -> 108 | H13: =IF(Table3[[#This Row],[Parcours choisi]]<>"",(VLOOKUP(Table35[[#Headers],[Innovation mécanique]],'Def. Prix & Parcours'!$B$6:$E$28,IF($F13="G",2,IF($F13="T",3,IF($F13="N",4,0))),FALSE)*Table3[[#This Row],[Points Innovation mécanique]]),"") -> 102 | I13: =IF(Table3[[#This Row],[Parcours choisi]]<>"",(VLOOKUP(Table35[[#Headers],[Développement Durable]],'Def. Prix & Parcours'!$B$6:$E$28,IF($F13="G",2,IF($F13="T",3,IF($F13="N",4,0))),FALSE)*Table3[[#This Row],[Points Développement Durable]]),"") -> 76 | J13: =IF(Table3[[#This Row],[Parcours choisi]]<>"",(VLOOKUP(Table35[[#Headers],[Ingénierie de fabrication]],'Def. Prix & Parcours'!$B$6:$E$28,IF($F13="G",2,IF($F13="T",3,IF($F13="N",4,0))),FALSE)*Table3[[#This Row],[Points Ingénierie de fabrication]]),"") -> 54 | K13: =IF(Table3[[#This Row],[Parcours choisi]]<>"",(VLOOKUP(Table35[[#Headers],[Gestion de projet et collaborations]],'Def. Prix & Parcours'!$B$6:$E$28,IF($F13="G",2,IF($F13="T",3,IF($F13="N",4,0))),FALSE)*Table3[[#This Row],[Points Gestion de projet et collaborations]]),"") -> 95 | L13: =IF(Table3[[#This Row],[Parcours choisi]]<>"",(VLOOKUP(Table35[[#Headers],[Présentation Orale]],'Def. Prix & Parcours'!$B$6:$E$28,IF($F13="G",2,IF($F13="T",3,IF($F13="N",4,0))),FALSE)*Table3[[#This Row],[Points Présentation Orale]]),"") -> 95 | M13: =IF(Table3[[#This Row],[Parcours choisi]]<>"",(VLOOKUP(Table35[[#Headers],[Identité Equipe]],'Def. Prix & Parcours'!$B$6:$E$28,IF($F13="G",2,IF($F13="T",3,IF($F13="N",4,0))),FALSE)*Table3[[#This Row],[Points Identité Equipe]]),"") -> 75 | N13: =IF(Table3[[#This Row],[Parcours choisi]]<>"",(VLOOKUP(Table35[[#Headers],[Design du Stand]],'Def. Prix & Parcours'!$B$6:$E$28,IF($F13="G",2,IF($F13="T",3,IF($F13="N",4,0))),FALSE)*Table3[[#This Row],[Points Design du Stand]]),"") -> 120 | O13: =IF(Table3[[#This Row],[Parcours choisi]]<>"",(VLOOKUP(Table35[[#Headers],[Portfolio]],'Def. Prix & Parcours'!$B$6:$E$28,IF($F13="G",2,IF($F13="T",3,IF($F13="N",4,0))),FALSE)*Table3[[#This Row],[Points Portfolio]]),"") -> 64 | P13: =IF(Table3[[#This Row],[Parcours choisi]]<>"",(VLOOKUP(Table35[[#Headers],[Marketing et Sponsoring]],'Def. Prix & Parcours'!$B$6:$E$28,IF($F13="G",2,IF($F13="T",3,IF($F13="N",4,0))),FALSE)*Table3[[#This Row],[Points Marketing et Sponsoring]]),"") -> 104 | Q13: =IF(Table3[[#This Row],[Parcours choisi]]<>"",(VLOOKUP(Table35[[#Headers],[Budget]],'Def. Prix & Parcours'!$B$6:$E$28,IF($F13="G",2,IF($F13="T",3,IF($F13="N",4,0))),FALSE)*Table3[[#This Row],[Points Budget]]),"") -> 32 | R13: =IF(Table3[[#This Row],[Parcours choisi]]<>"",(VLOOKUP(Table35[[#Headers],[Design du Véhicule]],'Def. Prix & Parcours'!$B$6:$E$28,IF($F13="G",2,IF($F13="T",3,IF($F13="N",4,0))),FALSE)*Table3[[#This Row],[Points Design du Véhicule]]),"") -> 48 | S13: =IF(Table3[[#This Row],[Parcours choisi]]<>"",(VLOOKUP(Table35[[#Headers],[Innovation numérique]],'Def. Prix & Parcours'!$B$6:$E$28,IF($F13="G",2,IF($F13="T",3,IF($F13="N",4,0))),FALSE)*Table3[[#This Row],[Points Innovation numérique]]),"") -> 28 | T13: =IF(Table3[[#This Row],[Parcours choisi]]<>"",(VLOOKUP(Table35[[#Headers],[Programmation]],'Def. Prix & Parcours'!$B$6:$E$28,IF($F13="G",2,IF($F13="T",3,IF($F13="N",4,0))),FALSE)*Table3[[#This Row],[Points Programmation]]),"") -> 32 | U13: =IF(Table3[[#This Row],[Parcours choisi]]<>"",(VLOOKUP(Table35[[#Headers],[Respect du règlement]],'Def. Prix & Parcours'!$B$6:$E$28,IF($F13="G",2,IF($F13="T",3,IF($F13="N",4,0))),FALSE)*Table3[[#This Row],[Points Respect du règlement]]),"") -> 70 | V13: =IF(Table3[[#This Row],[Parcours choisi]]<>"",(VLOOKUP(Table35[[#Headers],[Communication : vidéo]],'Def. Prix & Parcours'!$B$6:$E$28,IF($F13="G",2,IF($F13="T",3,IF($F13="N",4,0))),FALSE)*Table3[[#This Row],[Points Communication : vidéo]]),"") -> 42 | W13: =IF(Table3[[#This Row],[Parcours choisi]]<>"",(VLOOKUP(Table35[[#Headers],[Epreuve CAO]],'Def. Prix & Parcours'!$B$6:$E$28,IF($F13="G",2,IF($F13="T",3,IF($F13="N",4,0))),FALSE)*Table3[[#This Row],[Points Epreuve CAO]]),"") -> 80 | X13: =IF(Table3[[#This Row],[Parcours choisi]]<>"",(VLOOKUP(Table35[[#Headers],[Temps Réaction]],'Def. Prix & Parcours'!$B$6:$E$28,IF($F13="G",2,IF($F13="T",3,IF($F13="N",4,0))),FALSE)*Table3[[#This Row],[Points Temps Réaction]]),"") -> 6 | Y13: =IF(Table3[[#This Row],[Parcours choisi]]<>"",(VLOOKUP(Table35[[#Headers],[Temps Course]],'Def. Prix & Parcours'!$B$6:$E$28,IF($F13="G",2,IF($F13="T",3,IF($F13="N",4,0))),FALSE)*Table3[[#This Row],[Points Temps Course]]),"") -> 100 | Z13: =IF(Table3[[#This Row],[Parcours choisi]]<>"",(VLOOKUP(Table35[[#Headers],[Epreuve arrêt au stand]],'Def. Prix & Parcours'!$B$6:$E$28,IF($F13="G",2,IF($F13="T",3,IF($F13="N",4,0))),FALSE)*Table3[[#This Row],[Points Epreuve arrêt au stand]]),"") -> 80 | AB13: =IF(Table3[[#This Row],[Parcours choisi]]<>"",SUM(Table35[[#This Row],[Ingénierie et conception]:[1]]),"") -> 1411 | AC13: =IF(Table3[[#This Row],[Parcours choisi]]<>"",_xlfn.RANK.EQ(Table35[[#This Row],[Total Parcours]],Table35[Total Parcours],0),"") -> 11
A14: 8 | B14: =IF(Table3[[#This Row],[Nom équipe]]<>"",Table3[[#This Row],[Nom équipe]],"") -> Les Daltram | C14: =IF(Table3[[#This Row],[Etablissement]]<>"",Table3[[#This Row],[Etablissement]],"") -> Jean Lamour Nancy | D14: =IF(Table3[[#This Row],[Type établissement]]<>"",Table3[[#This Row],[Type établissement]],"") -> C | E14: =IF(Table3[[#This Row],[Académie]]<>"",Table3[[#This Row],[Académie]],"") -> Nancy-Metz | F14: =IF(Table3[[#This Row],[Parcours choisi]]<>"",Table3[[#This Row],[Parcours choisi]],"") -> G | G14: =IF(Table3[[#This Row],[Parcours choisi]]<>"",(VLOOKUP(Table35[[#Headers],[Ingénierie et conception]],'Def. Prix & Parcours'!$B$6:$E$28,IF($F14="G",2,IF($F14="T",3,IF($F14="N",4,0))),FALSE)*Table3[[#This Row],[Points Ingénierie et conception]]),"") -> 90 | H14: =IF(Table3[[#This Row],[Parcours choisi]]<>"",(VLOOKUP(Table35[[#Headers],[Innovation mécanique]],'Def. Prix & Parcours'!$B$6:$E$28,IF($F14="G",2,IF($F14="T",3,IF($F14="N",4,0))),FALSE)*Table3[[#This Row],[Points Innovation mécanique]]),"") -> 78 | I14: =IF(Table3[[#This Row],[Parcours choisi]]<>"",(VLOOKUP(Table35[[#Headers],[Développement Durable]],'Def. Prix & Parcours'!$B$6:$E$28,IF($F14="G",2,IF($F14="T",3,IF($F14="N",4,0))),FALSE)*Table3[[#This Row],[Points Développement Durable]]),"") -> 48 | J14: =IF(Table3[[#This Row],[Parcours choisi]]<>"",(VLOOKUP(Table35[[#Headers],[Ingénierie de fabrication]],'Def. Prix & Parcours'!$B$6:$E$28,IF($F14="G",2,IF($F14="T",3,IF($F14="N",4,0))),FALSE)*Table3[[#This Row],[Points Ingénierie de fabrication]]),"") -> 42 | K14: =IF(Table3[[#This Row],[Parcours choisi]]<>"",(VLOOKUP(Table35[[#Headers],[Gestion de projet et collaborations]],'Def. Prix & Parcours'!$B$6:$E$28,IF($F14="G",2,IF($F14="T",3,IF($F14="N",4,0))),FALSE)*Table3[[#This Row],[Points Gestion de projet et collaborations]]),"") -> 70 | L14: =IF(Table3[[#This Row],[Parcours choisi]]<>"",(VLOOKUP(Table35[[#Headers],[Présentation Orale]],'Def. Prix & Parcours'!$B$6:$E$28,IF($F14="G",2,IF($F14="T",3,IF($F14="N",4,0))),FALSE)*Table3[[#This Row],[Points Présentation Orale]]),"") -> 85 | M14: =IF(Table3[[#This Row],[Parcours choisi]]<>"",(VLOOKUP(Table35[[#Headers],[Identité Equipe]],'Def. Prix & Parcours'!$B$6:$E$28,IF($F14="G",2,IF($F14="T",3,IF($F14="N",4,0))),FALSE)*Table3[[#This Row],[Points Identité Equipe]]),"") -> 90 | N14: =IF(Table3[[#This Row],[Parcours choisi]]<>"",(VLOOKUP(Table35[[#Headers],[Design du Stand]],'Def. Prix & Parcours'!$B$6:$E$28,IF($F14="G",2,IF($F14="T",3,IF($F14="N",4,0))),FALSE)*Table3[[#This Row],[Points Design du Stand]]),"") -> 120 | O14: =IF(Table3[[#This Row],[Parcours choisi]]<>"",(VLOOKUP(Table35[[#Headers],[Portfolio]],'Def. Prix & Parcours'!$B$6:$E$28,IF($F14="G",2,IF($F14="T",3,IF($F14="N",4,0))),FALSE)*Table3[[#This Row],[Points Portfolio]]),"") -> 112 | P14: =IF(Table3[[#This Row],[Parcours choisi]]<>"",(VLOOKUP(Table35[[#Headers],[Marketing et Sponsoring]],'Def. Prix & Parcours'!$B$6:$E$28,IF($F14="G",2,IF($F14="T",3,IF($F14="N",4,0))),FALSE)*Table3[[#This Row],[Points Marketing et Sponsoring]]),"") -> 104 | Q14: =IF(Table3[[#This Row],[Parcours choisi]]<>"",(VLOOKUP(Table35[[#Headers],[Budget]],'Def. Prix & Parcours'!$B$6:$E$28,IF($F14="G",2,IF($F14="T",3,IF($F14="N",4,0))),FALSE)*Table3[[#This Row],[Points Budget]]),"") -> 32 | R14: =IF(Table3[[#This Row],[Parcours choisi]]<>"",(VLOOKUP(Table35[[#Headers],[Design du Véhicule]],'Def. Prix & Parcours'!$B$6:$E$28,IF($F14="G",2,IF($F14="T",3,IF($F14="N",4,0))),FALSE)*Table3[[#This Row],[Points Design du Véhicule]]),"") -> 51 | S14: =IF(Table3[[#This Row],[Parcours choisi]]<>"",(VLOOKUP(Table35[[#Headers],[Innovation numérique]],'Def. Prix & Parcours'!$B$6:$E$28,IF($F14="G",2,IF($F14="T",3,IF($F14="N",4,0))),FALSE)*Table3[[#This Row],[Points Innovation numérique]]),"") -> 60 | T14: =IF(Table3[[#This Row],[Parcours choisi]]<>"",(VLOOKUP(Table35[[#Headers],[Programmation]],'Def. Prix & Parcours'!$B$6:$E$28,IF($F14="G",2,IF($F14="T",3,IF($F14="N",4,0))),FALSE)*Table3[[#This Row],[Points Programmation]]),"") -> 68 | U14: =IF(Table3[[#This Row],[Parcours choisi]]<>"",(VLOOKUP(Table35[[#Headers],[Respect du règlement]],'Def. Prix & Parcours'!$B$6:$E$28,IF($F14="G",2,IF($F14="T",3,IF($F14="N",4,0))),FALSE)*Table3[[#This Row],[Points Respect du règlement]]),"") -> 100 | V14: =IF(Table3[[#This Row],[Parcours choisi]]<>"",(VLOOKUP(Table35[[#Headers],[Communication : vidéo]],'Def. Prix & Parcours'!$B$6:$E$28,IF($F14="G",2,IF($F14="T",3,IF($F14="N",4,0))),FALSE)*Table3[[#This Row],[Points Communication : vidéo]]),"") -> 51 | W14: =IF(Table3[[#This Row],[Parcours choisi]]<>"",(VLOOKUP(Table35[[#Headers],[Epreuve CAO]],'Def. Prix & Parcours'!$B$6:$E$28,IF($F14="G",2,IF($F14="T",3,IF($F14="N",4,0))),FALSE)*Table3[[#This Row],[Points Epreuve CAO]]),"") -> 80 | X14: =IF(Table3[[#This Row],[Parcours choisi]]<>"",(VLOOKUP(Table35[[#Headers],[Temps Réaction]],'Def. Prix & Parcours'!$B$6:$E$28,IF($F14="G",2,IF($F14="T",3,IF($F14="N",4,0))),FALSE)*Table3[[#This Row],[Points Temps Réaction]]),"") -> 18 | Y14: =IF(Table3[[#This Row],[Parcours choisi]]<>"",(VLOOKUP(Table35[[#Headers],[Temps Course]],'Def. Prix & Parcours'!$B$6:$E$28,IF($F14="G",2,IF($F14="T",3,IF($F14="N",4,0))),FALSE)*Table3[[#This Row],[Points Temps Course]]),"") -> 200 | Z14: =IF(Table3[[#This Row],[Parcours choisi]]<>"",(VLOOKUP(Table35[[#Headers],[Epreuve arrêt au stand]],'Def. Prix & Parcours'!$B$6:$E$28,IF($F14="G",2,IF($F14="T",3,IF($F14="N",4,0))),FALSE)*Table3[[#This Row],[Points Epreuve arrêt au stand]]),"") -> 80 | AB14: =IF(Table3[[#This Row],[Parcours choisi]]<>"",SUM(Table35[[#This Row],[Ingénierie et conception]:[1]]),"") -> 1579 | AC14: =IF(Table3[[#This Row],[Parcours choisi]]<>"",_xlfn.RANK.EQ(Table35[[#This Row],[Total Parcours]],Table35[Total Parcours],0),"") -> 4
A15: 9 | B15: =IF(Table3[[#This Row],[Nom équipe]]<>"",Table3[[#This Row],[Nom équipe]],"") -> Droit devant | C15: =IF(Table3[[#This Row],[Etablissement]]<>"",Table3[[#This Row],[Etablissement]],"") -> Boutet Lunéville | D15: =IF(Table3[[#This Row],[Type établissement]]<>"",Table3[[#This Row],[Type établissement]],"") -> L | E15: =IF(Table3[[#This Row],[Académie]]<>"",Table3[[#This Row],[Académie]],"") -> Nancy-Metz | F15: =IF(Table3[[#This Row],[Parcours choisi]]<>"",Table3[[#This Row],[Parcours choisi]],"") -> T | G15: =IF(Table3[[#This Row],[Parcours choisi]]<>"",(VLOOKUP(Table35[[#Headers],[Ingénierie et conception]],'Def. Prix & Parcours'!$B$6:$E$28,IF($F15="G",2,IF($F15="T",3,IF($F15="N",4,0))),FALSE)*Table3[[#This Row],[Points Ingénierie et conception]]),"") -> 0 | H15: =IF(Table3[[#This Row],[Parcours choisi]]<>"",(VLOOKUP(Table35[[#Headers],[Innovation mécanique]],'Def. Prix & Parcours'!$B$6:$E$28,IF($F15="G",2,IF($F15="T",3,IF($F15="N",4,0))),FALSE)*Table3[[#This Row],[Points Innovation mécanique]]),"") -> 0 | I15: =IF(Table3[[#This Row],[Parcours choisi]]<>"",(VLOOKUP(Table35[[#Headers],[Développement Durable]],'Def. Prix & Parcours'!$B$6:$E$28,IF($F15="G",2,IF($F15="T",3,IF($F15="N",4,0))),FALSE)*Table3[[#This Row],[Points Développement Durable]]),"") -> 0 | J15: =IF(Table3[[#This Row],[Parcours choisi]]<>"",(VLOOKUP(Table35[[#Headers],[Ingénierie de fabrication]],'Def. Prix & Parcours'!$B$6:$E$28,IF($F15="G",2,IF($F15="T",3,IF($F15="N",4,0))),FALSE)*Table3[[#This Row],[Points Ingénierie de fabrication]]),"") -> 0 | K15: =IF(Table3[[#This Row],[Parcours choisi]]<>"",(VLOOKUP(Table35[[#Headers],[Gestion de projet et collaborations]],'Def. Prix & Parcours'!$B$6:$E$28,IF($F15="G",2,IF($F15="T",3,IF($F15="N",4,0))),FALSE)*Table3[[#This Row],[Points Gestion de projet et collaborations]]),"") -> 0 | L15: =IF(Table3[[#This Row],[Parcours choisi]]<>"",(VLOOKUP(Table35[[#Headers],[Présentation Orale]],'Def. Prix & Parcours'!$B$6:$E$28,IF($F15="G",2,IF($F15="T",3,IF($F15="N",4,0))),FALSE)*Table3[[#This Row],[Points Présentation Orale]]),"") -> 0 | M15: =IF(Table3[[#This Row],[Parcours choisi]]<>"",(VLOOKUP(Table35[[#Headers],[Identité Equipe]],'Def. Prix & Parcours'!$B$6:$E$28,IF($F15="G",2,IF($F15="T",3,IF($F15="N",4,0))),FALSE)*Table3[[#This Row],[Points Identité Equipe]]),"") -> 0 | N15: =IF(Table3[[#This Row],[Parcours choisi]]<>"",(VLOOKUP(Table35[[#Headers],[Design du Stand]],'Def. Prix & Parcours'!$B$6:$E$28,IF($F15="G",2,IF($F15="T",3,IF($F15="N",4,0))),FALSE)*Table3[[#This Row],[Points Design du Stand]]),"") -> 0 | O15: =IF(Table3[[#This Row],[Parcours choisi]]<>"",(VLOOKUP(Table35[[#Headers],[Portfolio]],'Def. Prix & Parcours'!$B$6:$E$28,IF($F15="G",2,IF($F15="T",3,IF($F15="N",4,0))),FALSE)*Table3[[#This Row],[Points Portfolio]]),"") -> 0 | P15: =IF(Table3[[#This Row],[Parcours choisi]]<>"",(VLOOKUP(Table35[[#Headers],[Marketing et Sponsoring]],'Def. Prix & Parcours'!$B$6:$E$28,IF($F15="G",2,IF($F15="T",3,IF($F15="N",4,0))),FALSE)*Table3[[#This Row],[Points Marketing et Sponsoring]]),"") -> 0 | Q15: =IF(Table3[[#This Row],[Parcours choisi]]<>"",(VLOOKUP(Table35[[#Headers],[Budget]],'Def. Prix & Parcours'!$B$6:$E$28,IF($F15="G",2,IF($F15="T",3,IF($F15="N",4,0))),FALSE)*Table3[[#This Row],[Points Budget]]),"") -> 0 | R15: =IF(Table3[[#This Row],[Parcours choisi]]<>"",(VLOOKUP(Table35[[#Headers],[Design du Véhicule]],'Def. Prix & Parcours'!$B$6:$E$28,IF($F15="G",2,IF($F15="T",3,IF($F15="N",4,0))),FALSE)*Table3[[#This Row],[Points Design du Véhicule]]),"") -> 0 | S15: =IF(Table3[[#This Row],[Parcours choisi]]<>"",(VLOOKUP(Table35[[#Headers],[Innovation numérique]],'Def. Prix & Parcours'!$B$6:$E$28,IF($F15="G",2,IF($F15="T",3,IF($F15="N",4,0))),FALSE)*Table3[[#This Row],[Points Innovation numérique]]),"") -> 0 | T15: =IF(Table3[[#This Row],[Parcours choisi]]<>"",(VLOOKUP(Table35[[#Headers],[Programmation]],'Def. Prix & Parcours'!$B$6:$E$28,IF($F15="G",2,IF($F15="T",3,IF($F15="N",4,0))),FALSE)*Table3[[#This Row],[Points Programmation]]),"") -> 0 | U15: =IF(Table3[[#This Row],[Parcours choisi]]<>"",(VLOOKUP(Table35[[#Headers],[Respect du règlement]],'Def. Prix & Parcours'!$B$6:$E$28,IF($F15="G",2,IF($F15="T",3,IF($F15="N",4,0))),FALSE)*Table3[[#This Row],[Points Respect du règlement]]),"") -> 0 | V15: =IF(Table3[[#This Row],[Parcours choisi]]<>"",(VLOOKUP(Table35[[#Headers],[Communication : vidéo]],'Def. Prix & Parcours'!$B$6:$E$28,IF($F15="G",2,IF($F15="T",3,IF($F15="N",4,0))),FALSE)*Table3[[#This Row],[Points Communication : vidéo]]),"") -> 0 | W15: =IF(Table3[[#This Row],[Parcours choisi]]<>"",(VLOOKUP(Table35[[#Headers],[Epreuve CAO]],'Def. Prix & Parcours'!$B$6:$E$28,IF($F15="G",2,IF($F15="T",3,IF($F15="N",4,0))),FALSE)*Table3[[#This Row],[Points Epreuve CAO]]),"") -> 80 | X15: =IF(Table3[[#This Row],[Parcours choisi]]<>"",(VLOOKUP(Table35[[#Headers],[Temps Réaction]],'Def. Prix & Parcours'!$B$6:$E$28,IF($F15="G",2,IF($F15="T",3,IF($F15="N",4,0))),FALSE)*Table3[[#This Row],[Points Temps Réaction]]),"") -> 6 | Y15: =IF(Table3[[#This Row],[Parcours choisi]]<>"",(VLOOKUP(Table35[[#Headers],[Temps Course]],'Def. Prix & Parcours'!$B$6:$E$28,IF($F15="G",2,IF($F15="T",3,IF($F15="N",4,0))),FALSE)*Table3[[#This Row],[Points Temps Course]]),"") -> 80 | Z15: =IF(Table3[[#This Row],[Parcours choisi]]<>"",(VLOOKUP(Table35[[#Headers],[Epreuve arrêt au stand]],'Def. Prix & Parcours'!$B$6:$E$28,IF($F15="G",2,IF($F15="T",3,IF($F15="N",4,0))),FALSE)*Table3[[#This Row],[Points Epreuve arrêt au stand]]),"") -> 80 | AB15: =IF(Table3[[#This Row],[Parcours choisi]]<>"",SUM(Table35[[#This Row],[Ingénierie et conception]:[1]]),"") -> 246 | AC15: =IF(Table3[[#This Row],[Parcours choisi]]<>"",_xlfn.RANK.EQ(Table35[[#This Row],[Total Parcours]],Table35[Total Parcours],0),"") -> 26
A16: 10 | B16: =IF(Table3[[#This Row],[Nom équipe]]<>"",Table3[[#This Row],[Nom équipe]],"") -> Space-hat | C16: =IF(Table3[[#This Row],[Etablissement]]<>"",Table3[[#This Row],[Etablissement]],"") -> Boutet Lunéville | D16: =IF(Table3[[#This Row],[Type établissement]]<>"",Table3[[#This Row],[Type établissement]],"") -> L | E16: =IF(Table3[[#This Row],[Académie]]<>"",Table3[[#This Row],[Académie]],"") -> Nancy-Metz | F16: =IF(Table3[[#This Row],[Parcours choisi]]<>"",Table3[[#This Row],[Parcours choisi]],"") -> T | G16: =IF(Table3[[#This Row],[Parcours choisi]]<>"",(VLOOKUP(Table35[[#Headers],[Ingénierie et conception]],'Def. Prix & Parcours'!$B$6:$E$28,IF($F16="G",2,IF($F16="T",3,IF($F16="N",4,0))),FALSE)*Table3[[#This Row],[Points Ingénierie et conception]]),"") -> 78 | H16: =IF(Table3[[#This Row],[Parcours choisi]]<>"",(VLOOKUP(Table35[[#Headers],[Innovation mécanique]],'Def. Prix & Parcours'!$B$6:$E$28,IF($F16="G",2,IF($F16="T",3,IF($F16="N",4,0))),FALSE)*Table3[[#This Row],[Points Innovation mécanique]]),"") -> 168 | I16: =IF(Table3[[#This Row],[Parcours choisi]]<>"",(VLOOKUP(Table35[[#Headers],[Développement Durable]],'Def. Prix & Parcours'!$B$6:$E$28,IF($F16="G",2,IF($F16="T",3,IF($F16="N",4,0))),FALSE)*Table3[[#This Row],[Points Développement Durable]]),"") -> 96 | J16: =IF(Table3[[#This Row],[Parcours choisi]]<>"",(VLOOKUP(Table35[[#Headers],[Ingénierie de fabrication]],'Def. Prix & Parcours'!$B$6:$E$28,IF($F16="G",2,IF($F16="T",3,IF($F16="N",4,0))),FALSE)*Table3[[#This Row],[Points Ingénierie de fabrication]]),"") -> 128 | K16: =IF(Table3[[#This Row],[Parcours choisi]]<>"",(VLOOKUP(Table35[[#Headers],[Gestion de projet et collaborations]],'Def. Prix & Parcours'!$B$6:$E$28,IF($F16="G",2,IF($F16="T",3,IF($F16="N",4,0))),FALSE)*Table3[[#This Row],[Points Gestion de projet et collaborations]]),"") -> 60 | L16: =IF(Table3[[#This Row],[Parcours choisi]]<>"",(VLOOKUP(Table35[[#Headers],[Présentation Orale]],'Def. Prix & Parcours'!$B$6:$E$28,IF($F16="G",2,IF($F16="T",3,IF($F16="N",4,0))),FALSE)*Table3[[#This Row],[Points Présentation Orale]]),"") -> 60 | M16: =IF(Table3[[#This Row],[Parcours choisi]]<>"",(VLOOKUP(Table35[[#Headers],[Identité Equipe]],'Def. Prix & Parcours'!$B$6:$E$28,IF($F16="G",2,IF($F16="T",3,IF($F16="N",4,0))),FALSE)*Table3[[#This Row],[Points Identité Equipe]]),"") -> 85 | N16: =IF(Table3[[#This Row],[Parcours choisi]]<>"",(VLOOKUP(Table35[[#Headers],[Design du Stand]],'Def. Prix & Parcours'!$B$6:$E$28,IF($F16="G",2,IF($F16="T",3,IF($F16="N",4,0))),FALSE)*Table3[[#This Row],[Points Design du Stand]]),"") -> 32 | O16: =IF(Table3[[#This Row],[Parcours choisi]]<>"",(VLOOKUP(Table35[[#Headers],[Portfolio]],'Def. Prix & Parcours'!$B$6:$E$28,IF($F16="G",2,IF($F16="T",3,IF($F16="N",4,0))),FALSE)*Table3[[#This Row],[Points Portfolio]]),"") -> 52 | P16: =IF(Table3[[#This Row],[Parcours choisi]]<>"",(VLOOKUP(Table35[[#Headers],[Marketing et Sponsoring]],'Def. Prix & Parcours'!$B$6:$E$28,IF($F16="G",2,IF($F16="T",3,IF($F16="N",4,0))),FALSE)*Table3[[#This Row],[Points Marketing et Sponsoring]]),"") -> 24 | Q16: =IF(Table3[[#This Row],[Parcours choisi]]<>"",(VLOOKUP(Table35[[#Headers],[Budget]],'Def. Prix & Parcours'!$B$6:$E$28,IF($F16="G",2,IF($F16="T",3,IF($F16="N",4,0))),FALSE)*Table3[[#This Row],[Points Budget]]),"") -> 24 | R16: =IF(Table3[[#This Row],[Parcours choisi]]<>"",(VLOOKUP(Table35[[#Headers],[Design du Véhicule]],'Def. Prix & Parcours'!$B$6:$E$28,IF($F16="G",2,IF($F16="T",3,IF($F16="N",4,0))),FALSE)*Table3[[#This Row],[Points Design du Véhicule]]),"") -> 90 | S16: =IF(Table3[[#This Row],[Parcours choisi]]<>"",(VLOOKUP(Table35[[#Headers],[Innovation numérique]],'Def. Prix & Parcours'!$B$6:$E$28,IF($F16="G",2,IF($F16="T",3,IF($F16="N",4,0))),FALSE)*Table3[[#This Row],[Points Innovation numérique]]),"") -> 0 | T16: =IF(Table3[[#This Row],[Parcours choisi]]<>"",(VLOOKUP(Table35[[#Headers],[Programmation]],'Def. Prix & Parcours'!$B$6:$E$28,IF($F16="G",2,IF($F16="T",3,IF($F16="N",4,0))),FALSE)*Table3[[#This Row],[Points Programmation]]),"") -> 0 | U16: =IF(Table3[[#This Row],[Parcours choisi]]<>"",(VLOOKUP(Table35[[#Headers],[Respect du règlement]],'Def. Prix & Parcours'!$B$6:$E$28,IF($F16="G",2,IF($F16="T",3,IF($F16="N",4,0))),FALSE)*Table3[[#This Row],[Points Respect du règlement]]),"") -> 95 | V16: =IF(Table3[[#This Row],[Parcours choisi]]<>"",(VLOOKUP(Table35[[#Headers],[Communication : vidéo]],'Def. Prix & Parcours'!$B$6:$E$28,IF($F16="G",2,IF($F16="T",3,IF($F16="N",4,0))),FALSE)*Table3[[#This Row],[Points Communication : vidéo]]),"") -> 45 | W16: =IF(Table3[[#This Row],[Parcours choisi]]<>"",(VLOOKUP(Table35[[#Headers],[Epreuve CAO]],'Def. Prix & Parcours'!$B$6:$E$28,IF($F16="G",2,IF($F16="T",3,IF($F16="N",4,0))),FALSE)*Table3[[#This Row],[Points Epreuve CAO]]),"") -> 80 | X16: =IF(Table3[[#This Row],[Parcours choisi]]<>"",(VLOOKUP(Table35[[#Headers],[Temps Réaction]],'Def. Prix & Parcours'!$B$6:$E$28,IF($F16="G",2,IF($F16="T",3,IF($F16="N",4,0))),FALSE)*Table3[[#This Row],[Points Temps Réaction]]),"") -> 24 | Y16: =IF(Table3[[#This Row],[Parcours choisi]]<>"",(VLOOKUP(Table35[[#Headers],[Temps Course]],'Def. Prix & Parcours'!$B$6:$E$28,IF($F16="G",2,IF($F16="T",3,IF($F16="N",4,0))),FALSE)*Table3[[#This Row],[Points Temps Course]]),"") -> 180 | Z16: =IF(Table3[[#This Row],[Parcours choisi]]<>"",(VLOOKUP(Table35[[#Headers],[Epreuve arrêt au stand]],'Def. Prix & Parcours'!$B$6:$E$28,IF($F16="G",2,IF($F16="T",3,IF($F16="N",4,0))),FALSE)*Table3[[#This Row],[Points Epreuve arrêt au stand]]),"") -> 80 | AB16: =IF(Table3[[#This Row],[Parcours choisi]]<>"",SUM(Table35[[#This Row],[Ingénierie et conception]:[1]]),"") -> 1401 | AC16: =IF(Table3[[#This Row],[Parcours choisi]]<>"",_xlfn.RANK.EQ(Table35[[#This Row],[Total Parcours]],Table35[Total Parcours],0),"") -> 12
A17: 11 | B17: =IF(Table3[[#This Row],[Nom équipe]]<>"",Table3[[#This Row],[Nom équipe]],"") -> Molécuisto | C17: =IF(Table3[[#This Row],[Etablissement]]<>"",Table3[[#This Row],[Etablissement]],"") -> Bichat Lunéville | D17: =IF(Table3[[#This Row],[Type établissement]]<>"",Table3[[#This Row],[Type établissement]],"") -> C | E17: =IF(Table3[[#This Row],[Académie]]<>"",Table3[[#This Row],[Académie]],"") -> Nancy-Metz | F17: =IF(Table3[[#This Row],[Parcours choisi]]<>"",Table3[[#This Row],[Parcours choisi]],"") -> G | G17: =IF(Table3[[#This Row],[Parcours choisi]]<>"",(VLOOKUP(Table35[[#Headers],[Ingénierie et conception]],'Def. Prix & Parcours'!$B$6:$E$28,IF($F17="G",2,IF($F17="T",3,IF($F17="N",4,0))),FALSE)*Table3[[#This Row],[Points Ingénierie et conception]]),"") -> 78 | H17: =IF(Table3[[#This Row],[Parcours choisi]]<>"",(VLOOKUP(Table35[[#Headers],[Innovation mécanique]],'Def. Prix & Parcours'!$B$6:$E$28,IF($F17="G",2,IF($F17="T",3,IF($F17="N",4,0))),FALSE)*Table3[[#This Row],[Points Innovation mécanique]]),"") -> 84 | I17: =IF(Table3[[#This Row],[Parcours choisi]]<>"",(VLOOKUP(Table35[[#Headers],[Développement Durable]],'Def. Prix & Parcours'!$B$6:$E$28,IF($F17="G",2,IF($F17="T",3,IF($F17="N",4,0))),FALSE)*Table3[[#This Row],[Points Développement Durable]]),"") -> 44 | J17: =IF(Table3[[#This Row],[Parcours choisi]]<>"",(VLOOKUP(Table35[[#Headers],[Ingénierie de fabrication]],'Def. Prix & Parcours'!$B$6:$E$28,IF($F17="G",2,IF($F17="T",3,IF($F17="N",4,0))),FALSE)*Table3[[#This Row],[Points Ingénierie de fabrication]]),"") -> 45 | K17: =IF(Table3[[#This Row],[Parcours choisi]]<>"",(VLOOKUP(Table35[[#Headers],[Gestion de projet et collaborations]],'Def. Prix & Parcours'!$B$6:$E$28,IF($F17="G",2,IF($F17="T",3,IF($F17="N",4,0))),FALSE)*Table3[[#This Row],[Points Gestion de projet et collaborations]]),"") -> 65 | L17: =IF(Table3[[#This Row],[Parcours choisi]]<>"",(VLOOKUP(Table35[[#Headers],[Présentation Orale]],'Def. Prix & Parcours'!$B$6:$E$28,IF($F17="G",2,IF($F17="T",3,IF($F17="N",4,0))),FALSE)*Table3[[#This Row],[Points Présentation Orale]]),"") -> 65 | M17: =IF(Table3[[#This Row],[Parcours choisi]]<>"",(VLOOKUP(Table35[[#Headers],[Identité Equipe]],'Def. Prix & Parcours'!$B$6:$E$28,IF($F17="G",2,IF($F17="T",3,IF($F17="N",4,0))),FALSE)*Table3[[#This Row],[Points Identité Equipe]]),"") -> 80 | N17: =IF(Table3[[#This Row],[Parcours choisi]]<>"",(VLOOKUP(Table35[[#Headers],[Design du Stand]],'Def. Prix & Parcours'!$B$6:$E$28,IF($F17="G",2,IF($F17="T",3,IF($F17="N",4,0))),FALSE)*Table3[[#This Row],[Points Design du Stand]]),"") -> 136 | O17: =IF(Table3[[#This Row],[Parcours choisi]]<>"",(VLOOKUP(Table35[[#Headers],[Portfolio]],'Def. Prix & Parcours'!$B$6:$E$28,IF($F17="G",2,IF($F17="T",3,IF($F17="N",4,0))),FALSE)*Table3[[#This Row],[Points Portfolio]]),"") -> 80 | P17: =IF(Table3[[#This Row],[Parcours choisi]]<>"",(VLOOKUP(Table35[[#Headers],[Marketing et Sponsoring]],'Def. Prix & Parcours'!$B$6:$E$28,IF($F17="G",2,IF($F17="T",3,IF($F17="N",4,0))),FALSE)*Table3[[#This Row],[Points Marketing et Sponsoring]]),"") -> 128 | Q17: =IF(Table3[[#This Row],[Parcours choisi]]<>"",(VLOOKUP(Table35[[#Headers],[Budget]],'Def. Prix & Parcours'!$B$6:$E$28,IF($F17="G",2,IF($F17="T",3,IF($F17="N",4,0))),FALSE)*Table3[[#This Row],[Points Budget]]),"") -> 22 | R17: =IF(Table3[[#This Row],[Parcours choisi]]<>"",(VLOOKUP(Table35[[#Headers],[Design du Véhicule]],'Def. Prix & Parcours'!$B$6:$E$28,IF($F17="G",2,IF($F17="T",3,IF($F17="N",4,0))),FALSE)*Table3[[#This Row],[Points Design du Véhicule]]),"") -> 33 | S17: =IF(Table3[[#This Row],[Parcours choisi]]<>"",(VLOOKUP(Table35[[#Headers],[Innovation numérique]],'Def. Prix & Parcours'!$B$6:$E$28,IF($F17="G",2,IF($F17="T",3,IF($F17="N",4,0))),FALSE)*Table3[[#This Row],[Points Innovation numérique]]),"") -> 68 | T17: =IF(Table3[[#This Row],[Parcours choisi]]<>"",(VLOOKUP(Table35[[#Headers],[Programmation]],'Def. Prix & Parcours'!$B$6:$E$28,IF($F17="G",2,IF($F17="T",3,IF($F17="N",4,0))),FALSE)*Table3[[#This Row],[Points Programmation]]),"") -> 76 | U17: =IF(Table3[[#This Row],[Parcours choisi]]<>"",(VLOOKUP(Table35[[#Headers],[Respect du règlement]],'Def. Prix & Parcours'!$B$6:$E$28,IF($F17="G",2,IF($F17="T",3,IF($F17="N",4,0))),FALSE)*Table3[[#This Row],[Points Respect du règlement]]),"") -> 100 | V17: =IF(Table3[[#This Row],[Parcours choisi]]<>"",(VLOOKUP(Table35[[#Headers],[Communication : vidéo]],'Def. Prix & Parcours'!$B$6:$E$28,IF($F17="G",2,IF($F17="T",3,IF($F17="N",4,0))),FALSE)*Table3[[#This Row],[Points Communication : vidéo]]),"") -> 27 | W17: =IF(Table3[[#This Row],[Parcours choisi]]<>"",(VLOOKUP(Table35[[#Headers],[Epreuve CAO]],'Def. Prix & Parcours'!$B$6:$E$28,IF($F17="G",2,IF($F17="T",3,IF($F17="N",4,0))),FALSE)*Table3[[#This Row],[Points Epreuve CAO]]),"") -> 80 | X17: =IF(Table3[[#This Row],[Parcours choisi]]<>"",(VLOOKUP(Table35[[#Headers],[Temps Réaction]],'Def. Prix & Parcours'!$B$6:$E$28,IF($F17="G",2,IF($F17="T",3,IF($F17="N",4,0))),FALSE)*Table3[[#This Row],[Points Temps Réaction]]),"") -> 12 | Y17: =IF(Table3[[#This Row],[Parcours choisi]]<>"",(VLOOKUP(Table35[[#Headers],[Temps Course]],'Def. Prix & Parcours'!$B$6:$E$28,IF($F17="G",2,IF($F17="T",3,IF($F17="N",4,0))),FALSE)*Table3[[#This Row],[Points Temps Course]]),"") -> 170 | Z17: =IF(Table3[[#This Row],[Parcours choisi]]<>"",(VLOOKUP(Table35[[#Headers],[Epreuve arrêt au stand]],'Def. Prix & Parcours'!$B$6:$E$28,IF($F17="G",2,IF($F17="T",3,IF($F17="N",4,0))),FALSE)*Table3[[#This Row],[Points Epreuve arrêt au stand]]),"") -> 80 | AB17: =IF(Table3[[#This Row],[Parcours choisi]]<>"",SUM(Table35[[#This Row],[Ingénierie et conception]:[1]]),"") -> 1473 | AC17: =IF(Table3[[#This Row],[Parcours choisi]]<>"",_xlfn.RANK.EQ(Table35[[#This Row],[Total Parcours]],Table35[Total Parcours],0),"") -> 8
A18: 12 | B18: =IF(Table3[[#This Row],[Nom équipe]]<>"",Table3[[#This Row],[Nom équipe]],"") -> Six divergents | C18: =IF(Table3[[#This Row],[Etablissement]]<>"",Table3[[#This Row],[Etablissement]],"") -> Bichat Lunéville | D18: =IF(Table3[[#This Row],[Type établissement]]<>"",Table3[[#This Row],[Type établissement]],"") -> C | E18: =IF(Table3[[#This Row],[Académie]]<>"",Table3[[#This Row],[Académie]],"") -> Nancy-Metz | F18: =IF(Table3[[#This Row],[Parcours choisi]]<>"",Table3[[#This Row],[Parcours choisi]],"") -> G | G18: =IF(Table3[[#This Row],[Parcours choisi]]<>"",(VLOOKUP(Table35[[#Headers],[Ingénierie et conception]],'Def. Prix & Parcours'!$B$6:$E$28,IF($F18="G",2,IF($F18="T",3,IF($F18="N",4,0))),FALSE)*Table3[[#This Row],[Points Ingénierie et conception]]),"") -> 96 | H18: =IF(Table3[[#This Row],[Parcours choisi]]<>"",(VLOOKUP(Table35[[#Headers],[Innovation mécanique]],'Def. Prix & Parcours'!$B$6:$E$28,IF($F18="G",2,IF($F18="T",3,IF($F18="N",4,0))),FALSE)*Table3[[#This Row],[Points Innovation mécanique]]),"") -> 96 | I18: =IF(Table3[[#This Row],[Parcours choisi]]<>"",(VLOOKUP(Table35[[#Headers],[Développement Durable]],'Def. Prix & Parcours'!$B$6:$E$28,IF($F18="G",2,IF($F18="T",3,IF($F18="N",4,0))),FALSE)*Table3[[#This Row],[Points Développement Durable]]),"") -> 48 | J18: =IF(Table3[[#This Row],[Parcours choisi]]<>"",(VLOOKUP(Table35[[#Headers],[Ingénierie de fabrication]],'Def. Prix & Parcours'!$B$6:$E$28,IF($F18="G",2,IF($F18="T",3,IF($F18="N",4,0))),FALSE)*Table3[[#This Row],[Points Ingénierie de fabrication]]),"") -> 45 | K18: =IF(Table3[[#This Row],[Parcours choisi]]<>"",(VLOOKUP(Table35[[#Headers],[Gestion de projet et collaborations]],'Def. Prix & Parcours'!$B$6:$E$28,IF($F18="G",2,IF($F18="T",3,IF($F18="N",4,0))),FALSE)*Table3[[#This Row],[Points Gestion de projet et collaborations]]),"") -> 90 | L18: =IF(Table3[[#This Row],[Parcours choisi]]<>"",(VLOOKUP(Table35[[#Headers],[Présentation Orale]],'Def. Prix & Parcours'!$B$6:$E$28,IF($F18="G",2,IF($F18="T",3,IF($F18="N",4,0))),FALSE)*Table3[[#This Row],[Points Présentation Orale]]),"") -> 70 | M18: =IF(Table3[[#This Row],[Parcours choisi]]<>"",(VLOOKUP(Table35[[#Headers],[Identité Equipe]],'Def. Prix & Parcours'!$B$6:$E$28,IF($F18="G",2,IF($F18="T",3,IF($F18="N",4,0))),FALSE)*Table3[[#This Row],[Points Identité Equipe]]),"") -> 80 | N18: =IF(Table3[[#This Row],[Parcours choisi]]<>"",(VLOOKUP(Table35[[#Headers],[Design du Stand]],'Def. Prix & Parcours'!$B$6:$E$28,IF($F18="G",2,IF($F18="T",3,IF($F18="N",4,0))),FALSE)*Table3[[#This Row],[Points Design du Stand]]),"") -> 120 | O18: =IF(Table3[[#This Row],[Parcours choisi]]<>"",(VLOOKUP(Table35[[#Headers],[Portfolio]],'Def. Prix & Parcours'!$B$6:$E$28,IF($F18="G",2,IF($F18="T",3,IF($F18="N",4,0))),FALSE)*Table3[[#This Row],[Points Portfolio]]),"") -> 136 | P18: =IF(Table3[[#This Row],[Parcours choisi]]<>"",(VLOOKUP(Table35[[#Headers],[Marketing et Sponsoring]],'Def. Prix & Parcours'!$B$6:$E$28,IF($F18="G",2,IF($F18="T",3,IF($F18="N",4,0))),FALSE)*Table3[[#This Row],[Points Marketing et Sponsoring]]),"") -> 136 | Q18: =IF(Table3[[#This Row],[Parcours choisi]]<>"",(VLOOKUP(Table35[[#Headers],[Budget]],'Def. Prix & Parcours'!$B$6:$E$28,IF($F18="G",2,IF($F18="T",3,IF($F18="N",4,0))),FALSE)*Table3[[#This Row],[Points Budget]]),"") -> 34 | R18: =IF(Table3[[#This Row],[Parcours choisi]]<>"",(VLOOKUP(Table35[[#Headers],[Design du Véhicule]],'Def. Prix & Parcours'!$B$6:$E$28,IF($F18="G",2,IF($F18="T",3,IF($F18="N",4,0))),FALSE)*Table3[[#This Row],[Points Design du Véhicule]]),"") -> 54 | S18: =IF(Table3[[#This Row],[Parcours choisi]]<>"",(VLOOKUP(Table35[[#Headers],[Innovation numérique]],'Def. Prix & Parcours'!$B$6:$E$28,IF($F18="G",2,IF($F18="T",3,IF($F18="N",4,0))),FALSE)*Table3[[#This Row],[Points Innovation numérique]]),"") -> 36 | T18: =IF(Table3[[#This Row],[Parcours choisi]]<>"",(VLOOKUP(Table35[[#Headers],[Programmation]],'Def. Prix & Parcours'!$B$6:$E$28,IF($F18="G",2,IF($F18="T",3,IF($F18="N",4,0))),FALSE)*Table3[[#This Row],[Points Programmation]]),"") -> 60 | U18: =IF(Table3[[#This Row],[Parcours choisi]]<>"",(VLOOKUP(Table35[[#Headers],[Respect du règlement]],'Def. Prix & Parcours'!$B$6:$E$28,IF($F18="G",2,IF($F18="T",3,IF($F18="N",4,0))),FALSE)*Table3[[#This Row],[Points Respect du règlement]]),"") -> 100 | V18: =IF(Table3[[#This Row],[Parcours choisi]]<>"",(VLOOKUP(Table35[[#Headers],[Communication : vidéo]],'Def. Prix & Parcours'!$B$6:$E$28,IF($F18="G",2,IF($F18="T",3,IF($F18="N",4,0))),FALSE)*Table3[[#This Row],[Points Communication : vidéo]]),"") -> 48 | W18: =IF(Table3[[#This Row],[Parcours choisi]]<>"",(VLOOKUP(Table35[[#Headers],[Epreuve CAO]],'Def. Prix & Parcours'!$B$6:$E$28,IF($F18="G",2,IF($F18="T",3,IF($F18="N",4,0))),FALSE)*Table3[[#This Row],[Points Epreuve CAO]]),"") -> 80 | X18: =IF(Table3[[#This Row],[Parcours choisi]]<>"",(VLOOKUP(Table35[[#Headers],[Temps Réaction]],'Def. Prix & Parcours'!$B$6:$E$28,IF($F18="G",2,IF($F18="T",3,IF($F18="N",4,0))),FALSE)*Table3[[#This Row],[Points Temps Réaction]]),"") -> 12 | Y18: =IF(Table3[[#This Row],[Parcours choisi]]<>"",(VLOOKUP(Table35[[#Headers],[Temps Course]],'Def. Prix & Parcours'!$B$6:$E$28,IF($F18="G",2,IF($F18="T",3,IF($F18="N",4,0))),FALSE)*Table3[[#This Row],[Points Temps Course]]),"") -> 160 | Z18: =IF(Table3[[#This Row],[Parcours choisi]]<>"",(VLOOKUP(Table35[[#Headers],[Epreuve arrêt au stand]],'Def. Prix & Parcours'!$B$6:$E$28,IF($F18="G",2,IF($F18="T",3,IF($F18="N",4,0))),FALSE)*Table3[[#This Row],[Points Epreuve arrêt au stand]]),"") -> 80 | AB18: =IF(Table3[[#This Row],[Parcours choisi]]<>"",SUM(Table35[[#This Row],[Ingénierie et conception]:[1]]),"") -> 1581 | AC18: =IF(Table3[[#This Row],[Parcours choisi]]<>"",_xlfn.RANK.EQ(Table35[[#This Row],[Total Parcours]],Table35[Total Parcours],0),"") -> 3
A19: 13 | B19: =IF(Table3[[#This Row],[Nom équipe]]<>"",Table3[[#This Row],[Nom équipe]],"") -> Andromeda | C19: =IF(Table3[[#This Row],[Etablissement]]<>"",Table3[[#This Row],[Etablissement]],"") -> Duvivier Einville | D19: =IF(Table3[[#This Row],[Type établissement]]<>"",Table3[[#This Row],[Type établissement]],"") -> C | E19: =IF(Table3[[#This Row],[Académie]]<>"",Table3[[#This Row],[Académie]],"") -> Nancy-Metz | F19: =IF(Table3[[#This Row],[Parcours choisi]]<>"",Table3[[#This Row],[Parcours choisi]],"") -> G | G19: =IF(Table3[[#This Row],[Parcours choisi]]<>"",(VLOOKUP(Table35[[#Headers],[Ingénierie et conception]],'Def. Prix & Parcours'!$B$6:$E$28,IF($F19="G",2,IF($F19="T",3,IF($F19="N",4,0))),FALSE)*Table3[[#This Row],[Points Ingénierie et conception]]),"") -> 102 | H19: =IF(Table3[[#This Row],[Parcours choisi]]<>"",(VLOOKUP(Table35[[#Headers],[Innovation mécanique]],'Def. Prix & Parcours'!$B$6:$E$28,IF($F19="G",2,IF($F19="T",3,IF($F19="N",4,0))),FALSE)*Table3[[#This Row],[Points Innovation mécanique]]),"") -> 90 | I19: =IF(Table3[[#This Row],[Parcours choisi]]<>"",(VLOOKUP(Table35[[#Headers],[Développement Durable]],'Def. Prix & Parcours'!$B$6:$E$28,IF($F19="G",2,IF($F19="T",3,IF($F19="N",4,0))),FALSE)*Table3[[#This Row],[Points Développement Durable]]),"") -> 60 | J19: =IF(Table3[[#This Row],[Parcours choisi]]<>"",(VLOOKUP(Table35[[#Headers],[Ingénierie de fabrication]],'Def. Prix & Parcours'!$B$6:$E$28,IF($F19="G",2,IF($F19="T",3,IF($F19="N",4,0))),FALSE)*Table3[[#This Row],[Points Ingénierie de fabrication]]),"") -> 42 | K19: =IF(Table3[[#This Row],[Parcours choisi]]<>"",(VLOOKUP(Table35[[#Headers],[Gestion de projet et collaborations]],'Def. Prix & Parcours'!$B$6:$E$28,IF($F19="G",2,IF($F19="T",3,IF($F19="N",4,0))),FALSE)*Table3[[#This Row],[Points Gestion de projet et collaborations]]),"") -> 85 | L19: =IF(Table3[[#This Row],[Parcours choisi]]<>"",(VLOOKUP(Table35[[#Headers],[Présentation Orale]],'Def. Prix & Parcours'!$B$6:$E$28,IF($F19="G",2,IF($F19="T",3,IF($F19="N",4,0))),FALSE)*Table3[[#This Row],[Points Présentation Orale]]),"") -> 85 | M19: =IF(Table3[[#This Row],[Parcours choisi]]<>"",(VLOOKUP(Table35[[#Headers],[Identité Equipe]],'Def. Prix & Parcours'!$B$6:$E$28,IF($F19="G",2,IF($F19="T",3,IF($F19="N",4,0))),FALSE)*Table3[[#This Row],[Points Identité Equipe]]),"") -> 85 | N19: =IF(Table3[[#This Row],[Parcours choisi]]<>"",(VLOOKUP(Table35[[#Headers],[Design du Stand]],'Def. Prix & Parcours'!$B$6:$E$28,IF($F19="G",2,IF($F19="T",3,IF($F19="N",4,0))),FALSE)*Table3[[#This Row],[Points Design du Stand]]),"") -> 112 | O19: =IF(Table3[[#This Row],[Parcours choisi]]<>"",(VLOOKUP(Table35[[#Headers],[Portfolio]],'Def. Prix & Parcours'!$B$6:$E$28,IF($F19="G",2,IF($F19="T",3,IF($F19="N",4,0))),FALSE)*Table3[[#This Row],[Points Portfolio]]),"") -> 144 | P19: =IF(Table3[[#This Row],[Parcours choisi]]<>"",(VLOOKUP(Table35[[#Headers],[Marketing et Sponsoring]],'Def. Prix & Parcours'!$B$6:$E$28,IF($F19="G",2,IF($F19="T",3,IF($F19="N",4,0))),FALSE)*Table3[[#This Row],[Points Marketing et Sponsoring]]),"") -> 144 | Q19: =IF(Table3[[#This Row],[Parcours choisi]]<>"",(VLOOKUP(Table35[[#Headers],[Budget]],'Def. Prix & Parcours'!$B$6:$E$28,IF($F19="G",2,IF($F19="T",3,IF($F19="N",4,0))),FALSE)*Table3[[#This Row],[Points Budget]]),"") -> 38 | R19: =IF(Table3[[#This Row],[Parcours choisi]]<>"",(VLOOKUP(Table35[[#Headers],[Design du Véhicule]],'Def. Prix & Parcours'!$B$6:$E$28,IF($F19="G",2,IF($F19="T",3,IF($F19="N",4,0))),FALSE)*Table3[[#This Row],[Points Design du Véhicule]]),"") -> 39 | S19: =IF(Table3[[#This Row],[Parcours choisi]]<>"",(VLOOKUP(Table35[[#Headers],[Innovation numérique]],'Def. Prix & Parcours'!$B$6:$E$28,IF($F19="G",2,IF($F19="T",3,IF($F19="N",4,0))),FALSE)*Table3[[#This Row],[Points Innovation numérique]]),"") -> 72 | T19: =IF(Table3[[#This Row],[Parcours choisi]]<>"",(VLOOKUP(Table35[[#Headers],[Programmation]],'Def. Prix & Parcours'!$B$6:$E$28,IF($F19="G",2,IF($F19="T",3,IF($F19="N",4,0))),FALSE)*Table3[[#This Row],[Points Programmation]]),"") -> 60 | U19: =IF(Table3[[#This Row],[Parcours choisi]]<>"",(VLOOKUP(Table35[[#Headers],[Respect du règlement]],'Def. Prix & Parcours'!$B$6:$E$28,IF($F19="G",2,IF($F19="T",3,IF($F19="N",4,0))),FALSE)*Table3[[#This Row],[Points Respect du règlement]]),"") -> 100 | V19: =IF(Table3[[#This Row],[Parcours choisi]]<>"",(VLOOKUP(Table35[[#Headers],[Communication : vidéo]],'Def. Prix & Parcours'!$B$6:$E$28,IF($F19="G",2,IF($F19="T",3,IF($F19="N",4,0))),FALSE)*Table3[[#This Row],[Points Communication : vidéo]]),"") -> 36 | W19: =IF(Table3[[#This Row],[Parcours choisi]]<>"",(VLOOKUP(Table35[[#Headers],[Epreuve CAO]],'Def. Prix & Parcours'!$B$6:$E$28,IF($F19="G",2,IF($F19="T",3,IF($F19="N",4,0))),FALSE)*Table3[[#This Row],[Points Epreuve CAO]]),"") -> 80 | X19: =IF(Table3[[#This Row],[Parcours choisi]]<>"",(VLOOKUP(Table35[[#Headers],[Temps Réaction]],'Def. Prix & Parcours'!$B$6:$E$28,IF($F19="G",2,IF($F19="T",3,IF($F19="N",4,0))),FALSE)*Table3[[#This Row],[Points Temps Réaction]]),"") -> 18 | Y19: =IF(Table3[[#This Row],[Parcours choisi]]<>"",(VLOOKUP(Table35[[#Headers],[Temps Course]],'Def. Prix & Parcours'!$B$6:$E$28,IF($F19="G",2,IF($F19="T",3,IF($F19="N",4,0))),FALSE)*Table3[[#This Row],[Points Temps Course]]),"") -> 100 | Z19: =IF(Table3[[#This Row],[Parcours choisi]]<>"",(VLOOKUP(Table35[[#Headers],[Epreuve arrêt au stand]],'Def. Prix & Parcours'!$B$6:$E$28,IF($F19="G",2,IF($F19="T",3,IF($F19="N",4,0))),FALSE)*Table3[[#This Row],[Points Epreuve arrêt au stand]]),"") -> 80 | AB19: =IF(Table3[[#This Row],[Parcours choisi]]<>"",SUM(Table35[[#This Row],[Ingénierie et conception]:[1]]),"") -> 1572 | AC19: =IF(Table3[[#This Row],[Parcours choisi]]<>"",_xlfn.RANK.EQ(Table35[[#This Row],[Total Parcours]],Table35[Total Parcours],0),"") -> 5
A20: 14 | B20: =IF(Table3[[#This Row],[Nom équipe]]<>"",Table3[[#This Row],[Nom équipe]],"") -> Fifties | C20: =IF(Table3[[#This Row],[Etablissement]]<>"",Table3[[#This Row],[Etablissement]],"") -> Duvivier Einville | D20: =IF(Table3[[#This Row],[Type établissement]]<>"",Table3[[#This Row],[Type établissement]],"") -> C | E20: =IF(Table3[[#This Row],[Académie]]<>"",Table3[[#This Row],[Académie]],"") -> Nancy-Metz | F20: =IF(Table3[[#This Row],[Parcours choisi]]<>"",Table3[[#This Row],[Parcours choisi]],"") -> G | G20: =IF(Table3[[#This Row],[Parcours choisi]]<>"",(VLOOKUP(Table35[[#Headers],[Ingénierie et conception]],'Def. Prix & Parcours'!$B$6:$E$28,IF($F20="G",2,IF($F20="T",3,IF($F20="N",4,0))),FALSE)*Table3[[#This Row],[Points Ingénierie et conception]]),"") -> 96 | H20: =IF(Table3[[#This Row],[Parcours choisi]]<>"",(VLOOKUP(Table35[[#Headers],[Innovation mécanique]],'Def. Prix & Parcours'!$B$6:$E$28,IF($F20="G",2,IF($F20="T",3,IF($F20="N",4,0))),FALSE)*Table3[[#This Row],[Points Innovation mécanique]]),"") -> 96 | I20: =IF(Table3[[#This Row],[Parcours choisi]]<>"",(VLOOKUP(Table35[[#Headers],[Développement Durable]],'Def. Prix & Parcours'!$B$6:$E$28,IF($F20="G",2,IF($F20="T",3,IF($F20="N",4,0))),FALSE)*Table3[[#This Row],[Points Développement Durable]]),"") -> 52 | J20: =IF(Table3[[#This Row],[Parcours choisi]]<>"",(VLOOKUP(Table35[[#Headers],[Ingénierie de fabrication]],'Def. Prix & Parcours'!$B$6:$E$28,IF($F20="G",2,IF($F20="T",3,IF($F20="N",4,0))),FALSE)*Table3[[#This Row],[Points Ingénierie de fabrication]]),"") -> 48 | K20: =IF(Table3[[#This Row],[Parcours choisi]]<>"",(VLOOKUP(Table35[[#Headers],[Gestion de projet et collaborations]],'Def. Prix & Parcours'!$B$6:$E$28,IF($F20="G",2,IF($F20="T",3,IF($F20="N",4,0))),FALSE)*Table3[[#This Row],[Points Gestion de projet et collaborations]]),"") -> 90 | L20: =IF(Table3[[#This Row],[Parcours choisi]]<>"",(VLOOKUP(Table35[[#Headers],[Présentation Orale]],'Def. Prix & Parcours'!$B$6:$E$28,IF($F20="G",2,IF($F20="T",3,IF($F20="N",4,0))),FALSE)*Table3[[#This Row],[Points Présentation Orale]]),"") -> 80 | M20: =IF(Table3[[#This Row],[Parcours choisi]]<>"",(VLOOKUP(Table35[[#Headers],[Identité Equipe]],'Def. Prix & Parcours'!$B$6:$E$28,IF($F20="G",2,IF($F20="T",3,IF($F20="N",4,0))),FALSE)*Table3[[#This Row],[Points Identité Equipe]]),"") -> 100 | N20: =IF(Table3[[#This Row],[Parcours choisi]]<>"",(VLOOKUP(Table35[[#Headers],[Design du Stand]],'Def. Prix & Parcours'!$B$6:$E$28,IF($F20="G",2,IF($F20="T",3,IF($F20="N",4,0))),FALSE)*Table3[[#This Row],[Points Design du Stand]]),"") -> 160 | O20: =IF(Table3[[#This Row],[Parcours choisi]]<>"",(VLOOKUP(Table35[[#Headers],[Portfolio]],'Def. Prix & Parcours'!$B$6:$E$28,IF($F20="G",2,IF($F20="T",3,IF($F20="N",4,0))),FALSE)*Table3[[#This Row],[Points Portfolio]]),"") -> 160 | P20: =IF(Table3[[#This Row],[Parcours choisi]]<>"",(VLOOKUP(Table35[[#Headers],[Marketing et Sponsoring]],'Def. Prix & Parcours'!$B$6:$E$28,IF($F20="G",2,IF($F20="T",3,IF($F20="N",4,0))),FALSE)*Table3[[#This Row],[Points Marketing et Sponsoring]]),"") -> 160 | Q20: =IF(Table3[[#This Row],[Parcours choisi]]<>"",(VLOOKUP(Table35[[#Headers],[Budget]],'Def. Prix & Parcours'!$B$6:$E$28,IF($F20="G",2,IF($F20="T",3,IF($F20="N",4,0))),FALSE)*Table3[[#This Row],[Points Budget]]),"") -> 40 | R20: =IF(Table3[[#This Row],[Parcours choisi]]<>"",(VLOOKUP(Table35[[#Headers],[Design du Véhicule]],'Def. Prix & Parcours'!$B$6:$E$28,IF($F20="G",2,IF($F20="T",3,IF($F20="N",4,0))),FALSE)*Table3[[#This Row],[Points Design du Véhicule]]),"") -> 57 | S20: =IF(Table3[[#This Row],[Parcours choisi]]<>"",(VLOOKUP(Table35[[#Headers],[Innovation numérique]],'Def. Prix & Parcours'!$B$6:$E$28,IF($F20="G",2,IF($F20="T",3,IF($F20="N",4,0))),FALSE)*Table3[[#This Row],[Points Innovation numérique]]),"") -> 60 | T20: =IF(Table3[[#This Row],[Parcours choisi]]<>"",(VLOOKUP(Table35[[#Headers],[Programmation]],'Def. Prix & Parcours'!$B$6:$E$28,IF($F20="G",2,IF($F20="T",3,IF($F20="N",4,0))),FALSE)*Table3[[#This Row],[Points Programmation]]),"") -> 76 | U20: =IF(Table3[[#This Row],[Parcours choisi]]<>"",(VLOOKUP(Table35[[#Headers],[Respect du règlement]],'Def. Prix & Parcours'!$B$6:$E$28,IF($F20="G",2,IF($F20="T",3,IF($F20="N",4,0))),FALSE)*Table3[[#This Row],[Points Respect du règlement]]),"") -> 100 | V20: =IF(Table3[[#This Row],[Parcours choisi]]<>"",(VLOOKUP(Table35[[#Headers],[Communication : vidéo]],'Def. Prix & Parcours'!$B$6:$E$28,IF($F20="G",2,IF($F20="T",3,IF($F20="N",4,0))),FALSE)*Table3[[#This Row],[Points Communication : vidéo]]),"") -> 48 | W20: =IF(Table3[[#This Row],[Parcours choisi]]<>"",(VLOOKUP(Table35[[#Headers],[Epreuve CAO]],'Def. Prix & Parcours'!$B$6:$E$28,IF($F20="G",2,IF($F20="T",3,IF($F20="N",4,0))),FALSE)*Table3[[#This Row],[Points Epreuve CAO]]),"") -> 80 | X20: =IF(Table3[[#This Row],[Parcours choisi]]<>"",(VLOOKUP(Table35[[#Headers],[Temps Réaction]],'Def. Prix & Parcours'!$B$6:$E$28,IF($F20="G",2,IF($F20="T",3,IF($F20="N",4,0))),FALSE)*Table3[[#This Row],[Points Temps Réaction]]),"") -> 24 | Y20: =IF(Table3[[#This Row],[Parcours choisi]]<>"",(VLOOKUP(Table35[[#Headers],[Temps Course]],'Def. Prix & Parcours'!$B$6:$E$28,IF($F20="G",2,IF($F20="T",3,IF($F20="N",4,0))),FALSE)*Table3[[#This Row],[Points Temps Course]]),"") -> 90 | Z20: =IF(Table3[[#This Row],[Parcours choisi]]<>"",(VLOOKUP(Table35[[#Headers],[Epreuve arrêt au stand]],'Def. Prix & Parcours'!$B$6:$E$28,IF($F20="G",2,IF($F20="T",3,IF($F20="N",4,0))),FALSE)*Table3[[#This Row],[Points Epreuve arrêt au stand]]),"") -> 80 | AB20: =IF(Table3[[#This Row],[Parcours choisi]]<>"",SUM(Table35[[#This Row],[Ingénierie et conception]:[1]]),"") -> 1697 | AC20: =IF(Table3[[#This Row],[Parcours choisi]]<>"",_xlfn.RANK.EQ(Table35[[#This Row],[Total Parcours]],Table35[Total Parcours],0),"") -> 2
A21: 15 | B21: =IF(Table3[[#This Row],[Nom équipe]]<>"",Table3[[#This Row],[Nom équipe]],"") -> SharkAttack | C21: =IF(Table3[[#This Row],[Etablissement]]<>"",Table3[[#This Row],[Etablissement]],"") -> Vogt Commercy | D21: =IF(Table3[[#This Row],[Type établissement]]<>"",Table3[[#This Row],[Type établissement]],"") -> L | E21: =IF(Table3[[#This Row],[Académie]]<>"",Table3[[#This Row],[Académie]],"") -> Nancy-Metz | F21: =IF(Table3[[#This Row],[Parcours choisi]]<>"",Table3[[#This Row],[Parcours choisi]],"") -> G | G21: =IF(Table3[[#This Row],[Parcours choisi]]<>"",(VLOOKUP(Table35[[#Headers],[Ingénierie et conception]],'Def. Prix & Parcours'!$B$6:$E$28,IF($F21="G",2,IF($F21="T",3,IF($F21="N",4,0))),FALSE)*Table3[[#This Row],[Points Ingénierie et conception]]),"") -> 102 | H21: =IF(Table3[[#This Row],[Parcours choisi]]<>"",(VLOOKUP(Table35[[#Headers],[Innovation mécanique]],'Def. Prix & Parcours'!$B$6:$E$28,IF($F21="G",2,IF($F21="T",3,IF($F21="N",4,0))),FALSE)*Table3[[#This Row],[Points Innovation mécanique]]),"") -> 84 | I21: =IF(Table3[[#This Row],[Parcours choisi]]<>"",(VLOOKUP(Table35[[#Headers],[Développement Durable]],'Def. Prix & Parcours'!$B$6:$E$28,IF($F21="G",2,IF($F21="T",3,IF($F21="N",4,0))),FALSE)*Table3[[#This Row],[Points Développement Durable]]),"") -> 28 | J21: =IF(Table3[[#This Row],[Parcours choisi]]<>"",(VLOOKUP(Table35[[#Headers],[Ingénierie de fabrication]],'Def. Prix & Parcours'!$B$6:$E$28,IF($F21="G",2,IF($F21="T",3,IF($F21="N",4,0))),FALSE)*Table3[[#This Row],[Points Ingénierie de fabrication]]),"") -> 42 | K21: =IF(Table3[[#This Row],[Parcours choisi]]<>"",(VLOOKUP(Table35[[#Headers],[Gestion de projet et collaborations]],'Def. Prix & Parcours'!$B$6:$E$28,IF($F21="G",2,IF($F21="T",3,IF($F21="N",4,0))),FALSE)*Table3[[#This Row],[Points Gestion de projet et collaborations]]),"") -> 75 | L21: =IF(Table3[[#This Row],[Parcours choisi]]<>"",(VLOOKUP(Table35[[#Headers],[Présentation Orale]],'Def. Prix & Parcours'!$B$6:$E$28,IF($F21="G",2,IF($F21="T",3,IF($F21="N",4,0))),FALSE)*Table3[[#This Row],[Points Présentation Orale]]),"") -> 65 | M21: =IF(Table3[[#This Row],[Parcours choisi]]<>"",(VLOOKUP(Table35[[#Headers],[Identité Equipe]],'Def. Prix & Parcours'!$B$6:$E$28,IF($F21="G",2,IF($F21="T",3,IF($F21="N",4,0))),FALSE)*Table3[[#This Row],[Points Identité Equipe]]),"") -> 65 | N21: =IF(Table3[[#This Row],[Parcours choisi]]<>"",(VLOOKUP(Table35[[#Headers],[Design du Stand]],'Def. Prix & Parcours'!$B$6:$E$28,IF($F21="G",2,IF($F21="T",3,IF($F21="N",4,0))),FALSE)*Table3[[#This Row],[Points Design du Stand]]),"") -> 104 | O21: =IF(Table3[[#This Row],[Parcours choisi]]<>"",(VLOOKUP(Table35[[#Headers],[Portfolio]],'Def. Prix & Parcours'!$B$6:$E$28,IF($F21="G",2,IF($F21="T",3,IF($F21="N",4,0))),FALSE)*Table3[[#This Row],[Points Portfolio]]),"") -> 96 | P21: =IF(Table3[[#This Row],[Parcours choisi]]<>"",(VLOOKUP(Table35[[#Headers],[Marketing et Sponsoring]],'Def. Prix & Parcours'!$B$6:$E$28,IF($F21="G",2,IF($F21="T",3,IF($F21="N",4,0))),FALSE)*Table3[[#This Row],[Points Marketing et Sponsoring]]),"") -> 112 | Q21: =IF(Table3[[#This Row],[Parcours choisi]]<>"",(VLOOKUP(Table35[[#Headers],[Budget]],'Def. Prix & Parcours'!$B$6:$E$28,IF($F21="G",2,IF($F21="T",3,IF($F21="N",4,0))),FALSE)*Table3[[#This Row],[Points Budget]]),"") -> 24 | R21: =IF(Table3[[#This Row],[Parcours choisi]]<>"",(VLOOKUP(Table35[[#Headers],[Design du Véhicule]],'Def. Prix & Parcours'!$B$6:$E$28,IF($F21="G",2,IF($F21="T",3,IF($F21="N",4,0))),FALSE)*Table3[[#This Row],[Points Design du Véhicule]]),"") -> 39 | S21: =IF(Table3[[#This Row],[Parcours choisi]]<>"",(VLOOKUP(Table35[[#Headers],[Innovation numérique]],'Def. Prix & Parcours'!$B$6:$E$28,IF($F21="G",2,IF($F21="T",3,IF($F21="N",4,0))),FALSE)*Table3[[#This Row],[Points Innovation numérique]]),"") -> 32 | T21: =IF(Table3[[#This Row],[Parcours choisi]]<>"",(VLOOKUP(Table35[[#Headers],[Programmation]],'Def. Prix & Parcours'!$B$6:$E$28,IF($F21="G",2,IF($F21="T",3,IF($F21="N",4,0))),FALSE)*Table3[[#This Row],[Points Programmation]]),"") -> 68 | U21: =IF(Table3[[#This Row],[Parcours choisi]]<>"",(VLOOKUP(Table35[[#Headers],[Respect du règlement]],'Def. Prix & Parcours'!$B$6:$E$28,IF($F21="G",2,IF($F21="T",3,IF($F21="N",4,0))),FALSE)*Table3[[#This Row],[Points Respect du règlement]]),"") -> 95 | V21: =IF(Table3[[#This Row],[Parcours choisi]]<>"",(VLOOKUP(Table35[[#Headers],[Communication : vidéo]],'Def. Prix & Parcours'!$B$6:$E$28,IF($F21="G",2,IF($F21="T",3,IF($F21="N",4,0))),FALSE)*Table3[[#This Row],[Points Communication : vidéo]]),"") -> 48 | W21: =IF(Table3[[#This Row],[Parcours choisi]]<>"",(VLOOKUP(Table35[[#Headers],[Epreuve CAO]],'Def. Prix & Parcours'!$B$6:$E$28,IF($F21="G",2,IF($F21="T",3,IF($F21="N",4,0))),FALSE)*Table3[[#This Row],[Points Epreuve CAO]]),"") -> 80 | X21: =IF(Table3[[#This Row],[Parcours choisi]]<>"",(VLOOKUP(Table35[[#Headers],[Temps Réaction]],'Def. Prix & Parcours'!$B$6:$E$28,IF($F21="G",2,IF($F21="T",3,IF($F21="N",4,0))),FALSE)*Table3[[#This Row],[Points Temps Réaction]]),"") -> 33 | Y21: =IF(Table3[[#This Row],[Parcours choisi]]<>"",(VLOOKUP(Table35[[#Headers],[Temps Course]],'Def. Prix & Parcours'!$B$6:$E$28,IF($F21="G",2,IF($F21="T",3,IF($F21="N",4,0))),FALSE)*Table3[[#This Row],[Points Temps Course]]),"") -> 150 | Z21: =IF(Table3[[#This Row],[Parcours choisi]]<>"",(VLOOKUP(Table35[[#Headers],[Epreuve arrêt au stand]],'Def. Prix & Parcours'!$B$6:$E$28,IF($F21="G",2,IF($F21="T",3,IF($F21="N",4,0))),FALSE)*Table3[[#This Row],[Points Epreuve arrêt au stand]]),"") -> 80 | AB21: =IF(Table3[[#This Row],[Parcours choisi]]<>"",SUM(Table35[[#This Row],[Ingénierie et conception]:[1]]),"") -> 1422 | AC21: =IF(Table3[[#This Row],[Parcours choisi]]<>"",_xlfn.RANK.EQ(Table35[[#This Row],[Total Parcours]],Table35[Total Parcours],0),"") -> 10
A22: 16 | B22: =IF(Table3[[#This Row],[Nom équipe]]<>"",Table3[[#This Row],[Nom équipe]],"") -> Green Tiger | C22: =IF(Table3[[#This Row],[Etablissement]]<>"",Table3[[#This Row],[Etablissement]],"") -> Hauts de Blémont Metz | D22: =IF(Table3[[#This Row],[Type établissement]]<>"",Table3[[#This Row],[Type établissement]],"") -> C | E22: =IF(Table3[[#This Row],[Académie]]<>"",Table3[[#This Row],[Académie]],"") -> Nancy-Metz | F22: =IF(Table3[[#This Row],[Parcours choisi]]<>"",Table3[[#This Row],[Parcours choisi]],"") -> G | G22: =IF(Table3[[#This Row],[Parcours choisi]]<>"",(VLOOKUP(Table35[[#Headers],[Ingénierie et conception]],'Def. Prix & Parcours'!$B$6:$E$28,IF($F22="G",2,IF($F22="T",3,IF($F22="N",4,0))),FALSE)*Table3[[#This Row],[Points Ingénierie et conception]]),"") -> 66 | H22: =IF(Table3[[#This Row],[Parcours choisi]]<>"",(VLOOKUP(Table35[[#Headers],[Innovation mécanique]],'Def. Prix & Parcours'!$B$6:$E$28,IF($F22="G",2,IF($F22="T",3,IF($F22="N",4,0))),FALSE)*Table3[[#This Row],[Points Innovation mécanique]]),"") -> 78 | I22: =IF(Table3[[#This Row],[Parcours choisi]]<>"",(VLOOKUP(Table35[[#Headers],[Développement Durable]],'Def. Prix & Parcours'!$B$6:$E$28,IF($F22="G",2,IF($F22="T",3,IF($F22="N",4,0))),FALSE)*Table3[[#This Row],[Points Développement Durable]]),"") -> 80 | J22: =IF(Table3[[#This Row],[Parcours choisi]]<>"",(VLOOKUP(Table35[[#Headers],[Ingénierie de fabrication]],'Def. Prix & Parcours'!$B$6:$E$28,IF($F22="G",2,IF($F22="T",3,IF($F22="N",4,0))),FALSE)*Table3[[#This Row],[Points Ingénierie de fabrication]]),"") -> 42 | K22: =IF(Table3[[#This Row],[Parcours choisi]]<>"",(VLOOKUP(Table35[[#Headers],[Gestion de projet et collaborations]],'Def. Prix & Parcours'!$B$6:$E$28,IF($F22="G",2,IF($F22="T",3,IF($F22="N",4,0))),FALSE)*Table3[[#This Row],[Points Gestion de projet et collaborations]]),"") -> 85 | L22: =IF(Table3[[#This Row],[Parcours choisi]]<>"",(VLOOKUP(Table35[[#Headers],[Présentation Orale]],'Def. Prix & Parcours'!$B$6:$E$28,IF($F22="G",2,IF($F22="T",3,IF($F22="N",4,0))),FALSE)*Table3[[#This Row],[Points Présentation Orale]]),"") -> 50 | M22: =IF(Table3[[#This Row],[Parcours choisi]]<>"",(VLOOKUP(Table35[[#Headers],[Identité Equipe]],'Def. Prix & Parcours'!$B$6:$E$28,IF($F22="G",2,IF($F22="T",3,IF($F22="N",4,0))),FALSE)*Table3[[#This Row],[Points Identité Equipe]]),"") -> 60 | N22: =IF(Table3[[#This Row],[Parcours choisi]]<>"",(VLOOKUP(Table35[[#Headers],[Design du Stand]],'Def. Prix & Parcours'!$B$6:$E$28,IF($F22="G",2,IF($F22="T",3,IF($F22="N",4,0))),FALSE)*Table3[[#This Row],[Points Design du Stand]]),"") -> 104 | O22: =IF(Table3[[#This Row],[Parcours choisi]]<>"",(VLOOKUP(Table35[[#Headers],[Portfolio]],'Def. Prix & Parcours'!$B$6:$E$28,IF($F22="G",2,IF($F22="T",3,IF($F22="N",4,0))),FALSE)*Table3[[#This Row],[Points Portfolio]]),"") -> 96 | P22: =IF(Table3[[#This Row],[Parcours choisi]]<>"",(VLOOKUP(Table35[[#Headers],[Marketing et Sponsoring]],'Def. Prix & Parcours'!$B$6:$E$28,IF($F22="G",2,IF($F22="T",3,IF($F22="N",4,0))),FALSE)*Table3[[#This Row],[Points Marketing et Sponsoring]]),"") -> 88 | Q22: =IF(Table3[[#This Row],[Parcours choisi]]<>"",(VLOOKUP(Table35[[#Headers],[Budget]],'Def. Prix & Parcours'!$B$6:$E$28,IF($F22="G",2,IF($F22="T",3,IF($F22="N",4,0))),FALSE)*Table3[[#This Row],[Points Budget]]),"") -> 22 | R22: =IF(Table3[[#This Row],[Parcours choisi]]<>"",(VLOOKUP(Table35[[#Headers],[Design du Véhicule]],'Def. Prix & Parcours'!$B$6:$E$28,IF($F22="G",2,IF($F22="T",3,IF($F22="N",4,0))),FALSE)*Table3[[#This Row],[Points Design du Véhicule]]),"") -> 36 | S22: =IF(Table3[[#This Row],[Parcours choisi]]<>"",(VLOOKUP(Table35[[#Headers],[Innovation numérique]],'Def. Prix & Parcours'!$B$6:$E$28,IF($F22="G",2,IF($F22="T",3,IF($F22="N",4,0))),FALSE)*Table3[[#This Row],[Points Innovation numérique]]),"") -> 0 | T22: =IF(Table3[[#This Row],[Parcours choisi]]<>"",(VLOOKUP(Table35[[#Headers],[Programmation]],'Def. Prix & Parcours'!$B$6:$E$28,IF($F22="G",2,IF($F22="T",3,IF($F22="N",4,0))),FALSE)*Table3[[#This Row],[Points Programmation]]),"") -> 0 | U22: =IF(Table3[[#This Row],[Parcours choisi]]<>"",(VLOOKUP(Table35[[#Headers],[Respect du règlement]],'Def. Prix & Parcours'!$B$6:$E$28,IF($F22="G",2,IF($F22="T",3,IF($F22="N",4,0))),FALSE)*Table3[[#This Row],[Points Respect du règlement]]),"") -> 90 | V22: =IF(Table3[[#This Row],[Parcours choisi]]<>"",(VLOOKUP(Table35[[#Headers],[Communication : vidéo]],'Def. Prix & Parcours'!$B$6:$E$28,IF($F22="G",2,IF($F22="T",3,IF($F22="N",4,0))),FALSE)*Table3[[#This Row],[Points Communication : vidéo]]),"") -> 60 | W22: =IF(Table3[[#This Row],[Parcours choisi]]<>"",(VLOOKUP(Table35[[#Headers],[Epreuve CAO]],'Def. Prix & Parcours'!$B$6:$E$28,IF($F22="G",2,IF($F22="T",3,IF($F22="N",4,0))),FALSE)*Table3[[#This Row],[Points Epreuve CAO]]),"") -> 80 | X22: =IF(Table3[[#This Row],[Parcours choisi]]<>"",(VLOOKUP(Table35[[#Headers],[Temps Réaction]],'Def. Prix & Parcours'!$B$6:$E$28,IF($F22="G",2,IF($F22="T",3,IF($F22="N",4,0))),FALSE)*Table3[[#This Row],[Points Temps Réaction]]),"") -> 33 | Y22: =IF(Table3[[#This Row],[Parcours choisi]]<>"",(VLOOKUP(Table35[[#Headers],[Temps Course]],'Def. Prix & Parcours'!$B$6:$E$28,IF($F22="G",2,IF($F22="T",3,IF($F22="N",4,0))),FALSE)*Table3[[#This Row],[Points Temps Course]]),"") -> 190 | Z22: =IF(Table3[[#This Row],[Parcours choisi]]<>"",(VLOOKUP(Table35[[#Headers],[Epreuve arrêt au stand]],'Def. Prix & Parcours'!$B$6:$E$28,IF($F22="G",2,IF($F22="T",3,IF($F22="N",4,0))),FALSE)*Table3[[#This Row],[Points Epreuve arrêt au stand]]),"") -> 80 | AB22: =IF(Table3[[#This Row],[Parcours choisi]]<>"",SUM(Table35[[#This Row],[Ingénierie et conception]:[1]]),"") -> 1340 | AC22: =IF(Table3[[#This Row],[Parcours choisi]]<>"",_xlfn.RANK.EQ(Table35[[#This Row],[Total Parcours]],Table35[Total Parcours],0),"") -> 15
A23: 17 | B23: =IF(Table3[[#This Row],[Nom équipe]]<>"",Table3[[#This Row],[Nom équipe]],"") -> Grey | C23: =IF(Table3[[#This Row],[Etablissement]]<>"",Table3[[#This Row],[Etablissement]],"") -> Hauts de Blémont Metz | D23: =IF(Table3[[#This Row],[Type établissement]]<>"",Table3[[#This Row],[Type établissement]],"") -> C | E23: =IF(Table3[[#This Row],[Académie]]<>"",Table3[[#This Row],[Académie]],"") -> Nancy-Metz | F23: =IF(Table3[[#This Row],[Parcours choisi]]<>"",Table3[[#This Row],[Parcours choisi]],"") -> G | G23: =IF(Table3[[#This Row],[Parcours choisi]]<>"",(VLOOKUP(Table35[[#Headers],[Ingénierie et conception]],'Def. Prix & Parcours'!$B$6:$E$28,IF($F23="G",2,IF($F23="T",3,IF($F23="N",4,0))),FALSE)*Table3[[#This Row],[Points Ingénierie et conception]]),"") -> 60 | H23: =IF(Table3[[#This Row],[Parcours choisi]]<>"",(VLOOKUP(Table35[[#Headers],[Innovation mécanique]],'Def. Prix & Parcours'!$B$6:$E$28,IF($F23="G",2,IF($F23="T",3,IF($F23="N",4,0))),FALSE)*Table3[[#This Row],[Points Innovation mécanique]]),"") -> 48 | I23: =IF(Table3[[#This Row],[Parcours choisi]]<>"",(VLOOKUP(Table35[[#Headers],[Développement Durable]],'Def. Prix & Parcours'!$B$6:$E$28,IF($F23="G",2,IF($F23="T",3,IF($F23="N",4,0))),FALSE)*Table3[[#This Row],[Points Développement Durable]]),"") -> 44 | J23: =IF(Table3[[#This Row],[Parcours choisi]]<>"",(VLOOKUP(Table35[[#Headers],[Ingénierie de fabrication]],'Def. Prix & Parcours'!$B$6:$E$28,IF($F23="G",2,IF($F23="T",3,IF($F23="N",4,0))),FALSE)*Table3[[#This Row],[Points Ingénierie de fabrication]]),"") -> 33 | K23: =IF(Table3[[#This Row],[Parcours choisi]]<>"",(VLOOKUP(Table35[[#Headers],[Gestion de projet et collaborations]],'Def. Prix & Parcours'!$B$6:$E$28,IF($F23="G",2,IF($F23="T",3,IF($F23="N",4,0))),FALSE)*Table3[[#This Row],[Points Gestion de projet et collaborations]]),"") -> 75 | L23: =IF(Table3[[#This Row],[Parcours choisi]]<>"",(VLOOKUP(Table35[[#Headers],[Présentation Orale]],'Def. Prix & Parcours'!$B$6:$E$28,IF($F23="G",2,IF($F23="T",3,IF($F23="N",4,0))),FALSE)*Table3[[#This Row],[Points Présentation Orale]]),"") -> 55 | M23: =IF(Table3[[#This Row],[Parcours choisi]]<>"",(VLOOKUP(Table35[[#Headers],[Identité Equipe]],'Def. Prix & Parcours'!$B$6:$E$28,IF($F23="G",2,IF($F23="T",3,IF($F23="N",4,0))),FALSE)*Table3[[#This Row],[Points Identité Equipe]]),"") -> 80 | N23: =IF(Table3[[#This Row],[Parcours choisi]]<>"",(VLOOKUP(Table35[[#Headers],[Design du Stand]],'Def. Prix & Parcours'!$B$6:$E$28,IF($F23="G",2,IF($F23="T",3,IF($F23="N",4,0))),FALSE)*Table3[[#This Row],[Points Design du Stand]]),"") -> 128 | O23: =IF(Table3[[#This Row],[Parcours choisi]]<>"",(VLOOKUP(Table35[[#Headers],[Portfolio]],'Def. Prix & Parcours'!$B$6:$E$28,IF($F23="G",2,IF($F23="T",3,IF($F23="N",4,0))),FALSE)*Table3[[#This Row],[Points Portfolio]]),"") -> 104 | P23: =IF(Table3[[#This Row],[Parcours choisi]]<>"",(VLOOKUP(Table35[[#Headers],[Marketing et Sponsoring]],'Def. Prix & Parcours'!$B$6:$E$28,IF($F23="G",2,IF($F23="T",3,IF($F23="N",4,0))),FALSE)*Table3[[#This Row],[Points Marketing et Sponsoring]]),"") -> 104 | Q23: =IF(Table3[[#This Row],[Parcours choisi]]<>"",(VLOOKUP(Table35[[#Headers],[Budget]],'Def. Prix & Parcours'!$B$6:$E$28,IF($F23="G",2,IF($F23="T",3,IF($F23="N",4,0))),FALSE)*Table3[[#This Row],[Points Budget]]),"") -> 22 | R23: =IF(Table3[[#This Row],[Parcours choisi]]<>"",(VLOOKUP(Table35[[#Headers],[Design du Véhicule]],'Def. Prix & Parcours'!$B$6:$E$28,IF($F23="G",2,IF($F23="T",3,IF($F23="N",4,0))),FALSE)*Table3[[#This Row],[Points Design du Véhicule]]),"") -> 39 | S23: =IF(Table3[[#This Row],[Parcours choisi]]<>"",(VLOOKUP(Table35[[#Headers],[Innovation numérique]],'Def. Prix & Parcours'!$B$6:$E$28,IF($F23="G",2,IF($F23="T",3,IF($F23="N",4,0))),FALSE)*Table3[[#This Row],[Points Innovation numérique]]),"") -> 0 | T23: =IF(Table3[[#This Row],[Parcours choisi]]<>"",(VLOOKUP(Table35[[#Headers],[Programmation]],'Def. Prix & Parcours'!$B$6:$E$28,IF($F23="G",2,IF($F23="T",3,IF($F23="N",4,0))),FALSE)*Table3[[#This Row],[Points Programmation]]),"") -> 0 | U23: =IF(Table3[[#This Row],[Parcours choisi]]<>"",(VLOOKUP(Table35[[#Headers],[Respect du règlement]],'Def. Prix & Parcours'!$B$6:$E$28,IF($F23="G",2,IF($F23="T",3,IF($F23="N",4,0))),FALSE)*Table3[[#This Row],[Points Respect du règlement]]),"") -> 80 | V23: =IF(Table3[[#This Row],[Parcours choisi]]<>"",(VLOOKUP(Table35[[#Headers],[Communication : vidéo]],'Def. Prix & Parcours'!$B$6:$E$28,IF($F23="G",2,IF($F23="T",3,IF($F23="N",4,0))),FALSE)*Table3[[#This Row],[Points Communication : vidéo]]),"") -> 42 | W23: =IF(Table3[[#This Row],[Parcours choisi]]<>"",(VLOOKUP(Table35[[#Headers],[Epreuve CAO]],'Def. Prix & Parcours'!$B$6:$E$28,IF($F23="G",2,IF($F23="T",3,IF($F23="N",4,0))),FALSE)*Table3[[#This Row],[Points Epreuve CAO]]),"") -> 80 | X23: =IF(Table3[[#This Row],[Parcours choisi]]<>"",(VLOOKUP(Table35[[#Headers],[Temps Réaction]],'Def. Prix & Parcours'!$B$6:$E$28,IF($F23="G",2,IF($F23="T",3,IF($F23="N",4,0))),FALSE)*Table3[[#This Row],[Points Temps Réaction]]),"") -> 48 | Y23: =IF(Table3[[#This Row],[Parcours choisi]]<>"",(VLOOKUP(Table35[[#Headers],[Temps Course]],'Def. Prix & Parcours'!$B$6:$E$28,IF($F23="G",2,IF($F23="T",3,IF($F23="N",4,0))),FALSE)*Table3[[#This Row],[Points Temps Course]]),"") -> 130 | Z23: =IF(Table3[[#This Row],[Parcours choisi]]<>"",(VLOOKUP(Table35[[#Headers],[Epreuve arrêt au stand]],'Def. Prix & Parcours'!$B$6:$E$28,IF($F23="G",2,IF($F23="T",3,IF($F23="N",4,0))),FALSE)*Table3[[#This Row],[Points Epreuve arrêt au stand]]),"") -> 80 | AB23: =IF(Table3[[#This Row],[Parcours choisi]]<>"",SUM(Table35[[#This Row],[Ingénierie et conception]:[1]]),"") -> 1252 | AC23: =IF(Table3[[#This Row],[Parcours choisi]]<>"",_xlfn.RANK.EQ(Table35[[#This Row],[Total Parcours]],Table35[Total Parcours],0),"") -> 19
A24: 18 | B24: =IF(Table3[[#This Row],[Nom équipe]]<>"",Table3[[#This Row],[Nom équipe]],"") -> Danger | C24: =IF(Table3[[#This Row],[Etablissement]]<>"",Table3[[#This Row],[Etablissement]],"") -> Hauts de Blémont Metz | D24: =IF(Table3[[#This Row],[Type établissement]]<>"",Table3[[#This Row],[Type établissement]],"") -> C | E24: =IF(Table3[[#This Row],[Académie]]<>"",Table3[[#This Row],[Académie]],"") -> Nancy-Metz | F24: =IF(Table3[[#This Row],[Parcours choisi]]<>"",Table3[[#This Row],[Parcours choisi]],"") -> G | G24: =IF(Table3[[#This Row],[Parcours choisi]]<>"",(VLOOKUP(Table35[[#Headers],[Ingénierie et conception]],'Def. Prix & Parcours'!$B$6:$E$28,IF($F24="G",2,IF($F24="T",3,IF($F24="N",4,0))),FALSE)*Table3[[#This Row],[Points Ingénierie et conception]]),"") -> 54 | H24: =IF(Table3[[#This Row],[Parcours choisi]]<>"",(VLOOKUP(Table35[[#Headers],[Innovation mécanique]],'Def. Prix & Parcours'!$B$6:$E$28,IF($F24="G",2,IF($F24="T",3,IF($F24="N",4,0))),FALSE)*Table3[[#This Row],[Points Innovation mécanique]]),"") -> 54 | I24: =IF(Table3[[#This Row],[Parcours choisi]]<>"",(VLOOKUP(Table35[[#Headers],[Développement Durable]],'Def. Prix & Parcours'!$B$6:$E$28,IF($F24="G",2,IF($F24="T",3,IF($F24="N",4,0))),FALSE)*Table3[[#This Row],[Points Développement Durable]]),"") -> 56 | J24: =IF(Table3[[#This Row],[Parcours choisi]]<>"",(VLOOKUP(Table35[[#Headers],[Ingénierie de fabrication]],'Def. Prix & Parcours'!$B$6:$E$28,IF($F24="G",2,IF($F24="T",3,IF($F24="N",4,0))),FALSE)*Table3[[#This Row],[Points Ingénierie de fabrication]]),"") -> 39 | K24: =IF(Table3[[#This Row],[Parcours choisi]]<>"",(VLOOKUP(Table35[[#Headers],[Gestion de projet et collaborations]],'Def. Prix & Parcours'!$B$6:$E$28,IF($F24="G",2,IF($F24="T",3,IF($F24="N",4,0))),FALSE)*Table3[[#This Row],[Points Gestion de projet et collaborations]]),"") -> 35 | L24: =IF(Table3[[#This Row],[Parcours choisi]]<>"",(VLOOKUP(Table35[[#Headers],[Présentation Orale]],'Def. Prix & Parcours'!$B$6:$E$28,IF($F24="G",2,IF($F24="T",3,IF($F24="N",4,0))),FALSE)*Table3[[#This Row],[Points Présentation Orale]]),"") -> 70 | M24: =IF(Table3[[#This Row],[Parcours choisi]]<>"",(VLOOKUP(Table35[[#Headers],[Identité Equipe]],'Def. Prix & Parcours'!$B$6:$E$28,IF($F24="G",2,IF($F24="T",3,IF($F24="N",4,0))),FALSE)*Table3[[#This Row],[Points Identité Equipe]]),"") -> 85 | N24: =IF(Table3[[#This Row],[Parcours choisi]]<>"",(VLOOKUP(Table35[[#Headers],[Design du Stand]],'Def. Prix & Parcours'!$B$6:$E$28,IF($F24="G",2,IF($F24="T",3,IF($F24="N",4,0))),FALSE)*Table3[[#This Row],[Points Design du Stand]]),"") -> 136 | O24: =IF(Table3[[#This Row],[Parcours choisi]]<>"",(VLOOKUP(Table35[[#Headers],[Portfolio]],'Def. Prix & Parcours'!$B$6:$E$28,IF($F24="G",2,IF($F24="T",3,IF($F24="N",4,0))),FALSE)*Table3[[#This Row],[Points Portfolio]]),"") -> 112 | P24: =IF(Table3[[#This Row],[Parcours choisi]]<>"",(VLOOKUP(Table35[[#Headers],[Marketing et Sponsoring]],'Def. Prix & Parcours'!$B$6:$E$28,IF($F24="G",2,IF($F24="T",3,IF($F24="N",4,0))),FALSE)*Table3[[#This Row],[Points Marketing et Sponsoring]]),"") -> 80 | Q24: =IF(Table3[[#This Row],[Parcours choisi]]<>"",(VLOOKUP(Table35[[#Headers],[Budget]],'Def. Prix & Parcours'!$B$6:$E$28,IF($F24="G",2,IF($F24="T",3,IF($F24="N",4,0))),FALSE)*Table3[[#This Row],[Points Budget]]),"") -> 26 | R24: =IF(Table3[[#This Row],[Parcours choisi]]<>"",(VLOOKUP(Table35[[#Headers],[Design du Véhicule]],'Def. Prix & Parcours'!$B$6:$E$28,IF($F24="G",2,IF($F24="T",3,IF($F24="N",4,0))),FALSE)*Table3[[#This Row],[Points Design du Véhicule]]),"") -> 42 | S24: =IF(Table3[[#This Row],[Parcours choisi]]<>"",(VLOOKUP(Table35[[#Headers],[Innovation numérique]],'Def. Prix & Parcours'!$B$6:$E$28,IF($F24="G",2,IF($F24="T",3,IF($F24="N",4,0))),FALSE)*Table3[[#This Row],[Points Innovation numérique]]),"") -> 28 | T24: =IF(Table3[[#This Row],[Parcours choisi]]<>"",(VLOOKUP(Table35[[#Headers],[Programmation]],'Def. Prix & Parcours'!$B$6:$E$28,IF($F24="G",2,IF($F24="T",3,IF($F24="N",4,0))),FALSE)*Table3[[#This Row],[Points Programmation]]),"") -> 16 | U24: =IF(Table3[[#This Row],[Parcours choisi]]<>"",(VLOOKUP(Table35[[#Headers],[Respect du règlement]],'Def. Prix & Parcours'!$B$6:$E$28,IF($F24="G",2,IF($F24="T",3,IF($F24="N",4,0))),FALSE)*Table3[[#This Row],[Points Respect du règlement]]),"") -> 80 | V24: =IF(Table3[[#This Row],[Parcours choisi]]<>"",(VLOOKUP(Table35[[#Headers],[Communication : vidéo]],'Def. Prix & Parcours'!$B$6:$E$28,IF($F24="G",2,IF($F24="T",3,IF($F24="N",4,0))),FALSE)*Table3[[#This Row],[Points Communication : vidéo]]),"") -> 39 | W24: =IF(Table3[[#This Row],[Parcours choisi]]<>"",(VLOOKUP(Table35[[#Headers],[Epreuve CAO]],'Def. Prix & Parcours'!$B$6:$E$28,IF($F24="G",2,IF($F24="T",3,IF($F24="N",4,0))),FALSE)*Table3[[#This Row],[Points Epreuve CAO]]),"") -> 80 | X24: =IF(Table3[[#This Row],[Parcours choisi]]<>"",(VLOOKUP(Table35[[#Headers],[Temps Réaction]],'Def. Prix & Parcours'!$B$6:$E$28,IF($F24="G",2,IF($F24="T",3,IF($F24="N",4,0))),FALSE)*Table3[[#This Row],[Points Temps Réaction]]),"") -> 33 | Y24: =IF(Table3[[#This Row],[Parcours choisi]]<>"",(VLOOKUP(Table35[[#Headers],[Temps Course]],'Def. Prix & Parcours'!$B$6:$E$28,IF($F24="G",2,IF($F24="T",3,IF($F24="N",4,0))),FALSE)*Table3[[#This Row],[Points Temps Course]]),"") -> 80 | Z24: =IF(Table3[[#This Row],[Parcours choisi]]<>"",(VLOOKUP(Table35[[#Headers],[Epreuve arrêt au stand]],'Def. Prix & Parcours'!$B$6:$E$28,IF($F24="G",2,IF($F24="T",3,IF($F24="N",4,0))),FALSE)*Table3[[#This Row],[Points Epreuve arrêt au stand]]),"") -> 80 | AB24: =IF(Table3[[#This Row],[Parcours choisi]]<>"",SUM(Table35[[#This Row],[Ingénierie et conception]:[1]]),"") -> 1225 | AC24: =IF(Table3[[#This Row],[Parcours choisi]]<>"",_xlfn.RANK.EQ(Table35[[#This Row],[Total Parcours]],Table35[Total Parcours],0),"") -> 21
A25: 19 | B25: =IF(Table3[[#This Row],[Nom équipe]]<>"",Table3[[#This Row],[Nom équipe]],"") -> Scott | C25: =IF(Table3[[#This Row],[Etablissement]]<>"",Table3[[#This Row],[Etablissement]],"") -> Hauts de Blémont Metz | D25: =IF(Table3[[#This Row],[Type établissement]]<>"",Table3[[#This Row],[Type établissement]],"") -> C | E25: =IF(Table3[[#This Row],[Académie]]<>"",Table3[[#This Row],[Académie]],"") -> Nancy-Metz | F25: =IF(Table3[[#This Row],[Parcours choisi]]<>"",Table3[[#This Row],[Parcours choisi]],"") -> G | G25: =IF(Table3[[#This Row],[Parcours choisi]]<>"",(VLOOKUP(Table35[[#Headers],[Ingénierie et conception]],'Def. Prix & Parcours'!$B$6:$E$28,IF($F25="G",2,IF($F25="T",3,IF($F25="N",4,0))),FALSE)*Table3[[#This Row],[Points Ingénierie et conception]]),"") -> 66 | H25: =IF(Table3[[#This Row],[Parcours choisi]]<>"",(VLOOKUP(Table35[[#Headers],[Innovation mécanique]],'Def. Prix & Parcours'!$B$6:$E$28,IF($F25="G",2,IF($F25="T",3,IF($F25="N",4,0))),FALSE)*Table3[[#This Row],[Points Innovation mécanique]]),"") -> 84 | I25: =IF(Table3[[#This Row],[Parcours choisi]]<>"",(VLOOKUP(Table35[[#Headers],[Développement Durable]],'Def. Prix & Parcours'!$B$6:$E$28,IF($F25="G",2,IF($F25="T",3,IF($F25="N",4,0))),FALSE)*Table3[[#This Row],[Points Développement Durable]]),"") -> 44 | J25: =IF(Table3[[#This Row],[Parcours choisi]]<>"",(VLOOKUP(Table35[[#Headers],[Ingénierie de fabrication]],'Def. Prix & Parcours'!$B$6:$E$28,IF($F25="G",2,IF($F25="T",3,IF($F25="N",4,0))),FALSE)*Table3[[#This Row],[Points Ingénierie de fabrication]]),"") -> 36 | K25: =IF(Table3[[#This Row],[Parcours choisi]]<>"",(VLOOKUP(Table35[[#Headers],[Gestion de projet et collaborations]],'Def. Prix & Parcours'!$B$6:$E$28,IF($F25="G",2,IF($F25="T",3,IF($F25="N",4,0))),FALSE)*Table3[[#This Row],[Points Gestion de projet et collaborations]]),"") -> 75 | L25: =IF(Table3[[#This Row],[Parcours choisi]]<>"",(VLOOKUP(Table35[[#Headers],[Présentation Orale]],'Def. Prix & Parcours'!$B$6:$E$28,IF($F25="G",2,IF($F25="T",3,IF($F25="N",4,0))),FALSE)*Table3[[#This Row],[Points Présentation Orale]]),"") -> 45 | M25: =IF(Table3[[#This Row],[Parcours choisi]]<>"",(VLOOKUP(Table35[[#Headers],[Identité Equipe]],'Def. Prix & Parcours'!$B$6:$E$28,IF($F25="G",2,IF($F25="T",3,IF($F25="N",4,0))),FALSE)*Table3[[#This Row],[Points Identité Equipe]]),"") -> 90 | N25: =IF(Table3[[#This Row],[Parcours choisi]]<>"",(VLOOKUP(Table35[[#Headers],[Design du Stand]],'Def. Prix & Parcours'!$B$6:$E$28,IF($F25="G",2,IF($F25="T",3,IF($F25="N",4,0))),FALSE)*Table3[[#This Row],[Points Design du Stand]]),"") -> 128 | O25: =IF(Table3[[#This Row],[Parcours choisi]]<>"",(VLOOKUP(Table35[[#Headers],[Portfolio]],'Def. Prix & Parcours'!$B$6:$E$28,IF($F25="G",2,IF($F25="T",3,IF($F25="N",4,0))),FALSE)*Table3[[#This Row],[Points Portfolio]]),"") -> 144 | P25: =IF(Table3[[#This Row],[Parcours choisi]]<>"",(VLOOKUP(Table35[[#Headers],[Marketing et Sponsoring]],'Def. Prix & Parcours'!$B$6:$E$28,IF($F25="G",2,IF($F25="T",3,IF($F25="N",4,0))),FALSE)*Table3[[#This Row],[Points Marketing et Sponsoring]]),"") -> 144 | Q25: =IF(Table3[[#This Row],[Parcours choisi]]<>"",(VLOOKUP(Table35[[#Headers],[Budget]],'Def. Prix & Parcours'!$B$6:$E$28,IF($F25="G",2,IF($F25="T",3,IF($F25="N",4,0))),FALSE)*Table3[[#This Row],[Points Budget]]),"") -> 36 | R25: =IF(Table3[[#This Row],[Parcours choisi]]<>"",(VLOOKUP(Table35[[#Headers],[Design du Véhicule]],'Def. Prix & Parcours'!$B$6:$E$28,IF($F25="G",2,IF($F25="T",3,IF($F25="N",4,0))),FALSE)*Table3[[#This Row],[Points Design du Véhicule]]),"") -> 54 | S25: =IF(Table3[[#This Row],[Parcours choisi]]<>"",(VLOOKUP(Table35[[#Headers],[Innovation numérique]],'Def. Prix & Parcours'!$B$6:$E$28,IF($F25="G",2,IF($F25="T",3,IF($F25="N",4,0))),FALSE)*Table3[[#This Row],[Points Innovation numérique]]),"") -> 0 | T25: =IF(Table3[[#This Row],[Parcours choisi]]<>"",(VLOOKUP(Table35[[#Headers],[Programmation]],'Def. Prix & Parcours'!$B$6:$E$28,IF($F25="G",2,IF($F25="T",3,IF($F25="N",4,0))),FALSE)*Table3[[#This Row],[Points Programmation]]),"") -> 0 | U25: =IF(Table3[[#This Row],[Parcours choisi]]<>"",(VLOOKUP(Table35[[#Headers],[Respect du règlement]],'Def. Prix & Parcours'!$B$6:$E$28,IF($F25="G",2,IF($F25="T",3,IF($F25="N",4,0))),FALSE)*Table3[[#This Row],[Points Respect du règlement]]),"") -> 80 | V25: =IF(Table3[[#This Row],[Parcours choisi]]<>"",(VLOOKUP(Table35[[#Headers],[Communication : vidéo]],'Def. Prix & Parcours'!$B$6:$E$28,IF($F25="G",2,IF($F25="T",3,IF($F25="N",4,0))),FALSE)*Table3[[#This Row],[Points Communication : vidéo]]),"") -> 54 | W25: =IF(Table3[[#This Row],[Parcours choisi]]<>"",(VLOOKUP(Table35[[#Headers],[Epreuve CAO]],'Def. Prix & Parcours'!$B$6:$E$28,IF($F25="G",2,IF($F25="T",3,IF($F25="N",4,0))),FALSE)*Table3[[#This Row],[Points Epreuve CAO]]),"") -> 80 | X25: =IF(Table3[[#This Row],[Parcours choisi]]<>"",(VLOOKUP(Table35[[#Headers],[Temps Réaction]],'Def. Prix & Parcours'!$B$6:$E$28,IF($F25="G",2,IF($F25="T",3,IF($F25="N",4,0))),FALSE)*Table3[[#This Row],[Points Temps Réaction]]),"") -> 12 | Y25: =IF(Table3[[#This Row],[Parcours choisi]]<>"",(VLOOKUP(Table35[[#Headers],[Temps Course]],'Def. Prix & Parcours'!$B$6:$E$28,IF($F25="G",2,IF($F25="T",3,IF($F25="N",4,0))),FALSE)*Table3[[#This Row],[Points Temps Course]]),"") -> 90 | Z25: =IF(Table3[[#This Row],[Parcours choisi]]<>"",(VLOOKUP(Table35[[#Headers],[Epreuve arrêt au stand]],'Def. Prix & Parcours'!$B$6:$E$28,IF($F25="G",2,IF($F25="T",3,IF($F25="N",4,0))),FALSE)*Table3[[#This Row],[Points Epreuve arrêt au stand]]),"") -> 80 | AB25: =IF(Table3[[#This Row],[Parcours choisi]]<>"",SUM(Table35[[#This Row],[Ingénierie et conception]:[1]]),"") -> 1342 | AC25: =IF(Table3[[#This Row],[Parcours choisi]]<>"",_xlfn.RANK.EQ(Table35[[#This Row],[Total Parcours]],Table35[Total Parcours],0),"") -> 14
A26: 20 | B26: =IF(Table3[[#This Row],[Nom équipe]]<>"",Table3[[#This Row],[Nom équipe]],"") -> Amercan's 70 | C26: =IF(Table3[[#This Row],[Etablissement]]<>"",Table3[[#This Row],[Etablissement]],"") -> A. Dreux Folschviller | D26: =IF(Table3[[#This Row],[Type établissement]]<>"",Table3[[#This Row],[Type établissement]],"") -> C | E26: =IF(Table3[[#This Row],[Académie]]<>"",Table3[[#This Row],[Académie]],"") -> Nancy-Metz | F26: =IF(Table3[[#This Row],[Parcours choisi]]<>"",Table3[[#This Row],[Parcours choisi]],"") -> G | G26: =IF(Table3[[#This Row],[Parcours choisi]]<>"",(VLOOKUP(Table35[[#Headers],[Ingénierie et conception]],'Def. Prix & Parcours'!$B$6:$E$28,IF($F26="G",2,IF($F26="T",3,IF($F26="N",4,0))),FALSE)*Table3[[#This Row],[Points Ingénierie et conception]]),"") -> 78 | H26: =IF(Table3[[#This Row],[Parcours choisi]]<>"",(VLOOKUP(Table35[[#Headers],[Innovation mécanique]],'Def. Prix & Parcours'!$B$6:$E$28,IF($F26="G",2,IF($F26="T",3,IF($F26="N",4,0))),FALSE)*Table3[[#This Row],[Points Innovation mécanique]]),"") -> 78 | I26: =IF(Table3[[#This Row],[Parcours choisi]]<>"",(VLOOKUP(Table35[[#Headers],[Développement Durable]],'Def. Prix & Parcours'!$B$6:$E$28,IF($F26="G",2,IF($F26="T",3,IF($F26="N",4,0))),FALSE)*Table3[[#This Row],[Points Développement Durable]]),"") -> 64 | J26: =IF(Table3[[#This Row],[Parcours choisi]]<>"",(VLOOKUP(Table35[[#Headers],[Ingénierie de fabrication]],'Def. Prix & Parcours'!$B$6:$E$28,IF($F26="G",2,IF($F26="T",3,IF($F26="N",4,0))),FALSE)*Table3[[#This Row],[Points Ingénierie de fabrication]]),"") -> 48 | K26: =IF(Table3[[#This Row],[Parcours choisi]]<>"",(VLOOKUP(Table35[[#Headers],[Gestion de projet et collaborations]],'Def. Prix & Parcours'!$B$6:$E$28,IF($F26="G",2,IF($F26="T",3,IF($F26="N",4,0))),FALSE)*Table3[[#This Row],[Points Gestion de projet et collaborations]]),"") -> 70 | L26: =IF(Table3[[#This Row],[Parcours choisi]]<>"",(VLOOKUP(Table35[[#Headers],[Présentation Orale]],'Def. Prix & Parcours'!$B$6:$E$28,IF($F26="G",2,IF($F26="T",3,IF($F26="N",4,0))),FALSE)*Table3[[#This Row],[Points Présentation Orale]]),"") -> 60 | M26: =IF(Table3[[#This Row],[Parcours choisi]]<>"",(VLOOKUP(Table35[[#Headers],[Identité Equipe]],'Def. Prix & Parcours'!$B$6:$E$28,IF($F26="G",2,IF($F26="T",3,IF($F26="N",4,0))),FALSE)*Table3[[#This Row],[Points Identité Equipe]]),"") -> 60 | N26: =IF(Table3[[#This Row],[Parcours choisi]]<>"",(VLOOKUP(Table35[[#Headers],[Design du Stand]],'Def. Prix & Parcours'!$B$6:$E$28,IF($F26="G",2,IF($F26="T",3,IF($F26="N",4,0))),FALSE)*Table3[[#This Row],[Points Design du Stand]]),"") -> 96 | O26: =IF(Table3[[#This Row],[Parcours choisi]]<>"",(VLOOKUP(Table35[[#Headers],[Portfolio]],'Def. Prix & Parcours'!$B$6:$E$28,IF($F26="G",2,IF($F26="T",3,IF($F26="N",4,0))),FALSE)*Table3[[#This Row],[Points Portfolio]]),"") -> 80 | P26: =IF(Table3[[#This Row],[Parcours choisi]]<>"",(VLOOKUP(Table35[[#Headers],[Marketing et Sponsoring]],'Def. Prix & Parcours'!$B$6:$E$28,IF($F26="G",2,IF($F26="T",3,IF($F26="N",4,0))),FALSE)*Table3[[#This Row],[Points Marketing et Sponsoring]]),"") -> 56 | Q26: =IF(Table3[[#This Row],[Parcours choisi]]<>"",(VLOOKUP(Table35[[#Headers],[Budget]],'Def. Prix & Parcours'!$B$6:$E$28,IF($F26="G",2,IF($F26="T",3,IF($F26="N",4,0))),FALSE)*Table3[[#This Row],[Points Budget]]),"") -> 8 | R26: =IF(Table3[[#This Row],[Parcours choisi]]<>"",(VLOOKUP(Table35[[#Headers],[Design du Véhicule]],'Def. Prix & Parcours'!$B$6:$E$28,IF($F26="G",2,IF($F26="T",3,IF($F26="N",4,0))),FALSE)*Table3[[#This Row],[Points Design du Véhicule]]),"") -> 36 | S26: =IF(Table3[[#This Row],[Parcours choisi]]<>"",(VLOOKUP(Table35[[#Headers],[Innovation numérique]],'Def. Prix & Parcours'!$B$6:$E$28,IF($F26="G",2,IF($F26="T",3,IF($F26="N",4,0))),FALSE)*Table3[[#This Row],[Points Innovation numérique]]),"") -> 12 | T26: =IF(Table3[[#This Row],[Parcours choisi]]<>"",(VLOOKUP(Table35[[#Headers],[Programmation]],'Def. Prix & Parcours'!$B$6:$E$28,IF($F26="G",2,IF($F26="T",3,IF($F26="N",4,0))),FALSE)*Table3[[#This Row],[Points Programmation]]),"") -> 0 | U26: =IF(Table3[[#This Row],[Parcours choisi]]<>"",(VLOOKUP(Table35[[#Headers],[Respect du règlement]],'Def. Prix & Parcours'!$B$6:$E$28,IF($F26="G",2,IF($F26="T",3,IF($F26="N",4,0))),FALSE)*Table3[[#This Row],[Points Respect du règlement]]),"") -> 70 | V26: =IF(Table3[[#This Row],[Parcours choisi]]<>"",(VLOOKUP(Table35[[#Headers],[Communication : vidéo]],'Def. Prix & Parcours'!$B$6:$E$28,IF($F26="G",2,IF($F26="T",3,IF($F26="N",4,0))),FALSE)*Table3[[#This Row],[Points Communication : vidéo]]),"") -> 48 | W26: =IF(Table3[[#This Row],[Parcours choisi]]<>"",(VLOOKUP(Table35[[#Headers],[Epreuve CAO]],'Def. Prix & Parcours'!$B$6:$E$28,IF($F26="G",2,IF($F26="T",3,IF($F26="N",4,0))),FALSE)*Table3[[#This Row],[Points Epreuve CAO]]),"") -> 80 | X26: =IF(Table3[[#This Row],[Parcours choisi]]<>"",(VLOOKUP(Table35[[#Headers],[Temps Réaction]],'Def. Prix & Parcours'!$B$6:$E$28,IF($F26="G",2,IF($F26="T",3,IF($F26="N",4,0))),FALSE)*Table3[[#This Row],[Points Temps Réaction]]),"") -> 24 | Y26: =IF(Table3[[#This Row],[Parcours choisi]]<>"",(VLOOKUP(Table35[[#Headers],[Temps Course]],'Def. Prix & Parcours'!$B$6:$E$28,IF($F26="G",2,IF($F26="T",3,IF($F26="N",4,0))),FALSE)*Table3[[#This Row],[Points Temps Course]]),"") -> 80 | Z26: =IF(Table3[[#This Row],[Parcours choisi]]<>"",(VLOOKUP(Table35[[#Headers],[Epreuve arrêt au stand]],'Def. Prix & Parcours'!$B$6:$E$28,IF($F26="G",2,IF($F26="T",3,IF($F26="N",4,0))),FALSE)*Table3[[#This Row],[Points Epreuve arrêt au stand]]),"") -> 80 | AB26: =IF(Table3[[#This Row],[Parcours choisi]]<>"",SUM(Table35[[#This Row],[Ingénierie et conception]:[1]]),"") -> 1128 | AC26: =IF(Table3[[#This Row],[Parcours choisi]]<>"",_xlfn.RANK.EQ(Table35[[#This Row],[Total Parcours]],Table35[Total Parcours],0),"") -> 22
A27: 21 | B27: =IF(Table3[[#This Row],[Nom équipe]]<>"",Table3[[#This Row],[Nom équipe]],"") -> Les 80's | C27: =IF(Table3[[#This Row],[Etablissement]]<>"",Table3[[#This Row],[Etablissement]],"") -> A. Dreux Folschviller | D27: =IF(Table3[[#This Row],[Type établissement]]<>"",Table3[[#This Row],[Type établissement]],"") -> C | E27: =IF(Table3[[#This Row],[Académie]]<>"",Table3[[#This Row],[Académie]],"") -> Nancy-Metz | F27: =IF(Table3[[#This Row],[Parcours choisi]]<>"",Table3[[#This Row],[Parcours choisi]],"") -> G | G27: =IF(Table3[[#This Row],[Parcours choisi]]<>"",(VLOOKUP(Table35[[#Headers],[Ingénierie et conception]],'Def. Prix & Parcours'!$B$6:$E$28,IF($F27="G",2,IF($F27="T",3,IF($F27="N",4,0))),FALSE)*Table3[[#This Row],[Points Ingénierie et conception]]),"") -> 84 | H27: =IF(Table3[[#This Row],[Parcours choisi]]<>"",(VLOOKUP(Table35[[#Headers],[Innovation mécanique]],'Def. Prix & Parcours'!$B$6:$E$28,IF($F27="G",2,IF($F27="T",3,IF($F27="N",4,0))),FALSE)*Table3[[#This Row],[Points Innovation mécanique]]),"") -> 72 | I27: =IF(Table3[[#This Row],[Parcours choisi]]<>"",(VLOOKUP(Table35[[#Headers],[Développement Durable]],'Def. Prix & Parcours'!$B$6:$E$28,IF($F27="G",2,IF($F27="T",3,IF($F27="N",4,0))),FALSE)*Table3[[#This Row],[Points Développement Durable]]),"") -> 36 | J27: =IF(Table3[[#This Row],[Parcours choisi]]<>"",(VLOOKUP(Table35[[#Headers],[Ingénierie de fabrication]],'Def. Prix & Parcours'!$B$6:$E$28,IF($F27="G",2,IF($F27="T",3,IF($F27="N",4,0))),FALSE)*Table3[[#This Row],[Points Ingénierie de fabrication]]),"") -> 45 | K27: =IF(Table3[[#This Row],[Parcours choisi]]<>"",(VLOOKUP(Table35[[#Headers],[Gestion de projet et collaborations]],'Def. Prix & Parcours'!$B$6:$E$28,IF($F27="G",2,IF($F27="T",3,IF($F27="N",4,0))),FALSE)*Table3[[#This Row],[Points Gestion de projet et collaborations]]),"") -> 50 | L27: =IF(Table3[[#This Row],[Parcours choisi]]<>"",(VLOOKUP(Table35[[#Headers],[Présentation Orale]],'Def. Prix & Parcours'!$B$6:$E$28,IF($F27="G",2,IF($F27="T",3,IF($F27="N",4,0))),FALSE)*Table3[[#This Row],[Points Présentation Orale]]),"") -> 70 | M27: =IF(Table3[[#This Row],[Parcours choisi]]<>"",(VLOOKUP(Table35[[#Headers],[Identité Equipe]],'Def. Prix & Parcours'!$B$6:$E$28,IF($F27="G",2,IF($F27="T",3,IF($F27="N",4,0))),FALSE)*Table3[[#This Row],[Points Identité Equipe]]),"") -> 75 | N27: =IF(Table3[[#This Row],[Parcours choisi]]<>"",(VLOOKUP(Table35[[#Headers],[Design du Stand]],'Def. Prix & Parcours'!$B$6:$E$28,IF($F27="G",2,IF($F27="T",3,IF($F27="N",4,0))),FALSE)*Table3[[#This Row],[Points Design du Stand]]),"") -> 120 | O27: =IF(Table3[[#This Row],[Parcours choisi]]<>"",(VLOOKUP(Table35[[#Headers],[Portfolio]],'Def. Prix & Parcours'!$B$6:$E$28,IF($F27="G",2,IF($F27="T",3,IF($F27="N",4,0))),FALSE)*Table3[[#This Row],[Points Portfolio]]),"") -> 112 | P27: =IF(Table3[[#This Row],[Parcours choisi]]<>"",(VLOOKUP(Table35[[#Headers],[Marketing et Sponsoring]],'Def. Prix & Parcours'!$B$6:$E$28,IF($F27="G",2,IF($F27="T",3,IF($F27="N",4,0))),FALSE)*Table3[[#This Row],[Points Marketing et Sponsoring]]),"") -> 104 | Q27: =IF(Table3[[#This Row],[Parcours choisi]]<>"",(VLOOKUP(Table35[[#Headers],[Budget]],'Def. Prix & Parcours'!$B$6:$E$28,IF($F27="G",2,IF($F27="T",3,IF($F27="N",4,0))),FALSE)*Table3[[#This Row],[Points Budget]]),"") -> 18 | R27: =IF(Table3[[#This Row],[Parcours choisi]]<>"",(VLOOKUP(Table35[[#Headers],[Design du Véhicule]],'Def. Prix & Parcours'!$B$6:$E$28,IF($F27="G",2,IF($F27="T",3,IF($F27="N",4,0))),FALSE)*Table3[[#This Row],[Points Design du Véhicule]]),"") -> 45 | S27: =IF(Table3[[#This Row],[Parcours choisi]]<>"",(VLOOKUP(Table35[[#Headers],[Innovation numérique]],'Def. Prix & Parcours'!$B$6:$E$28,IF($F27="G",2,IF($F27="T",3,IF($F27="N",4,0))),FALSE)*Table3[[#This Row],[Points Innovation numérique]]),"") -> 12 | T27: =IF(Table3[[#This Row],[Parcours choisi]]<>"",(VLOOKUP(Table35[[#Headers],[Programmation]],'Def. Prix & Parcours'!$B$6:$E$28,IF($F27="G",2,IF($F27="T",3,IF($F27="N",4,0))),FALSE)*Table3[[#This Row],[Points Programmation]]),"") -> 12 | U27: =IF(Table3[[#This Row],[Parcours choisi]]<>"",(VLOOKUP(Table35[[#Headers],[Respect du règlement]],'Def. Prix & Parcours'!$B$6:$E$28,IF($F27="G",2,IF($F27="T",3,IF($F27="N",4,0))),FALSE)*Table3[[#This Row],[Points Respect du règlement]]),"") -> 75 | V27: =IF(Table3[[#This Row],[Parcours choisi]]<>"",(VLOOKUP(Table35[[#Headers],[Communication : vidéo]],'Def. Prix & Parcours'!$B$6:$E$28,IF($F27="G",2,IF($F27="T",3,IF($F27="N",4,0))),FALSE)*Table3[[#This Row],[Points Communication : vidéo]]),"") -> 33 | W27: =IF(Table3[[#This Row],[Parcours choisi]]<>"",(VLOOKUP(Table35[[#Headers],[Epreuve CAO]],'Def. Prix & Parcours'!$B$6:$E$28,IF($F27="G",2,IF($F27="T",3,IF($F27="N",4,0))),FALSE)*Table3[[#This Row],[Points Epreuve CAO]]),"") -> 80 | X27: =IF(Table3[[#This Row],[Parcours choisi]]<>"",(VLOOKUP(Table35[[#Headers],[Temps Réaction]],'Def. Prix & Parcours'!$B$6:$E$28,IF($F27="G",2,IF($F27="T",3,IF($F27="N",4,0))),FALSE)*Table3[[#This Row],[Points Temps Réaction]]),"") -> 33 | Y27: =IF(Table3[[#This Row],[Parcours choisi]]<>"",(VLOOKUP(Table35[[#Headers],[Temps Course]],'Def. Prix & Parcours'!$B$6:$E$28,IF($F27="G",2,IF($F27="T",3,IF($F27="N",4,0))),FALSE)*Table3[[#This Row],[Points Temps Course]]),"") -> 80 | Z27: =IF(Table3[[#This Row],[Parcours choisi]]<>"",(VLOOKUP(Table35[[#Headers],[Epreuve arrêt au stand]],'Def. Prix & Parcours'!$B$6:$E$28,IF($F27="G",2,IF($F27="T",3,IF($F27="N",4,0))),FALSE)*Table3[[#This Row],[Points Epreuve arrêt au stand]]),"") -> 80 | AB27: =IF(Table3[[#This Row],[Parcours choisi]]<>"",SUM(Table35[[#This Row],[Ingénierie et conception]:[1]]),"") -> 1236 | AC27: =IF(Table3[[#This Row],[Parcours choisi]]<>"",_xlfn.RANK.EQ(Table35[[#This Row],[Total Parcours]],Table35[Total Parcours],0),"") -> 20
A28: 22 | B28: =IF(Table3[[#This Row],[Nom équipe]]<>"",Table3[[#This Row],[Nom équipe]],"") -> E-magie-nation | C28: =IF(Table3[[#This Row],[Etablissement]]<>"",Table3[[#This Row],[Etablissement]],"") -> A. Dreux Folschviller | D28: =IF(Table3[[#This Row],[Type établissement]]<>"",Table3[[#This Row],[Type établissement]],"") -> C | E28: =IF(Table3[[#This Row],[Académie]]<>"",Table3[[#This Row],[Académie]],"") -> Nancy-Metz | F28: =IF(Table3[[#This Row],[Parcours choisi]]<>"",Table3[[#This Row],[Parcours choisi]],"") -> G | G28: =IF(Table3[[#This Row],[Parcours choisi]]<>"",(VLOOKUP(Table35[[#Headers],[Ingénierie et conception]],'Def. Prix & Parcours'!$B$6:$E$28,IF($F28="G",2,IF($F28="T",3,IF($F28="N",4,0))),FALSE)*Table3[[#This Row],[Points Ingénierie et conception]]),"") -> 78 | H28: =IF(Table3[[#This Row],[Parcours choisi]]<>"",(VLOOKUP(Table35[[#Headers],[Innovation mécanique]],'Def. Prix & Parcours'!$B$6:$E$28,IF($F28="G",2,IF($F28="T",3,IF($F28="N",4,0))),FALSE)*Table3[[#This Row],[Points Innovation mécanique]]),"") -> 84 | I28: =IF(Table3[[#This Row],[Parcours choisi]]<>"",(VLOOKUP(Table35[[#Headers],[Développement Durable]],'Def. Prix & Parcours'!$B$6:$E$28,IF($F28="G",2,IF($F28="T",3,IF($F28="N",4,0))),FALSE)*Table3[[#This Row],[Points Développement Durable]]),"") -> 48 | J28: =IF(Table3[[#This Row],[Parcours choisi]]<>"",(VLOOKUP(Table35[[#Headers],[Ingénierie de fabrication]],'Def. Prix & Parcours'!$B$6:$E$28,IF($F28="G",2,IF($F28="T",3,IF($F28="N",4,0))),FALSE)*Table3[[#This Row],[Points Ingénierie de fabrication]]),"") -> 42 | K28: =IF(Table3[[#This Row],[Parcours choisi]]<>"",(VLOOKUP(Table35[[#Headers],[Gestion de projet et collaborations]],'Def. Prix & Parcours'!$B$6:$E$28,IF($F28="G",2,IF($F28="T",3,IF($F28="N",4,0))),FALSE)*Table3[[#This Row],[Points Gestion de projet et collaborations]]),"") -> 70 | L28: =IF(Table3[[#This Row],[Parcours choisi]]<>"",(VLOOKUP(Table35[[#Headers],[Présentation Orale]],'Def. Prix & Parcours'!$B$6:$E$28,IF($F28="G",2,IF($F28="T",3,IF($F28="N",4,0))),FALSE)*Table3[[#This Row],[Points Présentation Orale]]),"") -> 65 | M28: =IF(Table3[[#This Row],[Parcours choisi]]<>"",(VLOOKUP(Table35[[#Headers],[Identité Equipe]],'Def. Prix & Parcours'!$B$6:$E$28,IF($F28="G",2,IF($F28="T",3,IF($F28="N",4,0))),FALSE)*Table3[[#This Row],[Points Identité Equipe]]),"") -> 70 | N28: =IF(Table3[[#This Row],[Parcours choisi]]<>"",(VLOOKUP(Table35[[#Headers],[Design du Stand]],'Def. Prix & Parcours'!$B$6:$E$28,IF($F28="G",2,IF($F28="T",3,IF($F28="N",4,0))),FALSE)*Table3[[#This Row],[Points Design du Stand]]),"") -> 120 | O28: =IF(Table3[[#This Row],[Parcours choisi]]<>"",(VLOOKUP(Table35[[#Headers],[Portfolio]],'Def. Prix & Parcours'!$B$6:$E$28,IF($F28="G",2,IF($F28="T",3,IF($F28="N",4,0))),FALSE)*Table3[[#This Row],[Points Portfolio]]),"") -> 144 | P28: =IF(Table3[[#This Row],[Parcours choisi]]<>"",(VLOOKUP(Table35[[#Headers],[Marketing et Sponsoring]],'Def. Prix & Parcours'!$B$6:$E$28,IF($F28="G",2,IF($F28="T",3,IF($F28="N",4,0))),FALSE)*Table3[[#This Row],[Points Marketing et Sponsoring]]),"") -> 64 | Q28: =IF(Table3[[#This Row],[Parcours choisi]]<>"",(VLOOKUP(Table35[[#Headers],[Budget]],'Def. Prix & Parcours'!$B$6:$E$28,IF($F28="G",2,IF($F28="T",3,IF($F28="N",4,0))),FALSE)*Table3[[#This Row],[Points Budget]]),"") -> 16 | R28: =IF(Table3[[#This Row],[Parcours choisi]]<>"",(VLOOKUP(Table35[[#Headers],[Design du Véhicule]],'Def. Prix & Parcours'!$B$6:$E$28,IF($F28="G",2,IF($F28="T",3,IF($F28="N",4,0))),FALSE)*Table3[[#This Row],[Points Design du Véhicule]]),"") -> 45 | S28: =IF(Table3[[#This Row],[Parcours choisi]]<>"",(VLOOKUP(Table35[[#Headers],[Innovation numérique]],'Def. Prix & Parcours'!$B$6:$E$28,IF($F28="G",2,IF($F28="T",3,IF($F28="N",4,0))),FALSE)*Table3[[#This Row],[Points Innovation numérique]]),"") -> 68 | T28: =IF(Table3[[#This Row],[Parcours choisi]]<>"",(VLOOKUP(Table35[[#Headers],[Programmation]],'Def. Prix & Parcours'!$B$6:$E$28,IF($F28="G",2,IF($F28="T",3,IF($F28="N",4,0))),FALSE)*Table3[[#This Row],[Points Programmation]]),"") -> 0 | U28: =IF(Table3[[#This Row],[Parcours choisi]]<>"",(VLOOKUP(Table35[[#Headers],[Respect du règlement]],'Def. Prix & Parcours'!$B$6:$E$28,IF($F28="G",2,IF($F28="T",3,IF($F28="N",4,0))),FALSE)*Table3[[#This Row],[Points Respect du règlement]]),"") -> 100 | V28: =IF(Table3[[#This Row],[Parcours choisi]]<>"",(VLOOKUP(Table35[[#Headers],[Communication : vidéo]],'Def. Prix & Parcours'!$B$6:$E$28,IF($F28="G",2,IF($F28="T",3,IF($F28="N",4,0))),FALSE)*Table3[[#This Row],[Points Communication : vidéo]]),"") -> 60 | W28: =IF(Table3[[#This Row],[Parcours choisi]]<>"",(VLOOKUP(Table35[[#Headers],[Epreuve CAO]],'Def. Prix & Parcours'!$B$6:$E$28,IF($F28="G",2,IF($F28="T",3,IF($F28="N",4,0))),FALSE)*Table3[[#This Row],[Points Epreuve CAO]]),"") -> 80 | X28: =IF(Table3[[#This Row],[Parcours choisi]]<>"",(VLOOKUP(Table35[[#Headers],[Temps Réaction]],'Def. Prix & Parcours'!$B$6:$E$28,IF($F28="G",2,IF($F28="T",3,IF($F28="N",4,0))),FALSE)*Table3[[#This Row],[Points Temps Réaction]]),"") -> 6 | Y28: =IF(Table3[[#This Row],[Parcours choisi]]<>"",(VLOOKUP(Table35[[#Headers],[Temps Course]],'Def. Prix & Parcours'!$B$6:$E$28,IF($F28="G",2,IF($F28="T",3,IF($F28="N",4,0))),FALSE)*Table3[[#This Row],[Points Temps Course]]),"") -> 100 | Z28: =IF(Table3[[#This Row],[Parcours choisi]]<>"",(VLOOKUP(Table35[[#Headers],[Epreuve arrêt au stand]],'Def. Prix & Parcours'!$B$6:$E$28,IF($F28="G",2,IF($F28="T",3,IF($F28="N",4,0))),FALSE)*Table3[[#This Row],[Points Epreuve arrêt au stand]]),"") -> 80 | AB28: =IF(Table3[[#This Row],[Parcours choisi]]<>"",SUM(Table35[[#This Row],[Ingénierie et conception]:[1]]),"") -> 1340 | AC28: =IF(Table3[[#This Row],[Parcours choisi]]<>"",_xlfn.RANK.EQ(Table35[[#This Row],[Total Parcours]],Table35[Total Parcours],0),"") -> 15
A29: 23 | B29: =IF(Table3[[#This Row],[Nom équipe]]<>"",Table3[[#This Row],[Nom équipe]],"") -> Gol'o Team | C29: =IF(Table3[[#This Row],[Etablissement]]<>"",Table3[[#This Row],[Etablissement]],"") -> A. Dreux Folschviller | D29: =IF(Table3[[#This Row],[Type établissement]]<>"",Table3[[#This Row],[Type établissement]],"") -> C | E29: =IF(Table3[[#This Row],[Académie]]<>"",Table3[[#This Row],[Académie]],"") -> Nancy-Metz | F29: =IF(Table3[[#This Row],[Parcours choisi]]<>"",Table3[[#This Row],[Parcours choisi]],"") -> G | G29: =IF(Table3[[#This Row],[Parcours choisi]]<>"",(VLOOKUP(Table35[[#Headers],[Ingénierie et conception]],'Def. Prix & Parcours'!$B$6:$E$28,IF($F29="G",2,IF($F29="T",3,IF($F29="N",4,0))),FALSE)*Table3[[#This Row],[Points Ingénierie et conception]]),"") -> 90 | H29: =IF(Table3[[#This Row],[Parcours choisi]]<>"",(VLOOKUP(Table35[[#Headers],[Innovation mécanique]],'Def. Prix & Parcours'!$B$6:$E$28,IF($F29="G",2,IF($F29="T",3,IF($F29="N",4,0))),FALSE)*Table3[[#This Row],[Points Innovation mécanique]]),"") -> 96 | I29: =IF(Table3[[#This Row],[Parcours choisi]]<>"",(VLOOKUP(Table35[[#Headers],[Développement Durable]],'Def. Prix & Parcours'!$B$6:$E$28,IF($F29="G",2,IF($F29="T",3,IF($F29="N",4,0))),FALSE)*Table3[[#This Row],[Points Développement Durable]]),"") -> 52 | J29: =IF(Table3[[#This Row],[Parcours choisi]]<>"",(VLOOKUP(Table35[[#Headers],[Ingénierie de fabrication]],'Def. Prix & Parcours'!$B$6:$E$28,IF($F29="G",2,IF($F29="T",3,IF($F29="N",4,0))),FALSE)*Table3[[#This Row],[Points Ingénierie de fabrication]]),"") -> 48 | K29: =IF(Table3[[#This Row],[Parcours choisi]]<>"",(VLOOKUP(Table35[[#Headers],[Gestion de projet et collaborations]],'Def. Prix & Parcours'!$B$6:$E$28,IF($F29="G",2,IF($F29="T",3,IF($F29="N",4,0))),FALSE)*Table3[[#This Row],[Points Gestion de projet et collaborations]]),"") -> 85 | L29: =IF(Table3[[#This Row],[Parcours choisi]]<>"",(VLOOKUP(Table35[[#Headers],[Présentation Orale]],'Def. Prix & Parcours'!$B$6:$E$28,IF($F29="G",2,IF($F29="T",3,IF($F29="N",4,0))),FALSE)*Table3[[#This Row],[Points Présentation Orale]]),"") -> 90 | M29: =IF(Table3[[#This Row],[Parcours choisi]]<>"",(VLOOKUP(Table35[[#Headers],[Identité Equipe]],'Def. Prix & Parcours'!$B$6:$E$28,IF($F29="G",2,IF($F29="T",3,IF($F29="N",4,0))),FALSE)*Table3[[#This Row],[Points Identité Equipe]]),"") -> 80 | N29: =IF(Table3[[#This Row],[Parcours choisi]]<>"",(VLOOKUP(Table35[[#Headers],[Design du Stand]],'Def. Prix & Parcours'!$B$6:$E$28,IF($F29="G",2,IF($F29="T",3,IF($F29="N",4,0))),FALSE)*Table3[[#This Row],[Points Design du Stand]]),"") -> 104 | O29: =IF(Table3[[#This Row],[Parcours choisi]]<>"",(VLOOKUP(Table35[[#Headers],[Portfolio]],'Def. Prix & Parcours'!$B$6:$E$28,IF($F29="G",2,IF($F29="T",3,IF($F29="N",4,0))),FALSE)*Table3[[#This Row],[Points Portfolio]]),"") -> 88 | P29: =IF(Table3[[#This Row],[Parcours choisi]]<>"",(VLOOKUP(Table35[[#Headers],[Marketing et Sponsoring]],'Def. Prix & Parcours'!$B$6:$E$28,IF($F29="G",2,IF($F29="T",3,IF($F29="N",4,0))),FALSE)*Table3[[#This Row],[Points Marketing et Sponsoring]]),"") -> 88 | Q29: =IF(Table3[[#This Row],[Parcours choisi]]<>"",(VLOOKUP(Table35[[#Headers],[Budget]],'Def. Prix & Parcours'!$B$6:$E$28,IF($F29="G",2,IF($F29="T",3,IF($F29="N",4,0))),FALSE)*Table3[[#This Row],[Points Budget]]),"") -> 22 | R29: =IF(Table3[[#This Row],[Parcours choisi]]<>"",(VLOOKUP(Table35[[#Headers],[Design du Véhicule]],'Def. Prix & Parcours'!$B$6:$E$28,IF($F29="G",2,IF($F29="T",3,IF($F29="N",4,0))),FALSE)*Table3[[#This Row],[Points Design du Véhicule]]),"") -> 45 | S29: =IF(Table3[[#This Row],[Parcours choisi]]<>"",(VLOOKUP(Table35[[#Headers],[Innovation numérique]],'Def. Prix & Parcours'!$B$6:$E$28,IF($F29="G",2,IF($F29="T",3,IF($F29="N",4,0))),FALSE)*Table3[[#This Row],[Points Innovation numérique]]),"") -> 0 | T29: =IF(Table3[[#This Row],[Parcours choisi]]<>"",(VLOOKUP(Table35[[#Headers],[Programmation]],'Def. Prix & Parcours'!$B$6:$E$28,IF($F29="G",2,IF($F29="T",3,IF($F29="N",4,0))),FALSE)*Table3[[#This Row],[Points Programmation]]),"") -> 0 | U29: =IF(Table3[[#This Row],[Parcours choisi]]<>"",(VLOOKUP(Table35[[#Headers],[Respect du règlement]],'Def. Prix & Parcours'!$B$6:$E$28,IF($F29="G",2,IF($F29="T",3,IF($F29="N",4,0))),FALSE)*Table3[[#This Row],[Points Respect du règlement]]),"") -> 75 | V29: =IF(Table3[[#This Row],[Parcours choisi]]<>"",(VLOOKUP(Table35[[#Headers],[Communication : vidéo]],'Def. Prix & Parcours'!$B$6:$E$28,IF($F29="G",2,IF($F29="T",3,IF($F29="N",4,0))),FALSE)*Table3[[#This Row],[Points Communication : vidéo]]),"") -> 21 | W29: =IF(Table3[[#This Row],[Parcours choisi]]<>"",(VLOOKUP(Table35[[#Headers],[Epreuve CAO]],'Def. Prix & Parcours'!$B$6:$E$28,IF($F29="G",2,IF($F29="T",3,IF($F29="N",4,0))),FALSE)*Table3[[#This Row],[Points Epreuve CAO]]),"") -> 80 | X29: =IF(Table3[[#This Row],[Parcours choisi]]<>"",(VLOOKUP(Table35[[#Headers],[Temps Réaction]],'Def. Prix & Parcours'!$B$6:$E$28,IF($F29="G",2,IF($F29="T",3,IF($F29="N",4,0))),FALSE)*Table3[[#This Row],[Points Temps Réaction]]),"") -> 60 | Y29: =IF(Table3[[#This Row],[Parcours choisi]]<>"",(VLOOKUP(Table35[[#Headers],[Temps Course]],'Def. Prix & Parcours'!$B$6:$E$28,IF($F29="G",2,IF($F29="T",3,IF($F29="N",4,0))),FALSE)*Table3[[#This Row],[Points Temps Course]]),"") -> 80 | Z29: =IF(Table3[[#This Row],[Parcours choisi]]<>"",(VLOOKUP(Table35[[#Headers],[Epreuve arrêt au stand]],'Def. Prix & Parcours'!$B$6:$E$28,IF($F29="G",2,IF($F29="T",3,IF($F29="N",4,0))),FALSE)*Table3[[#This Row],[Points Epreuve arrêt au stand]]),"") -> 80 | AB29: =IF(Table3[[#This Row],[Parcours choisi]]<>"",SUM(Table35[[#This Row],[Ingénierie et conception]:[1]]),"") -> 1284 | AC29: =IF(Table3[[#This Row],[Parcours choisi]]<>"",_xlfn.RANK.EQ(Table35[[#This Row],[Total Parcours]],Table35[Total Parcours],0),"") -> 18
A30: 24 | B30: =IF(Table3[[#This Row],[Nom équipe]]<>"",Table3[[#This Row],[Nom équipe]],"") -> Serpent | C30: =IF(Table3[[#This Row],[Etablissement]]<>"",Table3[[#This Row],[Etablissement]],"") -> A. Dreux Folschviller | D30: =IF(Table3[[#This Row],[Type établissement]]<>"",Table3[[#This Row],[Type établissement]],"") -> C | E30: =IF(Table3[[#This Row],[Académie]]<>"",Table3[[#This Row],[Académie]],"") -> Nancy-Metz | F30: =IF(Table3[[#This Row],[Parcours choisi]]<>"",Table3[[#This Row],[Parcours choisi]],"") -> G | G30: =IF(Table3[[#This Row],[Parcours choisi]]<>"",(VLOOKUP(Table35[[#Headers],[Ingénierie et conception]],'Def. Prix & Parcours'!$B$6:$E$28,IF($F30="G",2,IF($F30="T",3,IF($F30="N",4,0))),FALSE)*Table3[[#This Row],[Points Ingénierie et conception]]),"") -> 48 | H30: =IF(Table3[[#This Row],[Parcours choisi]]<>"",(VLOOKUP(Table35[[#Headers],[Innovation mécanique]],'Def. Prix & Parcours'!$B$6:$E$28,IF($F30="G",2,IF($F30="T",3,IF($F30="N",4,0))),FALSE)*Table3[[#This Row],[Points Innovation mécanique]]),"") -> 66 | I30: =IF(Table3[[#This Row],[Parcours choisi]]<>"",(VLOOKUP(Table35[[#Headers],[Développement Durable]],'Def. Prix & Parcours'!$B$6:$E$28,IF($F30="G",2,IF($F30="T",3,IF($F30="N",4,0))),FALSE)*Table3[[#This Row],[Points Développement Durable]]),"") -> 32 | J30: =IF(Table3[[#This Row],[Parcours choisi]]<>"",(VLOOKUP(Table35[[#Headers],[Ingénierie de fabrication]],'Def. Prix & Parcours'!$B$6:$E$28,IF($F30="G",2,IF($F30="T",3,IF($F30="N",4,0))),FALSE)*Table3[[#This Row],[Points Ingénierie de fabrication]]),"") -> 21 | K30: =IF(Table3[[#This Row],[Parcours choisi]]<>"",(VLOOKUP(Table35[[#Headers],[Gestion de projet et collaborations]],'Def. Prix & Parcours'!$B$6:$E$28,IF($F30="G",2,IF($F30="T",3,IF($F30="N",4,0))),FALSE)*Table3[[#This Row],[Points Gestion de projet et collaborations]]),"") -> 25 | L30: =IF(Table3[[#This Row],[Parcours choisi]]<>"",(VLOOKUP(Table35[[#Headers],[Présentation Orale]],'Def. Prix & Parcours'!$B$6:$E$28,IF($F30="G",2,IF($F30="T",3,IF($F30="N",4,0))),FALSE)*Table3[[#This Row],[Points Présentation Orale]]),"") -> 20 | M30: =IF(Table3[[#This Row],[Parcours choisi]]<>"",(VLOOKUP(Table35[[#Headers],[Identité Equipe]],'Def. Prix & Parcours'!$B$6:$E$28,IF($F30="G",2,IF($F30="T",3,IF($F30="N",4,0))),FALSE)*Table3[[#This Row],[Points Identité Equipe]]),"") -> 65 | N30: =IF(Table3[[#This Row],[Parcours choisi]]<>"",(VLOOKUP(Table35[[#Headers],[Design du Stand]],'Def. Prix & Parcours'!$B$6:$E$28,IF($F30="G",2,IF($F30="T",3,IF($F30="N",4,0))),FALSE)*Table3[[#This Row],[Points Design du Stand]]),"") -> 80 | O30: =IF(Table3[[#This Row],[Parcours choisi]]<>"",(VLOOKUP(Table35[[#Headers],[Portfolio]],'Def. Prix & Parcours'!$B$6:$E$28,IF($F30="G",2,IF($F30="T",3,IF($F30="N",4,0))),FALSE)*Table3[[#This Row],[Points Portfolio]]),"") -> 104 | P30: =IF(Table3[[#This Row],[Parcours choisi]]<>"",(VLOOKUP(Table35[[#Headers],[Marketing et Sponsoring]],'Def. Prix & Parcours'!$B$6:$E$28,IF($F30="G",2,IF($F30="T",3,IF($F30="N",4,0))),FALSE)*Table3[[#This Row],[Points Marketing et Sponsoring]]),"") -> 56 | Q30: =IF(Table3[[#This Row],[Parcours choisi]]<>"",(VLOOKUP(Table35[[#Headers],[Budget]],'Def. Prix & Parcours'!$B$6:$E$28,IF($F30="G",2,IF($F30="T",3,IF($F30="N",4,0))),FALSE)*Table3[[#This Row],[Points Budget]]),"") -> 16 | R30: =IF(Table3[[#This Row],[Parcours choisi]]<>"",(VLOOKUP(Table35[[#Headers],[Design du Véhicule]],'Def. Prix & Parcours'!$B$6:$E$28,IF($F30="G",2,IF($F30="T",3,IF($F30="N",4,0))),FALSE)*Table3[[#This Row],[Points Design du Véhicule]]),"") -> 33 | S30: =IF(Table3[[#This Row],[Parcours choisi]]<>"",(VLOOKUP(Table35[[#Headers],[Innovation numérique]],'Def. Prix & Parcours'!$B$6:$E$28,IF($F30="G",2,IF($F30="T",3,IF($F30="N",4,0))),FALSE)*Table3[[#This Row],[Points Innovation numérique]]),"") -> 28 | T30: =IF(Table3[[#This Row],[Parcours choisi]]<>"",(VLOOKUP(Table35[[#Headers],[Programmation]],'Def. Prix & Parcours'!$B$6:$E$28,IF($F30="G",2,IF($F30="T",3,IF($F30="N",4,0))),FALSE)*Table3[[#This Row],[Points Programmation]]),"") -> 0 | U30: =IF(Table3[[#This Row],[Parcours choisi]]<>"",(VLOOKUP(Table35[[#Headers],[Respect du règlement]],'Def. Prix & Parcours'!$B$6:$E$28,IF($F30="G",2,IF($F30="T",3,IF($F30="N",4,0))),FALSE)*Table3[[#This Row],[Points Respect du règlement]]),"") -> 75 | V30: =IF(Table3[[#This Row],[Parcours choisi]]<>"",(VLOOKUP(Table35[[#Headers],[Communication : vidéo]],'Def. Prix & Parcours'!$B$6:$E$28,IF($F30="G",2,IF($F30="T",3,IF($F30="N",4,0))),FALSE)*Table3[[#This Row],[Points Communication : vidéo]]),"") -> 39 | W30: =IF(Table3[[#This Row],[Parcours choisi]]<>"",(VLOOKUP(Table35[[#Headers],[Epreuve CAO]],'Def. Prix & Parcours'!$B$6:$E$28,IF($F30="G",2,IF($F30="T",3,IF($F30="N",4,0))),FALSE)*Table3[[#This Row],[Points Epreuve CAO]]),"") -> 80 | X30: =IF(Table3[[#This Row],[Parcours choisi]]<>"",(VLOOKUP(Table35[[#Headers],[Temps Réaction]],'Def. Prix & Parcours'!$B$6:$E$28,IF($F30="G",2,IF($F30="T",3,IF($F30="N",4,0))),FALSE)*Table3[[#This Row],[Points Temps Réaction]]),"") -> 24 | Y30: =IF(Table3[[#This Row],[Parcours choisi]]<>"",(VLOOKUP(Table35[[#Headers],[Temps Course]],'Def. Prix & Parcours'!$B$6:$E$28,IF($F30="G",2,IF($F30="T",3,IF($F30="N",4,0))),FALSE)*Table3[[#This Row],[Points Temps Course]]),"") -> 90 | Z30: =IF(Table3[[#This Row],[Parcours choisi]]<>"",(VLOOKUP(Table35[[#Headers],[Epreuve arrêt au stand]],'Def. Prix & Parcours'!$B$6:$E$28,IF($F30="G",2,IF($F30="T",3,IF($F30="N",4,0))),FALSE)*Table3[[#This Row],[Points Epreuve arrêt au stand]]),"") -> 80 | AB30: =IF(Table3[[#This Row],[Parcours choisi]]<>"",SUM(Table35[[#This Row],[Ingénierie et conception]:[1]]),"") -> 982 | AC30: =IF(Table3[[#This Row],[Parcours choisi]]<>"",_xlfn.RANK.EQ(Table35[[#This Row],[Total Parcours]],Table35[Total Parcours],0),"") -> 25
A31: 25 | B31: =IF(Table3[[#This Row],[Nom équipe]]<>"",Table3[[#This Row],[Nom équipe]],"") -> The Peaky's | C31: =IF(Table3[[#This Row],[Etablissement]]<>"",Table3[[#This Row],[Etablissement]],"") -> La Fontaine St Avold | D31: =IF(Table3[[#This Row],[Type établissement]]<>"",Table3[[#This Row],[Type établissement]],"") -> C | E31: =IF(Table3[[#This Row],[Académie]]<>"",Table3[[#This Row],[Académie]],"") -> Nancy-Metz | F31: =IF(Table3[[#This Row],[Parcours choisi]]<>"",Table3[[#This Row],[Parcours choisi]],"") -> G | G31: =IF(Table3[[#This Row],[Parcours choisi]]<>"",(VLOOKUP(Table35[[#Headers],[Ingénierie et conception]],'Def. Prix & Parcours'!$B$6:$E$28,IF($F31="G",2,IF($F31="T",3,IF($F31="N",4,0))),FALSE)*Table3[[#This Row],[Points Ingénierie et conception]]),"") -> 120 | H31: =IF(Table3[[#This Row],[Parcours choisi]]<>"",(VLOOKUP(Table35[[#Headers],[Innovation mécanique]],'Def. Prix & Parcours'!$B$6:$E$28,IF($F31="G",2,IF($F31="T",3,IF($F31="N",4,0))),FALSE)*Table3[[#This Row],[Points Innovation mécanique]]),"") -> 120 | I31: =IF(Table3[[#This Row],[Parcours choisi]]<>"",(VLOOKUP(Table35[[#Headers],[Développement Durable]],'Def. Prix & Parcours'!$B$6:$E$28,IF($F31="G",2,IF($F31="T",3,IF($F31="N",4,0))),FALSE)*Table3[[#This Row],[Points Développement Durable]]),"") -> 64 | J31: =IF(Table3[[#This Row],[Parcours choisi]]<>"",(VLOOKUP(Table35[[#Headers],[Ingénierie de fabrication]],'Def. Prix & Parcours'!$B$6:$E$28,IF($F31="G",2,IF($F31="T",3,IF($F31="N",4,0))),FALSE)*Table3[[#This Row],[Points Ingénierie de fabrication]]),"") -> 60 | K31: =IF(Table3[[#This Row],[Parcours choisi]]<>"",(VLOOKUP(Table35[[#Headers],[Gestion de projet et collaborations]],'Def. Prix & Parcours'!$B$6:$E$28,IF($F31="G",2,IF($F31="T",3,IF($F31="N",4,0))),FALSE)*Table3[[#This Row],[Points Gestion de projet et collaborations]]),"") -> 95 | L31: =IF(Table3[[#This Row],[Parcours choisi]]<>"",(VLOOKUP(Table35[[#Headers],[Présentation Orale]],'Def. Prix & Parcours'!$B$6:$E$28,IF($F31="G",2,IF($F31="T",3,IF($F31="N",4,0))),FALSE)*Table3[[#This Row],[Points Présentation Orale]]),"") -> 85 | M31: =IF(Table3[[#This Row],[Parcours choisi]]<>"",(VLOOKUP(Table35[[#Headers],[Identité Equipe]],'Def. Prix & Parcours'!$B$6:$E$28,IF($F31="G",2,IF($F31="T",3,IF($F31="N",4,0))),FALSE)*Table3[[#This Row],[Points Identité Equipe]]),"") -> 85 | N31: =IF(Table3[[#This Row],[Parcours choisi]]<>"",(VLOOKUP(Table35[[#Headers],[Design du Stand]],'Def. Prix & Parcours'!$B$6:$E$28,IF($F31="G",2,IF($F31="T",3,IF($F31="N",4,0))),FALSE)*Table3[[#This Row],[Points Design du Stand]]),"") -> 152 | O31: =IF(Table3[[#This Row],[Parcours choisi]]<>"",(VLOOKUP(Table35[[#Headers],[Portfolio]],'Def. Prix & Parcours'!$B$6:$E$28,IF($F31="G",2,IF($F31="T",3,IF($F31="N",4,0))),FALSE)*Table3[[#This Row],[Points Portfolio]]),"") -> 144 | P31: =IF(Table3[[#This Row],[Parcours choisi]]<>"",(VLOOKUP(Table35[[#Headers],[Marketing et Sponsoring]],'Def. Prix & Parcours'!$B$6:$E$28,IF($F31="G",2,IF($F31="T",3,IF($F31="N",4,0))),FALSE)*Table3[[#This Row],[Points Marketing et Sponsoring]]),"") -> 152 | Q31: =IF(Table3[[#This Row],[Parcours choisi]]<>"",(VLOOKUP(Table35[[#Headers],[Budget]],'Def. Prix & Parcours'!$B$6:$E$28,IF($F31="G",2,IF($F31="T",3,IF($F31="N",4,0))),FALSE)*Table3[[#This Row],[Points Budget]]),"") -> 36 | R31: =IF(Table3[[#This Row],[Parcours choisi]]<>"",(VLOOKUP(Table35[[#Headers],[Design du Véhicule]],'Def. Prix & Parcours'!$B$6:$E$28,IF($F31="G",2,IF($F31="T",3,IF($F31="N",4,0))),FALSE)*Table3[[#This Row],[Points Design du Véhicule]]),"") -> 57 | S31: =IF(Table3[[#This Row],[Parcours choisi]]<>"",(VLOOKUP(Table35[[#Headers],[Innovation numérique]],'Def. Prix & Parcours'!$B$6:$E$28,IF($F31="G",2,IF($F31="T",3,IF($F31="N",4,0))),FALSE)*Table3[[#This Row],[Points Innovation numérique]]),"") -> 68 | T31: =IF(Table3[[#This Row],[Parcours choisi]]<>"",(VLOOKUP(Table35[[#Headers],[Programmation]],'Def. Prix & Parcours'!$B$6:$E$28,IF($F31="G",2,IF($F31="T",3,IF($F31="N",4,0))),FALSE)*Table3[[#This Row],[Points Programmation]]),"") -> 76 | U31: =IF(Table3[[#This Row],[Parcours choisi]]<>"",(VLOOKUP(Table35[[#Headers],[Respect du règlement]],'Def. Prix & Parcours'!$B$6:$E$28,IF($F31="G",2,IF($F31="T",3,IF($F31="N",4,0))),FALSE)*Table3[[#This Row],[Points Respect du règlement]]),"") -> 95 | V31: =IF(Table3[[#This Row],[Parcours choisi]]<>"",(VLOOKUP(Table35[[#Headers],[Communication : vidéo]],'Def. Prix & Parcours'!$B$6:$E$28,IF($F31="G",2,IF($F31="T",3,IF($F31="N",4,0))),FALSE)*Table3[[#This Row],[Points Communication : vidéo]]),"") -> 51 | W31: =IF(Table3[[#This Row],[Parcours choisi]]<>"",(VLOOKUP(Table35[[#Headers],[Epreuve CAO]],'Def. Prix & Parcours'!$B$6:$E$28,IF($F31="G",2,IF($F31="T",3,IF($F31="N",4,0))),FALSE)*Table3[[#This Row],[Points Epreuve CAO]]),"") -> 80 | X31: =IF(Table3[[#This Row],[Parcours choisi]]<>"",(VLOOKUP(Table35[[#Headers],[Temps Réaction]],'Def. Prix & Parcours'!$B$6:$E$28,IF($F31="G",2,IF($F31="T",3,IF($F31="N",4,0))),FALSE)*Table3[[#This Row],[Points Temps Réaction]]),"") -> 33 | Y31: =IF(Table3[[#This Row],[Parcours choisi]]<>"",(VLOOKUP(Table35[[#Headers],[Temps Course]],'Def. Prix & Parcours'!$B$6:$E$28,IF($F31="G",2,IF($F31="T",3,IF($F31="N",4,0))),FALSE)*Table3[[#This Row],[Points Temps Course]]),"") -> 110 | Z31: =IF(Table3[[#This Row],[Parcours choisi]]<>"",(VLOOKUP(Table35[[#Headers],[Epreuve arrêt au stand]],'Def. Prix & Parcours'!$B$6:$E$28,IF($F31="G",2,IF($F31="T",3,IF($F31="N",4,0))),FALSE)*Table3[[#This Row],[Points Epreuve arrêt au stand]]),"") -> 80 | AB31: =IF(Table3[[#This Row],[Parcours choisi]]<>"",SUM(Table35[[#This Row],[Ingénierie et conception]:[1]]),"") -> 1763 | AC31: =IF(Table3[[#This Row],[Parcours choisi]]<>"",_xlfn.RANK.EQ(Table35[[#This Row],[Total Parcours]],Table35[Total Parcours],0),"") -> 1
A32: 26 | B32: =IF(Table3[[#This Row],[Nom équipe]]<>"",Table3[[#This Row],[Nom équipe]],"") -> Cosmos | C32: =IF(Table3[[#This Row],[Etablissement]]<>"",Table3[[#This Row],[Etablissement]],"") -> La Fontaine St Avold | D32: =IF(Table3[[#This Row],[Type établissement]]<>"",Table3[[#This Row],[Type établissement]],"") -> C | E32: =IF(Table3[[#This Row],[Académie]]<>"",Table3[[#This Row],[Académie]],"") -> Nancy-Metz | F32: =IF(Table3[[#This Row],[Parcours choisi]]<>"",Table3[[#This Row],[Parcours choisi]],"") -> G | G32: =IF(Table3[[#This Row],[Parcours choisi]]<>"",(VLOOKUP(Table35[[#Headers],[Ingénierie et conception]],'Def. Prix & Parcours'!$B$6:$E$28,IF($F32="G",2,IF($F32="T",3,IF($F32="N",4,0))),FALSE)*Table3[[#This Row],[Points Ingénierie et conception]]),"") -> 90 | H32: =IF(Table3[[#This Row],[Parcours choisi]]<>"",(VLOOKUP(Table35[[#Headers],[Innovation mécanique]],'Def. Prix & Parcours'!$B$6:$E$28,IF($F32="G",2,IF($F32="T",3,IF($F32="N",4,0))),FALSE)*Table3[[#This Row],[Points Innovation mécanique]]),"") -> 84 | I32: =IF(Table3[[#This Row],[Parcours choisi]]<>"",(VLOOKUP(Table35[[#Headers],[Développement Durable]],'Def. Prix & Parcours'!$B$6:$E$28,IF($F32="G",2,IF($F32="T",3,IF($F32="N",4,0))),FALSE)*Table3[[#This Row],[Points Développement Durable]]),"") -> 28 | J32: =IF(Table3[[#This Row],[Parcours choisi]]<>"",(VLOOKUP(Table35[[#Headers],[Ingénierie de fabrication]],'Def. Prix & Parcours'!$B$6:$E$28,IF($F32="G",2,IF($F32="T",3,IF($F32="N",4,0))),FALSE)*Table3[[#This Row],[Points Ingénierie de fabrication]]),"") -> 39 | K32: =IF(Table3[[#This Row],[Parcours choisi]]<>"",(VLOOKUP(Table35[[#Headers],[Gestion de projet et collaborations]],'Def. Prix & Parcours'!$B$6:$E$28,IF($F32="G",2,IF($F32="T",3,IF($F32="N",4,0))),FALSE)*Table3[[#This Row],[Points Gestion de projet et collaborations]]),"") -> 75 | L32: =IF(Table3[[#This Row],[Parcours choisi]]<>"",(VLOOKUP(Table35[[#Headers],[Présentation Orale]],'Def. Prix & Parcours'!$B$6:$E$28,IF($F32="G",2,IF($F32="T",3,IF($F32="N",4,0))),FALSE)*Table3[[#This Row],[Points Présentation Orale]]),"") -> 40 | M32: =IF(Table3[[#This Row],[Parcours choisi]]<>"",(VLOOKUP(Table35[[#Headers],[Identité Equipe]],'Def. Prix & Parcours'!$B$6:$E$28,IF($F32="G",2,IF($F32="T",3,IF($F32="N",4,0))),FALSE)*Table3[[#This Row],[Points Identité Equipe]]),"") -> 90 | N32: =IF(Table3[[#This Row],[Parcours choisi]]<>"",(VLOOKUP(Table35[[#Headers],[Design du Stand]],'Def. Prix & Parcours'!$B$6:$E$28,IF($F32="G",2,IF($F32="T",3,IF($F32="N",4,0))),FALSE)*Table3[[#This Row],[Points Design du Stand]]),"") -> 152 | O32: =IF(Table3[[#This Row],[Parcours choisi]]<>"",(VLOOKUP(Table35[[#Headers],[Portfolio]],'Def. Prix & Parcours'!$B$6:$E$28,IF($F32="G",2,IF($F32="T",3,IF($F32="N",4,0))),FALSE)*Table3[[#This Row],[Points Portfolio]]),"") -> 152 | P32: =IF(Table3[[#This Row],[Parcours choisi]]<>"",(VLOOKUP(Table35[[#Headers],[Marketing et Sponsoring]],'Def. Prix & Parcours'!$B$6:$E$28,IF($F32="G",2,IF($F32="T",3,IF($F32="N",4,0))),FALSE)*Table3[[#This Row],[Points Marketing et Sponsoring]]),"") -> 128 | Q32: =IF(Table3[[#This Row],[Parcours choisi]]<>"",(VLOOKUP(Table35[[#Headers],[Budget]],'Def. Prix & Parcours'!$B$6:$E$28,IF($F32="G",2,IF($F32="T",3,IF($F32="N",4,0))),FALSE)*Table3[[#This Row],[Points Budget]]),"") -> 36 | R32: =IF(Table3[[#This Row],[Parcours choisi]]<>"",(VLOOKUP(Table35[[#Headers],[Design du Véhicule]],'Def. Prix & Parcours'!$B$6:$E$28,IF($F32="G",2,IF($F32="T",3,IF($F32="N",4,0))),FALSE)*Table3[[#This Row],[Points Design du Véhicule]]),"") -> 54 | S32: =IF(Table3[[#This Row],[Parcours choisi]]<>"",(VLOOKUP(Table35[[#Headers],[Innovation numérique]],'Def. Prix & Parcours'!$B$6:$E$28,IF($F32="G",2,IF($F32="T",3,IF($F32="N",4,0))),FALSE)*Table3[[#This Row],[Points Innovation numérique]]),"") -> 40 | T32: =IF(Table3[[#This Row],[Parcours choisi]]<>"",(VLOOKUP(Table35[[#Headers],[Programmation]],'Def. Prix & Parcours'!$B$6:$E$28,IF($F32="G",2,IF($F32="T",3,IF($F32="N",4,0))),FALSE)*Table3[[#This Row],[Points Programmation]]),"") -> 0 | U32: =IF(Table3[[#This Row],[Parcours choisi]]<>"",(VLOOKUP(Table35[[#Headers],[Respect du règlement]],'Def. Prix & Parcours'!$B$6:$E$28,IF($F32="G",2,IF($F32="T",3,IF($F32="N",4,0))),FALSE)*Table3[[#This Row],[Points Respect du règlement]]),"") -> 100 | V32: =IF(Table3[[#This Row],[Parcours choisi]]<>"",(VLOOKUP(Table35[[#Headers],[Communication : vidéo]],'Def. Prix & Parcours'!$B$6:$E$28,IF($F32="G",2,IF($F32="T",3,IF($F32="N",4,0))),FALSE)*Table3[[#This Row],[Points Communication : vidéo]]),"") -> 54 | W32: =IF(Table3[[#This Row],[Parcours choisi]]<>"",(VLOOKUP(Table35[[#Headers],[Epreuve CAO]],'Def. Prix & Parcours'!$B$6:$E$28,IF($F32="G",2,IF($F32="T",3,IF($F32="N",4,0))),FALSE)*Table3[[#This Row],[Points Epreuve CAO]]),"") -> 80 | X32: =IF(Table3[[#This Row],[Parcours choisi]]<>"",(VLOOKUP(Table35[[#Headers],[Temps Réaction]],'Def. Prix & Parcours'!$B$6:$E$28,IF($F32="G",2,IF($F32="T",3,IF($F32="N",4,0))),FALSE)*Table3[[#This Row],[Points Temps Réaction]]),"") -> 54 | Y32: =IF(Table3[[#This Row],[Parcours choisi]]<>"",(VLOOKUP(Table35[[#Headers],[Temps Course]],'Def. Prix & Parcours'!$B$6:$E$28,IF($F32="G",2,IF($F32="T",3,IF($F32="N",4,0))),FALSE)*Table3[[#This Row],[Points Temps Course]]),"") -> 140 | Z32: =IF(Table3[[#This Row],[Parcours choisi]]<>"",(VLOOKUP(Table35[[#Headers],[Epreuve arrêt au stand]],'Def. Prix & Parcours'!$B$6:$E$28,IF($F32="G",2,IF($F32="T",3,IF($F32="N",4,0))),FALSE)*Table3[[#This Row],[Points Epreuve arrêt au stand]]),"") -> 80 | AB32: =IF(Table3[[#This Row],[Parcours choisi]]<>"",SUM(Table35[[#This Row],[Ingénierie et conception]:[1]]),"") -> 1516 | AC32: =IF(Table3[[#This Row],[Parcours choisi]]<>"",_xlfn.RANK.EQ(Table35[[#This Row],[Total Parcours]],Table35[Total Parcours],0),"") -> 6
A33: 27 | B33: =IF(Table3[[#This Row],[Nom équipe]]<>"",Table3[[#This Row],[Nom équipe]],"") -> Otaku | C33: =IF(Table3[[#This Row],[Etablissement]]<>"",Table3[[#This Row],[Etablissement]],"") -> La Fontaine St Avold | D33: =IF(Table3[[#This Row],[Type établissement]]<>"",Table3[[#This Row],[Type établissement]],"") -> C | E33: =IF(Table3[[#This Row],[Académie]]<>"",Table3[[#This Row],[Académie]],"") -> Nancy-Metz | F33: =IF(Table3[[#This Row],[Parcours choisi]]<>"",Table3[[#This Row],[Parcours choisi]],"") -> G | G33: =IF(Table3[[#This Row],[Parcours choisi]]<>"",(VLOOKUP(Table35[[#Headers],[Ingénierie et conception]],'Def. Prix & Parcours'!$B$6:$E$28,IF($F33="G",2,IF($F33="T",3,IF($F33="N",4,0))),FALSE)*Table3[[#This Row],[Points Ingénierie et conception]]),"") -> 72 | H33: =IF(Table3[[#This Row],[Parcours choisi]]<>"",(VLOOKUP(Table35[[#Headers],[Innovation mécanique]],'Def. Prix & Parcours'!$B$6:$E$28,IF($F33="G",2,IF($F33="T",3,IF($F33="N",4,0))),FALSE)*Table3[[#This Row],[Points Innovation mécanique]]),"") -> 84 | I33: =IF(Table3[[#This Row],[Parcours choisi]]<>"",(VLOOKUP(Table35[[#Headers],[Développement Durable]],'Def. Prix & Parcours'!$B$6:$E$28,IF($F33="G",2,IF($F33="T",3,IF($F33="N",4,0))),FALSE)*Table3[[#This Row],[Points Développement Durable]]),"") -> 44 | J33: =IF(Table3[[#This Row],[Parcours choisi]]<>"",(VLOOKUP(Table35[[#Headers],[Ingénierie de fabrication]],'Def. Prix & Parcours'!$B$6:$E$28,IF($F33="G",2,IF($F33="T",3,IF($F33="N",4,0))),FALSE)*Table3[[#This Row],[Points Ingénierie de fabrication]]),"") -> 42 | K33: =IF(Table3[[#This Row],[Parcours choisi]]<>"",(VLOOKUP(Table35[[#Headers],[Gestion de projet et collaborations]],'Def. Prix & Parcours'!$B$6:$E$28,IF($F33="G",2,IF($F33="T",3,IF($F33="N",4,0))),FALSE)*Table3[[#This Row],[Points Gestion de projet et collaborations]]),"") -> 85 | L33: =IF(Table3[[#This Row],[Parcours choisi]]<>"",(VLOOKUP(Table35[[#Headers],[Présentation Orale]],'Def. Prix & Parcours'!$B$6:$E$28,IF($F33="G",2,IF($F33="T",3,IF($F33="N",4,0))),FALSE)*Table3[[#This Row],[Points Présentation Orale]]),"") -> 70 | M33: =IF(Table3[[#This Row],[Parcours choisi]]<>"",(VLOOKUP(Table35[[#Headers],[Identité Equipe]],'Def. Prix & Parcours'!$B$6:$E$28,IF($F33="G",2,IF($F33="T",3,IF($F33="N",4,0))),FALSE)*Table3[[#This Row],[Points Identité Equipe]]),"") -> 90 | N33: =IF(Table3[[#This Row],[Parcours choisi]]<>"",(VLOOKUP(Table35[[#Headers],[Design du Stand]],'Def. Prix & Parcours'!$B$6:$E$28,IF($F33="G",2,IF($F33="T",3,IF($F33="N",4,0))),FALSE)*Table3[[#This Row],[Points Design du Stand]]),"") -> 120 | O33: =IF(Table3[[#This Row],[Parcours choisi]]<>"",(VLOOKUP(Table35[[#Headers],[Portfolio]],'Def. Prix & Parcours'!$B$6:$E$28,IF($F33="G",2,IF($F33="T",3,IF($F33="N",4,0))),FALSE)*Table3[[#This Row],[Points Portfolio]]),"") -> 144 | P33: =IF(Table3[[#This Row],[Parcours choisi]]<>"",(VLOOKUP(Table35[[#Headers],[Marketing et Sponsoring]],'Def. Prix & Parcours'!$B$6:$E$28,IF($F33="G",2,IF($F33="T",3,IF($F33="N",4,0))),FALSE)*Table3[[#This Row],[Points Marketing et Sponsoring]]),"") -> 104 | Q33: =IF(Table3[[#This Row],[Parcours choisi]]<>"",(VLOOKUP(Table35[[#Headers],[Budget]],'Def. Prix & Parcours'!$B$6:$E$28,IF($F33="G",2,IF($F33="T",3,IF($F33="N",4,0))),FALSE)*Table3[[#This Row],[Points Budget]]),"") -> 20 | R33: =IF(Table3[[#This Row],[Parcours choisi]]<>"",(VLOOKUP(Table35[[#Headers],[Design du Véhicule]],'Def. Prix & Parcours'!$B$6:$E$28,IF($F33="G",2,IF($F33="T",3,IF($F33="N",4,0))),FALSE)*Table3[[#This Row],[Points Design du Véhicule]]),"") -> 45 | S33: =IF(Table3[[#This Row],[Parcours choisi]]<>"",(VLOOKUP(Table35[[#Headers],[Innovation numérique]],'Def. Prix & Parcours'!$B$6:$E$28,IF($F33="G",2,IF($F33="T",3,IF($F33="N",4,0))),FALSE)*Table3[[#This Row],[Points Innovation numérique]]),"") -> 60 | T33: =IF(Table3[[#This Row],[Parcours choisi]]<>"",(VLOOKUP(Table35[[#Headers],[Programmation]],'Def. Prix & Parcours'!$B$6:$E$28,IF($F33="G",2,IF($F33="T",3,IF($F33="N",4,0))),FALSE)*Table3[[#This Row],[Points Programmation]]),"") -> 40 | U33: =IF(Table3[[#This Row],[Parcours choisi]]<>"",(VLOOKUP(Table35[[#Headers],[Respect du règlement]],'Def. Prix & Parcours'!$B$6:$E$28,IF($F33="G",2,IF($F33="T",3,IF($F33="N",4,0))),FALSE)*Table3[[#This Row],[Points Respect du règlement]]),"") -> 95 | V33: =IF(Table3[[#This Row],[Parcours choisi]]<>"",(VLOOKUP(Table35[[#Headers],[Communication : vidéo]],'Def. Prix & Parcours'!$B$6:$E$28,IF($F33="G",2,IF($F33="T",3,IF($F33="N",4,0))),FALSE)*Table3[[#This Row],[Points Communication : vidéo]]),"") -> 48 | W33: =IF(Table3[[#This Row],[Parcours choisi]]<>"",(VLOOKUP(Table35[[#Headers],[Epreuve CAO]],'Def. Prix & Parcours'!$B$6:$E$28,IF($F33="G",2,IF($F33="T",3,IF($F33="N",4,0))),FALSE)*Table3[[#This Row],[Points Epreuve CAO]]),"") -> 80 | X33: =IF(Table3[[#This Row],[Parcours choisi]]<>"",(VLOOKUP(Table35[[#Headers],[Temps Réaction]],'Def. Prix & Parcours'!$B$6:$E$28,IF($F33="G",2,IF($F33="T",3,IF($F33="N",4,0))),FALSE)*Table3[[#This Row],[Points Temps Réaction]]),"") -> 42 | Y33: =IF(Table3[[#This Row],[Parcours choisi]]<>"",(VLOOKUP(Table35[[#Headers],[Temps Course]],'Def. Prix & Parcours'!$B$6:$E$28,IF($F33="G",2,IF($F33="T",3,IF($F33="N",4,0))),FALSE)*Table3[[#This Row],[Points Temps Course]]),"") -> 100 | Z33: =IF(Table3[[#This Row],[Parcours choisi]]<>"",(VLOOKUP(Table35[[#Headers],[Epreuve arrêt au stand]],'Def. Prix & Parcours'!$B$6:$E$28,IF($F33="G",2,IF($F33="T",3,IF($F33="N",4,0))),FALSE)*Table3[[#This Row],[Points Epreuve arrêt au stand]]),"") -> 80 | AB33: =IF(Table3[[#This Row],[Parcours choisi]]<>"",SUM(Table35[[#This Row],[Ingénierie et conception]:[1]]),"") -> 1465 | AC33: =IF(Table3[[#This Row],[Parcours choisi]]<>"",_xlfn.RANK.EQ(Table35[[#This Row],[Total Parcours]],Table35[Total Parcours],0),"") -> 9
A34: 28 | B34: =IF(Table3[[#This Row],[Nom équipe]]<>"",Table3[[#This Row],[Nom équipe]],"") -> Bal'eau | C34: =IF(Table3[[#This Row],[Etablissement]]<>"",Table3[[#This Row],[Etablissement]],"") -> La Fontaine St Avold | D34: =IF(Table3[[#This Row],[Type établissement]]<>"",Table3[[#This Row],[Type établissement]],"") -> C | E34: =IF(Table3[[#This Row],[Académie]]<>"",Table3[[#This Row],[Académie]],"") -> Nancy-Metz | F34: =IF(Table3[[#This Row],[Parcours choisi]]<>"",Table3[[#This Row],[Parcours choisi]],"") -> G | G34: =IF(Table3[[#This Row],[Parcours choisi]]<>"",(VLOOKUP(Table35[[#Headers],[Ingénierie et conception]],'Def. Prix & Parcours'!$B$6:$E$28,IF($F34="G",2,IF($F34="T",3,IF($F34="N",4,0))),FALSE)*Table3[[#This Row],[Points Ingénierie et conception]]),"") -> 102 | H34: =IF(Table3[[#This Row],[Parcours choisi]]<>"",(VLOOKUP(Table35[[#Headers],[Innovation mécanique]],'Def. Prix & Parcours'!$B$6:$E$28,IF($F34="G",2,IF($F34="T",3,IF($F34="N",4,0))),FALSE)*Table3[[#This Row],[Points Innovation mécanique]]),"") -> 90 | I34: =IF(Table3[[#This Row],[Parcours choisi]]<>"",(VLOOKUP(Table35[[#Headers],[Développement Durable]],'Def. Prix & Parcours'!$B$6:$E$28,IF($F34="G",2,IF($F34="T",3,IF($F34="N",4,0))),FALSE)*Table3[[#This Row],[Points Développement Durable]]),"") -> 80 | J34: =IF(Table3[[#This Row],[Parcours choisi]]<>"",(VLOOKUP(Table35[[#Headers],[Ingénierie de fabrication]],'Def. Prix & Parcours'!$B$6:$E$28,IF($F34="G",2,IF($F34="T",3,IF($F34="N",4,0))),FALSE)*Table3[[#This Row],[Points Ingénierie de fabrication]]),"") -> 54 | K34: =IF(Table3[[#This Row],[Parcours choisi]]<>"",(VLOOKUP(Table35[[#Headers],[Gestion de projet et collaborations]],'Def. Prix & Parcours'!$B$6:$E$28,IF($F34="G",2,IF($F34="T",3,IF($F34="N",4,0))),FALSE)*Table3[[#This Row],[Points Gestion de projet et collaborations]]),"") -> 90 | L34: =IF(Table3[[#This Row],[Parcours choisi]]<>"",(VLOOKUP(Table35[[#Headers],[Présentation Orale]],'Def. Prix & Parcours'!$B$6:$E$28,IF($F34="G",2,IF($F34="T",3,IF($F34="N",4,0))),FALSE)*Table3[[#This Row],[Points Présentation Orale]]),"") -> 65 | M34: =IF(Table3[[#This Row],[Parcours choisi]]<>"",(VLOOKUP(Table35[[#Headers],[Identité Equipe]],'Def. Prix & Parcours'!$B$6:$E$28,IF($F34="G",2,IF($F34="T",3,IF($F34="N",4,0))),FALSE)*Table3[[#This Row],[Points Identité Equipe]]),"") -> 85 | N34: =IF(Table3[[#This Row],[Parcours choisi]]<>"",(VLOOKUP(Table35[[#Headers],[Design du Stand]],'Def. Prix & Parcours'!$B$6:$E$28,IF($F34="G",2,IF($F34="T",3,IF($F34="N",4,0))),FALSE)*Table3[[#This Row],[Points Design du Stand]]),"") -> 136 | O34: =IF(Table3[[#This Row],[Parcours choisi]]<>"",(VLOOKUP(Table35[[#Headers],[Portfolio]],'Def. Prix & Parcours'!$B$6:$E$28,IF($F34="G",2,IF($F34="T",3,IF($F34="N",4,0))),FALSE)*Table3[[#This Row],[Points Portfolio]]),"") -> 144 | P34: =IF(Table3[[#This Row],[Parcours choisi]]<>"",(VLOOKUP(Table35[[#Headers],[Marketing et Sponsoring]],'Def. Prix & Parcours'!$B$6:$E$28,IF($F34="G",2,IF($F34="T",3,IF($F34="N",4,0))),FALSE)*Table3[[#This Row],[Points Marketing et Sponsoring]]),"") -> 96 | Q34: =IF(Table3[[#This Row],[Parcours choisi]]<>"",(VLOOKUP(Table35[[#Headers],[Budget]],'Def. Prix & Parcours'!$B$6:$E$28,IF($F34="G",2,IF($F34="T",3,IF($F34="N",4,0))),FALSE)*Table3[[#This Row],[Points Budget]]),"") -> 36 | R34: =IF(Table3[[#This Row],[Parcours choisi]]<>"",(VLOOKUP(Table35[[#Headers],[Design du Véhicule]],'Def. Prix & Parcours'!$B$6:$E$28,IF($F34="G",2,IF($F34="T",3,IF($F34="N",4,0))),FALSE)*Table3[[#This Row],[Points Design du Véhicule]]),"") -> 54 | S34: =IF(Table3[[#This Row],[Parcours choisi]]<>"",(VLOOKUP(Table35[[#Headers],[Innovation numérique]],'Def. Prix & Parcours'!$B$6:$E$28,IF($F34="G",2,IF($F34="T",3,IF($F34="N",4,0))),FALSE)*Table3[[#This Row],[Points Innovation numérique]]),"") -> 28 | T34: =IF(Table3[[#This Row],[Parcours choisi]]<>"",(VLOOKUP(Table35[[#Headers],[Programmation]],'Def. Prix & Parcours'!$B$6:$E$28,IF($F34="G",2,IF($F34="T",3,IF($F34="N",4,0))),FALSE)*Table3[[#This Row],[Points Programmation]]),"") -> 0 | U34: =IF(Table3[[#This Row],[Parcours choisi]]<>"",(VLOOKUP(Table35[[#Headers],[Respect du règlement]],'Def. Prix & Parcours'!$B$6:$E$28,IF($F34="G",2,IF($F34="T",3,IF($F34="N",4,0))),FALSE)*Table3[[#This Row],[Points Respect du règlement]]),"") -> 95 | V34: =IF(Table3[[#This Row],[Parcours choisi]]<>"",(VLOOKUP(Table35[[#Headers],[Communication : vidéo]],'Def. Prix & Parcours'!$B$6:$E$28,IF($F34="G",2,IF($F34="T",3,IF($F34="N",4,0))),FALSE)*Table3[[#This Row],[Points Communication : vidéo]]),"") -> 33 | W34: =IF(Table3[[#This Row],[Parcours choisi]]<>"",(VLOOKUP(Table35[[#Headers],[Epreuve CAO]],'Def. Prix & Parcours'!$B$6:$E$28,IF($F34="G",2,IF($F34="T",3,IF($F34="N",4,0))),FALSE)*Table3[[#This Row],[Points Epreuve CAO]]),"") -> 80 | X34: =IF(Table3[[#This Row],[Parcours choisi]]<>"",(VLOOKUP(Table35[[#Headers],[Temps Réaction]],'Def. Prix & Parcours'!$B$6:$E$28,IF($F34="G",2,IF($F34="T",3,IF($F34="N",4,0))),FALSE)*Table3[[#This Row],[Points Temps Réaction]]),"") -> 6 | Y34: =IF(Table3[[#This Row],[Parcours choisi]]<>"",(VLOOKUP(Table35[[#Headers],[Temps Course]],'Def. Prix & Parcours'!$B$6:$E$28,IF($F34="G",2,IF($F34="T",3,IF($F34="N",4,0))),FALSE)*Table3[[#This Row],[Points Temps Course]]),"") -> 120 | Z34: =IF(Table3[[#This Row],[Parcours choisi]]<>"",(VLOOKUP(Table35[[#Headers],[Epreuve arrêt au stand]],'Def. Prix & Parcours'!$B$6:$E$28,IF($F34="G",2,IF($F34="T",3,IF($F34="N",4,0))),FALSE)*Table3[[#This Row],[Points Epreuve arrêt au stand]]),"") -> 80 | AB34: =IF(Table3[[#This Row],[Parcours choisi]]<>"",SUM(Table35[[#This Row],[Ingénierie et conception]:[1]]),"") -> 1474 | AC34: =IF(Table3[[#This Row],[Parcours choisi]]<>"",_xlfn.RANK.EQ(Table35[[#This Row],[Total Parcours]],Table35[Total Parcours],0),"") -> 7
A35: 29 | B35: =IF(Table3[[#This Row],[Nom équipe]]<>"",Table3[[#This Row],[Nom équipe]],"") -> Team Lambo | C35: =IF(Table3[[#This Row],[Etablissement]]<>"",Table3[[#This Row],[Etablissement]],"") -> La Fontaine St Avold | D35: =IF(Table3[[#This Row],[Type établissement]]<>"",Table3[[#This Row],[Type établissement]],"") -> C | E35: =IF(Table3[[#This Row],[Académie]]<>"",Table3[[#This Row],[Académie]],"") -> Nancy-Metz | F35: =IF(Table3[[#This Row],[Parcours choisi]]<>"",Table3[[#This Row],[Parcours choisi]],"") -> G | G35: =IF(Table3[[#This Row],[Parcours choisi]]<>"",(VLOOKUP(Table35[[#Headers],[Ingénierie et conception]],'Def. Prix & Parcours'!$B$6:$E$28,IF($F35="G",2,IF($F35="T",3,IF($F35="N",4,0))),FALSE)*Table3[[#This Row],[Points Ingénierie et conception]]),"") -> 90 | H35: =IF(Table3[[#This Row],[Parcours choisi]]<>"",(VLOOKUP(Table35[[#Headers],[Innovation mécanique]],'Def. Prix & Parcours'!$B$6:$E$28,IF($F35="G",2,IF($F35="T",3,IF($F35="N",4,0))),FALSE)*Table3[[#This Row],[Points Innovation mécanique]]),"") -> 78 | I35: =IF(Table3[[#This Row],[Parcours choisi]]<>"",(VLOOKUP(Table35[[#Headers],[Développement Durable]],'Def. Prix & Parcours'!$B$6:$E$28,IF($F35="G",2,IF($F35="T",3,IF($F35="N",4,0))),FALSE)*Table3[[#This Row],[Points Développement Durable]]),"") -> 56 | J35: =IF(Table3[[#This Row],[Parcours choisi]]<>"",(VLOOKUP(Table35[[#Headers],[Ingénierie de fabrication]],'Def. Prix & Parcours'!$B$6:$E$28,IF($F35="G",2,IF($F35="T",3,IF($F35="N",4,0))),FALSE)*Table3[[#This Row],[Points Ingénierie de fabrication]]),"") -> 39 | K35: =IF(Table3[[#This Row],[Parcours choisi]]<>"",(VLOOKUP(Table35[[#Headers],[Gestion de projet et collaborations]],'Def. Prix & Parcours'!$B$6:$E$28,IF($F35="G",2,IF($F35="T",3,IF($F35="N",4,0))),FALSE)*Table3[[#This Row],[Points Gestion de projet et collaborations]]),"") -> 55 | L35: =IF(Table3[[#This Row],[Parcours choisi]]<>"",(VLOOKUP(Table35[[#Headers],[Présentation Orale]],'Def. Prix & Parcours'!$B$6:$E$28,IF($F35="G",2,IF($F35="T",3,IF($F35="N",4,0))),FALSE)*Table3[[#This Row],[Points Présentation Orale]]),"") -> 60 | M35: =IF(Table3[[#This Row],[Parcours choisi]]<>"",(VLOOKUP(Table35[[#Headers],[Identité Equipe]],'Def. Prix & Parcours'!$B$6:$E$28,IF($F35="G",2,IF($F35="T",3,IF($F35="N",4,0))),FALSE)*Table3[[#This Row],[Points Identité Equipe]]),"") -> 35 | N35: =IF(Table3[[#This Row],[Parcours choisi]]<>"",(VLOOKUP(Table35[[#Headers],[Design du Stand]],'Def. Prix & Parcours'!$B$6:$E$28,IF($F35="G",2,IF($F35="T",3,IF($F35="N",4,0))),FALSE)*Table3[[#This Row],[Points Design du Stand]]),"") -> 56 | O35: =IF(Table3[[#This Row],[Parcours choisi]]<>"",(VLOOKUP(Table35[[#Headers],[Portfolio]],'Def. Prix & Parcours'!$B$6:$E$28,IF($F35="G",2,IF($F35="T",3,IF($F35="N",4,0))),FALSE)*Table3[[#This Row],[Points Portfolio]]),"") -> 80 | P35: =IF(Table3[[#This Row],[Parcours choisi]]<>"",(VLOOKUP(Table35[[#Headers],[Marketing et Sponsoring]],'Def. Prix & Parcours'!$B$6:$E$28,IF($F35="G",2,IF($F35="T",3,IF($F35="N",4,0))),FALSE)*Table3[[#This Row],[Points Marketing et Sponsoring]]),"") -> 64 | Q35: =IF(Table3[[#This Row],[Parcours choisi]]<>"",(VLOOKUP(Table35[[#Headers],[Budget]],'Def. Prix & Parcours'!$B$6:$E$28,IF($F35="G",2,IF($F35="T",3,IF($F35="N",4,0))),FALSE)*Table3[[#This Row],[Points Budget]]),"") -> 12 | R35: =IF(Table3[[#This Row],[Parcours choisi]]<>"",(VLOOKUP(Table35[[#Headers],[Design du Véhicule]],'Def. Prix & Parcours'!$B$6:$E$28,IF($F35="G",2,IF($F35="T",3,IF($F35="N",4,0))),FALSE)*Table3[[#This Row],[Points Design du Véhicule]]),"") -> 24 | S35: =IF(Table3[[#This Row],[Parcours choisi]]<>"",(VLOOKUP(Table35[[#Headers],[Innovation numérique]],'Def. Prix & Parcours'!$B$6:$E$28,IF($F35="G",2,IF($F35="T",3,IF($F35="N",4,0))),FALSE)*Table3[[#This Row],[Points Innovation numérique]]),"") -> 12 | T35: =IF(Table3[[#This Row],[Parcours choisi]]<>"",(VLOOKUP(Table35[[#Headers],[Programmation]],'Def. Prix & Parcours'!$B$6:$E$28,IF($F35="G",2,IF($F35="T",3,IF($F35="N",4,0))),FALSE)*Table3[[#This Row],[Points Programmation]]),"") -> 12 | U35: =IF(Table3[[#This Row],[Parcours choisi]]<>"",(VLOOKUP(Table35[[#Headers],[Respect du règlement]],'Def. Prix & Parcours'!$B$6:$E$28,IF($F35="G",2,IF($F35="T",3,IF($F35="N",4,0))),FALSE)*Table3[[#This Row],[Points Respect du règlement]]),"") -> 70 | V35: =IF(Table3[[#This Row],[Parcours choisi]]<>"",(VLOOKUP(Table35[[#Headers],[Communication : vidéo]],'Def. Prix & Parcours'!$B$6:$E$28,IF($F35="G",2,IF($F35="T",3,IF($F35="N",4,0))),FALSE)*Table3[[#This Row],[Points Communication : vidéo]]),"") -> 30 | W35: =IF(Table3[[#This Row],[Parcours choisi]]<>"",(VLOOKUP(Table35[[#Headers],[Epreuve CAO]],'Def. Prix & Parcours'!$B$6:$E$28,IF($F35="G",2,IF($F35="T",3,IF($F35="N",4,0))),FALSE)*Table3[[#This Row],[Points Epreuve CAO]]),"") -> 80 | X35: =IF(Table3[[#This Row],[Parcours choisi]]<>"",(VLOOKUP(Table35[[#Headers],[Temps Réaction]],'Def. Prix & Parcours'!$B$6:$E$28,IF($F35="G",2,IF($F35="T",3,IF($F35="N",4,0))),FALSE)*Table3[[#This Row],[Points Temps Réaction]]),"") -> 12 | Y35: =IF(Table3[[#This Row],[Parcours choisi]]<>"",(VLOOKUP(Table35[[#Headers],[Temps Course]],'Def. Prix & Parcours'!$B$6:$E$28,IF($F35="G",2,IF($F35="T",3,IF($F35="N",4,0))),FALSE)*Table3[[#This Row],[Points Temps Course]]),"") -> 80 | Z35: =IF(Table3[[#This Row],[Parcours choisi]]<>"",(VLOOKUP(Table35[[#Headers],[Epreuve arrêt au stand]],'Def. Prix & Parcours'!$B$6:$E$28,IF($F35="G",2,IF($F35="T",3,IF($F35="N",4,0))),FALSE)*Table3[[#This Row],[Points Epreuve arrêt au stand]]),"") -> 80 | AB35: =IF(Table3[[#This Row],[Parcours choisi]]<>"",SUM(Table35[[#This Row],[Ingénierie et conception]:[1]]),"") -> 1025 | AC35: =IF(Table3[[#This Row],[Parcours choisi]]<>"",_xlfn.RANK.EQ(Table35[[#This Row],[Total Parcours]],Table35[Total Parcours],0),"") -> 24
A36: 30 | B36: =IF(Table3[[#This Row],[Nom équipe]]<>"",Table3[[#This Row],[Nom équipe]],"") ->  | C36: =IF(Table3[[#This Row],[Etablissement]]<>"",Table3[[#This Row],[Etablissement]],"") ->  | D36: =IF(Table3[[#This Row],[Type établissement]]<>"",Table3[[#This Row],[Type établissement]],"") ->  | E36: =IF(Table3[[#This Row],[Académie]]<>"",Table3[[#This Row],[Académie]],"") ->  | F36: =IF(Table3[[#This Row],[Parcours choisi]]<>"",Table3[[#This Row],[Parcours choisi]],"") ->  | G36: =IF(Table3[[#This Row],[Parcours choisi]]<>"",(VLOOKUP(Table35[[#Headers],[Ingénierie et conception]],'Def. Prix & Parcours'!$B$6:$E$28,IF($F36="G",2,IF($F36="T",3,IF($F36="N",4,0))),FALSE)*Table3[[#This Row],[Points Ingénierie et conception]]),"") ->  | H36: =IF(Table3[[#This Row],[Parcours choisi]]<>"",(VLOOKUP(Table35[[#Headers],[Innovation mécanique]],'Def. Prix & Parcours'!$B$6:$E$28,IF($F36="G",2,IF($F36="T",3,IF($F36="N",4,0))),FALSE)*Table3[[#This Row],[Points Innovation mécanique]]),"") ->  | I36: =IF(Table3[[#This Row],[Parcours choisi]]<>"",(VLOOKUP(Table35[[#Headers],[Développement Durable]],'Def. Prix & Parcours'!$B$6:$E$28,IF($F36="G",2,IF($F36="T",3,IF($F36="N",4,0))),FALSE)*Table3[[#This Row],[Points Développement Durable]]),"") ->  | J36: =IF(Table3[[#This Row],[Parcours choisi]]<>"",(VLOOKUP(Table35[[#Headers],[Ingénierie de fabrication]],'Def. Prix & Parcours'!$B$6:$E$28,IF($F36="G",2,IF($F36="T",3,IF($F36="N",4,0))),FALSE)*Table3[[#This Row],[Points Ingénierie de fabrication]]),"") ->  | K36: =IF(Table3[[#This Row],[Parcours choisi]]<>"",(VLOOKUP(Table35[[#Headers],[Gestion de projet et collaborations]],'Def. Prix & Parcours'!$B$6:$E$28,IF($F36="G",2,IF($F36="T",3,IF($F36="N",4,0))),FALSE)*Table3[[#This Row],[Points Gestion de projet et collaborations]]),"") ->  | L36: =IF(Table3[[#This Row],[Parcours choisi]]<>"",(VLOOKUP(Table35[[#Headers],[Présentation Orale]],'Def. Prix & Parcours'!$B$6:$E$28,IF($F36="G",2,IF($F36="T",3,IF($F36="N",4,0))),FALSE)*Table3[[#This Row],[Points Présentation Orale]]),"") ->  | M36: =IF(Table3[[#This Row],[Parcours choisi]]<>"",(VLOOKUP(Table35[[#Headers],[Identité Equipe]],'Def. Prix & Parcours'!$B$6:$E$28,IF($F36="G",2,IF($F36="T",3,IF($F36="N",4,0))),FALSE)*Table3[[#This Row],[Points Identité Equipe]]),"") ->  | N36: =IF(Table3[[#This Row],[Parcours choisi]]<>"",(VLOOKUP(Table35[[#Headers],[Design du Stand]],'Def. Prix & Parcours'!$B$6:$E$28,IF($F36="G",2,IF($F36="T",3,IF($F36="N",4,0))),FALSE)*Table3[[#This Row],[Points Design du Stand]]),"") ->  | O36: =IF(Table3[[#This Row],[Parcours choisi]]<>"",(VLOOKUP(Table35[[#Headers],[Portfolio]],'Def. Prix & Parcours'!$B$6:$E$28,IF($F36="G",2,IF($F36="T",3,IF($F36="N",4,0))),FALSE)*Table3[[#This Row],[Points Portfolio]]),"") ->  | P36: =IF(Table3[[#This Row],[Parcours choisi]]<>"",(VLOOKUP(Table35[[#Headers],[Marketing et Sponsoring]],'Def. Prix & Parcours'!$B$6:$E$28,IF($F36="G",2,IF($F36="T",3,IF($F36="N",4,0))),FALSE)*Table3[[#This Row],[Points Marketing et Sponsoring]]),"") ->  | Q36: =IF(Table3[[#This Row],[Parcours choisi]]<>"",(VLOOKUP(Table35[[#Headers],[Budget]],'Def. Prix & Parcours'!$B$6:$E$28,IF($F36="G",2,IF($F36="T",3,IF($F36="N",4,0))),FALSE)*Table3[[#This Row],[Points Budget]]),"") ->  | R36: =IF(Table3[[#This Row],[Parcours choisi]]<>"",(VLOOKUP(Table35[[#Headers],[Design du Véhicule]],'Def. Prix & Parcours'!$B$6:$E$28,IF($F36="G",2,IF($F36="T",3,IF($F36="N",4,0))),FALSE)*Table3[[#This Row],[Points Design du Véhicule]]),"") ->  | S36: =IF(Table3[[#This Row],[Parcours choisi]]<>"",(VLOOKUP(Table35[[#Headers],[Innovation numérique]],'Def. Prix & Parcours'!$B$6:$E$28,IF($F36="G",2,IF($F36="T",3,IF($F36="N",4,0))),FALSE)*Table3[[#This Row],[Points Innovation numérique]]),"") ->  | T36: =IF(Table3[[#This Row],[Parcours choisi]]<>"",(VLOOKUP(Table35[[#Headers],[Programmation]],'Def. Prix & Parcours'!$B$6:$E$28,IF($F36="G",2,IF($F36="T",3,IF($F36="N",4,0))),FALSE)*Table3[[#This Row],[Points Programmation]]),"") ->  | U36: =IF(Table3[[#This Row],[Parcours choisi]]<>"",(VLOOKUP(Table35[[#Headers],[Respect du règlement]],'Def. Prix & Parcours'!$B$6:$E$28,IF($F36="G",2,IF($F36="T",3,IF($F36="N",4,0))),FALSE)*Table3[[#This Row],[Points Respect du règlement]]),"") ->  | V36: =IF(Table3[[#This Row],[Parcours choisi]]<>"",(VLOOKUP(Table35[[#Headers],[Communication : vidéo]],'Def. Prix & Parcours'!$B$6:$E$28,IF($F36="G",2,IF($F36="T",3,IF($F36="N",4,0))),FALSE)*Table3[[#This Row],[Points Communication : vidéo]]),"") ->  | W36: =IF(Table3[[#This Row],[Parcours choisi]]<>"",(VLOOKUP(Table35[[#Headers],[Epreuve CAO]],'Def. Prix & Parcours'!$B$6:$E$28,IF($F36="G",2,IF($F36="T",3,IF($F36="N",4,0))),FALSE)*Table3[[#This Row],[Points Epreuve CAO]]),"") ->  | X36: =IF(Table3[[#This Row],[Parcours choisi]]<>"",(VLOOKUP(Table35[[#Headers],[Temps Réaction]],'Def. Prix & Parcours'!$B$6:$E$28,IF($F36="G",2,IF($F36="T",3,IF($F36="N",4,0))),FALSE)*Table3[[#This Row],[Points Temps Réaction]]),"") ->  | Y36: =IF(Table3[[#This Row],[Parcours choisi]]<>"",(VLOOKUP(Table35[[#Headers],[Temps Course]],'Def. Prix & Parcours'!$B$6:$E$28,IF($F36="G",2,IF($F36="T",3,IF($F36="N",4,0))),FALSE)*Table3[[#This Row],[Points Temps Course]]),"") ->  | Z36: =IF(Table3[[#This Row],[Parcours choisi]]<>"",(VLOOKUP(Table35[[#Headers],[Epreuve arrêt au stand]],'Def. Prix & Parcours'!$B$6:$E$28,IF($F36="G",2,IF($F36="T",3,IF($F36="N",4,0))),FALSE)*Table3[[#This Row],[Points Epreuve arrêt au stand]]),"") ->  | AB36: =IF(Table3[[#This Row],[Parcours choisi]]<>"",SUM(Table35[[#This Row],[Ingénierie et conception]:[1]]),"") ->  | AC36: =IF(Table3[[#This Row],[Parcours choisi]]<>"",_xlfn.RANK.EQ(Table35[[#This Row],[Total Parcours]],Table35[Total Parcours],0),"") -> 

Sheet Prix Sciences & Techniques
C2: FINALE FRANCE / ACADEMIQUES COURSE EN COURS | K2: Résultats du Prix Sciences et Techniques Collèges/Lycées
E4: Attention: Ne rien saisir sur cette feuille est calculée automatiquement
A6: N° équipe | B6: Nom équipe | C6: établissement | D6: Type établissement | E6: Académie | F6: Parcours | G6: Ingénierie et conception | H6: Innovation mécanique | I6: Développement Durable | J6: Ingénierie de fabrication | K6: Gestion de projet et collaborations | L6: Présentation Orale | M6: Identité Equipe | N6: Design du Stand | O6: Portfolio | P6: Marketing et Sponsoring | Q6: Budget | R6: Design du Véhicule | S6: Innovation numérique | T6: Programmation | U6: Respect du règlement | V6: Communication : vidéo | W6: Epreuve CAO | X6: Temps Réaction | Y6: Temps Course | Z6: Epreuve arrêt au stand | AA6: 1 | AB6: Total Sciences et Techniques | AC6: Classement Sciences et Techniques
A7: 1 | B7: =IF(Table3[[#This Row],[Nom équipe]]<>"",Table3[[#This Row],[Nom équipe]],"") -> Star Car | C7: =IF(Table3[[#This Row],[Etablissement]]<>"",Table3[[#This Row],[Etablissement]],"") -> AVEC | D7: =IF(Table3[[#This Row],[Type établissement]]<>"",Table3[[#This Row],[Type établissement]],"") -> C | E7: =IF(Table3[[#This Row],[Académie]]<>"",Table3[[#This Row],[Académie]],"") -> Nancy-Metz | F7: =IF(Table3[[#This Row],[Parcours choisi]]<>"",Table3[[#This Row],[Parcours choisi]],"") -> G | G7: =IF(Table3[[#This Row],[Parcours choisi]]<>"",(VLOOKUP(Table356[[#Headers],[Ingénierie et conception]],'Def. Prix & Parcours'!$I$6:$M$28,3,FALSE)*Table3[[#This Row],[Points Ingénierie et conception]]),"") -> 84 | H7: =IF(Table3[[#This Row],[Parcours choisi]]<>"",(VLOOKUP(Table356[[#Headers],[Innovation mécanique]],'Def. Prix & Parcours'!$I$6:$M$28,3,FALSE)*Table3[[#This Row],[Points Innovation mécanique]]),"") -> 192 | I7: =IF(Table3[[#This Row],[Parcours choisi]]<>"",(VLOOKUP(Table356[[#Headers],[Développement Durable]],'Def. Prix & Parcours'!$I$6:$M$28,3,FALSE)*Table3[[#This Row],[Points Développement Durable]]),"") -> 24 | J7: =IF(Table3[[#This Row],[Parcours choisi]]<>"",(VLOOKUP(Table356[[#Headers],[Ingénierie de fabrication]],'Def. Prix & Parcours'!$I$6:$M$28,3,FALSE)*Table3[[#This Row],[Points Ingénierie de fabrication]]),"") -> 112 | K7: =IF(Table3[[#This Row],[Parcours choisi]]<>"",(VLOOKUP(Table356[[#Headers],[Gestion de projet et collaborations]],'Def. Prix & Parcours'!$I$6:$M$28,3,FALSE)*Table3[[#This Row],[Points Gestion de projet et collaborations]]),"") -> 85 | L7: =IF(Table3[[#This Row],[Parcours choisi]]<>"",(VLOOKUP(Table356[[#Headers],[Présentation Orale]],'Def. Prix & Parcours'!$I$6:$M$28,3,FALSE)*Table3[[#This Row],[Points Présentation Orale]]),"") -> 56 | M7: =IF(Table3[[#This Row],[Parcours choisi]]<>"",(VLOOKUP(Table356[[#Headers],[Identité Equipe]],'Def. Prix & Parcours'!$I$6:$M$28,3,FALSE)*Table3[[#This Row],[Points Identité Equipe]]),"") -> 52 | N7: =IF(Table3[[#This Row],[Parcours choisi]]<>"",(VLOOKUP(Table356[[#Headers],[Design du Stand]],'Def. Prix & Parcours'!$I$6:$M$28,3,FALSE)*Table3[[#This Row],[Points Design du Stand]]),"") -> 0 | O7: =IF(Table3[[#This Row],[Parcours choisi]]<>"",(VLOOKUP(Table356[[#Headers],[Portfolio]],'Def. Prix & Parcours'!$I$6:$M$28,3,FALSE)*Table3[[#This Row],[Points Portfolio]]),"") -> 0 | P7: =IF(Table3[[#This Row],[Parcours choisi]]<>"",(VLOOKUP(Table356[[#Headers],[Marketing et Sponsoring]],'Def. Prix & Parcours'!$I$6:$M$28,3,FALSE)*Table3[[#This Row],[Points Marketing et Sponsoring]]),"") -> 0 | Q7: =IF(Table3[[#This Row],[Parcours choisi]]<>"",(VLOOKUP(Table356[[#Headers],[Budget]],'Def. Prix & Parcours'!$I$6:$M$28,3,FALSE)*Table3[[#This Row],[Points Budget]]),"") -> 0 | R7: =IF(Table3[[#This Row],[Parcours choisi]]<>"",(VLOOKUP(Table356[[#Headers],[Design du Véhicule]],'Def. Prix & Parcours'!$I$6:$M$28,3,FALSE)*Table3[[#This Row],[Points Design du Véhicule]]),"") -> 90 | S7: =IF(Table3[[#This Row],[Parcours choisi]]<>"",(VLOOKUP(Table356[[#Headers],[Innovation numérique]],'Def. Prix & Parcours'!$I$6:$M$28,3,FALSE)*Table3[[#This Row],[Points Innovation numérique]]),"") -> 0 | T7: =IF(Table3[[#This Row],[Parcours choisi]]<>"",(VLOOKUP(Table356[[#Headers],[Programmation]],'Def. Prix & Parcours'!$I$6:$M$28,3,FALSE)*Table3[[#This Row],[Points Programmation]]),"") -> 0 | U7: =IF(Table3[[#This Row],[Parcours choisi]]<>"",(VLOOKUP(Table356[[#Headers],[Respect du règlement]],'Def. Prix & Parcours'!$I$6:$M$28,3,FALSE)*Table3[[#This Row],[Points Respect du règlement]]),"") -> 45 | V7: =IF(Table3[[#This Row],[Parcours choisi]]<>"",(VLOOKUP(Table356[[#Headers],[Communication : vidéo]],'Def. Prix & Parcours'!$I$6:$M$28,3,FALSE)*Table3[[#This Row],[Points Communication : vidéo]]),"") -> 0 | W7: =IF(Table3[[#This Row],[Parcours choisi]]<>"",(VLOOKUP(Table356[[#Headers],[Epreuve CAO]],'Def. Prix & Parcours'!$I$6:$M$28,3,FALSE)*Table3[[#This Row],[Points Epreuve CAO]]),"") -> 0 | X7: =IF(Table3[[#This Row],[Parcours choisi]]<>"",(VLOOKUP(Table356[[#Headers],[Temps Réaction]],'Def. Prix & Parcours'!$I$6:$M$28,3,FALSE)*Table3[[#This Row],[Points Temps Réaction]]),"") -> 0 | Y7: =IF(Table3[[#This Row],[Parcours choisi]]<>"",(VLOOKUP(Table356[[#Headers],[Temps Course]],'Def. Prix & Parcours'!$I$6:$M$28,3,FALSE)*Table3[[#This Row],[Points Temps Course]]),"") -> 90 | Z7: =IF(Table3[[#This Row],[Parcours choisi]]<>"",(VLOOKUP(Table356[[#Headers],[Epreuve arrêt au stand]],'Def. Prix & Parcours'!$I$6:$M$28,3,FALSE)*Table3[[#This Row],[Points Epreuve arrêt au stand]]),"") -> 0 | AB7: =IF(Table3[[#This Row],[Parcours choisi]]<>"",SUM(Table35678[[#This Row],[Ingénierie et conception]:[1]]),"") -> 830 | AC7: =IF(Table3[[#This Row],[Parcours choisi]]<>"",_xlfn.RANK.EQ(Table35678[[#This Row],[Total Sciences et Techniques]],Table35678[Total Sciences et Techniques],0),"") -> 22
A8: 2 | B8: =IF(Table3[[#This Row],[Nom équipe]]<>"",Table3[[#This Row],[Nom équipe]],"") -> Les industriels | C8: =IF(Table3[[#This Row],[Etablissement]]<>"",Table3[[#This Row],[Etablissement]],"") -> Loritz Nancy | D8: =IF(Table3[[#This Row],[Type établissement]]<>"",Table3[[#This Row],[Type établissement]],"") -> L | E8: =IF(Table3[[#This Row],[Académie]]<>"",Table3[[#This Row],[Académie]],"") -> Nancy-Metz | F8: =IF(Table3[[#This Row],[Parcours choisi]]<>"",Table3[[#This Row],[Parcours choisi]],"") -> T | G8: =IF(Table3[[#This Row],[Parcours choisi]]<>"",(VLOOKUP(Table356[[#Headers],[Ingénierie et conception]],'Def. Prix & Parcours'!$I$6:$M$28,3,FALSE)*Table3[[#This Row],[Points Ingénierie et conception]]),"") -> 0 | H8: =IF(Table3[[#This Row],[Parcours choisi]]<>"",(VLOOKUP(Table356[[#Headers],[Innovation mécanique]],'Def. Prix & Parcours'!$I$6:$M$28,3,FALSE)*Table3[[#This Row],[Points Innovation mécanique]]),"") -> 0 | I8: =IF(Table3[[#This Row],[Parcours choisi]]<>"",(VLOOKUP(Table356[[#Headers],[Développement Durable]],'Def. Prix & Parcours'!$I$6:$M$28,3,FALSE)*Table3[[#This Row],[Points Développement Durable]]),"") -> 0 | J8: =IF(Table3[[#This Row],[Parcours choisi]]<>"",(VLOOKUP(Table356[[#Headers],[Ingénierie de fabrication]],'Def. Prix & Parcours'!$I$6:$M$28,3,FALSE)*Table3[[#This Row],[Points Ingénierie de fabrication]]),"") -> 0 | K8: =IF(Table3[[#This Row],[Parcours choisi]]<>"",(VLOOKUP(Table356[[#Headers],[Gestion de projet et collaborations]],'Def. Prix & Parcours'!$I$6:$M$28,3,FALSE)*Table3[[#This Row],[Points Gestion de projet et collaborations]]),"") -> 0 | L8: =IF(Table3[[#This Row],[Parcours choisi]]<>"",(VLOOKUP(Table356[[#Headers],[Présentation Orale]],'Def. Prix & Parcours'!$I$6:$M$28,3,FALSE)*Table3[[#This Row],[Points Présentation Orale]]),"") -> 0 | M8: =IF(Table3[[#This Row],[Parcours choisi]]<>"",(VLOOKUP(Table356[[#Headers],[Identité Equipe]],'Def. Prix & Parcours'!$I$6:$M$28,3,FALSE)*Table3[[#This Row],[Points Identité Equipe]]),"") -> 0 | N8: =IF(Table3[[#This Row],[Parcours choisi]]<>"",(VLOOKUP(Table356[[#Headers],[Design du Stand]],'Def. Prix & Parcours'!$I$6:$M$28,3,FALSE)*Table3[[#This Row],[Points Design du Stand]]),"") -> 0 | O8: =IF(Table3[[#This Row],[Parcours choisi]]<>"",(VLOOKUP(Table356[[#Headers],[Portfolio]],'Def. Prix & Parcours'!$I$6:$M$28,3,FALSE)*Table3[[#This Row],[Points Portfolio]]),"") -> 0 | P8: =IF(Table3[[#This Row],[Parcours choisi]]<>"",(VLOOKUP(Table356[[#Headers],[Marketing et Sponsoring]],'Def. Prix & Parcours'!$I$6:$M$28,3,FALSE)*Table3[[#This Row],[Points Marketing et Sponsoring]]),"") -> 0 | Q8: =IF(Table3[[#This Row],[Parcours choisi]]<>"",(VLOOKUP(Table356[[#Headers],[Budget]],'Def. Prix & Parcours'!$I$6:$M$28,3,FALSE)*Table3[[#This Row],[Points Budget]]),"") -> 0 | R8: =IF(Table3[[#This Row],[Parcours choisi]]<>"",(VLOOKUP(Table356[[#Headers],[Design du Véhicule]],'Def. Prix & Parcours'!$I$6:$M$28,3,FALSE)*Table3[[#This Row],[Points Design du Véhicule]]),"") -> 0 | S8: =IF(Table3[[#This Row],[Parcours choisi]]<>"",(VLOOKUP(Table356[[#Headers],[Innovation numérique]],'Def. Prix & Parcours'!$I$6:$M$28,3,FALSE)*Table3[[#This Row],[Points Innovation numérique]]),"") -> 0 | T8: =IF(Table3[[#This Row],[Parcours choisi]]<>"",(VLOOKUP(Table356[[#Headers],[Programmation]],'Def. Prix & Parcours'!$I$6:$M$28,3,FALSE)*Table3[[#This Row],[Points Programmation]]),"") -> 0 | U8: =IF(Table3[[#This Row],[Parcours choisi]]<>"",(VLOOKUP(Table356[[#Headers],[Respect du règlement]],'Def. Prix & Parcours'!$I$6:$M$28,3,FALSE)*Table3[[#This Row],[Points Respect du règlement]]),"") -> 0 | V8: =IF(Table3[[#This Row],[Parcours choisi]]<>"",(VLOOKUP(Table356[[#Headers],[Communication : vidéo]],'Def. Prix & Parcours'!$I$6:$M$28,3,FALSE)*Table3[[#This Row],[Points Communication : vidéo]]),"") -> 0 | W8: =IF(Table3[[#This Row],[Parcours choisi]]<>"",(VLOOKUP(Table356[[#Headers],[Epreuve CAO]],'Def. Prix & Parcours'!$I$6:$M$28,3,FALSE)*Table3[[#This Row],[Points Epreuve CAO]]),"") -> 0 | X8: =IF(Table3[[#This Row],[Parcours choisi]]<>"",(VLOOKUP(Table356[[#Headers],[Temps Réaction]],'Def. Prix & Parcours'!$I$6:$M$28,3,FALSE)*Table3[[#This Row],[Points Temps Réaction]]),"") -> 0 | Y8: =IF(Table3[[#This Row],[Parcours choisi]]<>"",(VLOOKUP(Table356[[#Headers],[Temps Course]],'Def. Prix & Parcours'!$I$6:$M$28,3,FALSE)*Table3[[#This Row],[Points Temps Course]]),"") -> 80 | Z8: =IF(Table3[[#This Row],[Parcours choisi]]<>"",(VLOOKUP(Table356[[#Headers],[Epreuve arrêt au stand]],'Def. Prix & Parcours'!$I$6:$M$28,3,FALSE)*Table3[[#This Row],[Points Epreuve arrêt au stand]]),"") -> 0 | AB8: =IF(Table3[[#This Row],[Parcours choisi]]<>"",SUM(Table35678[[#This Row],[Ingénierie et conception]:[1]]),"") -> 80 | AC8: =IF(Table3[[#This Row],[Parcours choisi]]<>"",_xlfn.RANK.EQ(Table35678[[#This Row],[Total Sciences et Techniques]],Table35678[Total Sciences et Techniques],0),"") -> 26
A9: 3 | B9: =IF(Table3[[#This Row],[Nom équipe]]<>"",Table3[[#This Row],[Nom équipe]],"") -> S1 motor sport | C9: =IF(Table3[[#This Row],[Etablissement]]<>"",Table3[[#This Row],[Etablissement]],"") -> Lotitz Nancy | D9: =IF(Table3[[#This Row],[Type établissement]]<>"",Table3[[#This Row],[Type établissement]],"") -> L | E9: =IF(Table3[[#This Row],[Académie]]<>"",Table3[[#This Row],[Académie]],"") -> Nancy-Metz | F9: =IF(Table3[[#This Row],[Parcours choisi]]<>"",Table3[[#This Row],[Parcours choisi]],"") -> T | G9: =IF(Table3[[#This Row],[Parcours choisi]]<>"",(VLOOKUP(Table356[[#Headers],[Ingénierie et conception]],'Def. Prix & Parcours'!$I$6:$M$28,3,FALSE)*Table3[[#This Row],[Points Ingénierie et conception]]),"") -> 0 | H9: =IF(Table3[[#This Row],[Parcours choisi]]<>"",(VLOOKUP(Table356[[#Headers],[Innovation mécanique]],'Def. Prix & Parcours'!$I$6:$M$28,3,FALSE)*Table3[[#This Row],[Points Innovation mécanique]]),"") -> 0 | I9: =IF(Table3[[#This Row],[Parcours choisi]]<>"",(VLOOKUP(Table356[[#Headers],[Développement Durable]],'Def. Prix & Parcours'!$I$6:$M$28,3,FALSE)*Table3[[#This Row],[Points Développement Durable]]),"") -> 0 | J9: =IF(Table3[[#This Row],[Parcours choisi]]<>"",(VLOOKUP(Table356[[#Headers],[Ingénierie de fabrication]],'Def. Prix & Parcours'!$I$6:$M$28,3,FALSE)*Table3[[#This Row],[Points Ingénierie de fabrication]]),"") -> 0 | K9: =IF(Table3[[#This Row],[Parcours choisi]]<>"",(VLOOKUP(Table356[[#Headers],[Gestion de projet et collaborations]],'Def. Prix & Parcours'!$I$6:$M$28,3,FALSE)*Table3[[#This Row],[Points Gestion de projet et collaborations]]),"") -> 0 | L9: =IF(Table3[[#This Row],[Parcours choisi]]<>"",(VLOOKUP(Table356[[#Headers],[Présentation Orale]],'Def. Prix & Parcours'!$I$6:$M$28,3,FALSE)*Table3[[#This Row],[Points Présentation Orale]]),"") -> 0 | M9: =IF(Table3[[#This Row],[Parcours choisi]]<>"",(VLOOKUP(Table356[[#Headers],[Identité Equipe]],'Def. Prix & Parcours'!$I$6:$M$28,3,FALSE)*Table3[[#This Row],[Points Identité Equipe]]),"") -> 0 | N9: =IF(Table3[[#This Row],[Parcours choisi]]<>"",(VLOOKUP(Table356[[#Headers],[Design du Stand]],'Def. Prix & Parcours'!$I$6:$M$28,3,FALSE)*Table3[[#This Row],[Points Design du Stand]]),"") -> 0 | O9: =IF(Table3[[#This Row],[Parcours choisi]]<>"",(VLOOKUP(Table356[[#Headers],[Portfolio]],'Def. Prix & Parcours'!$I$6:$M$28,3,FALSE)*Table3[[#This Row],[Points Portfolio]]),"") -> 0 | P9: =IF(Table3[[#This Row],[Parcours choisi]]<>"",(VLOOKUP(Table356[[#Headers],[Marketing et Sponsoring]],'Def. Prix & Parcours'!$I$6:$M$28,3,FALSE)*Table3[[#This Row],[Points Marketing et Sponsoring]]),"") -> 0 | Q9: =IF(Table3[[#This Row],[Parcours choisi]]<>"",(VLOOKUP(Table356[[#Headers],[Budget]],'Def. Prix & Parcours'!$I$6:$M$28,3,FALSE)*Table3[[#This Row],[Points Budget]]),"") -> 0 | R9: =IF(Table3[[#This Row],[Parcours choisi]]<>"",(VLOOKUP(Table356[[#Headers],[Design du Véhicule]],'Def. Prix & Parcours'!$I$6:$M$28,3,FALSE)*Table3[[#This Row],[Points Design du Véhicule]]),"") -> 0 | S9: =IF(Table3[[#This Row],[Parcours choisi]]<>"",(VLOOKUP(Table356[[#Headers],[Innovation numérique]],'Def. Prix & Parcours'!$I$6:$M$28,3,FALSE)*Table3[[#This Row],[Points Innovation numérique]]),"") -> 0 | T9: =IF(Table3[[#This Row],[Parcours choisi]]<>"",(VLOOKUP(Table356[[#Headers],[Programmation]],'Def. Prix & Parcours'!$I$6:$M$28,3,FALSE)*Table3[[#This Row],[Points Programmation]]),"") -> 0 | U9: =IF(Table3[[#This Row],[Parcours choisi]]<>"",(VLOOKUP(Table356[[#Headers],[Respect du règlement]],'Def. Prix & Parcours'!$I$6:$M$28,3,FALSE)*Table3[[#This Row],[Points Respect du règlement]]),"") -> 0 | V9: =IF(Table3[[#This Row],[Parcours choisi]]<>"",(VLOOKUP(Table356[[#Headers],[Communication : vidéo]],'Def. Prix & Parcours'!$I$6:$M$28,3,FALSE)*Table3[[#This Row],[Points Communication : vidéo]]),"") -> 0 | W9: =IF(Table3[[#This Row],[Parcours choisi]]<>"",(VLOOKUP(Table356[[#Headers],[Epreuve CAO]],'Def. Prix & Parcours'!$I$6:$M$28,3,FALSE)*Table3[[#This Row],[Points Epreuve CAO]]),"") -> 0 | X9: =IF(Table3[[#This Row],[Parcours choisi]]<>"",(VLOOKUP(Table356[[#Headers],[Temps Réaction]],'Def. Prix & Parcours'!$I$6:$M$28,3,FALSE)*Table3[[#This Row],[Points Temps Réaction]]),"") -> 0 | Y9: =IF(Table3[[#This Row],[Parcours choisi]]<>"",(VLOOKUP(Table356[[#Headers],[Temps Course]],'Def. Prix & Parcours'!$I$6:$M$28,3,FALSE)*Table3[[#This Row],[Points Temps Course]]),"") -> 80 | Z9: =IF(Table3[[#This Row],[Parcours choisi]]<>"",(VLOOKUP(Table356[[#Headers],[Epreuve arrêt au stand]],'Def. Prix & Parcours'!$I$6:$M$28,3,FALSE)*Table3[[#This Row],[Points Epreuve arrêt au stand]]),"") -> 0 | AB9: =IF(Table3[[#This Row],[Parcours choisi]]<>"",SUM(Table35678[[#This Row],[Ingénierie et conception]:[1]]),"") -> 80 | AC9: =IF(Table3[[#This Row],[Parcours choisi]]<>"",_xlfn.RANK.EQ(Table35678[[#This Row],[Total Sciences et Techniques]],Table35678[Total Sciences et Techniques],0),"") -> 26
A10: 4 | B10: =IF(Table3[[#This Row],[Nom équipe]]<>"",Table3[[#This Row],[Nom équipe]],"") -> Back to the past | C10: =IF(Table3[[#This Row],[Etablissement]]<>"",Table3[[#This Row],[Etablissement]],"") -> Loritz Nancy | D10: =IF(Table3[[#This Row],[Type établissement]]<>"",Table3[[#This Row],[Type établissement]],"") -> L | E10: =IF(Table3[[#This Row],[Académie]]<>"",Table3[[#This Row],[Académie]],"") -> Nancy-Metz | F10: =IF(Table3[[#This Row],[Parcours choisi]]<>"",Table3[[#This Row],[Parcours choisi]],"") -> T | G10: =IF(Table3[[#This Row],[Parcours choisi]]<>"",(VLOOKUP(Table356[[#Headers],[Ingénierie et conception]],'Def. Prix & Parcours'!$I$6:$M$28,3,FALSE)*Table3[[#This Row],[Points Ingénierie et conception]]),"") -> 102 | H10: =IF(Table3[[#This Row],[Parcours choisi]]<>"",(VLOOKUP(Table356[[#Headers],[Innovation mécanique]],'Def. Prix & Parcours'!$I$6:$M$28,3,FALSE)*Table3[[#This Row],[Points Innovation mécanique]]),"") -> 168 | I10: =IF(Table3[[#This Row],[Parcours choisi]]<>"",(VLOOKUP(Table356[[#Headers],[Développement Durable]],'Def. Prix & Parcours'!$I$6:$M$28,3,FALSE)*Table3[[#This Row],[Points Développement Durable]]),"") -> 90 | J10: =IF(Table3[[#This Row],[Parcours choisi]]<>"",(VLOOKUP(Table356[[#Headers],[Ingénierie de fabrication]],'Def. Prix & Parcours'!$I$6:$M$28,3,FALSE)*Table3[[#This Row],[Points Ingénierie de fabrication]]),"") -> 144 | K10: =IF(Table3[[#This Row],[Parcours choisi]]<>"",(VLOOKUP(Table356[[#Headers],[Gestion de projet et collaborations]],'Def. Prix & Parcours'!$I$6:$M$28,3,FALSE)*Table3[[#This Row],[Points Gestion de projet et collaborations]]),"") -> 70 | L10: =IF(Table3[[#This Row],[Parcours choisi]]<>"",(VLOOKUP(Table356[[#Headers],[Présentation Orale]],'Def. Prix & Parcours'!$I$6:$M$28,3,FALSE)*Table3[[#This Row],[Points Présentation Orale]]),"") -> 56 | M10: =IF(Table3[[#This Row],[Parcours choisi]]<>"",(VLOOKUP(Table356[[#Headers],[Identité Equipe]],'Def. Prix & Parcours'!$I$6:$M$28,3,FALSE)*Table3[[#This Row],[Points Identité Equipe]]),"") -> 64 | N10: =IF(Table3[[#This Row],[Parcours choisi]]<>"",(VLOOKUP(Table356[[#Headers],[Design du Stand]],'Def. Prix & Parcours'!$I$6:$M$28,3,FALSE)*Table3[[#This Row],[Points Design du Stand]]),"") -> 0 | O10: =IF(Table3[[#This Row],[Parcours choisi]]<>"",(VLOOKUP(Table356[[#Headers],[Portfolio]],'Def. Prix & Parcours'!$I$6:$M$28,3,FALSE)*Table3[[#This Row],[Points Portfolio]]),"") -> 60 | P10: =IF(Table3[[#This Row],[Parcours choisi]]<>"",(VLOOKUP(Table356[[#Headers],[Marketing et Sponsoring]],'Def. Prix & Parcours'!$I$6:$M$28,3,FALSE)*Table3[[#This Row],[Points Marketing et Sponsoring]]),"") -> 0 | Q10: =IF(Table3[[#This Row],[Parcours choisi]]<>"",(VLOOKUP(Table356[[#Headers],[Budget]],'Def. Prix & Parcours'!$I$6:$M$28,3,FALSE)*Table3[[#This Row],[Points Budget]]),"") -> 0 | R10: =IF(Table3[[#This Row],[Parcours choisi]]<>"",(VLOOKUP(Table356[[#Headers],[Design du Véhicule]],'Def. Prix & Parcours'!$I$6:$M$28,3,FALSE)*Table3[[#This Row],[Points Design du Véhicule]]),"") -> 90 | S10: =IF(Table3[[#This Row],[Parcours choisi]]<>"",(VLOOKUP(Table356[[#Headers],[Innovation numérique]],'Def. Prix & Parcours'!$I$6:$M$28,3,FALSE)*Table3[[#This Row],[Points Innovation numérique]]),"") -> 0 | T10: =IF(Table3[[#This Row],[Parcours choisi]]<>"",(VLOOKUP(Table356[[#Headers],[Programmation]],'Def. Prix & Parcours'!$I$6:$M$28,3,FALSE)*Table3[[#This Row],[Points Programmation]]),"") -> 0 | U10: =IF(Table3[[#This Row],[Parcours choisi]]<>"",(VLOOKUP(Table356[[#Headers],[Respect du règlement]],'Def. Prix & Parcours'!$I$6:$M$28,3,FALSE)*Table3[[#This Row],[Points Respect du règlement]]),"") -> 90 | V10: =IF(Table3[[#This Row],[Parcours choisi]]<>"",(VLOOKUP(Table356[[#Headers],[Communication : vidéo]],'Def. Prix & Parcours'!$I$6:$M$28,3,FALSE)*Table3[[#This Row],[Points Communication : vidéo]]),"") -> 0 | W10: =IF(Table3[[#This Row],[Parcours choisi]]<>"",(VLOOKUP(Table356[[#Headers],[Epreuve CAO]],'Def. Prix & Parcours'!$I$6:$M$28,3,FALSE)*Table3[[#This Row],[Points Epreuve CAO]]),"") -> 0 | X10: =IF(Table3[[#This Row],[Parcours choisi]]<>"",(VLOOKUP(Table356[[#Headers],[Temps Réaction]],'Def. Prix & Parcours'!$I$6:$M$28,3,FALSE)*Table3[[#This Row],[Points Temps Réaction]]),"") -> 0 | Y10: =IF(Table3[[#This Row],[Parcours choisi]]<>"",(VLOOKUP(Table356[[#Headers],[Temps Course]],'Def. Prix & Parcours'!$I$6:$M$28,3,FALSE)*Table3[[#This Row],[Points Temps Course]]),"") -> 100 | Z10: =IF(Table3[[#This Row],[Parcours choisi]]<>"",(VLOOKUP(Table356[[#Headers],[Epreuve arrêt au stand]],'Def. Prix & Parcours'!$I$6:$M$28,3,FALSE)*Table3[[#This Row],[Points Epreuve arrêt au stand]]),"") -> 0 | AB10: =IF(Table3[[#This Row],[Parcours choisi]]<>"",SUM(Table35678[[#This Row],[Ingénierie et conception]:[1]]),"") -> 1034 | AC10: =IF(Table3[[#This Row],[Parcours choisi]]<>"",_xlfn.RANK.EQ(Table35678[[#This Row],[Total Sciences et Techniques]],Table35678[Total Sciences et Techniques],0),"") -> 9
A11: 5 | B11: =IF(Table3[[#This Row],[Nom équipe]]<>"",Table3[[#This Row],[Nom équipe]],"") -> Ionix | C11: =IF(Table3[[#This Row],[Etablissement]]<>"",Table3[[#This Row],[Etablissement]],"") -> Loritz Nancy | D11: =IF(Table3[[#This Row],[Type établissement]]<>"",Table3[[#This Row],[Type établissement]],"") -> L | E11: =IF(Table3[[#This Row],[Académie]]<>"",Table3[[#This Row],[Académie]],"") -> Nancy-Metz | F11: =IF(Table3[[#This Row],[Parcours choisi]]<>"",Table3[[#This Row],[Parcours choisi]],"") -> T | G11: =IF(Table3[[#This Row],[Parcours choisi]]<>"",(VLOOKUP(Table356[[#Headers],[Ingénierie et conception]],'Def. Prix & Parcours'!$I$6:$M$28,3,FALSE)*Table3[[#This Row],[Points Ingénierie et conception]]),"") -> 84 | H11: =IF(Table3[[#This Row],[Parcours choisi]]<>"",(VLOOKUP(Table356[[#Headers],[Innovation mécanique]],'Def. Prix & Parcours'!$I$6:$M$28,3,FALSE)*Table3[[#This Row],[Points Innovation mécanique]]),"") -> 156 | I11: =IF(Table3[[#This Row],[Parcours choisi]]<>"",(VLOOKUP(Table356[[#Headers],[Développement Durable]],'Def. Prix & Parcours'!$I$6:$M$28,3,FALSE)*Table3[[#This Row],[Points Développement Durable]]),"") -> 108 | J11: =IF(Table3[[#This Row],[Parcours choisi]]<>"",(VLOOKUP(Table356[[#Headers],[Ingénierie de fabrication]],'Def. Prix & Parcours'!$I$6:$M$28,3,FALSE)*Table3[[#This Row],[Points Ingénierie de fabrication]]),"") -> 128 | K11: =IF(Table3[[#This Row],[Parcours choisi]]<>"",(VLOOKUP(Table356[[#Headers],[Gestion de projet et collaborations]],'Def. Prix & Parcours'!$I$6:$M$28,3,FALSE)*Table3[[#This Row],[Points Gestion de projet et collaborations]]),"") -> 80 | L11: =IF(Table3[[#This Row],[Parcours choisi]]<>"",(VLOOKUP(Table356[[#Headers],[Présentation Orale]],'Def. Prix & Parcours'!$I$6:$M$28,3,FALSE)*Table3[[#This Row],[Points Présentation Orale]]),"") -> 52 | M11: =IF(Table3[[#This Row],[Parcours choisi]]<>"",(VLOOKUP(Table356[[#Headers],[Identité Equipe]],'Def. Prix & Parcours'!$I$6:$M$28,3,FALSE)*Table3[[#This Row],[Points Identité Equipe]]),"") -> 44 | N11: =IF(Table3[[#This Row],[Parcours choisi]]<>"",(VLOOKUP(Table356[[#Headers],[Design du Stand]],'Def. Prix & Parcours'!$I$6:$M$28,3,FALSE)*Table3[[#This Row],[Points Design du Stand]]),"") -> 0 | O11: =IF(Table3[[#This Row],[Parcours choisi]]<>"",(VLOOKUP(Table356[[#Headers],[Portfolio]],'Def. Prix & Parcours'!$I$6:$M$28,3,FALSE)*Table3[[#This Row],[Points Portfolio]]),"") -> 40 | P11: =IF(Table3[[#This Row],[Parcours choisi]]<>"",(VLOOKUP(Table356[[#Headers],[Marketing et Sponsoring]],'Def. Prix & Parcours'!$I$6:$M$28,3,FALSE)*Table3[[#This Row],[Points Marketing et Sponsoring]]),"") -> 0 | Q11: =IF(Table3[[#This Row],[Parcours choisi]]<>"",(VLOOKUP(Table356[[#Headers],[Budget]],'Def. Prix & Parcours'!$I$6:$M$28,3,FALSE)*Table3[[#This Row],[Points Budget]]),"") -> 0 | R11: =IF(Table3[[#This Row],[Parcours choisi]]<>"",(VLOOKUP(Table356[[#Headers],[Design du Véhicule]],'Def. Prix & Parcours'!$I$6:$M$28,3,FALSE)*Table3[[#This Row],[Points Design du Véhicule]]),"") -> 84 | S11: =IF(Table3[[#This Row],[Parcours choisi]]<>"",(VLOOKUP(Table356[[#Headers],[Innovation numérique]],'Def. Prix & Parcours'!$I$6:$M$28,3,FALSE)*Table3[[#This Row],[Points Innovation numérique]]),"") -> 0 | T11: =IF(Table3[[#This Row],[Parcours choisi]]<>"",(VLOOKUP(Table356[[#Headers],[Programmation]],'Def. Prix & Parcours'!$I$6:$M$28,3,FALSE)*Table3[[#This Row],[Points Programmation]]),"") -> 0 | U11: =IF(Table3[[#This Row],[Parcours choisi]]<>"",(VLOOKUP(Table356[[#Headers],[Respect du règlement]],'Def. Prix & Parcours'!$I$6:$M$28,3,FALSE)*Table3[[#This Row],[Points Respect du règlement]]),"") -> 100 | V11: =IF(Table3[[#This Row],[Parcours choisi]]<>"",(VLOOKUP(Table356[[#Headers],[Communication : vidéo]],'Def. Prix & Parcours'!$I$6:$M$28,3,FALSE)*Table3[[#This Row],[Points Communication : vidéo]]),"") -> 0 | W11: =IF(Table3[[#This Row],[Parcours choisi]]<>"",(VLOOKUP(Table356[[#Headers],[Epreuve CAO]],'Def. Prix & Parcours'!$I$6:$M$28,3,FALSE)*Table3[[#This Row],[Points Epreuve CAO]]),"") -> 0 | X11: =IF(Table3[[#This Row],[Parcours choisi]]<>"",(VLOOKUP(Table356[[#Headers],[Temps Réaction]],'Def. Prix & Parcours'!$I$6:$M$28,3,FALSE)*Table3[[#This Row],[Points Temps Réaction]]),"") -> 0 | Y11: =IF(Table3[[#This Row],[Parcours choisi]]<>"",(VLOOKUP(Table356[[#Headers],[Temps Course]],'Def. Prix & Parcours'!$I$6:$M$28,3,FALSE)*Table3[[#This Row],[Points Temps Course]]),"") -> 90 | Z11: =IF(Table3[[#This Row],[Parcours choisi]]<>"",(VLOOKUP(Table356[[#Headers],[Epreuve arrêt au stand]],'Def. Prix & Parcours'!$I$6:$M$28,3,FALSE)*Table3[[#This Row],[Points Epreuve arrêt au stand]]),"") -> 0 | AB11: =IF(Table3[[#This Row],[Parcours choisi]]<>"",SUM(Table35678[[#This Row],[Ingénierie et conception]:[1]]),"") -> 966 | AC11: =IF(Table3[[#This Row],[Parcours choisi]]<>"",_xlfn.RANK.EQ(Table35678[[#This Row],[Total Sciences et Techniques]],Table35678[Total Sciences et Techniques],0),"") -> 17
A12: 6 | B12: =IF(Table3[[#This Row],[Nom équipe]]<>"",Table3[[#This Row],[Nom équipe]],"") -> Pavisado | C12: =IF(Table3[[#This Row],[Etablissement]]<>"",Table3[[#This Row],[Etablissement]],"") -> Loritz Nancy | D12: =IF(Table3[[#This Row],[Type établissement]]<>"",Table3[[#This Row],[Type établissement]],"") -> L | E12: =IF(Table3[[#This Row],[Académie]]<>"",Table3[[#This Row],[Académie]],"") -> Nancy-Metz | F12: =IF(Table3[[#This Row],[Parcours choisi]]<>"",Table3[[#This Row],[Parcours choisi]],"") -> T | G12: =IF(Table3[[#This Row],[Parcours choisi]]<>"",(VLOOKUP(Table356[[#Headers],[Ingénierie et conception]],'Def. Prix & Parcours'!$I$6:$M$28,3,FALSE)*Table3[[#This Row],[Points Ingénierie et conception]]),"") -> 0 | H12: =IF(Table3[[#This Row],[Parcours choisi]]<>"",(VLOOKUP(Table356[[#Headers],[Innovation mécanique]],'Def. Prix & Parcours'!$I$6:$M$28,3,FALSE)*Table3[[#This Row],[Points Innovation mécanique]]),"") -> 0 | I12: =IF(Table3[[#This Row],[Parcours choisi]]<>"",(VLOOKUP(Table356[[#Headers],[Développement Durable]],'Def. Prix & Parcours'!$I$6:$M$28,3,FALSE)*Table3[[#This Row],[Points Développement Durable]]),"") -> 0 | J12: =IF(Table3[[#This Row],[Parcours choisi]]<>"",(VLOOKUP(Table356[[#Headers],[Ingénierie de fabrication]],'Def. Prix & Parcours'!$I$6:$M$28,3,FALSE)*Table3[[#This Row],[Points Ingénierie de fabrication]]),"") -> 0 | K12: =IF(Table3[[#This Row],[Parcours choisi]]<>"",(VLOOKUP(Table356[[#Headers],[Gestion de projet et collaborations]],'Def. Prix & Parcours'!$I$6:$M$28,3,FALSE)*Table3[[#This Row],[Points Gestion de projet et collaborations]]),"") -> 0 | L12: =IF(Table3[[#This Row],[Parcours choisi]]<>"",(VLOOKUP(Table356[[#Headers],[Présentation Orale]],'Def. Prix & Parcours'!$I$6:$M$28,3,FALSE)*Table3[[#This Row],[Points Présentation Orale]]),"") -> 0 | M12: =IF(Table3[[#This Row],[Parcours choisi]]<>"",(VLOOKUP(Table356[[#Headers],[Identité Equipe]],'Def. Prix & Parcours'!$I$6:$M$28,3,FALSE)*Table3[[#This Row],[Points Identité Equipe]]),"") -> 0 | N12: =IF(Table3[[#This Row],[Parcours choisi]]<>"",(VLOOKUP(Table356[[#Headers],[Design du Stand]],'Def. Prix & Parcours'!$I$6:$M$28,3,FALSE)*Table3[[#This Row],[Points Design du Stand]]),"") -> 0 | O12: =IF(Table3[[#This Row],[Parcours choisi]]<>"",(VLOOKUP(Table356[[#Headers],[Portfolio]],'Def. Prix & Parcours'!$I$6:$M$28,3,FALSE)*Table3[[#This Row],[Points Portfolio]]),"") -> 0 | P12: =IF(Table3[[#This Row],[Parcours choisi]]<>"",(VLOOKUP(Table356[[#Headers],[Marketing et Sponsoring]],'Def. Prix & Parcours'!$I$6:$M$28,3,FALSE)*Table3[[#This Row],[Points Marketing et Sponsoring]]),"") -> 0 | Q12: =IF(Table3[[#This Row],[Parcours choisi]]<>"",(VLOOKUP(Table356[[#Headers],[Budget]],'Def. Prix & Parcours'!$I$6:$M$28,3,FALSE)*Table3[[#This Row],[Points Budget]]),"") -> 0 | R12: =IF(Table3[[#This Row],[Parcours choisi]]<>"",(VLOOKUP(Table356[[#Headers],[Design du Véhicule]],'Def. Prix & Parcours'!$I$6:$M$28,3,FALSE)*Table3[[#This Row],[Points Design du Véhicule]]),"") -> 0 | S12: =IF(Table3[[#This Row],[Parcours choisi]]<>"",(VLOOKUP(Table356[[#Headers],[Innovation numérique]],'Def. Prix & Parcours'!$I$6:$M$28,3,FALSE)*Table3[[#This Row],[Points Innovation numérique]]),"") -> 0 | T12: =IF(Table3[[#This Row],[Parcours choisi]]<>"",(VLOOKUP(Table356[[#Headers],[Programmation]],'Def. Prix & Parcours'!$I$6:$M$28,3,FALSE)*Table3[[#This Row],[Points Programmation]]),"") -> 0 | U12: =IF(Table3[[#This Row],[Parcours choisi]]<>"",(VLOOKUP(Table356[[#Headers],[Respect du règlement]],'Def. Prix & Parcours'!$I$6:$M$28,3,FALSE)*Table3[[#This Row],[Points Respect du règlement]]),"") -> 0 | V12: =IF(Table3[[#This Row],[Parcours choisi]]<>"",(VLOOKUP(Table356[[#Headers],[Communication : vidéo]],'Def. Prix & Parcours'!$I$6:$M$28,3,FALSE)*Table3[[#This Row],[Points Communication : vidéo]]),"") -> 0 | W12: =IF(Table3[[#This Row],[Parcours choisi]]<>"",(VLOOKUP(Table356[[#Headers],[Epreuve CAO]],'Def. Prix & Parcours'!$I$6:$M$28,3,FALSE)*Table3[[#This Row],[Points Epreuve CAO]]),"") -> 0 | X12: =IF(Table3[[#This Row],[Parcours choisi]]<>"",(VLOOKUP(Table356[[#Headers],[Temps Réaction]],'Def. Prix & Parcours'!$I$6:$M$28,3,FALSE)*Table3[[#This Row],[Points Temps Réaction]]),"") -> 0 | Y12: =IF(Table3[[#This Row],[Parcours choisi]]<>"",(VLOOKUP(Table356[[#Headers],[Temps Course]],'Def. Prix & Parcours'!$I$6:$M$28,3,FALSE)*Table3[[#This Row],[Points Temps Course]]),"") -> 80 | Z12: =IF(Table3[[#This Row],[Parcours choisi]]<>"",(VLOOKUP(Table356[[#Headers],[Epreuve arrêt au stand]],'Def. Prix & Parcours'!$I$6:$M$28,3,FALSE)*Table3[[#This Row],[Points Epreuve arrêt au stand]]),"") -> 0 | AB12: =IF(Table3[[#This Row],[Parcours choisi]]<>"",SUM(Table35678[[#This Row],[Ingénierie et conception]:[1]]),"") -> 80 | AC12: =IF(Table3[[#This Row],[Parcours choisi]]<>"",_xlfn.RANK.EQ(Table35678[[#This Row],[Total Sciences et Techniques]],Table35678[Total Sciences et Techniques],0),"") -> 26
A13: 7 | B13: =IF(Table3[[#This Row],[Nom équipe]]<>"",Table3[[#This Row],[Nom équipe]],"") -> Les Toucaninos | C13: =IF(Table3[[#This Row],[Etablissement]]<>"",Table3[[#This Row],[Etablissement]],"") -> Jean Lamour Nancy | D13: =IF(Table3[[#This Row],[Type établissement]]<>"",Table3[[#This Row],[Type établissement]],"") -> C | E13: =IF(Table3[[#This Row],[Académie]]<>"",Table3[[#This Row],[Académie]],"") -> Nancy-Metz | F13: =IF(Table3[[#This Row],[Parcours choisi]]<>"",Table3[[#This Row],[Parcours choisi]],"") -> G | G13: =IF(Table3[[#This Row],[Parcours choisi]]<>"",(VLOOKUP(Table356[[#Headers],[Ingénierie et conception]],'Def. Prix & Parcours'!$I$6:$M$28,3,FALSE)*Table3[[#This Row],[Points Ingénierie et conception]]),"") -> 108 | H13: =IF(Table3[[#This Row],[Parcours choisi]]<>"",(VLOOKUP(Table356[[#Headers],[Innovation mécanique]],'Def. Prix & Parcours'!$I$6:$M$28,3,FALSE)*Table3[[#This Row],[Points Innovation mécanique]]),"") -> 204 | I13: =IF(Table3[[#This Row],[Parcours choisi]]<>"",(VLOOKUP(Table356[[#Headers],[Développement Durable]],'Def. Prix & Parcours'!$I$6:$M$28,3,FALSE)*Table3[[#This Row],[Points Développement Durable]]),"") -> 114 | J13: =IF(Table3[[#This Row],[Parcours choisi]]<>"",(VLOOKUP(Table356[[#Headers],[Ingénierie de fabrication]],'Def. Prix & Parcours'!$I$6:$M$28,3,FALSE)*Table3[[#This Row],[Points Ingénierie de fabrication]]),"") -> 144 | K13: =IF(Table3[[#This Row],[Parcours choisi]]<>"",(VLOOKUP(Table356[[#Headers],[Gestion de projet et collaborations]],'Def. Prix & Parcours'!$I$6:$M$28,3,FALSE)*Table3[[#This Row],[Points Gestion de projet et collaborations]]),"") -> 95 | L13: =IF(Table3[[#This Row],[Parcours choisi]]<>"",(VLOOKUP(Table356[[#Headers],[Présentation Orale]],'Def. Prix & Parcours'!$I$6:$M$28,3,FALSE)*Table3[[#This Row],[Points Présentation Orale]]),"") -> 76 | M13: =IF(Table3[[#This Row],[Parcours choisi]]<>"",(VLOOKUP(Table356[[#Headers],[Identité Equipe]],'Def. Prix & Parcours'!$I$6:$M$28,3,FALSE)*Table3[[#This Row],[Points Identité Equipe]]),"") -> 60 | N13: =IF(Table3[[#This Row],[Parcours choisi]]<>"",(VLOOKUP(Table356[[#Headers],[Design du Stand]],'Def. Prix & Parcours'!$I$6:$M$28,3,FALSE)*Table3[[#This Row],[Points Design du Stand]]),"") -> 0 | O13: =IF(Table3[[#This Row],[Parcours choisi]]<>"",(VLOOKUP(Table356[[#Headers],[Portfolio]],'Def. Prix & Parcours'!$I$6:$M$28,3,FALSE)*Table3[[#This Row],[Points Portfolio]]),"") -> 32 | P13: =IF(Table3[[#This Row],[Parcours choisi]]<>"",(VLOOKUP(Table356[[#Headers],[Marketing et Sponsoring]],'Def. Prix & Parcours'!$I$6:$M$28,3,FALSE)*Table3[[#This Row],[Points Marketing et Sponsoring]]),"") -> 0 | Q13: =IF(Table3[[#This Row],[Parcours choisi]]<>"",(VLOOKUP(Table356[[#Headers],[Budget]],'Def. Prix & Parcours'!$I$6:$M$28,3,FALSE)*Table3[[#This Row],[Points Budget]]),"") -> 0 | R13: =IF(Table3[[#This Row],[Parcours choisi]]<>"",(VLOOKUP(Table356[[#Headers],[Design du Véhicule]],'Def. Prix & Parcours'!$I$6:$M$28,3,FALSE)*Table3[[#This Row],[Points Design du Véhicule]]),"") -> 96 | S13: =IF(Table3[[#This Row],[Parcours choisi]]<>"",(VLOOKUP(Table356[[#Headers],[Innovation numérique]],'Def. Prix & Parcours'!$I$6:$M$28,3,FALSE)*Table3[[#This Row],[Points Innovation numérique]]),"") -> 0 | T13: =IF(Table3[[#This Row],[Parcours choisi]]<>"",(VLOOKUP(Table356[[#Headers],[Programmation]],'Def. Prix & Parcours'!$I$6:$M$28,3,FALSE)*Table3[[#This Row],[Points Programmation]]),"") -> 0 | U13: =IF(Table3[[#This Row],[Parcours choisi]]<>"",(VLOOKUP(Table356[[#Headers],[Respect du règlement]],'Def. Prix & Parcours'!$I$6:$M$28,3,FALSE)*Table3[[#This Row],[Points Respect du règlement]]),"") -> 70 | V13: =IF(Table3[[#This Row],[Parcours choisi]]<>"",(VLOOKUP(Table356[[#Headers],[Communication : vidéo]],'Def. Prix & Parcours'!$I$6:$M$28,3,FALSE)*Table3[[#This Row],[Points Communication : vidéo]]),"") -> 0 | W13: =IF(Table3[[#This Row],[Parcours choisi]]<>"",(VLOOKUP(Table356[[#Headers],[Epreuve CAO]],'Def. Prix & Parcours'!$I$6:$M$28,3,FALSE)*Table3[[#This Row],[Points Epreuve CAO]]),"") -> 0 | X13: =IF(Table3[[#This Row],[Parcours choisi]]<>"",(VLOOKUP(Table356[[#Headers],[Temps Réaction]],'Def. Prix & Parcours'!$I$6:$M$28,3,FALSE)*Table3[[#This Row],[Points Temps Réaction]]),"") -> 0 | Y13: =IF(Table3[[#This Row],[Parcours choisi]]<>"",(VLOOKUP(Table356[[#Headers],[Temps Course]],'Def. Prix & Parcours'!$I$6:$M$28,3,FALSE)*Table3[[#This Row],[Points Temps Course]]),"") -> 100 | Z13: =IF(Table3[[#This Row],[Parcours choisi]]<>"",(VLOOKUP(Table356[[#Headers],[Epreuve arrêt au stand]],'Def. Prix & Parcours'!$I$6:$M$28,3,FALSE)*Table3[[#This Row],[Points Epreuve arrêt au stand]]),"") -> 0 | AB13: =IF(Table3[[#This Row],[Parcours choisi]]<>"",SUM(Table35678[[#This Row],[Ingénierie et conception]:[1]]),"") -> 1099 | AC13: =IF(Table3[[#This Row],[Parcours choisi]]<>"",_xlfn.RANK.EQ(Table35678[[#This Row],[Total Sciences et Techniques]],Table35678[Total Sciences et Techniques],0),"") -> 5
A14: 8 | B14: =IF(Table3[[#This Row],[Nom équipe]]<>"",Table3[[#This Row],[Nom équipe]],"") -> Les Daltram | C14: =IF(Table3[[#This Row],[Etablissement]]<>"",Table3[[#This Row],[Etablissement]],"") -> Jean Lamour Nancy | D14: =IF(Table3[[#This Row],[Type établissement]]<>"",Table3[[#This Row],[Type établissement]],"") -> C | E14: =IF(Table3[[#This Row],[Académie]]<>"",Table3[[#This Row],[Académie]],"") -> Nancy-Metz | F14: =IF(Table3[[#This Row],[Parcours choisi]]<>"",Table3[[#This Row],[Parcours choisi]],"") -> G | G14: =IF(Table3[[#This Row],[Parcours choisi]]<>"",(VLOOKUP(Table356[[#Headers],[Ingénierie et conception]],'Def. Prix & Parcours'!$I$6:$M$28,3,FALSE)*Table3[[#This Row],[Points Ingénierie et conception]]),"") -> 90 | H14: =IF(Table3[[#This Row],[Parcours choisi]]<>"",(VLOOKUP(Table356[[#Headers],[Innovation mécanique]],'Def. Prix & Parcours'!$I$6:$M$28,3,FALSE)*Table3[[#This Row],[Points Innovation mécanique]]),"") -> 156 | I14: =IF(Table3[[#This Row],[Parcours choisi]]<>"",(VLOOKUP(Table356[[#Headers],[Développement Durable]],'Def. Prix & Parcours'!$I$6:$M$28,3,FALSE)*Table3[[#This Row],[Points Développement Durable]]),"") -> 72 | J14: =IF(Table3[[#This Row],[Parcours choisi]]<>"",(VLOOKUP(Table356[[#Headers],[Ingénierie de fabrication]],'Def. Prix & Parcours'!$I$6:$M$28,3,FALSE)*Table3[[#This Row],[Points Ingénierie de fabrication]]),"") -> 112 | K14: =IF(Table3[[#This Row],[Parcours choisi]]<>"",(VLOOKUP(Table356[[#Headers],[Gestion de projet et collaborations]],'Def. Prix & Parcours'!$I$6:$M$28,3,FALSE)*Table3[[#This Row],[Points Gestion de projet et collaborations]]),"") -> 70 | L14: =IF(Table3[[#This Row],[Parcours choisi]]<>"",(VLOOKUP(Table356[[#Headers],[Présentation Orale]],'Def. Prix & Parcours'!$I$6:$M$28,3,FALSE)*Table3[[#This Row],[Points Présentation Orale]]),"") -> 68 | M14: =IF(Table3[[#This Row],[Parcours choisi]]<>"",(VLOOKUP(Table356[[#Headers],[Identité Equipe]],'Def. Prix & Parcours'!$I$6:$M$28,3,FALSE)*Table3[[#This Row],[Points Identité Equipe]]),"") -> 72 | N14: =IF(Table3[[#This Row],[Parcours choisi]]<>"",(VLOOKUP(Table356[[#Headers],[Design du Stand]],'Def. Prix & Parcours'!$I$6:$M$28,3,FALSE)*Table3[[#This Row],[Points Design du Stand]]),"") -> 0 | O14: =IF(Table3[[#This Row],[Parcours choisi]]<>"",(VLOOKUP(Table356[[#Headers],[Portfolio]],'Def. Prix & Parcours'!$I$6:$M$28,3,FALSE)*Table3[[#This Row],[Points Portfolio]]),"") -> 56 | P14: =IF(Table3[[#This Row],[Parcours choisi]]<>"",(VLOOKUP(Table356[[#Headers],[Marketing et Sponsoring]],'Def. Prix & Parcours'!$I$6:$M$28,3,FALSE)*Table3[[#This Row],[Points Marketing et Sponsoring]]),"") -> 0 | Q14: =IF(Table3[[#This Row],[Parcours choisi]]<>"",(VLOOKUP(Table356[[#Headers],[Budget]],'Def. Prix & Parcours'!$I$6:$M$28,3,FALSE)*Table3[[#This Row],[Points Budget]]),"") -> 0 | R14: =IF(Table3[[#This Row],[Parcours choisi]]<>"",(VLOOKUP(Table356[[#Headers],[Design du Véhicule]],'Def. Prix & Parcours'!$I$6:$M$28,3,FALSE)*Table3[[#This Row],[Points Design du Véhicule]]),"") -> 102 | S14: =IF(Table3[[#This Row],[Parcours choisi]]<>"",(VLOOKUP(Table356[[#Headers],[Innovation numérique]],'Def. Prix & Parcours'!$I$6:$M$28,3,FALSE)*Table3[[#This Row],[Points Innovation numérique]]),"") -> 0 | T14: =IF(Table3[[#This Row],[Parcours choisi]]<>"",(VLOOKUP(Table356[[#Headers],[Programmation]],'Def. Prix & Parcours'!$I$6:$M$28,3,FALSE)*Table3[[#This Row],[Points Programmation]]),"") -> 0 | U14: =IF(Table3[[#This Row],[Parcours choisi]]<>"",(VLOOKUP(Table356[[#Headers],[Respect du règlement]],'Def. Prix & Parcours'!$I$6:$M$28,3,FALSE)*Table3[[#This Row],[Points Respect du règlement]]),"") -> 100 | V14: =IF(Table3[[#This Row],[Parcours choisi]]<>"",(VLOOKUP(Table356[[#Headers],[Communication : vidéo]],'Def. Prix & Parcours'!$I$6:$M$28,3,FALSE)*Table3[[#This Row],[Points Communication : vidéo]]),"") -> 0 | W14: =IF(Table3[[#This Row],[Parcours choisi]]<>"",(VLOOKUP(Table356[[#Headers],[Epreuve CAO]],'Def. Prix & Parcours'!$I$6:$M$28,3,FALSE)*Table3[[#This Row],[Points Epreuve CAO]]),"") -> 0 | X14: =IF(Table3[[#This Row],[Parcours choisi]]<>"",(VLOOKUP(Table356[[#Headers],[Temps Réaction]],'Def. Prix & Parcours'!$I$6:$M$28,3,FALSE)*Table3[[#This Row],[Points Temps Réaction]]),"") -> 0 | Y14: =IF(Table3[[#This Row],[Parcours choisi]]<>"",(VLOOKUP(Table356[[#Headers],[Temps Course]],'Def. Prix & Parcours'!$I$6:$M$28,3,FALSE)*Table3[[#This Row],[Points Temps Course]]),"") -> 200 | Z14: =IF(Table3[[#This Row],[Parcours choisi]]<>"",(VLOOKUP(Table356[[#Headers],[Epreuve arrêt au stand]],'Def. Prix & Parcours'!$I$6:$M$28,3,FALSE)*Table3[[#This Row],[Points Epreuve arrêt au stand]]),"") -> 0 | AB14: =IF(Table3[[#This Row],[Parcours choisi]]<>"",SUM(Table35678[[#This Row],[Ingénierie et conception]:[1]]),"") -> 1098 | AC14: =IF(Table3[[#This Row],[Parcours choisi]]<>"",_xlfn.RANK.EQ(Table35678[[#This Row],[Total Sciences et Techniques]],Table35678[Total Sciences et Techniques],0),"") -> 6
A15: 9 | B15: =IF(Table3[[#This Row],[Nom équipe]]<>"",Table3[[#This Row],[Nom équipe]],"") -> Droit devant | C15: =IF(Table3[[#This Row],[Etablissement]]<>"",Table3[[#This Row],[Etablissement]],"") -> Boutet Lunéville | D15: =IF(Table3[[#This Row],[Type établissement]]<>"",Table3[[#This Row],[Type établissement]],"") -> L | E15: =IF(Table3[[#This Row],[Académie]]<>"",Table3[[#This Row],[Académie]],"") -> Nancy-Metz | F15: =IF(Table3[[#This Row],[Parcours choisi]]<>"",Table3[[#This Row],[Parcours choisi]],"") -> T | G15: =IF(Table3[[#This Row],[Parcours choisi]]<>"",(VLOOKUP(Table356[[#Headers],[Ingénierie et conception]],'Def. Prix & Parcours'!$I$6:$M$28,3,FALSE)*Table3[[#This Row],[Points Ingénierie et conception]]),"") -> 0 | H15: =IF(Table3[[#This Row],[Parcours choisi]]<>"",(VLOOKUP(Table356[[#Headers],[Innovation mécanique]],'Def. Prix & Parcours'!$I$6:$M$28,3,FALSE)*Table3[[#This Row],[Points Innovation mécanique]]),"") -> 0 | I15: =IF(Table3[[#This Row],[Parcours choisi]]<>"",(VLOOKUP(Table356[[#Headers],[Développement Durable]],'Def. Prix & Parcours'!$I$6:$M$28,3,FALSE)*Table3[[#This Row],[Points Développement Durable]]),"") -> 0 | J15: =IF(Table3[[#This Row],[Parcours choisi]]<>"",(VLOOKUP(Table356[[#Headers],[Ingénierie de fabrication]],'Def. Prix & Parcours'!$I$6:$M$28,3,FALSE)*Table3[[#This Row],[Points Ingénierie de fabrication]]),"") -> 0 | K15: =IF(Table3[[#This Row],[Parcours choisi]]<>"",(VLOOKUP(Table356[[#Headers],[Gestion de projet et collaborations]],'Def. Prix & Parcours'!$I$6:$M$28,3,FALSE)*Table3[[#This Row],[Points Gestion de projet et collaborations]]),"") -> 0 | L15: =IF(Table3[[#This Row],[Parcours choisi]]<>"",(VLOOKUP(Table356[[#Headers],[Présentation Orale]],'Def. Prix & Parcours'!$I$6:$M$28,3,FALSE)*Table3[[#This Row],[Points Présentation Orale]]),"") -> 0 | M15: =IF(Table3[[#This Row],[Parcours choisi]]<>"",(VLOOKUP(Table356[[#Headers],[Identité Equipe]],'Def. Prix & Parcours'!$I$6:$M$28,3,FALSE)*Table3[[#This Row],[Points Identité Equipe]]),"") -> 0 | N15: =IF(Table3[[#This Row],[Parcours choisi]]<>"",(VLOOKUP(Table356[[#Headers],[Design du Stand]],'Def. Prix & Parcours'!$I$6:$M$28,3,FALSE)*Table3[[#This Row],[Points Design du Stand]]),"") -> 0 | O15: =IF(Table3[[#This Row],[Parcours choisi]]<>"",(VLOOKUP(Table356[[#Headers],[Portfolio]],'Def. Prix & Parcours'!$I$6:$M$28,3,FALSE)*Table3[[#This Row],[Points Portfolio]]),"") -> 0 | P15: =IF(Table3[[#This Row],[Parcours choisi]]<>"",(VLOOKUP(Table356[[#Headers],[Marketing et Sponsoring]],'Def. Prix & Parcours'!$I$6:$M$28,3,FALSE)*Table3[[#This Row],[Points Marketing et Sponsoring]]),"") -> 0 | Q15: =IF(Table3[[#This Row],[Parcours choisi]]<>"",(VLOOKUP(Table356[[#Headers],[Budget]],'Def. Prix & Parcours'!$I$6:$M$28,3,FALSE)*Table3[[#This Row],[Points Budget]]),"") -> 0 | R15: =IF(Table3[[#This Row],[Parcours choisi]]<>"",(VLOOKUP(Table356[[#Headers],[Design du Véhicule]],'Def. Prix & Parcours'!$I$6:$M$28,3,FALSE)*Table3[[#This Row],[Points Design du Véhicule]]),"") -> 0 | S15: =IF(Table3[[#This Row],[Parcours choisi]]<>"",(VLOOKUP(Table356[[#Headers],[Innovation numérique]],'Def. Prix & Parcours'!$I$6:$M$28,3,FALSE)*Table3[[#This Row],[Points Innovation numérique]]),"") -> 0 | T15: =IF(Table3[[#This Row],[Parcours choisi]]<>"",(VLOOKUP(Table356[[#Headers],[Programmation]],'Def. Prix & Parcours'!$I$6:$M$28,3,FALSE)*Table3[[#This Row],[Points Programmation]]),"") -> 0 | U15: =IF(Table3[[#This Row],[Parcours choisi]]<>"",(VLOOKUP(Table356[[#Headers],[Respect du règlement]],'Def. Prix & Parcours'!$I$6:$M$28,3,FALSE)*Table3[[#This Row],[Points Respect du règlement]]),"") -> 0 | V15: =IF(Table3[[#This Row],[Parcours choisi]]<>"",(VLOOKUP(Table356[[#Headers],[Communication : vidéo]],'Def. Prix & Parcours'!$I$6:$M$28,3,FALSE)*Table3[[#This Row],[Points Communication : vidéo]]),"") -> 0 | W15: =IF(Table3[[#This Row],[Parcours choisi]]<>"",(VLOOKUP(Table356[[#Headers],[Epreuve CAO]],'Def. Prix & Parcours'!$I$6:$M$28,3,FALSE)*Table3[[#This Row],[Points Epreuve CAO]]),"") -> 0 | X15: =IF(Table3[[#This Row],[Parcours choisi]]<>"",(VLOOKUP(Table356[[#Headers],[Temps Réaction]],'Def. Prix & Parcours'!$I$6:$M$28,3,FALSE)*Table3[[#This Row],[Points Temps Réaction]]),"") -> 0 | Y15: =IF(Table3[[#This Row],[Parcours choisi]]<>"",(VLOOKUP(Table356[[#Headers],[Temps Course]],'Def. Prix & Parcours'!$I$6:$M$28,3,FALSE)*Table3[[#This Row],[Points Temps Course]]),"") -> 80 | Z15: =IF(Table3[[#This Row],[Parcours choisi]]<>"",(VLOOKUP(Table356[[#Headers],[Epreuve arrêt au stand]],'Def. Prix & Parcours'!$I$6:$M$28,3,FALSE)*Table3[[#This Row],[Points Epreuve arrêt au stand]]),"") -> 0 | AB15: =IF(Table3[[#This Row],[Parcours choisi]]<>"",SUM(Table35678[[#This Row],[Ingénierie et conception]:[1]]),"") -> 80 | AC15: =IF(Table3[[#This Row],[Parcours choisi]]<>"",_xlfn.RANK.EQ(Table35678[[#This Row],[Total Sciences et Techniques]],Table35678[Total Sciences et Techniques],0),"") -> 26
A16: 10 | B16: =IF(Table3[[#This Row],[Nom équipe]]<>"",Table3[[#This Row],[Nom équipe]],"") -> Space-hat | C16: =IF(Table3[[#This Row],[Etablissement]]<>"",Table3[[#This Row],[Etablissement]],"") -> Boutet Lunéville | D16: =IF(Table3[[#This Row],[Type établissement]]<>"",Table3[[#This Row],[Type établissement]],"") -> L | E16: =IF(Table3[[#This Row],[Académie]]<>"",Table3[[#This Row],[Académie]],"") -> Nancy-Metz | F16: =IF(Table3[[#This Row],[Parcours choisi]]<>"",Table3[[#This Row],[Parcours choisi]],"") -> T | G16: =IF(Table3[[#This Row],[Parcours choisi]]<>"",(VLOOKUP(Table356[[#Headers],[Ingénierie et conception]],'Def. Prix & Parcours'!$I$6:$M$28,3,FALSE)*Table3[[#This Row],[Points Ingénierie et conception]]),"") -> 78 | H16: =IF(Table3[[#This Row],[Parcours choisi]]<>"",(VLOOKUP(Table356[[#Headers],[Innovation mécanique]],'Def. Prix & Parcours'!$I$6:$M$28,3,FALSE)*Table3[[#This Row],[Points Innovation mécanique]]),"") -> 168 | I16: =IF(Table3[[#This Row],[Parcours choisi]]<>"",(VLOOKUP(Table356[[#Headers],[Développement Durable]],'Def. Prix & Parcours'!$I$6:$M$28,3,FALSE)*Table3[[#This Row],[Points Développement Durable]]),"") -> 96 | J16: =IF(Table3[[#This Row],[Parcours choisi]]<>"",(VLOOKUP(Table356[[#Headers],[Ingénierie de fabrication]],'Def. Prix & Parcours'!$I$6:$M$28,3,FALSE)*Table3[[#This Row],[Points Ingénierie de fabrication]]),"") -> 128 | K16: =IF(Table3[[#This Row],[Parcours choisi]]<>"",(VLOOKUP(Table356[[#Headers],[Gestion de projet et collaborations]],'Def. Prix & Parcours'!$I$6:$M$28,3,FALSE)*Table3[[#This Row],[Points Gestion de projet et collaborations]]),"") -> 60 | L16: =IF(Table3[[#This Row],[Parcours choisi]]<>"",(VLOOKUP(Table356[[#Headers],[Présentation Orale]],'Def. Prix & Parcours'!$I$6:$M$28,3,FALSE)*Table3[[#This Row],[Points Présentation Orale]]),"") -> 48 | M16: =IF(Table3[[#This Row],[Parcours choisi]]<>"",(VLOOKUP(Table356[[#Headers],[Identité Equipe]],'Def. Prix & Parcours'!$I$6:$M$28,3,FALSE)*Table3[[#This Row],[Points Identité Equipe]]),"") -> 68 | N16: =IF(Table3[[#This Row],[Parcours choisi]]<>"",(VLOOKUP(Table356[[#Headers],[Design du Stand]],'Def. Prix & Parcours'!$I$6:$M$28,3,FALSE)*Table3[[#This Row],[Points Design du Stand]]),"") -> 0 | O16: =IF(Table3[[#This Row],[Parcours choisi]]<>"",(VLOOKUP(Table356[[#Headers],[Portfolio]],'Def. Prix & Parcours'!$I$6:$M$28,3,FALSE)*Table3[[#This Row],[Points Portfolio]]),"") -> 52 | P16: =IF(Table3[[#This Row],[Parcours choisi]]<>"",(VLOOKUP(Table356[[#Headers],[Marketing et Sponsoring]],'Def. Prix & Parcours'!$I$6:$M$28,3,FALSE)*Table3[[#This Row],[Points Marketing et Sponsoring]]),"") -> 0 | Q16: =IF(Table3[[#This Row],[Parcours choisi]]<>"",(VLOOKUP(Table356[[#Headers],[Budget]],'Def. Prix & Parcours'!$I$6:$M$28,3,FALSE)*Table3[[#This Row],[Points Budget]]),"") -> 0 | R16: =IF(Table3[[#This Row],[Parcours choisi]]<>"",(VLOOKUP(Table356[[#Headers],[Design du Véhicule]],'Def. Prix & Parcours'!$I$6:$M$28,3,FALSE)*Table3[[#This Row],[Points Design du Véhicule]]),"") -> 90 | S16: =IF(Table3[[#This Row],[Parcours choisi]]<>"",(VLOOKUP(Table356[[#Headers],[Innovation numérique]],'Def. Prix & Parcours'!$I$6:$M$28,3,FALSE)*Table3[[#This Row],[Points Innovation numérique]]),"") -> 0 | T16: =IF(Table3[[#This Row],[Parcours choisi]]<>"",(VLOOKUP(Table356[[#Headers],[Programmation]],'Def. Prix & Parcours'!$I$6:$M$28,3,FALSE)*Table3[[#This Row],[Points Programmation]]),"") -> 0 | U16: =IF(Table3[[#This Row],[Parcours choisi]]<>"",(VLOOKUP(Table356[[#Headers],[Respect du règlement]],'Def. Prix & Parcours'!$I$6:$M$28,3,FALSE)*Table3[[#This Row],[Points Respect du règlement]]),"") -> 95 | V16: =IF(Table3[[#This Row],[Parcours choisi]]<>"",(VLOOKUP(Table356[[#Headers],[Communication : vidéo]],'Def. Prix & Parcours'!$I$6:$M$28,3,FALSE)*Table3[[#This Row],[Points Communication : vidéo]]),"") -> 0 | W16: =IF(Table3[[#This Row],[Parcours choisi]]<>"",(VLOOKUP(Table356[[#Headers],[Epreuve CAO]],'Def. Prix & Parcours'!$I$6:$M$28,3,FALSE)*Table3[[#This Row],[Points Epreuve CAO]]),"") -> 0 | X16: =IF(Table3[[#This Row],[Parcours choisi]]<>"",(VLOOKUP(Table356[[#Headers],[Temps Réaction]],'Def. Prix & Parcours'!$I$6:$M$28,3,FALSE)*Table3[[#This Row],[Points Temps Réaction]]),"") -> 0 | Y16: =IF(Table3[[#This Row],[Parcours choisi]]<>"",(VLOOKUP(Table356[[#Headers],[Temps Course]],'Def. Prix & Parcours'!$I$6:$M$28,3,FALSE)*Table3[[#This Row],[Points Temps Course]]),"") -> 180 | Z16: =IF(Table3[[#This Row],[Parcours choisi]]<>"",(VLOOKUP(Table356[[#Headers],[Epreuve arrêt au stand]],'Def. Prix & Parcours'!$I$6:$M$28,3,FALSE)*Table3[[#This Row],[Points Epreuve arrêt au stand]]),"") -> 0 | AB16: =IF(Table3[[#This Row],[Parcours choisi]]<>"",SUM(Table35678[[#This Row],[Ingénierie et conception]:[1]]),"") -> 1063 | AC16: =IF(Table3[[#This Row],[Parcours choisi]]<>"",_xlfn.RANK.EQ(Table35678[[#This Row],[Total Sciences et Techniques]],Table35678[Total Sciences et Techniques],0),"") -> 7
